Workbook

Sheet Entrar

Sheet Relatório (hidden)
A1: CONTRIBUIÇÃO MARGINAL MÊS A MÊS, POR GRUPO SEGURADOR, AGRUPAMENTOS DE RAMOS, RAMOS - valores em R$ mil PERÍODO: JANEIRO 2015 A DEZEMBRO 2016
B2: NOVOS AGRUPAMENTOS | E2: =IF(Cadastro!A1=TRUE,"Para criar os agrupamentos vá para a planilha 'Novos Agrupamentos'.","") -> 
B3: 1 | F3: 1 | G3: 1 | I3: 1 | K3: 1 | M3: 2 | N3: 1 | Q3: =O63 -> 0 | W3: 75 | X3: 1
B4: 1
B5: =IF(RelatSuporte!C3=1,VLOOKUP(RelatSuporte!B3,Cadastro!D2:F19,3,FALSE),VLOOKUP(RelatSuporte!C3-1,Cadastro!D22:G148,3,FALSE)) -> TODOS OS RAMOS | H5: MÊS A MÊS
B6: Período | C6: Prêmio Emitido Líquido (PEL) | H6: Prêmio Retido (PR) | L6: Prêmio Ganho (PG) | P6: Sinistro Retido | T6: Despesas de Comercialização (3) | X6: Contribuição Marginal
C7: 2016 | D7: Part. Merc. | E7: Cresc. | F7: 2015 | G7: Part. Merc. | H7: =C7 -> 2016 | I7: s/PEL | J7: =F7 -> 2015 | K7: s/PEL | L7: =H7 -> 2016 | M7: s/PR | N7: =J7 -> 2015 | O7: s/PR | P7: =L7 -> 2016 | Q7: s/PG | R7: =N7 -> 2015 | S7: s/PG | T7: =P7 -> 2016 | U7: s/PG | V7: =R7 -> 2015 | W7: s/PG | X7: =T7 -> 2016 | Y7: s/PG | Z7: =V7 -> 2015 | AA7: s/PG
A8: 1 | B8: JANEIRO | C8: =RelatSuporte!C8 -> 13384291.61 | D8: =IF(RelatSuporte!C121=0,0,C8/RelatSuporte!C121) -> 1 | E8: =IFERROR(IF(F8=0,0,IF(C8=0,0,C8/F8-1)),"") -> 0.09822129718 | F8: =RelatSuporte!D8 -> 12187244.63 | G8: =IF(RelatSuporte!D121=0,0,F8/RelatSuporte!D121) -> 1 | H8: =RelatSuporte!E8 -> 12748613.94 | I8: =IFERROR(IF(C8=0,0,H8/C8),"") -> 0.9525056921 | J8: =RelatSuporte!F8 -> 11580859.65 | K8: =IF(F8=0,0,J8/F8) -> 0.950244292 | L8: =RelatSuporte!G8 -> 7356646.833 | M8: =IF(H8=0,0,L8/H8) -> 0.5770546404 | N8: =RelatSuporte!H8 -> 6962897.295 | O8: =IF(J8=0,0,N8/J8) -> 0.6012418342 | P8: =RelatSuporte!I8 -> 3573463.521 | Q8: =IF(L8=0,0,P8/L8) -> 0.4857462376 | R8: =RelatSuporte!J8 -> 3529945.165 | S8: =IF(N8=0,0,R8/N8) -> 0.5069649911 | T8: =RelatSuporte!K8 -> 1896014.264 | U8: =IF(L8<=1,0,+T8/L8) -> 0.2577280529 | V8: =RelatSuporte!L8 -> 1696386.422 | W8: =IF(N8=0,0,V8/N8) -> 0.2436322626 | X8: =L8-P8-T8 -> 1887169.049 | Y8: =IF(L8<=1,0,+X8/L8) -> 0.2565257095 | Z8: =N8-R8-V8 -> 1736565.708 | AA8: =IF(N8=0,0,Z8/N8) -> 0.2494027463
A9: 2 | B9: FEVEREIRO | C9: =RelatSuporte!C9 -> 13136872.74 | D9: =IF(RelatSuporte!C122=0,0,C9/RelatSuporte!C122) -> 1 | E9: =IFERROR(IF(F9=0,0,IF(C9=0,0,C9/F9-1)),"") -> 0.02490314279 | F9: =RelatSuporte!D9 -> 12817672.41 | G9: =IF(RelatSuporte!D122=0,0,F9/RelatSuporte!D122) -> 1 | H9: =RelatSuporte!E9 -> 12481574.3 | I9: =IFERROR(IF(C9=0,0,H9/C9),"") -> 0.9501176233 | J9: =RelatSuporte!F9 -> 12240988.46 | K9: =IF(F9=0,0,J9/F9) -> 0.9550086836 | L9: =RelatSuporte!G9 -> 6734718.346 | M9: =IF(H9=0,0,L9/H9) -> 0.5395728281 | N9: =RelatSuporte!H9 -> 6372408.696 | O9: =IF(J9=0,0,N9/J9) -> 0.5205795854 | P9: =RelatSuporte!I9 -> 3281821.934 | Q9: =IF(L9=0,0,P9/L9) -> 0.4872990621 | R9: =RelatSuporte!J9 -> 2842169.478 | S9: =IF(N9=0,0,R9/N9) -> 0.4460118008 | T9: =RelatSuporte!K9 -> 1741566.772 | U9: 0.2585953387 | V9: =RelatSuporte!L9 -> 1655452.616 | W9: =IF(N9=0,0,V9/N9) -> 0.2597844387 | X9: =L9-P9-T9 -> 1711329.641 | Y9: =IF(L9<=1,0,+X9/L9) -> 0.2541055992 | Z9: 1874786.602 | AA9: =IF(N9=0,0,Z9/N9) -> 0.2942037605
A10: 3 | B10: MARÇO | C10: =RelatSuporte!C10 -> 16233928.9 | D10: =IF(RelatSuporte!C123=0,0,C10/RelatSuporte!C123) -> 1 | E10: 0.002435253963 | F10: =RelatSuporte!D10 -> 16194491.2 | G10: =IF(RelatSuporte!D123=0,0,F10/RelatSuporte!D123) -> 1 | H10: =RelatSuporte!E10 -> 15536828.89 | I10: 0.9570590696 | J10: =RelatSuporte!F10 -> 15557761.78 | K10: 0.9606823448 | L10: =RelatSuporte!G10 -> 7178824.249 | M10: 0.4620520893 | N10: =RelatSuporte!H10 -> 6886180.153 | O10: 0.4426202336 | P10: =RelatSuporte!I10 -> 3834858.642 | Q10: 0.5341903506 | R10: =RelatSuporte!J10 -> 3466118.473 | S10: 0.5033441466 | T10: =RelatSuporte!K10 -> 1874424.12 | U10: 0.2611046119 | V10: =RelatSuporte!L10 -> 1768850.888 | W10: 0.2568696793 | X10: 1469541.487 | Y10: 0.2047050375 | Z10: 1651210.793 | AA10: 0.2397861741
A11: 4 | B11: ABRIL | C11: =RelatSuporte!C11 -> 16037674.65 | D11: =IF(RelatSuporte!C124=0,0,C11/RelatSuporte!C124) -> 1 | E11: 0.1408269244 | F11: =RelatSuporte!D11 -> 14057938.42 | G11: =IF(RelatSuporte!D124=0,0,F11/RelatSuporte!D124) -> 1 | H11: =RelatSuporte!E11 -> 15335366.98 | I11: 0.956208884 | J11: =RelatSuporte!F11 -> 13440339.07 | K11: 0.9560675734 | L11: =RelatSuporte!G11 -> 6916856.937 | M11: 0.4510395446 | N11: =RelatSuporte!H11 -> 6640543.861 | O11: 0.4940756202 | P11: =RelatSuporte!I11 -> 3441190.933 | Q11: 0.4975078947 | R11: =RelatSuporte!J11 -> 3052156.473 | S11: 0.4596244731 | T11: =RelatSuporte!K11 -> 1866446.24 | U11: 0.2698402261 | V11: =RelatSuporte!L11 -> 1715270.679 | W11: 0.2583027407 | X11: 1609219.765 | Y11: 0.2326518792 | Z11: 1873116.709 | AA11: 0.2820727862
A12: 5 | B12: MAIO | C12: =RelatSuporte!C12 -> 17244408.94 | D12: =IF(RelatSuporte!C125=0,0,C12/RelatSuporte!C125) -> 1 | E12: 0.09071940543 | F12: =RelatSuporte!D12 -> 15810123.9 | G12: =IF(RelatSuporte!D125=0,0,F12/RelatSuporte!D125) -> 1 | H12: =RelatSuporte!E12 -> 16575741.63 | I12: 0.9612241095 | J12: =RelatSuporte!F12 -> 15160578.43 | K12: 0.9589158519 | L12: =RelatSuporte!G12 -> 7127053.294 | M12: 0.4299688939 | N12: =RelatSuporte!H12 -> 6806243.43 | O12: 0.448943519 | P12: =RelatSuporte!I12 -> 3433106.807 | Q12: 0.4817007346 | R12: =RelatSuporte!J12 -> 3140328.062 | S12: 0.461389325 | T12: =RelatSuporte!K12 -> 1861330.604 | U12: 0.2611641203 | V12: =RelatSuporte!L12 -> 1791687.812 | W12: 0.2632418059 | X12: 1832615.883 | Y12: 0.2571351451 | Z12: 1874227.556 | AA12: 0.2753688691
A13: 6 | B13: JUNHO | C13: =RelatSuporte!C13 -> 19479174.48 | D13: =IF(RelatSuporte!C126=0,0,C13/RelatSuporte!C126) -> 1 | E13: 0.1396947898 | F13: =RelatSuporte!D13 -> 17091571.06 | G13: =IF(RelatSuporte!D126=0,0,F13/RelatSuporte!D126) -> 1 | H13: =RelatSuporte!E13 -> 18780195.05 | I13: 0.9641165782 | J13: =RelatSuporte!F13 -> 16456354.87 | K13: 0.9628345348 | L13: =RelatSuporte!G13 -> 6889269.176 | M13: 0.3668369342 | N13: =RelatSuporte!H13 -> 6759447.243 | O13: 0.4107499685 | P13: =RelatSuporte!I13 -> 3268423.508 | Q13: 0.4744223843 | R13: =RelatSuporte!J13 -> 2883350.615 | S13: 0.4265660359 | T13: =RelatSuporte!K13 -> 1941433.362 | U13: 0.2818054154 | V13: =RelatSuporte!L13 -> 1826685.113 | W13: 0.2702417886 | X13: 1679412.306 | Y13: 0.2437722003 | Z13: 2049411.515 | AA13: 0.3031921755
A14: 7 | B14: JULHO | C14: =RelatSuporte!C14 -> 16433362.3 | D14: =IF(RelatSuporte!C127=0,0,C14/RelatSuporte!C127) -> 1 | E14: 0.1013414734 | F14: =RelatSuporte!D14 -> 14921223.52 | G14: =IF(RelatSuporte!D127=0,0,F14/RelatSuporte!D127) -> 1 | H14: =RelatSuporte!E14 -> 15703011.57 | I14: 0.9555568293 | J14: =RelatSuporte!F14 -> 14306340.05 | K14: 0.9587913508 | L14: =RelatSuporte!G14 -> 7042257.06 | M14: 0.4484653806 | N14: =RelatSuporte!H14 -> 6932219.635 | O14: 0.4845557711 | P14: =RelatSuporte!I14 -> 3392009.163 | Q14: 0.481665059 | R14: =RelatSuporte!J14 -> 3123347.308 | S14: 0.4505551572 | T14: =RelatSuporte!K14 -> 1851868.14 | U14: 0.2629651437 | V14: =RelatSuporte!L14 -> 1846095.586 | W14: 0.2663065631 | X14: 1798379.758 | Y14: 0.2553697973 | Z14: 1962776.742 | AA14: 0.2831382797
A15: 8 | B15: AGOSTO | C15: =RelatSuporte!C15 -> 17324168.09 | D15: =IF(RelatSuporte!C128=0,0,C15/RelatSuporte!C128) -> 1 | E15: 0.1825366248 | F15: =RelatSuporte!D15 -> 14650005.53 | G15: =IF(RelatSuporte!D128=0,0,F15/RelatSuporte!D128) -> 1 | H15: =RelatSuporte!E15 -> 16593307.54 | I15: 0.9578126612 | J15: =RelatSuporte!F15 -> 14000172.1 | K15: 0.9556427862 | L15: =RelatSuporte!G15 -> 7107970.137 | M15: 0.4283636712 | N15: =RelatSuporte!H15 -> 6940367.11 | O15: 0.4957344138 | P15: =RelatSuporte!I15 -> 3490945.074 | Q15: 0.4911310834 | R15: =RelatSuporte!J15 -> 3116761.363 | S15: 0.4490773058 | T15: =RelatSuporte!K15 -> 1939611.861 | U15: 0.2728784482 | V15: =RelatSuporte!L15 -> 1828433.158 | W15: 0.2634490552 | X15: 1677413.202 | Y15: 0.2359904683 | Z15: 1995172.589 | AA15: 0.287473639
A16: 9 | B16: SETEMBRO | C16: =RelatSuporte!C16 -> 14622190.58 | D16: =IF(RelatSuporte!C129=0,0,C16/RelatSuporte!C129) -> 1 | E16: 0.03779389939 | F16: =RelatSuporte!D16 -> 14089686.39 | G16: =IF(RelatSuporte!D129=0,0,F16/RelatSuporte!D129) -> 1 | H16: =RelatSuporte!E16 -> 13924366.78 | I16: 0.952276385 | J16: =RelatSuporte!F16 -> 13355425.61 | K16: 0.9478866486 | L16: =RelatSuporte!G16 -> 6780327.976 | M16: 0.4869397712 | N16: =RelatSuporte!H16 -> 6709449.534 | O16: 0.5023763172 | P16: =RelatSuporte!I16 -> 3179861.883 | Q16: 0.4689834908 | R16: =RelatSuporte!J16 -> 3132565.491 | S16: 0.4668885987 | T16: =RelatSuporte!K16 -> 1874412.613 | U16: 0.2764486643 | V16: =RelatSuporte!L16 -> 1806787.424 | W16: 0.269289964 | X16: 1726053.48 | Y16: 0.2545678449 | Z16: 1770096.619 | AA16: 0.2638214373
A17: 10 | B17: OUTUBRO | C17: =RelatSuporte!C17 -> 15807514.39 | D17: =IF(RelatSuporte!C130=0,0,C17/RelatSuporte!C130) -> 1 | E17: 0.1724405589 | F17: =RelatSuporte!D17 -> 13482572.12 | G17: =IF(RelatSuporte!D130=0,0,F17/RelatSuporte!D130) -> 1 | H17: =RelatSuporte!E17 -> 15064290.65 | I17: 0.9529828838 | J17: =RelatSuporte!F17 -> 12793055.03 | K17: 0.9488586389 | L17: =RelatSuporte!G17 -> 6881038.804 | M17: 0.4567781493 | N17: =RelatSuporte!H17 -> 6831709.277 | O17: 0.534017032 | P17: =RelatSuporte!I17 -> 3213630.071 | Q17: 0.4670268782 | R17: =RelatSuporte!J17 -> 3200834.893 | S17: 0.4685262155 | T17: =RelatSuporte!K17 -> 1910432.598 | U17: 0.2776372366 | V17: =RelatSuporte!L17 -> 1833227.645 | W17: 0.268340992 | X17: 1756976.135 | Y17: 0.2553358852 | Z17: 1797646.74 | AA17: 0.2631327925
A18: 11 | B18: NOVEMBRO | C18: =RelatSuporte!C18 -> 18576137.11 | D18: =IF(RelatSuporte!C131=0,0,C18/RelatSuporte!C131) -> 1 | E18: 0.1810766929 | F18: =RelatSuporte!D18 -> 15728137.91 | G18: =IF(RelatSuporte!D131=0,0,F18/RelatSuporte!D131) -> 1 | H18: =RelatSuporte!E18 -> 17757495.2 | I18: 0.9559304549 | J18: =RelatSuporte!F18 -> 15061312.88 | K18: 0.9576030528 | L18: =RelatSuporte!G18 -> 6708045.757 | M18: 0.3777585566 | N18: =RelatSuporte!H18 -> 6607852.12 | O18: 0.438730154 | P18: =RelatSuporte!I18 -> 3299254.548 | Q18: 0.4918354269 | R18: =RelatSuporte!J18 -> 3133526.286 | S18: 0.4742125322 | T18: =RelatSuporte!K18 -> 1908089.525 | U18: 0.2844478995 | V18: =RelatSuporte!L18 -> 1784978.133 | W18: 0.2701298546 | X18: 1500701.683 | Y18: 0.2237166736 | Z18: 1689347.701 | AA18: 0.2556576132
A19: 12 | B19: DEZEMBRO | C19: =RelatSuporte!C19 -> 23971934.25 | D19: =IF(RelatSuporte!C132=0,0,C19/RelatSuporte!C132) -> 1 | E19: 0.1867594652 | F19: =RelatSuporte!D19 -> 20199488.56 | G19: =IF(RelatSuporte!D132=0,0,F19/RelatSuporte!D132) -> 1 | H19: =RelatSuporte!E19 -> 23231337.97 | I19: 0.969105694 | J19: =RelatSuporte!F19 -> 19403201.12 | K19: 0.9605788314 | L19: =RelatSuporte!G19 -> 6841331.49 | M19: 0.2944871921 | N19: =RelatSuporte!H19 -> 6684344.336 | O19: 0.3444969876 | P19: =RelatSuporte!I19 -> 3288702.92 | Q19: 0.4807109441 | R19: =RelatSuporte!J19 -> 3430352.319 | S19: 0.513192042 | T19: =RelatSuporte!K19 -> 2091189.35 | U19: 0.3056699348 | V19: =RelatSuporte!L19 -> 1870981.195 | W19: 0.2799049692 | X19: 1461439.22 | Y19: 0.2136191211 | Z19: 1383010.822 | AA19: 0.2069029889
A20: 13 | B20: TOTAL | C20: =RelatSuporte!C20 -> 202251658 | D20: =IF(RelatSuporte!C133=0,0,C20/RelatSuporte!C133) -> 1 | E20: =IF(C19=0,"",IF(C20=0,0,C20/F20-1)) -> 0.1159934024 | F20: =RelatSuporte!D20 -> 181230155.7 | G20: =IF(RelatSuporte!D133=0,0,F20/RelatSuporte!D133) -> 1 | H20: =RelatSuporte!E20 -> 193732130.5 | I20: =IF(C20=0,0,H20/C20) -> 0.9578765999 | J20: =RelatSuporte!F20 -> 173356389.1 | K20: 0.9565537723 | L20: =RelatSuporte!G20 -> 83564340.06 | M20: 0.4313396019 | N20: =RelatSuporte!H20 -> 81133662.69 | O20: 0.4680165706 | P20: =RelatSuporte!I20 -> 40697269 | Q20: 0.4870171771 | R20: =RelatSuporte!J20 -> 38051455.93 | S20: 0.468997142 | T20: =RelatSuporte!K20 -> 22756819.45 | U20: 0.2723269212 | V20: =RelatSuporte!L20 -> 21424836.67 | W20: 0.2640684022 | X20: 20110251.61 | Y20: 0.2406559017 | Z20: 21657370.1 | AA20: 0.2669344558
B21: =IF(RelatSuporte!E20=TRUE,"ATENÇÃO: O percentual informado a frente do nome da seguradora indica a partipação que foi considerada na totalização do grupo segurador. Os valores informados nos quadros abaixo são plenos, ou seja, 100% dos valores realizados",) -> 0
B22: =IF(RelatSuporte!E21=TRUE,"ATENÇÃO: O percentual informado a frente do nome da seguradora indica a partipação que foi considerada na totalização do grupo segurador. Os valores informados nos quadros abaixo são plenos, ou seja, 100% dos valores realizados",) -> 0
B23: =IF(RelatSuporte!E22=TRUE,"ATENÇÃO: O percentual informado a frente do nome da seguradora indica a partipação que foi considerada na totalização do grupo segurador. Os valores informados nos quadros abaixo são plenos, ou seja, 100% dos valores realizados",) -> 0
B24: =IF(RelatSuporte!E23=TRUE,"ATENÇÃO: O percentual informado a frente do nome da seguradora indica a partipação que foi considerada na totalização do grupo segurador. Os valores informados nos quadros abaixo são plenos, ou seja, 100% dos valores realizados",) -> 0
B25: =IF(RelatSuporte!E24=TRUE,"ATENÇÃO: O percentual informado a frente do nome da seguradora indica a partipação que foi considerada na totalização do grupo segurador. Os valores informados nos quadros abaixo são plenos, ou seja, 100% dos valores realizados",) -> 0
B26: =IF(RelatSuporte!E25=TRUE,"ATENÇÃO: O percentual informado a frente do nome da seguradora indica a partipação que foi considerada na totalização do grupo segurador. Os valores informados nos quadros abaixo são plenos, ou seja, 100% dos valores realizados",) -> 0
B27: =IF(RelatSuporte!E26=TRUE,"ATENÇÃO: O percentual informado a frente do nome da seguradora indica a partipação que foi considerada na totalização do grupo segurador. Os valores informados nos quadros abaixo são plenos, ou seja, 100% dos valores realizados",) -> 0
B28: =IF(RelatSuporte!E27=TRUE,"ATENÇÃO: O percentual informado a frente do nome da seguradora indica a partipação que foi considerada na totalização do grupo segurador. Os valores informados nos quadros abaixo são plenos, ou seja, 100% dos valores realizados",) -> 0
B29: =IF(RelatSuporte!E28=TRUE,"ATENÇÃO: O percentual informado a frente do nome da seguradora indica a partipação que foi considerada na totalização do grupo segurador. Os valores informados nos quadros abaixo são plenos, ou seja, 100% dos valores realizados",) -> 0
H30: ACUMULADO NO ANO
B31: Período | C31: Prêmio Emitido Líquido (PEL) | H31: Prêmio Retido (PR) | L31: Prêmio Ganho (PG) | P31: Sinistro Retido | T31: Despesas de Comercialização (3) | X31: Contribuição Marginal
C32: 2016 | D32: Part. Merc. | E32: Cresc. | F32: 2015 | G32: Part. Merc. | H32: =C32 -> 2016 | I32: s/PEL | J32: =F32 -> 2015 | K32: s/PEL | L32: =H32 -> 2016 | M32: s/PR | N32: =J32 -> 2015 | O32: s/PR | P32: =L32 -> 2016 | Q32: s/PG | R32: =N32 -> 2015 | S32: s/PG | T32: =P32 -> 2016 | U32: s/PG | V32: =R32 -> 2015 | W32: s/PG | X32: =T32 -> 2016 | Y32: s/PG | Z32: =V32 -> 2015 | AA32: s/PG
A33: 15 | B33: JAN | C33: =RelatSuporte!C24 -> 13384291.61 | D33: =IF(RelatSuporte!C137=0,0,C33/RelatSuporte!C137) -> 1 | E33: =IF(F33=0,0,IF(C33=0,0,C33/F33-1)) -> 0.09822129718 | F33: =RelatSuporte!D24 -> 12187244.63 | G33: =IF(RelatSuporte!D137=0,0,F33/RelatSuporte!D137) -> 1 | H33: =RelatSuporte!E24 -> 12748613.94 | I33: =IF(C33=0,0,H33/C33) -> 0.9525056921 | J33: =RelatSuporte!F24 -> 11580859.65 | K33: =IF(F33=0,0,J33/F33) -> 0.950244292 | L33: =RelatSuporte!G24 -> 7356646.833 | M33: =IF(H33=0,0,L33/H33) -> 0.5770546404 | N33: =RelatSuporte!H24 -> 6962897.295 | O33: =IF(J33=0,0,N33/J33) -> 0.6012418342 | P33: =RelatSuporte!I24 -> 3573463.521 | Q33: =IF(L33=0,0,P33/L33) -> 0.4857462376 | R33: =RelatSuporte!J24 -> 3529945.165 | S33: =IF(N33=0,0,R33/N33) -> 0.5069649911 | T33: =RelatSuporte!K24 -> 1896014.264 | U33: =IF(L33<=1,0,+T33/L33) -> 0.2577280529 | V33: =RelatSuporte!L24 -> 1696386.422 | W33: =IF(N33=0,0,V33/N33) -> 0.2436322626 | X33: =L33-P33-T33 -> 1887169.049 | Y33: =IF(L33<=1,0,+X33/L33) -> 0.2565257095 | Z33: =N33-R33-V33 -> 1736565.708 | AA33: =IF(N33=0,0,Z33/N33) -> 0.2494027463
A34: 16 | B34: JAN/FEV | C34: =RelatSuporte!C25 -> 26521164.35 | D34: =IF(RelatSuporte!C138=0,0,C34/RelatSuporte!C138) -> 1 | E34: =IF(F34=0,0,IF(C34=0,0,C34/F34-1)) -> 0.06063796574 | F34: =RelatSuporte!D25 -> 25004917.04 | G34: =IF(RelatSuporte!D138=0,0,F34/RelatSuporte!D138) -> 1 | H34: =RelatSuporte!E25 -> 25230188.24 | I34: =IF(C34=0,0,H34/C34) -> 0.951322797 | J34: =RelatSuporte!F25 -> 23821848.1 | K34: =IF(F34=0,0,J34/F34) -> 0.9526865481 | L34: =RelatSuporte!G25 -> 14091365.18 | M34: =IF(H34=0,0,L34/H34) -> 0.5585120905 | N34: =RelatSuporte!H25 -> 13335305.99 | O34: =IF(J34=0,0,N34/J34) -> 0.5597930913 | P34: =RelatSuporte!I25 -> 6855285.455 | Q34: =IF(L34=0,0,P34/L34) -> 0.4864883826 | R34: =RelatSuporte!J25 -> 6372114.643 | S34: =IF(N34=0,0,R34/N34) -> 0.4778379024 | T34: =RelatSuporte!K25 -> 3637581.036 | U34: 0.2581425568 | V34: =RelatSuporte!L25 -> 3351839.039 | W34: =IF(N34=0,0,V34/N34) -> 0.2513507407 | X34: =L34-P34-T34 -> 3598498.689 | Y34: =IF(L34<=1,0,+X34/L34) -> 0.2553690606 | Z34: =N34-R34-V34 -> 3611352.309 | AA34: =IF(N34=0,0,Z34/N34) -> 0.2708113568
A35: 17 | B35: JAN/MAR | C35: =RelatSuporte!C26 -> 42755093.25 | D35: =IF(RelatSuporte!C139=0,0,C35/RelatSuporte!C139) -> 1 | E35: 0.03775988705 | F35: =RelatSuporte!D26 -> 41199408.25 | G35: =IF(RelatSuporte!D139=0,0,F35/RelatSuporte!D139) -> 1 | H35: =RelatSuporte!E26 -> 40767017.13 | I35: 0.9535008355 | J35: =RelatSuporte!F26 -> 39379609.88 | K35: 0.9558295025 | L35: =RelatSuporte!G26 -> 21270189.43 | M35: 0.5217499568 | N35: =RelatSuporte!H26 -> 20221486.14 | O35: 0.5135014339 | P35: =RelatSuporte!I26 -> 10690144.1 | Q35: 0.5025881003 | R35: =RelatSuporte!J26 -> 9838233.115 | S35: 0.4865237424 | T35: =RelatSuporte!K26 -> 5512005.155 | U35: 0.2591422692 | V35: =RelatSuporte!L26 -> 5120689.926 | W35: 0.2532301479 | X35: 5068040.176 | Y35: 0.2382696305 | Z35: 5262563.103 | AA35: 0.2602461098
A36: 18 | B36: JAN/ABR | C36: =RelatSuporte!C27 -> 58792767.89 | D36: =IF(RelatSuporte!C140=0,0,C36/RelatSuporte!C140) -> 1 | E36: 0.06398101693 | F36: =RelatSuporte!D27 -> 55257346.66 | G36: =IF(RelatSuporte!D140=0,0,F36/RelatSuporte!D140) -> 1 | H36: =RelatSuporte!E27 -> 56102384.11 | I36: 0.9542395454 | J36: =RelatSuporte!F27 -> 52819948.95 | K36: 0.9558900697 | L36: =RelatSuporte!G27 -> 28187046.37 | M36: 0.5024215426 | N36: =RelatSuporte!H27 -> 26862030 | O36: 0.5085584242 | P36: =RelatSuporte!I27 -> 14131335.03 | Q36: 0.5013414618 | R36: =RelatSuporte!J27 -> 12890389.59 | S36: 0.4798739926 | T36: =RelatSuporte!K27 -> 7378451.395 | U36: 0.2617674551 | V36: =RelatSuporte!L27 -> 6835960.605 | W36: 0.25448414 | X36: 6677259.941 | Y36: 0.236891083 | Z36: 7135679.811 | AA36: 0.2656418674
A37: 19 | B37: JAN/MAI | C37: =RelatSuporte!C28 -> 76037176.84 | D37: =IF(RelatSuporte!C141=0,0,C37/RelatSuporte!C141) -> 1 | E37: 0.0699294098 | F37: =RelatSuporte!D28 -> 71067470.56 | G37: =IF(RelatSuporte!D141=0,0,F37/RelatSuporte!D141) -> 1 | H37: =RelatSuporte!E28 -> 72678125.74 | I37: 0.955823569 | J37: =RelatSuporte!F28 -> 67980527.38 | K37: 0.9565632046 | L37: =RelatSuporte!G28 -> 35314099.66 | M37: 0.4858972256 | N37: =RelatSuporte!H28 -> 33668273.43 | O37: 0.4952634928 | P37: =RelatSuporte!I28 -> 17564441.84 | Q37: 0.4973775916 | R37: =RelatSuporte!J28 -> 16030717.65 | S37: 0.4761372062 | T37: =RelatSuporte!K28 -> 9239781.999 | U37: 0.2616456908 | V37: =RelatSuporte!L28 -> 8627648.417 | W37: 0.2562545547 | X37: 8509875.824 | Y37: 0.2409767177 | Z37: 9009907.368 | AA37: 0.2676082391
A38: 20 | B38: JAN/JUN | C38: =RelatSuporte!C29 -> 95516351.32 | D38: =IF(RelatSuporte!C142=0,0,C38/RelatSuporte!C142) -> 1 | E38: 0.08345496461 | F38: =RelatSuporte!D29 -> 88159041.62 | G38: =IF(RelatSuporte!D142=0,0,F38/RelatSuporte!D142) -> 1 | H38: =RelatSuporte!E29 -> 91458320.79 | I38: 0.9575148079 | J38: =RelatSuporte!F29 -> 84436882.25 | K38: 0.95777904 | L38: =RelatSuporte!G29 -> 42203368.84 | M38: 0.4614491986 | N38: =RelatSuporte!H29 -> 40427720.68 | O38: 0.4787922008 | P38: =RelatSuporte!I29 -> 20832865.35 | Q38: 0.4936303883 | R38: =RelatSuporte!J29 -> 18914068.27 | S38: 0.4678489895 | T38: =RelatSuporte!K29 -> 11181215.36 | U38: 0.26493656 | V38: =RelatSuporte!L29 -> 10454333.53 | W38: 0.2585931968 | X38: 10189288.13 | Y38: 0.2414330517 | Z38: 11059318.88 | AA38: 0.2735578137
A39: 21 | B39: JAN/JUL | C39: =RelatSuporte!C30 -> 111949713.6 | D39: =IF(RelatSuporte!C143=0,0,C39/RelatSuporte!C143) -> 1 | E39: 0.08604409839 | F39: =RelatSuporte!D30 -> 103080265.1 | G39: =IF(RelatSuporte!D143=0,0,F39/RelatSuporte!D143) -> 1 | H39: =RelatSuporte!E30 -> 107161332.4 | I39: 0.9572273916 | J39: =RelatSuporte!F30 -> 98743222.3 | K39: 0.9579255755 | L39: =RelatSuporte!G30 -> 49245625.9 | M39: 0.4595465996 | N39: =RelatSuporte!H30 -> 47359940.31 | O39: 0.4796272515 | P39: =RelatSuporte!I30 -> 24224874.51 | Q39: 0.491919314 | R39: =RelatSuporte!J30 -> 22037415.57 | S39: 0.4653176382 | T39: =RelatSuporte!K30 -> 13033083.5 | U39: 0.2646546422 | V39: =RelatSuporte!L30 -> 12300429.12 | W39: 0.2597222259 | X39: 11987667.89 | Y39: 0.2434260438 | Z39: 13022095.62 | AA39: 0.2749601359
A40: 22 | B40: JAN/AGO | C40: =RelatSuporte!C31 -> 129273881.7 | D40: =IF(RelatSuporte!C144=0,0,C40/RelatSuporte!C144) -> 1 | E40: 0.09805134204 | F40: =RelatSuporte!D31 -> 117730270.7 | G40: =IF(RelatSuporte!D144=0,0,F40/RelatSuporte!D144) -> 1 | H40: =RelatSuporte!E31 -> 123754639.9 | I40: 0.9573058244 | J40: =RelatSuporte!F31 -> 112743394.4 | K40: 0.957641512 | L40: =RelatSuporte!G31 -> 56353596.03 | M40: 0.4553655207 | N40: =RelatSuporte!H31 -> 54300307.42 | O40: 0.4816273956 | P40: =RelatSuporte!I31 -> 27715819.58 | Q40: 0.4918198932 | R40: =RelatSuporte!J31 -> 25154176.94 | S40: 0.4632418881 | T40: =RelatSuporte!K31 -> 14972695.36 | U40: 0.2656919241 | V40: =RelatSuporte!L31 -> 14128862.27 | W40: 0.2601985687 | X40: 13665081.09 | Y40: 0.2424881827 | Z40: 15017268.21 | AA40: 0.2765595431
A41: 23 | B41: JAN/SET | C41: =RelatSuporte!C32 -> 143896072.3 | D41: =IF(RelatSuporte!C145=0,0,C41/RelatSuporte!C145) -> 1 | E41: 0.09161067487 | F41: =RelatSuporte!D32 -> 131819957.1 | G41: =IF(RelatSuporte!D145=0,0,F41/RelatSuporte!D145) -> 1 | H41: =RelatSuporte!E32 -> 137679006.7 | I41: 0.9567947512 | J41: =RelatSuporte!F32 -> 126098820 | K41: 0.9565988552 | L41: =RelatSuporte!G32 -> 63133924.01 | M41: 0.4585588284 | N41: =RelatSuporte!H32 -> 61009756.96 | O41: 0.4838249632 | P41: =RelatSuporte!I32 -> 30895681.46 | Q41: 0.489367356 | R41: =RelatSuporte!J32 -> 28286742.43 | S41: 0.4636429292 | T41: =RelatSuporte!K32 -> 16847107.97 | U41: 0.2668471545 | V41: =RelatSuporte!L32 -> 15935649.7 | W41: 0.2611983803 | X41: 15391134.57 | Y41: 0.2437854895 | Z41: 16787364.83 | AA41: 0.2751586905
A42: 24 | B42: JAN/OUT | C42: =RelatSuporte!C33 -> 159703586.7 | D42: =IF(RelatSuporte!C146=0,0,C42/RelatSuporte!C146) -> 1 | E42: 0.09911085224 | F42: =RelatSuporte!D33 -> 145302529.2 | G42: =IF(RelatSuporte!D146=0,0,F42/RelatSuporte!D146) -> 1 | H42: =RelatSuporte!E33 -> 152743297.3 | I42: 0.9564174513 | J42: =RelatSuporte!F33 -> 138891875 | K42: 0.9558806432 | L42: =RelatSuporte!G33 -> 70014962.81 | M42: 0.4583832092 | N42: =RelatSuporte!H33 -> 67841466.23 | O42: 0.4884480551 | P42: =RelatSuporte!I33 -> 34109311.54 | Q42: 0.487171744 | R42: =RelatSuporte!J33 -> 31487577.32 | S42: 0.4641346814 | T42: =RelatSuporte!K33 -> 18757540.57 | U42: 0.2679075989 | V42: =RelatSuporte!L33 -> 17768877.34 | W42: 0.261917649 | X42: 17148110.7 | Y42: 0.2449206572 | Z42: 18585011.57 | AA42: 0.2739476695
A43: 25 | B43: JAN/NOV | C43: =RelatSuporte!C34 -> 178279723.8 | D43: =IF(RelatSuporte!C147=0,0,C43/RelatSuporte!C147) -> 1 | E43: 0.1071165947 | F43: =RelatSuporte!D34 -> 161030667.1 | G43: =IF(RelatSuporte!D147=0,0,F43/RelatSuporte!D147) -> 1 | H43: =RelatSuporte!E34 -> 170500792.5 | I43: 0.956366708 | J43: =RelatSuporte!F34 -> 153953187.9 | K43: 0.9560488739 | L43: =RelatSuporte!G34 -> 76723008.57 | M43: 0.4499862284 | N43: =RelatSuporte!H34 -> 74449318.35 | O43: 0.4835841294 | P43: =RelatSuporte!I34 -> 37408566.08 | Q43: 0.4875794991 | R43: =RelatSuporte!J34 -> 34621103.61 | S43: 0.465029155 | T43: =RelatSuporte!K34 -> 20665630.1 | U43: 0.2693537504 | V43: =RelatSuporte!L34 -> 19553855.47 | W43: 0.2626465347 | X43: 18648812.39 | Y43: 0.2430667506 | Z43: 20274359.27 | AA43: 0.2723243103
A44: 26 | B44: JAN/DEZ | C44: =RelatSuporte!C35 -> 202251658 | D44: =IF(RelatSuporte!C148=0,0,C44/RelatSuporte!C148) -> 1 | E44: 0.1159934024 | F44: =RelatSuporte!D35 -> 181230155.7 | G44: =IF(RelatSuporte!D148=0,0,F44/RelatSuporte!D148) -> 1 | H44: =RelatSuporte!E35 -> 193732130.5 | I44: 0.9578765999 | J44: =RelatSuporte!F35 -> 173356389.1 | K44: 0.9565537723 | L44: =RelatSuporte!G35 -> 83564340.06 | M44: 0.4313396019 | N44: =RelatSuporte!H35 -> 81133662.69 | O44: 0.4680165706 | P44: =RelatSuporte!I35 -> 40697269 | Q44: 0.4870171771 | R44: =RelatSuporte!J35 -> 38051455.93 | S44: 0.468997142 | T44: =RelatSuporte!K35 -> 22756819.45 | U44: 0.2723269212 | V44: =RelatSuporte!L35 -> 21424836.67 | W44: 0.2640684022 | X44: 20110251.61 | Y44: 0.2406559017 | Z44: 21657370.1 | AA44: 0.2669344558
H45: PERÍODOS DE 12 MESES
B46: Período | C46: Pr. Emitido Líq. (PEL) | H46: Prêmio Retido (PR) | L46: Prêmio Ganho (PG) | P46: Sinistro Retido | T46: Comercialização (3) | X46: Contrib. Marginal
C47: =C32 -> 2016 | D47: Part. Merc. | E47: Cresc. Nota 2 | H47: =C47 -> 2016 | I47: s/PEL | L47: =H47 -> 2016 | M47: s/PR | P47: =L47 -> 2016 | Q47: s/PG | T47: =P47 -> 2016 | U47: s/PG | X47: =T47 -> 2016 | Y47: s/PG
A48: 28 | B48: JAN/DEZ-2015 | C48: =RelatSuporte!C39 -> 181230155.7 | D48: =IF(RelatSuporte!C152=0,0,C48/RelatSuporte!C152) -> 1 | E48: - | H48: =RelatSuporte!E39 -> 173356389.1 | I48: =IF(C48=0,0,H48/C48) -> 0.9565537723 | L48: =RelatSuporte!G39 -> 81133662.69 | M48: =IF(H48=0,0,L48/H48) -> 0.4680165706 | P48: =RelatSuporte!I39 -> 38051455.93 | Q48: =IF(L48<=1,0,+P48/L48) -> 0.468997142 | T48: =RelatSuporte!K39 -> 21424836.67 | U48: =IF(L48<=1,0,+T48/L48) -> 0.2640684022 | X48: =+L48-P48-T48 -> 21657370.1 | Y48: =IF(L48<=1,0,+X48/L48) -> 0.2669344558
A49: 29 | B49: FEV-15/JAN-16 | C49: =RelatSuporte!C40 -> 182427202.6 | D49: =IF(RelatSuporte!C153=0,0,C49/RelatSuporte!C153) -> 1 | E49: =IF($C48=0,0,IF($C49=0,0,+$C49/$C48-1)) -> 0.006605120281 | H49: =RelatSuporte!E40 -> 174524143.3 | I49: =IF(C49=0,0,H49/C49) -> 0.956678285 | L49: =RelatSuporte!G40 -> 81527412.23 | M49: 0.4671411684 | P49: =RelatSuporte!I40 -> 38094974.28 | Q49: 0.4672658341 | T49: =RelatSuporte!K40 -> 21624464.51 | U49: 0.2652416398 | X49: 21807973.44 | Y49: 0.267492526
A50: 30 | B50: MAR-15/FEV-16 | C50: =RelatSuporte!C41 -> 182746403 | D50: =IF(RelatSuporte!C154=0,0,C50/RelatSuporte!C154) -> 1 | E50: =IF($C49=0,0,IF($C50=0,0,+$C50/$C49-1)) -> 0.001749740838 | H50: =RelatSuporte!E41 -> 174764729.2 | I50: 0.9563237709 | L50: =RelatSuporte!G41 -> 81889721.88 | M50: 0.4685712172 | P50: =RelatSuporte!I41 -> 38534626.74 | Q50: 0.4705673173 | T50: =RelatSuporte!K41 -> 21710578.67 | U50: 0.2651197021 | X50: 21644516.48 | Y50: 0.2643129807
A51: 31 | B51: ABR-15/MAR-16 | C51: =RelatSuporte!C42 -> 182785840.7 | D51: =IF(RelatSuporte!C155=0,0,C51/RelatSuporte!C155) -> 1 | E51: 0.0002158056095 | H51: =RelatSuporte!E42 -> 174743796.3 | I51: 0.956002914 | L51: =RelatSuporte!G42 -> 82182365.97 | M51: 0.470302052 | P51: =RelatSuporte!I42 -> 38903366.91 | Q51: 0.4733785216 | T51: =RelatSuporte!K42 -> 21816151.9 | U51: 0.2654602559 | X51: 21462847.17 | Y51: 0.2611612225
A52: 32 | B52: MAI-15/ABR-16 | C52: =RelatSuporte!C43 -> 184765576.9 | D52: =IF(RelatSuporte!C156=0,0,C52/RelatSuporte!C156) -> 1 | E52: 0.01083090585 | H52: =RelatSuporte!E43 -> 176638824.2 | I52: 0.9560158726 | L52: =RelatSuporte!G43 -> 82458679.05 | M52: 0.4668208103 | P52: =RelatSuporte!I43 -> 39292401.37 | Q52: 0.4765101966 | T52: =RelatSuporte!K43 -> 21967327.46 | U52: 0.266404067 | X52: 21198950.23 | Y52: 0.2570857364
A53: 33 | B53: JUN-15/MAI-16 | C53: =RelatSuporte!C44 -> 186199861.9 | D53: =IF(RelatSuporte!C157=0,0,C53/RelatSuporte!C157) -> 1 | E53: 0.007762728666 | H53: =RelatSuporte!E44 -> 178053987.4 | I53: 0.9562519841 | L53: =RelatSuporte!G44 -> 82779488.92 | M53: 0.4649123006 | P53: =RelatSuporte!I44 -> 39585180.11 | Q53: 0.4782003444 | T53: =RelatSuporte!K44 -> 22036970.25 | U53: 0.2662129296 | X53: 21157338.55 | Y53: 0.255586726
A54: 34 | B54: JUL-15/JUN-16 | C54: =RelatSuporte!C45 -> 188587465.4 | D54: =IF(RelatSuporte!C158=0,0,C54/RelatSuporte!C158) -> 1 | E54: 0.01282279912 | H54: =RelatSuporte!E45 -> 180377827.6 | I54: 0.9564677443 | L54: =RelatSuporte!G45 -> 82909310.85 | M54: 0.4596424736 | P54: =RelatSuporte!I45 -> 39970253 | Q54: 0.4820960709 | T54: =RelatSuporte!K45 -> 22151718.5 | U54: 0.2671801065 | X54: 20787339.34 | Y54: 0.2507238226
A55: 35 | B55: AGO-15/JUL-16 | C55: =RelatSuporte!C46 -> 190099604.1 | D55: =IF(RelatSuporte!C159=0,0,C55/RelatSuporte!C159) -> 1 | E55: 0.008018235857 | H55: =RelatSuporte!E46 -> 181774499.1 | I55: 0.9562066157 | L55: =RelatSuporte!G46 -> 83019348.27 | M55: 0.4567161438 | P55: =RelatSuporte!I46 -> 40238914.86 | Q55: 0.4846932155 | T55: =RelatSuporte!K46 -> 22157491.05 | U55: 0.2668955071 | X55: 20622942.36 | Y55: 0.2484112775
A56: 36 | B56: SET-15/AGO-16 | C56: =RelatSuporte!C47 -> 192773766.7 | D56: =IF(RelatSuporte!C160=0,0,C56/RelatSuporte!C160) -> 1 | E56: 0.01406716534 | H56: =RelatSuporte!E47 -> 184367634.5 | I56: 0.9563937963 | L56: =RelatSuporte!G47 -> 83186951.3 | M56: 0.4512014894 | P56: =RelatSuporte!I47 -> 40613098.57 | Q56: 0.4882147733 | T56: =RelatSuporte!K47 -> 22268669.76 | U56: 0.2676942647 | X56: 20305182.97 | Y56: 0.244090962
A57: 37 | B57: OUT-15/SET-16 | C57: =RelatSuporte!C48 -> 193306270.9 | D57: =IF(RelatSuporte!C161=0,0,C57/RelatSuporte!C161) -> 1 | E57: 0.002762327048 | H57: =RelatSuporte!E48 -> 184936575.7 | I57: 0.9567024126 | L57: =RelatSuporte!G48 -> 83257829.74 | M57: 0.4501966656 | P57: =RelatSuporte!I48 -> 40660394.96 | Q57: 0.4883672213 | T57: =RelatSuporte!K48 -> 22336294.95 | U57: 0.2682786113 | X57: 20261139.83 | Y57: 0.2433541673
A58: 38 | B58: NOV-15/OUT-16 | C58: =RelatSuporte!C49 -> 195631213.2 | D58: =IF(RelatSuporte!C162=0,0,C58/RelatSuporte!C162) -> 1 | E58: 0.01202724703 | H58: =RelatSuporte!E49 -> 187207811.3 | I58: 0.9569424445 | L58: =RelatSuporte!G49 -> 83307159.27 | M58: 0.4449983079 | P58: =RelatSuporte!I49 -> 40673190.14 | Q58: 0.4882316298 | T58: =RelatSuporte!K49 -> 22413499.9 | U58: 0.2690465033 | X58: 20220469.23 | Y58: 0.2427218669
A59: 39 | B59: DEZ-15/NOV-16 | C59: =RelatSuporte!C50 -> 198479212.4 | D59: =IF(RelatSuporte!C163=0,0,C59/RelatSuporte!C163) -> 1 | E59: 0.01455799999 | H59: =RelatSuporte!E50 -> 189903993.7 | I59: 0.9567953813 | L59: =RelatSuporte!G50 -> 83407352.9 | M59: 0.4392079982 | P59: =RelatSuporte!I50 -> 40838918.4 | Q59: 0.4896321125 | T59: =RelatSuporte!K50 -> 22536611.29 | U59: 0.2701993351 | X59: 20031823.21 | Y59: 0.2401685524
A60: 40 | B60: JAN/DEZ-2016 | C60: =RelatSuporte!C51 -> 202251658 | D60: =IF(RelatSuporte!C164=0,0,C60/RelatSuporte!C164) -> 0.501018147 | E60: 0.0190067546 | H60: =RelatSuporte!E51 -> 193732130.5 | I60: 0.9578765999 | L60: =RelatSuporte!G51 -> 83564340.06 | M60: 0.4313396019 | P60: =RelatSuporte!I51 -> 40697269 | Q60: 0.4870171771 | T60: =RelatSuporte!K51 -> 22756819.45 | U60: 0.2723269212 | X60: 20110251.61 | Y60: 0.2406559017
B62: 1 = Na totalização das unidades seguradoras Bco. do Brasil e Mapfre foi considarada a participação de cada unidade na seguradora Brasilprev Nosso Futuro. | O62: ="Obs.: Os dados do ano de "&F7&" foram reprocessados com base no banco de dados SES de "&BD!X1 -> Obs.: Os dados do ano de 2015 foram reprocessados com base no banco de dados SES de DEZ/2016
B63: 2 = O Crescimento é calculado sobre o período anterior de 12 meses. 3= As despesas de comercialização não incluem o diferimento das comissões de corretagem. | O63: 0

Sheet Novos Agrupamentos (hidden)
B1: =IFERROR(VALUE(RIGHT(VLOOKUP(+Relatório!$B$3-1,Cadastro!AB3:AC17,2,FALSE),2)),0) -> 1 | C1: =LARGE(C4:C130,1) ->  | E1: TABELA PARA CRIAÇÃO DE NOVOS AGRUPAMENTOS DE RAMOS
E2: Ramos de Seguros | F2: Agrupamento de Ramos
F3: 1 | G3: 2 | H3: 3 | I3: 4 | J3: 5 | K3: 6 | L3: 7 | M3: 8 | N3: 9 | O3: 10 | P3: 11 | Q3: 12 | R3: 13 | S3: 14 | T3: 15 | X3: Nome do Agrupamento
B4: =IF(HLOOKUP($B$1,$F$3:$T$130,ROW(A4)-2,FALSE)="X",$B$1,"") ->  | C4: =IF(B4="","",COUNTIFS(B$4:B4,B4)) ->  | D4: =IF(B4="","",VLOOKUP(B4,Cadastro!$Z$3:$AC$17,4,FALSE)&C4) ->  | E4: 0111 - Incêndio Tradicional - Runoff | U4: =IF(COUNTIF(F4:T4,"=X")>1,"?","") ->  | W4: =PROPER(Cadastro!AC3) -> Agrup. 01
B5: =IF(HLOOKUP($B$1,$F$3:$T$130,ROW(A5)-2,FALSE)="X",$B$1,"") ->  | C5: =IF(B5="","",COUNTIFS(B$4:B5,B5)) ->  | D5: =IF(B5="","",VLOOKUP(B5,Cadastro!$Z$3:$AC$17,4,FALSE)&C5) ->  | E5: 0112 - Assistência – Bens em Geral | U5: =IF(COUNTIF(F5:T5,"=X")>1,"?","") ->  | W5: =PROPER(Cadastro!AC4) -> Agrup. 02
C6: =IF(B6="","",COUNTIFS(B$4:B6,B6)) ->  | D6: =IF(B6="","",VLOOKUP(B6,Cadastro!$Z$3:$AC$17,4,FALSE)&C6) ->  | E6: 0114 - Compreensivo Residencial | W6: =PROPER(Cadastro!AC5) -> Agrup. 03
C7: =IF(B7="","",COUNTIFS(B$4:B7,B7)) ->  | D7: =IF(B7="","",VLOOKUP(B7,Cadastro!$Z$3:$AC$17,4,FALSE)&C7) ->  | E7: 0115 - Roubo - Runoff | W7: =PROPER(Cadastro!AC6) -> Agrup. 04
C8: =IF(B8="","",COUNTIFS(B$4:B8,B8)) ->  | D8: =IF(B8="","",VLOOKUP(B8,Cadastro!$Z$3:$AC$17,4,FALSE)&C8) ->  | E8: 0116 - Compreensivo Condomínio | W8: =PROPER(Cadastro!AC7) -> Agrup. 05
C9: =IF(B9="","",COUNTIFS(B$4:B9,B9)) ->  | D9: =IF(B9="","",VLOOKUP(B9,Cadastro!$Z$3:$AC$17,4,FALSE)&C9) ->  | E9: 0118 - Compreensivo Empresarial | W9: =PROPER(Cadastro!AC8) -> Agrup. 06
C10: =IF(B10="","",COUNTIFS(B$4:B10,B10)) ->  | D10: =IF(B10="","",VLOOKUP(B10,Cadastro!$Z$3:$AC$17,4,FALSE)&C10) ->  | E10: 0141 - Lucros Cessantes | W10: =PROPER(Cadastro!AC9) -> Agrup. 07
C11: =IF(B11="","",COUNTIFS(B$4:B11,B11)) ->  | D11: =IF(B11="","",VLOOKUP(B11,Cadastro!$Z$3:$AC$17,4,FALSE)&C11) ->  | E11: 0167 - Riscos de Engenharia | W11: =PROPER(Cadastro!AC10) -> Agrup. 08
C12: =IF(B12="","",COUNTIFS(B$4:B12,B12)) ->  | D12: =IF(B12="","",VLOOKUP(B12,Cadastro!$Z$3:$AC$17,4,FALSE)&C12) ->  | E12: 0171 - Riscos Diversos | W12: =PROPER(Cadastro!AC11) -> Agrup. 09
C13: =IF(B13="","",COUNTIFS(B$4:B13,B13)) ->  | D13: =IF(B13="","",VLOOKUP(B13,Cadastro!$Z$3:$AC$17,4,FALSE)&C13) ->  | E13: 0173 - Global de Bancos | W13: =PROPER(Cadastro!AC12) -> Agrup. 10
C14: =IF(B14="","",COUNTIFS(B$4:B14,B14)) ->  | D14: =IF(B14="","",VLOOKUP(B14,Cadastro!$Z$3:$AC$17,4,FALSE)&C14) ->  | E14: 0195 - Garantia Estendida – Bens em Geral | W14: =PROPER(Cadastro!AC13) -> Agrup. 11
C15: =IF(B15="","",COUNTIFS(B$4:B15,B15)) ->  | D15: =IF(B15="","",VLOOKUP(B15,Cadastro!$Z$3:$AC$17,4,FALSE)&C15) ->  | E15: 0196 - Riscos Nomeados e Operacionais | W15: =PROPER(Cadastro!AC14) -> Agrup. 12
C16: =IF(B16="","",COUNTIFS(B$4:B16,B16)) ->  | D16: =IF(B16="","",VLOOKUP(B16,Cadastro!$Z$3:$AC$17,4,FALSE)&C16) ->  | E16: 0234 - Riscos de Petróleo - Runoff | W16: =PROPER(Cadastro!AC15) -> Agrup. 13
C17: =IF(B17="","",COUNTIFS(B$4:B17,B17)) ->  | D17: =IF(B17="","",VLOOKUP(B17,Cadastro!$Z$3:$AC$17,4,FALSE)&C17) ->  | E17: 0272 - Riscos Nucleares - Runoff | W17: =PROPER(Cadastro!AC16) -> Agrup. 14
C18: =IF(B18="","",COUNTIFS(B$4:B18,B18)) ->  | D18: =IF(B18="","",VLOOKUP(B18,Cadastro!$Z$3:$AC$17,4,FALSE)&C18) ->  | E18: 0274 - Satélites - Runoff | W18: =PROPER(Cadastro!AC17) -> Agrup. 15
C19: =IF(B19="","",COUNTIFS(B$4:B19,B19)) ->  | D19: =IF(B19="","",VLOOKUP(B19,Cadastro!$Z$3:$AC$17,4,FALSE)&C19) ->  | E19: 0310 - R.C. de Administradores e Diretores – D&O
C20: =IF(B20="","",COUNTIFS(B$4:B20,B20)) ->  | D20: =IF(B20="","",VLOOKUP(B20,Cadastro!$Z$3:$AC$17,4,FALSE)&C20) ->  | E20: 0313 - R.C. Riscos Ambientais
C21: =IF(B21="","",COUNTIFS(B$4:B21,B21)) ->  | D21: =IF(B21="","",VLOOKUP(B21,Cadastro!$Z$3:$AC$17,4,FALSE)&C21) ->  | E21: 0351 - R.C. Geral
C22: =IF(B22="","",COUNTIFS(B$4:B22,B22)) ->  | D22: =IF(B22="","",VLOOKUP(B22,Cadastro!$Z$3:$AC$17,4,FALSE)&C22) ->  | E22: 0378 - R.C. Profissional
C23: =IF(B23="","",COUNTIFS(B$4:B23,B23)) ->  | D23: =IF(B23="","",VLOOKUP(B23,Cadastro!$Z$3:$AC$17,4,FALSE)&C23) ->  | E23: 0433 - Marítimos - Runoff
C24: =IF(B24="","",COUNTIFS(B$4:B24,B24)) ->  | D24: =IF(B24="","",VLOOKUP(B24,Cadastro!$Z$3:$AC$17,4,FALSE)&C24) ->  | E24: 0435 - Aeronáuticos - Runoff
C25: =IF(B25="","",COUNTIFS(B$4:B25,B25)) ->  | D25: =IF(B25="","",VLOOKUP(B25,Cadastro!$Z$3:$AC$17,4,FALSE)&C25) ->  | E25: 0437 - R.C. Hangar - Runoff
C26: =IF(B26="","",COUNTIFS(B$4:B26,B26)) ->  | D26: =IF(B26="","",VLOOKUP(B26,Cadastro!$Z$3:$AC$17,4,FALSE)&C26) ->  | E26: 0457 - DPEM - Runoff
C27: =IF(B27="","",COUNTIFS(B$4:B27,B27)) ->  | D27: =IF(B27="","",VLOOKUP(B27,Cadastro!$Z$3:$AC$17,4,FALSE)&C27) ->  | E27: 0520 - Acidentes Pessoais de Passageiros – APP
C28: =IF(B28="","",COUNTIFS(B$4:B28,B28)) ->  | D28: =IF(B28="","",VLOOKUP(B28,Cadastro!$Z$3:$AC$17,4,FALSE)&C28) ->  | E28: 0523 - R.C. Transp. Rod. Interest. e Internac. - Runoff
C29: =IF(B29="","",COUNTIFS(B$4:B29,B29)) ->  | D29: =IF(B29="","",VLOOKUP(B29,Cadastro!$Z$3:$AC$17,4,FALSE)&C29) ->  | E29: 0524 - Garantia Estendida – Auto
C30: =IF(B30="","",COUNTIFS(B$4:B30,B30)) ->  | D30: =IF(B30="","",VLOOKUP(B30,Cadastro!$Z$3:$AC$17,4,FALSE)&C30) ->  | E30: 0525 - Carta Verde
C31: =IF(B31="","",COUNTIFS(B$4:B31,B31)) ->  | D31: =IF(B31="","",VLOOKUP(B31,Cadastro!$Z$3:$AC$17,4,FALSE)&C31) ->  | E31: 0526 - Seguro Auto Popular
C32: =IF(B32="","",COUNTIFS(B$4:B32,B32)) ->  | D32: =IF(B32="","",VLOOKUP(B32,Cadastro!$Z$3:$AC$17,4,FALSE)&C32) ->  | E32: 0531 - Automóvel – Casco
C33: =IF(B33="","",COUNTIFS(B$4:B33,B33)) ->  | D33: =IF(B33="","",VLOOKUP(B33,Cadastro!$Z$3:$AC$17,4,FALSE)&C33) ->  | E33: 0542 - Assistência e Outras Coberturas – Auto
C34: =IF(B34="","",COUNTIFS(B$4:B34,B34)) ->  | D34: =IF(B34="","",VLOOKUP(B34,Cadastro!$Z$3:$AC$17,4,FALSE)&C34) ->  | E34: 0544 - R.C. Transp. Rod. Viagem Inter. Pessoas Transp. ou não - Runoff
C35: =IF(B35="","",COUNTIFS(B$4:B35,B35)) ->  | D35: =IF(B35="","",VLOOKUP(B35,Cadastro!$Z$3:$AC$17,4,FALSE)&C35) ->  | E35: 0553 - R.C. Facultativa Veículos – RCFV
C36: =IF(B36="","",COUNTIFS(B$4:B36,B36)) ->  | D36: =IF(B36="","",VLOOKUP(B36,Cadastro!$Z$3:$AC$17,4,FALSE)&C36) ->  | E36: 0588 - DPVAT
C37: =IF(B37="","",COUNTIFS(B$4:B37,B37)) ->  | D37: =IF(B37="","",VLOOKUP(B37,Cadastro!$Z$3:$AC$17,4,FALSE)&C37) ->  | E37: 0589 - DPVAT (Categorias 3 E 4) – Antes de Janeiro de 2005 - Runoff
C38: =IF(B38="","",COUNTIFS(B$4:B38,B38)) ->  | D38: =IF(B38="","",VLOOKUP(B38,Cadastro!$Z$3:$AC$17,4,FALSE)&C38) ->  | E38: 0621 - Transporte Nacional
C39: =IF(B39="","",COUNTIFS(B$4:B39,B39)) ->  | D39: =IF(B39="","",VLOOKUP(B39,Cadastro!$Z$3:$AC$17,4,FALSE)&C39) ->  | E39: 0622 - Transporte Internacional
C40: =IF(B40="","",COUNTIFS(B$4:B40,B40)) ->  | D40: =IF(B40="","",VLOOKUP(B40,Cadastro!$Z$3:$AC$17,4,FALSE)&C40) ->  | E40: 0623 - R. C. Transp. Rod. Interestadual e Internacional – RC Ônibus
C41: =IF(B41="","",COUNTIFS(B$4:B41,B41)) ->  | D41: =IF(B41="","",VLOOKUP(B41,Cadastro!$Z$3:$AC$17,4,FALSE)&C41) ->  | E41: 0627 - R.C. do Transportador Intermodal - Runoff
C42: =IF(B42="","",COUNTIFS(B$4:B42,B42)) ->  | D42: =IF(B42="","",VLOOKUP(B42,Cadastro!$Z$3:$AC$17,4,FALSE)&C42) ->  | E42: 0628 - R.C. Facultativa de Veículos – RCFV Ônibus
C43: =IF(B43="","",COUNTIFS(B$4:B43,B43)) ->  | D43: =IF(B43="","",VLOOKUP(B43,Cadastro!$Z$3:$AC$17,4,FALSE)&C43) ->  | E43: 0632 - R.C. Transp. Rod. de Carga em Viagem Intern. – RCTR-Vi-C
C44: =IF(B44="","",COUNTIFS(B$4:B44,B44)) ->  | D44: =IF(B44="","",VLOOKUP(B44,Cadastro!$Z$3:$AC$17,4,FALSE)&C44) ->  | E44: 0638 - R.C. do Transportador Ferroviário Carga – RCTF-C
C45: =IF(B45="","",COUNTIFS(B$4:B45,B45)) ->  | D45: =IF(B45="","",VLOOKUP(B45,Cadastro!$Z$3:$AC$17,4,FALSE)&C45) ->  | E45: 0644 - R.C. Transp. Rod. Viag. Intern. Pess. Transp. ou não – Carta Azul
C46: =IF(B46="","",COUNTIFS(B$4:B46,B46)) ->  | D46: =IF(B46="","",VLOOKUP(B46,Cadastro!$Z$3:$AC$17,4,FALSE)&C46) ->  | E46: 0652 - R.C. do Transportador Aéreo Carga – RCTA-C
C47: =IF(B47="","",COUNTIFS(B$4:B47,B47)) ->  | D47: =IF(B47="","",VLOOKUP(B47,Cadastro!$Z$3:$AC$17,4,FALSE)&C47) ->  | E47: 0654 - R.C. do Transportador Rodoviário Carga – RCTR-C
C48: =IF(B48="","",COUNTIFS(B$4:B48,B48)) ->  | D48: =IF(B48="","",VLOOKUP(B48,Cadastro!$Z$3:$AC$17,4,FALSE)&C48) ->  | E48: 0655 - R.C. do Transportador Desvio de Carga – RCF-DC
C49: =IF(B49="","",COUNTIFS(B$4:B49,B49)) ->  | D49: =IF(B49="","",VLOOKUP(B49,Cadastro!$Z$3:$AC$17,4,FALSE)&C49) ->  | E49: 0656 - R.C. do Transportador Aquaviário Carga – RCA-C
C50: =IF(B50="","",COUNTIFS(B$4:B50,B50)) ->  | D50: =IF(B50="","",VLOOKUP(B50,Cadastro!$Z$3:$AC$17,4,FALSE)&C50) ->  | E50: 0658 - R.C. do Operador do Transporte Multimodal – RCOTM-C
C51: =IF(B51="","",COUNTIFS(B$4:B51,B51)) ->  | D51: =IF(B51="","",VLOOKUP(B51,Cadastro!$Z$3:$AC$17,4,FALSE)&C51) ->  | E51: 0711 - Riscos Diversos – Financeiros
C52: =IF(B52="","",COUNTIFS(B$4:B52,B52)) ->  | D52: =IF(B52="","",VLOOKUP(B52,Cadastro!$Z$3:$AC$17,4,FALSE)&C52) ->  | E52: 0739 - Garantia Financeira - Runoff
C53: =IF(B53="","",COUNTIFS(B$4:B53,B53)) ->  | D53: =IF(B53="","",VLOOKUP(B53,Cadastro!$Z$3:$AC$17,4,FALSE)&C53) ->  | E53: 0740 - Garantia de Obrigações Privadas - Runoff
C54: =IF(B54="","",COUNTIFS(B$4:B54,B54)) ->  | D54: =IF(B54="","",VLOOKUP(B54,Cadastro!$Z$3:$AC$17,4,FALSE)&C54) ->  | E54: 0743 - Stop Loss
C55: =IF(B55="","",COUNTIFS(B$4:B55,B55)) ->  | D55: =IF(B55="","",VLOOKUP(B55,Cadastro!$Z$3:$AC$17,4,FALSE)&C55) ->  | E55: 0745 - Garantia de Obrigações Públicas - Runoff
C56: =IF(B56="","",COUNTIFS(B$4:B56,B56)) ->  | D56: =IF(B56="","",VLOOKUP(B56,Cadastro!$Z$3:$AC$17,4,FALSE)&C56) ->  | E56: 0746 - Fiança Locatícia
C57: =IF(B57="","",COUNTIFS(B$4:B57,B57)) ->  | D57: =IF(B57="","",VLOOKUP(B57,Cadastro!$Z$3:$AC$17,4,FALSE)&C57) ->  | E57: 0747 - Garantia de Concessões Públicas - Runoff
C58: =IF(B58="","",COUNTIFS(B$4:B58,B58)) ->  | D58: =IF(B58="","",VLOOKUP(B58,Cadastro!$Z$3:$AC$17,4,FALSE)&C58) ->  | E58: 0748 - Crédito Interno
C59: =IF(B59="","",COUNTIFS(B$4:B59,B59)) ->  | D59: =IF(B59="","",VLOOKUP(B59,Cadastro!$Z$3:$AC$17,4,FALSE)&C59) ->  | E59: 0749 - Crédito à Exportação
C60: =IF(B60="","",COUNTIFS(B$4:B60,B60)) ->  | D60: =IF(B60="","",VLOOKUP(B60,Cadastro!$Z$3:$AC$17,4,FALSE)&C60) ->  | E60: 0750 - Garantia Judicial - Runoff
C61: =IF(B61="","",COUNTIFS(B$4:B61,B61)) ->  | D61: =IF(B61="","",VLOOKUP(B61,Cadastro!$Z$3:$AC$17,4,FALSE)&C61) ->  | E61: 0775 - Garantia Segurado – Setor Público
C62: =IF(B62="","",COUNTIFS(B$4:B62,B62)) ->  | D62: =IF(B62="","",VLOOKUP(B62,Cadastro!$Z$3:$AC$17,4,FALSE)&C62) ->  | E62: 0776 - Garantia Segurado – Setor Privado
C63: =IF(B63="","",COUNTIFS(B$4:B63,B63)) ->  | D63: =IF(B63="","",VLOOKUP(B63,Cadastro!$Z$3:$AC$17,4,FALSE)&C63) ->  | E63: 0819 - Crédito à Exportação Risco Comercial - Runoff
C64: =IF(B64="","",COUNTIFS(B$4:B64,B64)) ->  | D64: =IF(B64="","",VLOOKUP(B64,Cadastro!$Z$3:$AC$17,4,FALSE)&C64) ->  | E64: 0859 - Crédito à Exportação Risco Político - Runoff
C65: =IF(B65="","",COUNTIFS(B$4:B65,B65)) ->  | D65: =IF(B65="","",VLOOKUP(B65,Cadastro!$Z$3:$AC$17,4,FALSE)&C65) ->  | E65: 0860 - Crédito Doméstico Risco Comercial - Runoff
C66: =IF(B66="","",COUNTIFS(B$4:B66,B66)) ->  | D66: =IF(B66="","",VLOOKUP(B66,Cadastro!$Z$3:$AC$17,4,FALSE)&C66) ->  | E66: 0870 - Crédito Doméstico Risco Pessoa Física - Runoff
C67: =IF(B67="","",COUNTIFS(B$4:B67,B67)) ->  | D67: =IF(B67="","",VLOOKUP(B67,Cadastro!$Z$3:$AC$17,4,FALSE)&C67) ->  | E67: 0929 - Funeral - Coletivo
C68: =IF(B68="","",COUNTIFS(B$4:B68,B68)) ->  | D68: =IF(B68="","",VLOOKUP(B68,Cadastro!$Z$3:$AC$17,4,FALSE)&C68) ->  | E68: 0936 - Perda do Certificado de Habilitação de Voo – PCHV - Coletivo
B69: =IF(HLOOKUP($B$1,$F$3:$T$130,ROW(A69)-2,FALSE)="X",$B$1,"") ->  | C69: =IF(B69="","",COUNTIFS(B$4:B69,B69)) ->  | D69: =IF(B69="","",VLOOKUP(B69,Cadastro!$Z$3:$AC$17,4,FALSE)&C69) ->  | E69: 0969 - Viagem - Coletivo | U69: =IF(COUNTIF(F69:T69,"=X")>1,"?","") -> 
C70: =IF(B70="","",COUNTIFS(B$4:B70,B70)) ->  | D70: =IF(B70="","",VLOOKUP(B70,Cadastro!$Z$3:$AC$17,4,FALSE)&C70) ->  | E70: 0977 - Prestamista (Exceto Habitacional e Rural) - Coletivo
C71: =IF(B71="","",COUNTIFS(B$4:B71,B71)) ->  | D71: =IF(B71="","",VLOOKUP(B71,Cadastro!$Z$3:$AC$17,4,FALSE)&C71) ->  | E71: 0980 - Educacional - Coletivo
C72: =IF(B72="","",COUNTIFS(B$4:B72,B72)) ->  | D72: =IF(B72="","",VLOOKUP(B72,Cadastro!$Z$3:$AC$17,4,FALSE)&C72) ->  | E72: 0981 - Acidentes Pessoais Individual - Runoff
C73: =IF(B73="","",COUNTIFS(B$4:B73,B73)) ->  | D73: =IF(B73="","",VLOOKUP(B73,Cadastro!$Z$3:$AC$17,4,FALSE)&C73) ->  | E73: 0982 - Acidentes Pessoais - Coletivo
C74: =IF(B74="","",COUNTIFS(B$4:B74,B74)) ->  | D74: =IF(B74="","",VLOOKUP(B74,Cadastro!$Z$3:$AC$17,4,FALSE)&C74) ->  | E74: 0983 - Dotal Misto - Coletivo
C75: =IF(B75="","",COUNTIFS(B$4:B75,B75)) ->  | D75: =IF(B75="","",VLOOKUP(B75,Cadastro!$Z$3:$AC$17,4,FALSE)&C75) ->  | E75: 0984 - Doenças Graves ou Doença Terminal - Coletivo
C76: =IF(B76="","",COUNTIFS(B$4:B76,B76)) ->  | D76: =IF(B76="","",VLOOKUP(B76,Cadastro!$Z$3:$AC$17,4,FALSE)&C76) ->  | E76: 0986 - Dotal Puro - Coletivo
C77: =IF(B77="","",COUNTIFS(B$4:B77,B77)) ->  | D77: =IF(B77="","",VLOOKUP(B77,Cadastro!$Z$3:$AC$17,4,FALSE)&C77) ->  | E77: 0987 - Desemprego/Perda de Renda - Coletivo
C78: =IF(B78="","",COUNTIFS(B$4:B78,B78)) ->  | D78: =IF(B78="","",VLOOKUP(B78,Cadastro!$Z$3:$AC$17,4,FALSE)&C78) ->  | E78: 0990 - Eventos Aleatórios - Coletivo
C79: =IF(B79="","",COUNTIFS(B$4:B79,B79)) ->  | D79: =IF(B79="","",VLOOKUP(B79,Cadastro!$Z$3:$AC$17,4,FALSE)&C79) ->  | E79: 0991 - Vida Individual - Runoff
C80: =IF(B80="","",COUNTIFS(B$4:B80,B80)) ->  | D80: =IF(B80="","",VLOOKUP(B80,Cadastro!$Z$3:$AC$17,4,FALSE)&C80) ->  | E80: 0992 - Vgbl/Vagp/Vrgp - Coletivo - Runoff
C81: =IF(B81="","",COUNTIFS(B$4:B81,B81)) ->  | D81: =IF(B81="","",VLOOKUP(B81,Cadastro!$Z$3:$AC$17,4,FALSE)&C81) ->  | E81: 0993 - Vida - Coletivo
C82: =IF(B82="","",COUNTIFS(B$4:B82,B82)) ->  | D82: =IF(B82="","",VLOOKUP(B82,Cadastro!$Z$3:$AC$17,4,FALSE)&C82) ->  | E82: 0994 - Vgbl/Vagp/Vrgp/Vrsa/Vri - Coletivo
C83: =IF(B83="","",COUNTIFS(B$4:B83,B83)) ->  | D83: =IF(B83="","",VLOOKUP(B83,Cadastro!$Z$3:$AC$17,4,FALSE)&C83) ->  | E83: 1061 - Seguro Habitacional em Apólices de Mercado – Prestamista
C84: =IF(B84="","",COUNTIFS(B$4:B84,B84)) ->  | D84: =IF(B84="","",VLOOKUP(B84,Cadastro!$Z$3:$AC$17,4,FALSE)&C84) ->  | E84: 1065 - Seguro Habitacional Apólices de Mercado – Demais Coberturas
C85: =IF(B85="","",COUNTIFS(B$4:B85,B85)) ->  | D85: =IF(B85="","",VLOOKUP(B85,Cadastro!$Z$3:$AC$17,4,FALSE)&C85) ->  | E85: 1066 - Seguro Habitacional do Sistema Financeiro da Habitação
C86: =IF(B86="","",COUNTIFS(B$4:B86,B86)) ->  | D86: =IF(B86="","",VLOOKUP(B86,Cadastro!$Z$3:$AC$17,4,FALSE)&C86) ->  | E86: 1068 - Seguro Habitacional Fora do S.F.H. - Runoff
C87: =IF(B87="","",COUNTIFS(B$4:B87,B87)) ->  | D87: =IF(B87="","",VLOOKUP(B87,Cadastro!$Z$3:$AC$17,4,FALSE)&C87) ->  | E87: 1101 - Seguro Agrícola sem Cobertura do FESR
C88: =IF(B88="","",COUNTIFS(B$4:B88,B88)) ->  | D88: =IF(B88="","",VLOOKUP(B88,Cadastro!$Z$3:$AC$17,4,FALSE)&C88) ->  | E88: 1102 - Seguro Agrícola com Cobertura do FESR
C89: =IF(B89="","",COUNTIFS(B$4:B89,B89)) ->  | D89: =IF(B89="","",VLOOKUP(B89,Cadastro!$Z$3:$AC$17,4,FALSE)&C89) ->  | E89: 1103 - Seguro Pecuário sem Cobertura do FESR
C90: =IF(B90="","",COUNTIFS(B$4:B90,B90)) ->  | D90: =IF(B90="","",VLOOKUP(B90,Cadastro!$Z$3:$AC$17,4,FALSE)&C90) ->  | E90: 1104 - Seguro Pecuário com Cobertura do FESR
C91: =IF(B91="","",COUNTIFS(B$4:B91,B91)) ->  | D91: =IF(B91="","",VLOOKUP(B91,Cadastro!$Z$3:$AC$17,4,FALSE)&C91) ->  | E91: 1105 - Seguro Aquícola sem Cobertura do FESR
C92: =IF(B92="","",COUNTIFS(B$4:B92,B92)) ->  | D92: =IF(B92="","",VLOOKUP(B92,Cadastro!$Z$3:$AC$17,4,FALSE)&C92) ->  | E92: 1106 - Seguro Aquícola com Cobertura do FESR
C93: =IF(B93="","",COUNTIFS(B$4:B93,B93)) ->  | D93: =IF(B93="","",VLOOKUP(B93,Cadastro!$Z$3:$AC$17,4,FALSE)&C93) ->  | E93: 1107 - Seguro Florestas sem Cobertura do FESR
C94: =IF(B94="","",COUNTIFS(B$4:B94,B94)) ->  | D94: =IF(B94="","",VLOOKUP(B94,Cadastro!$Z$3:$AC$17,4,FALSE)&C94) ->  | E94: 1108 - Seguro Florestas com Cobertura do FESR
C95: =IF(B95="","",COUNTIFS(B$4:B95,B95)) ->  | D95: =IF(B95="","",VLOOKUP(B95,Cadastro!$Z$3:$AC$17,4,FALSE)&C95) ->  | E95: 1109 - Seguro da Cédula do Produto Rural
C96: =IF(B96="","",COUNTIFS(B$4:B96,B96)) ->  | D96: =IF(B96="","",VLOOKUP(B96,Cadastro!$Z$3:$AC$17,4,FALSE)&C96) ->  | E96: 1130 - Seguro Benfeitorias e Produtos Agropecuários
C97: =IF(B97="","",COUNTIFS(B$4:B97,B97)) ->  | D97: =IF(B97="","",VLOOKUP(B97,Cadastro!$Z$3:$AC$17,4,FALSE)&C97) ->  | E97: 1162 - Penhor Rural
C98: =IF(B98="","",COUNTIFS(B$4:B98,B98)) ->  | D98: =IF(B98="","",VLOOKUP(B98,Cadastro!$Z$3:$AC$17,4,FALSE)&C98) ->  | E98: 1163 - Penhor Rural – Instituições Financeiras Públicas - Runoff
C99: =IF(B99="","",COUNTIFS(B$4:B99,B99)) ->  | D99: =IF(B99="","",VLOOKUP(B99,Cadastro!$Z$3:$AC$17,4,FALSE)&C99) ->  | E99: 1164 - Seguros Animais
C100: =IF(B100="","",COUNTIFS(B$4:B100,B100)) ->  | D100: =IF(B100="","",VLOOKUP(B100,Cadastro!$Z$3:$AC$17,4,FALSE)&C100) ->  | E100: 1198 - Seguro de Vida do Produtor Rural
C101: =IF(B101="","",COUNTIFS(B$4:B101,B101)) ->  | D101: =IF(B101="","",VLOOKUP(B101,Cadastro!$Z$3:$AC$17,4,FALSE)&C101) ->  | E101: 1279 - Seguros no Exterior - Runoff
C102: =IF(B102="","",COUNTIFS(B$4:B102,B102)) ->  | D102: =IF(B102="","",VLOOKUP(B102,Cadastro!$Z$3:$AC$17,4,FALSE)&C102) ->  | E102: 1299 - Sucursais no Exterior - Runoff
C103: =IF(B103="","",COUNTIFS(B$4:B103,B103)) ->  | D103: =IF(B103="","",VLOOKUP(B103,Cadastro!$Z$3:$AC$17,4,FALSE)&C103) ->  | E103: 1329 - Funeral - Individual
C104: =IF(B104="","",COUNTIFS(B$4:B104,B104)) ->  | D104: =IF(B104="","",VLOOKUP(B104,Cadastro!$Z$3:$AC$17,4,FALSE)&C104) ->  | E104: 1336 - Perda do Certificado de Habilitação de Voo – PCHV - Individual
C105: =IF(B105="","",COUNTIFS(B$4:B105,B105)) ->  | D105: =IF(B105="","",VLOOKUP(B105,Cadastro!$Z$3:$AC$17,4,FALSE)&C105) ->  | E105: 1369 - Viagem - Individual
C106: =IF(B106="","",COUNTIFS(B$4:B106,B106)) ->  | D106: =IF(B106="","",VLOOKUP(B106,Cadastro!$Z$3:$AC$17,4,FALSE)&C106) ->  | E106: 1377 - Prestamista (Exceto Habitacional e Rural) - Individual
C107: =IF(B107="","",COUNTIFS(B$4:B107,B107)) ->  | D107: =IF(B107="","",VLOOKUP(B107,Cadastro!$Z$3:$AC$17,4,FALSE)&C107) ->  | E107: 1380 - Educacional - Individual
C108: =IF(B108="","",COUNTIFS(B$4:B108,B108)) ->  | D108: =IF(B108="","",VLOOKUP(B108,Cadastro!$Z$3:$AC$17,4,FALSE)&C108) ->  | E108: 1381 - Acidentes Pessoais - Individual
C109: =IF(B109="","",COUNTIFS(B$4:B109,B109)) ->  | D109: =IF(B109="","",VLOOKUP(B109,Cadastro!$Z$3:$AC$17,4,FALSE)&C109) ->  | E109: 1383 - Dotal Misto - Individual
C110: =IF(B110="","",COUNTIFS(B$4:B110,B110)) ->  | D110: =IF(B110="","",VLOOKUP(B110,Cadastro!$Z$3:$AC$17,4,FALSE)&C110) ->  | E110: 1384 - Doenças Graves ou Doença Terminal - Individual
C111: =IF(B111="","",COUNTIFS(B$4:B111,B111)) ->  | D111: =IF(B111="","",VLOOKUP(B111,Cadastro!$Z$3:$AC$17,4,FALSE)&C111) ->  | E111: 1386 - Dotal Puro - Individual
C112: =IF(B112="","",COUNTIFS(B$4:B112,B112)) ->  | D112: =IF(B112="","",VLOOKUP(B112,Cadastro!$Z$3:$AC$17,4,FALSE)&C112) ->  | E112: 1387 - Desemprego/Perda de Renda - Individual
C113: =IF(B113="","",COUNTIFS(B$4:B113,B113)) ->  | D113: =IF(B113="","",VLOOKUP(B113,Cadastro!$Z$3:$AC$17,4,FALSE)&C113) ->  | E113: 1390 - Eventos Aleatórios - Individual
C114: =IF(B114="","",COUNTIFS(B$4:B114,B114)) ->  | D114: =IF(B114="","",VLOOKUP(B114,Cadastro!$Z$3:$AC$17,4,FALSE)&C114) ->  | E114: 1391 - Vida - Individual
C115: =IF(B115="","",COUNTIFS(B$4:B115,B115)) ->  | D115: =IF(B115="","",VLOOKUP(B115,Cadastro!$Z$3:$AC$17,4,FALSE)&C115) ->  | E115: 1392 - Vgbl/Vagp/Vrgp/Vrsa/Vri - Individual
C116: =IF(B116="","",COUNTIFS(B$4:B116,B116)) ->  | D116: =IF(B116="","",VLOOKUP(B116,Cadastro!$Z$3:$AC$17,4,FALSE)&C116) ->  | E116: 1417 - Seguro Compreensivo para Operadores Portuários
C117: =IF(B117="","",COUNTIFS(B$4:B117,B117)) ->  | D117: =IF(B117="","",VLOOKUP(B117,Cadastro!$Z$3:$AC$17,4,FALSE)&C117) ->  | E117: 1428 - R.C. Facultativa para Embarcações – RCF
C118: =IF(B118="","",COUNTIFS(B$4:B118,B118)) ->  | D118: =IF(B118="","",VLOOKUP(B118,Cadastro!$Z$3:$AC$17,4,FALSE)&C118) ->  | E118: 1433 - Marítimos (Casco)
C119: =IF(B119="","",COUNTIFS(B$4:B119,B119)) ->  | D119: =IF(B119="","",VLOOKUP(B119,Cadastro!$Z$3:$AC$17,4,FALSE)&C119) ->  | E119: 1457 - DPEM
C120: =IF(B120="","",COUNTIFS(B$4:B120,B120)) ->  | D120: =IF(B120="","",VLOOKUP(B120,Cadastro!$Z$3:$AC$17,4,FALSE)&C120) ->  | E120: 1528 - R.C. Facultativa para Aeronaves – RCF
C121: =IF(B121="","",COUNTIFS(B$4:B121,B121)) ->  | D121: =IF(B121="","",VLOOKUP(B121,Cadastro!$Z$3:$AC$17,4,FALSE)&C121) ->  | E121: 1535 - Aeronáuticos (Casco)
C122: =IF(B122="","",COUNTIFS(B$4:B122,B122)) ->  | D122: =IF(B122="","",VLOOKUP(B122,Cadastro!$Z$3:$AC$17,4,FALSE)&C122) ->  | E122: 1537 - R.C. Hangar | U122: =IF(COUNTIF(F122:T122,"=X")>1,"?","") -> 
C123: =IF(B123="","",COUNTIFS(B$4:B123,B123)) ->  | D123: =IF(B123="","",VLOOKUP(B123,Cadastro!$Z$3:$AC$17,4,FALSE)&C123) ->  | E123: 1574 - Satélites
C124: =IF(B124="","",COUNTIFS(B$4:B124,B124)) ->  | D124: =IF(B124="","",VLOOKUP(B124,Cadastro!$Z$3:$AC$17,4,FALSE)&C124) ->  | E124: 1597 - Respons. do Explorador ou Transportador Aéreo –Reta
C125: =IF(B125="","",COUNTIFS(B$4:B125,B125)) ->  | D125: =IF(B125="","",VLOOKUP(B125,Cadastro!$Z$3:$AC$17,4,FALSE)&C125) ->  | E125: 1601 - Microsseguros de Pessoas
C126: =IF(B126="","",COUNTIFS(B$4:B126,B126)) ->  | D126: =IF(B126="","",VLOOKUP(B126,Cadastro!$Z$3:$AC$17,4,FALSE)&C126) ->  | E126: 1602 - Microsseguros de Danos
C127: =IF(B127="","",COUNTIFS(B$4:B127,B127)) ->  | D127: =IF(B127="","",VLOOKUP(B127,Cadastro!$Z$3:$AC$17,4,FALSE)&C127) ->  | E127: 1734 - Riscos de Petróleo
C128: =IF(B128="","",COUNTIFS(B$4:B128,B128)) ->  | D128: =IF(B128="","",VLOOKUP(B128,Cadastro!$Z$3:$AC$17,4,FALSE)&C128) ->  | E128: 1872 - Riscos Nucleares
C129: =IF(B129="","",COUNTIFS(B$4:B129,B129)) ->  | D129: =IF(B129="","",VLOOKUP(B129,Cadastro!$Z$3:$AC$17,4,FALSE)&C129) ->  | E129: 2079 - Aceitações do Exterior
C130: =IF(B130="","",COUNTIFS(B$4:B130,B130)) ->  | D130: =IF(B130="","",VLOOKUP(B130,Cadastro!$Z$3:$AC$17,4,FALSE)&C130) ->  | E130: 2199 - Sucursais no Exterior
F131: =COUNTIF(F4:F130,"=X") -> 0 | G131: 0 | H131: 0 | I131: 0 | J131: 0 | K131: 0 | L131: 0 | M131: 0 | N131: 0 | O131: 0 | P131: 0 | Q131: 0 | R131: 0 | S131: 0 | T131: 0 | U131: =COUNTIF(U4:U130,"=#") -> 0

Sheet RelatSuporte (hidden)
B1: =Relatório!A1 -> CONTRIBUIÇÃO MARGINAL MÊS A MÊS, POR GRUPO SEGURADOR, AGRUPAMENTOS DE RAMOS, RAMOS - valores em R$ mil PERÍODO: JANEIRO 2015 A DEZEMBRO 2016
B3: =Relatório!$B$3 -> 1 | C3: =Relatório!$G$3 -> 1 | D3: =Relatório!$N$3 -> 1 | E3: 12
C5: =VLOOKUP(D3,Cadastro!O2:P164,2,FALSE) -> TODAS AS SEGURADORAS | E5: =VLOOKUP(D3,Cadastro!O2:Q164,3,FALSE) -> 0 | G5: =IF(C3=1,VLOOKUP(Relatório!B5,Cadastro!C2:E19,3,FALSE),VLOOKUP(C3-1,Cadastro!D22:E148,2,FALSE)) -> Total
C6: PRÊMIO EMTIDO | E6: PRÊMIO RETIDO | G6: PRÊMIO GANHO | I6: SINISTRO RETIDO | K6: DESP. COMERCIAIS
B7: PERÍODO | C7: 2016 | D7: 2015 | E7: =C7 -> 2016 | F7: 2015 | G7: 2016 | H7: 2015 | I7: 2016 | J7: 2015 | K7: 2016 | L7: 2015
B8: JAN | C8: =C55+C71+C87+C105 -> 13384291.61 | D8: =D55+D71+D87+D105 -> 12187244.63 | E8: 12748613.94 | F8: 11580859.65 | G8: 7356646.833 | H8: 6962897.295 | I8: =I55+I71+I87+I105 -> 3573463.521 | J8: 3529945.165 | K8: 1896014.264 | L8: 1696386.422 | M8: 0
B9: FEV | C9: =C56+C72+C88+C106 -> 13136872.74 | D9: =D56+D72+D88+D106 -> 12817672.41 | E9: 12481574.3 | F9: 12240988.46 | G9: 6734718.346 | H9: 6372408.696 | I9: 3281821.934 | J9: 2842169.478 | K9: 1741566.772 | L9: 1655452.616 | M9: 1
B10: MAR | C10: 16233928.9 | D10: 16194491.2 | E10: 15536828.89 | F10: 15557761.78 | G10: 7178824.249 | H10: 6886180.153 | I10: 3834858.642 | J10: 3466118.473 | K10: 1874424.12 | L10: 1768850.888 | M10: 2
B11: ABR | C11: 16037674.65 | D11: 14057938.42 | E11: 15335366.98 | F11: 13440339.07 | G11: 6916856.937 | H11: 6640543.861 | I11: 3441190.933 | J11: 3052156.473 | K11: 1866446.24 | L11: 1715270.679 | M11: 3
B12: MAI | C12: 17244408.94 | D12: 15810123.9 | E12: 16575741.63 | F12: 15160578.43 | G12: 7127053.294 | H12: 6806243.43 | I12: 3433106.807 | J12: 3140328.062 | K12: 1861330.604 | L12: 1791687.812 | M12: 4
B13: JUN | C13: 19479174.48 | D13: 17091571.06 | E13: 18780195.05 | F13: 16456354.87 | G13: 6889269.176 | H13: 6759447.243 | I13: 3268423.508 | J13: 2883350.615 | K13: 1941433.362 | L13: 1826685.113 | M13: 5
B14: JUL | C14: 16433362.3 | D14: 14921223.52 | E14: 15703011.57 | F14: 14306340.05 | G14: 7042257.06 | H14: 6932219.635 | I14: 3392009.163 | J14: 3123347.308 | K14: 1851868.14 | L14: 1846095.586 | M14: 6
B15: AGO | C15: 17324168.09 | D15: 14650005.53 | E15: 16593307.54 | F15: 14000172.1 | G15: 7107970.137 | H15: 6940367.11 | I15: 3490945.074 | J15: 3116761.363 | K15: 1939611.861 | L15: 1828433.158 | M15: 7
B16: SET | C16: 14622190.58 | D16: 14089686.39 | E16: 13924366.78 | F16: 13355425.61 | G16: 6780327.976 | H16: 6709449.534 | I16: 3179861.883 | J16: 3132565.491 | K16: 1874412.613 | L16: 1806787.424 | M16: 8
B17: OUT | C17: 15807514.39 | D17: 13482572.12 | E17: 15064290.65 | F17: 12793055.03 | G17: 6881038.804 | H17: 6831709.277 | I17: 3213630.071 | J17: 3200834.893 | K17: 1910432.598 | L17: 1833227.645 | M17: 9
B18: NOV | C18: 18576137.11 | D18: 15728137.91 | E18: 17757495.2 | F18: 15061312.88 | G18: 6708045.757 | H18: 6607852.12 | I18: 3299254.548 | J18: 3133526.286 | K18: 1908089.525 | L18: 1784978.133 | M18: 10
B19: DEZ | C19: 23971934.25 | D19: 20199488.56 | E19: 23231337.97 | F19: 19403201.12 | G19: 6841331.49 | H19: 6684344.336 | I19: 3288702.92 | J19: 3430352.319 | K19: 2091189.35 | L19: 1870981.195 | M19: 11
B20: TOTAL | C20: =SUM(C8:C19) -> 202251658 | D20: =SUM(D8:D19) -> 181230155.7 | E20: 193732130.5 | F20: 173356389.1 | G20: 83564340.06 | H20: 81133662.69 | I20: 40697269 | J20: 38051455.93 | K20: 22756819.45 | L20: 21424836.67
C22: PRÊMIO EMTIDO | E22: PRÊMIO RETIDO | G22: PRÊMIO GANHO | I22: SINISTRO RETIDO | K22: DESP. COMERCIAIS
B23: PERÍODO | C23: =C7 -> 2016 | D23: =D7 -> 2015 | E23: =C23 -> 2016 | F23: 2015 | G23: 2016 | H23: 2015 | I23: 2016 | J23: 2015 | K23: 2016 | L23: 2015
B24: JANEIRO | C24: =C8 -> 13384291.61 | D24: =D8 -> 12187244.63 | E24: 12748613.94 | F24: 11580859.65 | G24: 7356646.833 | H24: 6962897.295 | I24: 3573463.521 | J24: 3529945.165 | K24: 1896014.264 | L24: 1696386.422
B25: JAN/FEV | C25: =IF(C9=0,,C24+C9) -> 26521164.35 | D25: =IF(D9=0,,D24+D9) -> 25004917.04 | E25: 25230188.24 | F25: 23821848.1 | G25: 14091365.18 | H25: 13335305.99 | I25: 6855285.455 | J25: 6372114.643 | K25: 3637581.036 | L25: 3351839.039
B26: JAN/MAR | C26: =IF(C10=0,,C25+C10) -> 42755093.25 | D26: 41199408.25 | E26: 40767017.13 | F26: 39379609.88 | G26: 21270189.43 | H26: 20221486.14 | I26: 10690144.1 | J26: 9838233.115 | K26: 5512005.155 | L26: 5120689.926
B27: JAN/ABR | C27: 58792767.89 | D27: 55257346.66 | E27: 56102384.11 | F27: 52819948.95 | G27: 28187046.37 | H27: 26862030 | I27: 14131335.03 | J27: 12890389.59 | K27: 7378451.395 | L27: 6835960.605
B28: JAN/MAI | C28: 76037176.84 | D28: 71067470.56 | E28: 72678125.74 | F28: 67980527.38 | G28: 35314099.66 | H28: 33668273.43 | I28: 17564441.84 | J28: 16030717.65 | K28: 9239781.999 | L28: 8627648.417
B29: JAN/JUN | C29: 95516351.32 | D29: 88159041.62 | E29: 91458320.79 | F29: 84436882.25 | G29: 42203368.84 | H29: 40427720.68 | I29: 20832865.35 | J29: 18914068.27 | K29: 11181215.36 | L29: 10454333.53
B30: JAN/JUL | C30: 111949713.6 | D30: 103080265.1 | E30: 107161332.4 | F30: 98743222.3 | G30: 49245625.9 | H30: 47359940.31 | I30: 24224874.51 | J30: 22037415.57 | K30: 13033083.5 | L30: 12300429.12
B31: JAN/AGO | C31: 129273881.7 | D31: 117730270.7 | E31: 123754639.9 | F31: 112743394.4 | G31: 56353596.03 | H31: 54300307.42 | I31: 27715819.58 | J31: 25154176.94 | K31: 14972695.36 | L31: 14128862.27
B32: JAN/SET | C32: 143896072.3 | D32: 131819957.1 | E32: 137679006.7 | F32: 126098820 | G32: 63133924.01 | H32: 61009756.96 | I32: 30895681.46 | J32: 28286742.43 | K32: 16847107.97 | L32: 15935649.7
B33: JAN/OUT | C33: 159703586.7 | D33: 145302529.2 | E33: 152743297.3 | F33: 138891875 | G33: 70014962.81 | H33: 67841466.23 | I33: 34109311.54 | J33: 31487577.32 | K33: 18757540.57 | L33: 17768877.34
B34: JAN/NOV | C34: 178279723.8 | D34: 161030667.1 | E34: 170500792.5 | F34: 153953187.9 | G34: 76723008.57 | H34: 74449318.35 | I34: 37408566.08 | J34: 34621103.61 | K34: 20665630.1 | L34: 19553855.47
B35: JAN/DEZ | C35: 202251658 | D35: 181230155.7 | E35: 193732130.5 | F35: 173356389.1 | G35: 83564340.06 | H35: 81133662.69 | I35: 40697269 | J35: 38051455.93 | K35: 22756819.45 | L35: 21424836.67
C37: PRÊMIO EMTIDO | E37: PRÊMIO RETIDO | G37: PRÊMIO GANHO | I37: SINISTRO RETIDO | K37: DESP. COMERCIAIS
B38: PERÍODO | C38: =C23 -> 2016 | E38: =C38 -> 2016 | G38: =E38 -> 2016 | I38: =G38 -> 2016 | K38: =I38 -> 2016
A39: 1 | B39: =Relatório!B48 -> JAN/DEZ-2015 | C39: =D20 -> 181230155.7 | E39: =F20 -> 173356389.1 | G39: =H20 -> 81133662.69 | I39: =J20 -> 38051455.93 | K39: =L20 -> 21424836.67
A40: =A39+1 -> 2 | B40: =Relatório!B49 -> FEV-15/JAN-16 | C40: =IF($E$3+1<A40,0,SUM(D9:D$19)+SUM(C$8:C8)) -> 182427202.6 | E40: =IF($E$3+1<A40,0,SUM(F9:F$19)+SUM(E$8:E8)) -> 174524143.3 | G40: =IF($E$3+1<A40,0,SUM(H9:H$19)+SUM(G$8:G8)) -> 81527412.23 | I40: =IF($E$3+1<A40,0,SUM(J9:J$19)+SUM(I$8:I8)) -> 38094974.28 | K40: =IF($E$3+1<A40,0,SUM(L9:L$19)+SUM(K$8:K8)) -> 21624464.51
A41: =A40+1 -> 3 | B41: =Relatório!B50 -> MAR-15/FEV-16 | C41: =IF($E$3+1<A41,0,SUM(D10:D$19)+SUM(C$8:C9)) -> 182746403 | E41: =IF($E$3+1<A41,0,SUM(F10:F$19)+SUM(E$8:E9)) -> 174764729.2 | G41: =IF($E$3+1<A41,0,SUM(H10:H$19)+SUM(G$8:G9)) -> 81889721.88 | I41: =IF($E$3+1<A41,0,SUM(J10:J$19)+SUM(I$8:I9)) -> 38534626.74 | K41: =IF($E$3+1<A41,0,SUM(L10:L$19)+SUM(K$8:K9)) -> 21710578.67
A42: 4 | B42: =Relatório!B51 -> ABR-15/MAR-16 | C42: =IF($E$3+1<A42,0,SUM(D11:D$19)+SUM(C$8:C10)) -> 182785840.7 | E42: =IF($E$3+1<A42,0,SUM(F11:F$19)+SUM(E$8:E10)) -> 174743796.3 | G42: =IF($E$3+1<A42,0,SUM(H11:H$19)+SUM(G$8:G10)) -> 82182365.97 | I42: =IF($E$3+1<A42,0,SUM(J11:J$19)+SUM(I$8:I10)) -> 38903366.91 | K42: =IF($E$3+1<A42,0,SUM(L11:L$19)+SUM(K$8:K10)) -> 21816151.9
A43: 5 | B43: =Relatório!B52 -> MAI-15/ABR-16 | C43: =IF($E$3+1<A43,0,SUM(D12:D$19)+SUM(C$8:C11)) -> 184765576.9 | E43: =IF($E$3+1<A43,0,SUM(F12:F$19)+SUM(E$8:E11)) -> 176638824.2 | G43: =IF($E$3+1<A43,0,SUM(H12:H$19)+SUM(G$8:G11)) -> 82458679.05 | I43: =IF($E$3+1<A43,0,SUM(J12:J$19)+SUM(I$8:I11)) -> 39292401.37 | K43: =IF($E$3+1<A43,0,SUM(L12:L$19)+SUM(K$8:K11)) -> 21967327.46
A44: 6 | B44: =Relatório!B53 -> JUN-15/MAI-16 | C44: =IF($E$3+1<A44,0,SUM(D13:D$19)+SUM(C$8:C12)) -> 186199861.9 | E44: =IF($E$3+1<A44,0,SUM(F13:F$19)+SUM(E$8:E12)) -> 178053987.4 | G44: =IF($E$3+1<A44,0,SUM(H13:H$19)+SUM(G$8:G12)) -> 82779488.92 | I44: =IF($E$3+1<A44,0,SUM(J13:J$19)+SUM(I$8:I12)) -> 39585180.11 | K44: =IF($E$3+1<A44,0,SUM(L13:L$19)+SUM(K$8:K12)) -> 22036970.25
A45: 7 | B45: =Relatório!B54 -> JUL-15/JUN-16 | C45: =IF($E$3+1<A45,0,SUM(D14:D$19)+SUM(C$8:C13)) -> 188587465.4 | E45: =IF($E$3+1<A45,0,SUM(F14:F$19)+SUM(E$8:E13)) -> 180377827.6 | G45: =IF($E$3+1<A45,0,SUM(H14:H$19)+SUM(G$8:G13)) -> 82909310.85 | I45: =IF($E$3+1<A45,0,SUM(J14:J$19)+SUM(I$8:I13)) -> 39970253 | K45: =IF($E$3+1<A45,0,SUM(L14:L$19)+SUM(K$8:K13)) -> 22151718.5
A46: 8 | B46: =Relatório!B55 -> AGO-15/JUL-16 | C46: =IF($E$3+1<A46,0,SUM(D15:D$19)+SUM(C$8:C14)) -> 190099604.1 | E46: =IF($E$3+1<A46,0,SUM(F15:F$19)+SUM(E$8:E14)) -> 181774499.1 | G46: =IF($E$3+1<A46,0,SUM(H15:H$19)+SUM(G$8:G14)) -> 83019348.27 | I46: =IF($E$3+1<A46,0,SUM(J15:J$19)+SUM(I$8:I14)) -> 40238914.86 | K46: =IF($E$3+1<A46,0,SUM(L15:L$19)+SUM(K$8:K14)) -> 22157491.05
A47: 9 | B47: =Relatório!B56 -> SET-15/AGO-16 | C47: =IF($E$3+1<A47,0,SUM(D16:D$19)+SUM(C$8:C15)) -> 192773766.7 | E47: =IF($E$3+1<A47,0,SUM(F16:F$19)+SUM(E$8:E15)) -> 184367634.5 | G47: =IF($E$3+1<A47,0,SUM(H16:H$19)+SUM(G$8:G15)) -> 83186951.3 | I47: =IF($E$3+1<A47,0,SUM(J16:J$19)+SUM(I$8:I15)) -> 40613098.57 | K47: =IF($E$3+1<A47,0,SUM(L16:L$19)+SUM(K$8:K15)) -> 22268669.76
A48: 10 | B48: =Relatório!B57 -> OUT-15/SET-16 | C48: =IF($E$3+1<A48,0,SUM(D17:D$19)+SUM(C$8:C16)) -> 193306270.9 | E48: =IF($E$3+1<A48,0,SUM(F17:F$19)+SUM(E$8:E16)) -> 184936575.7 | G48: =IF($E$3+1<A48,0,SUM(H17:H$19)+SUM(G$8:G16)) -> 83257829.74 | I48: =IF($E$3+1<A48,0,SUM(J17:J$19)+SUM(I$8:I16)) -> 40660394.96 | K48: =IF($E$3+1<A48,0,SUM(L17:L$19)+SUM(K$8:K16)) -> 22336294.95
A49: 11 | B49: =Relatório!B58 -> NOV-15/OUT-16 | C49: =IF($E$3+1<A49,0,SUM(D18:D$19)+SUM(C$8:C17)) -> 195631213.2 | E49: =IF($E$3+1<A49,0,SUM(F18:F$19)+SUM(E$8:E17)) -> 187207811.3 | G49: =IF($E$3+1<A49,0,SUM(H18:H$19)+SUM(G$8:G17)) -> 83307159.27 | I49: =IF($E$3+1<A49,0,SUM(J18:J$19)+SUM(I$8:I17)) -> 40673190.14 | K49: =IF($E$3+1<A49,0,SUM(L18:L$19)+SUM(K$8:K17)) -> 22413499.9
A50: 12 | B50: =Relatório!B59 -> DEZ-15/NOV-16 | C50: =IF($E$3+1<A50,0,SUM(D19:D$19)+SUM(C$8:C18)) -> 198479212.4 | E50: =IF($E$3+1<A50,0,SUM(F19:F$19)+SUM(E$8:E18)) -> 189903993.7 | G50: =IF($E$3+1<A50,0,SUM(H19:H$19)+SUM(G$8:G18)) -> 83407352.9 | I50: =IF($E$3+1<A50,0,SUM(J19:J$19)+SUM(I$8:I18)) -> 40838918.4 | K50: =IF($E$3+1<A50,0,SUM(L19:L$19)+SUM(K$8:K18)) -> 22536611.29
A51: 13 | B51: =Relatório!B60 -> JAN/DEZ-2016 | C51: =IF($E$3+1<A50,0,C20) -> 202251658 | E51: =IF($E$3+1<A50,0,E20) -> 193732130.5 | G51: =IF($E$3+1<A50,0,G20) -> 83564340.06 | I51: =IF($E$3+1<A50,0,I20) -> 40697269 | K51: =IF($E$3+1<A50,0,K20) -> 22756819.45
C52: POR AGRUPAMENTOS / POR RAMOS / POR GRUPO SEGURADOR OU POR SEGURADORA
C53: PRÊMIO EMTIDO | E53: PRÊMIO RETIDO | G53: PRÊMIO GANHO | I53: SINISTRO RETIDO | K53: DESP. COMERCIAIS | N53: LOCALIZADORES
B54: PERÍODO | C54: =C23 -> 2016 | D54: =D23 -> 2015 | E54: =C54 -> 2016 | F54: 2015 | G54: 2016 | H54: 2015 | I54: 2016 | J54: 2015 | K54: 2016 | L54: 2015 | N54: =K54 -> 2016 | O54: =L54 -> 2015
A55: 01 | B55: JANEIRO | C55: =(IF($C$3<>1,IF($E$5<500,SUMIF(BD!$Q$5:$Q$66000,$N55,BD!$AB$5:$AB$66000),SUMIF(BD!$O$5:$O$66000,$N55,BD!$AB$5:$AB$66000)),IF($E$5<500,SUMIF(BD!$L$5:$L$66000,$N55,BD!$AB$5:$AB$66000),SUMIF(BD!$K$5:$K$66000,$N55,BD!$AB$5:$AB$66000))))/1000 -> 0 | D55: =(IF($C$3<>1,IF($E$5<500,SUMIF(BD!$Z$5:$Z$66000,$O55,BD!$AC$5:$AC$66000),SUMIF(BD!$X$5:$X$66000,$O55,BD!$AC$5:$AC$66000)),IF($E$5<500,SUMIF(BD!$U$5:$U$66000,$O55,BD!$AC$5:$AC$66000),SUMIF(BD!$T$5:$T$66000,$O55,BD!$AC$5:$AC$66000))))/1000 -> 0 | E55: =(IF($C$3<>1,IF($E$5<500,SUMIF(BD!$Q$5:$Q$66000,$N55,BD!$AD$5:$AD$66000),SUMIF(BD!$O$5:$O$66000,$N55,BD!$AD$5:$AD$66000)),IF($E$5<500,SUMIF(BD!$L$5:$L$66000,$N55,BD!$AD$5:$AD$66000),SUMIF(BD!$K$5:$K$66000,$N55,BD!$AD$5:$AD$66000))))/1000 -> 0 | F55: =(IF($C$3<>1,IF($E$5<500,SUMIF(BD!$Z$5:$Z$66000,$O55,BD!$AE$5:$AE$66000),SUMIF(BD!$X$5:$X$66000,$O55,BD!$AE$5:$AE$66000)),IF($E$5<500,SUMIF(BD!$U$5:$U$66000,$O55,BD!$AE$5:$AE$66000),SUMIF(BD!$T$5:$T$66000,$O55,BD!$AE$5:$AE$66000))))/1000 -> 0 | G55: =(IF($C$3<>1,IF($E$5<500,SUMIF(BD!$Q$5:$Q$66000,$N55,BD!$AF$5:$AF$66000),SUMIF(BD!$O$5:$O$66000,$N55,BD!$AF$5:$AF$66000)),IF($E$5<500,SUMIF(BD!$L$5:$L$66000,$N55,BD!$AF$5:$AF$66000),SUMIF(BD!$K$5:$K$66000,$N55,BD!$AF$5:$AF$66000))))/1000 -> 0 | H55: =(IF($C$3<>1,IF($E$5<500,SUMIF(BD!$Z$5:$Z$66000,$O55,BD!$AG$5:$AG$66000),SUMIF(BD!$X$5:$X$66000,$O55,BD!$AG$5:$AG$66000)),IF($E$5<500,SUMIF(BD!$U$5:$U$66000,$O55,BD!$AG$5:$AG$66000),SUMIF(BD!$T$5:$T$66000,$O55,BD!$AG$5:$AG$66000))))/1000 -> 0 | I55: =(IF($C$3<>1,IF($E$5<500,SUMIF(BD!$Q$5:$Q$66000,$N55,BD!$AH$5:$AH$66000),SUMIF(BD!$O$5:$O$66000,$N55,BD!$AH$5:$AH$66000)),IF($E$5<500,SUMIF(BD!$L$5:$L$66000,$N55,BD!$AH$5:$AH$66000),SUMIF(BD!$K$5:$K$66000,$N55,BD!$AH$5:$AH$66000))))/1000 -> 0 | J55: =(IF($C$3<>1,IF($E$5<500,SUMIF(BD!$Z$5:$Z$66000,$O55,BD!$AI$5:$AI$66000),SUMIF(BD!$X$5:$X$66000,$O55,BD!$AI$5:$AI$66000)),IF($E$5<500,SUMIF(BD!$U$5:$U$66000,$O55,BD!$AI$5:$AI$66000),SUMIF(BD!$T$5:$T$66000,$O55,BD!$AI$5:$AI$66000))))/1000 -> 0 | K55: =(IF($C$3<>1,IF($E$5<500,SUMIF(BD!$Q$5:$Q$66000,$N55,BD!$AJ$5:$AJ$66000),SUMIF(BD!$O$5:$O$66000,$N55,BD!$AJ$5:$AJ$66000)),IF($E$5<500,SUMIF(BD!$L$5:$L$66000,$N55,BD!$AJ$5:$AJ$66000),SUMIF(BD!$K$5:$K$66000,$N55,BD!$AJ$5:$AJ$66000))))/1000 -> 0 | L55: =(IF($C$3<>1,IF($E$5<500,SUMIF(BD!$Z$5:$Z$66000,$O55,BD!$AK$5:$AK$66000),SUMIF(BD!$X$5:$X$66000,$O55,BD!$AK$5:$AK$66000)),IF($E$5<500,SUMIF(BD!$U$5:$U$66000,$O55,BD!$AK$5:$AK$66000),SUMIF(BD!$T$5:$T$66000,$O55,BD!$AK$5:$AK$66000))))/1000 -> 0 | M55: 0 | N55: =IFERROR(VALUE($E$5)&"/"&$G$5&"/"&$C$7&$A55,"") -> 0/Total/201601 | O55: =IFERROR(VALUE($E$5)&"/"&$G$5&"/"&$D$7&$A55,"") -> 0/Total/201501
A56: 02 | B56: FEVEREIRO | C56: =(IF($C$3<>1,IF($E$5<500,SUMIF(BD!$Q$5:$Q$66000,$N56,BD!$AB$5:$AB$66000),SUMIF(BD!$O$5:$O$66000,$N56,BD!$AB$5:$AB$66000)),IF($E$5<500,SUMIF(BD!$L$5:$L$66000,$N56,BD!$AB$5:$AB$66000),SUMIF(BD!$K$5:$K$66000,$N56,BD!$AB$5:$AB$66000))))/1000 -> 0 | D56: =(IF($C$3<>1,IF($E$5<500,SUMIF(BD!$Z$5:$Z$66000,$O56,BD!$AC$5:$AC$66000),SUMIF(BD!$X$5:$X$66000,$O56,BD!$AC$5:$AC$66000)),IF($E$5<500,SUMIF(BD!$U$5:$U$66000,$O56,BD!$AC$5:$AC$66000),SUMIF(BD!$T$5:$T$66000,$O56,BD!$AC$5:$AC$66000))))/1000 -> 0 | E56: =(IF($C$3<>1,IF($E$5<500,SUMIF(BD!$Q$5:$Q$66000,$N56,BD!$AD$5:$AD$66000),SUMIF(BD!$O$5:$O$66000,$N56,BD!$AD$5:$AD$66000)),IF($E$5<500,SUMIF(BD!$L$5:$L$66000,$N56,BD!$AD$5:$AD$66000),SUMIF(BD!$K$5:$K$66000,$N56,BD!$AD$5:$AD$66000))))/1000 -> 0 | F56: =(IF($C$3<>1,IF($E$5<500,SUMIF(BD!$Z$5:$Z$66000,$O56,BD!$AE$5:$AE$66000),SUMIF(BD!$X$5:$X$66000,$O56,BD!$AE$5:$AE$66000)),IF($E$5<500,SUMIF(BD!$U$5:$U$66000,$O56,BD!$AE$5:$AE$66000),SUMIF(BD!$T$5:$T$66000,$O56,BD!$AE$5:$AE$66000))))/1000 -> 0 | G56: =(IF($C$3<>1,IF($E$5<500,SUMIF(BD!$Q$5:$Q$66000,$N56,BD!$AF$5:$AF$66000),SUMIF(BD!$O$5:$O$66000,$N56,BD!$AF$5:$AF$66000)),IF($E$5<500,SUMIF(BD!$L$5:$L$66000,$N56,BD!$AF$5:$AF$66000),SUMIF(BD!$K$5:$K$66000,$N56,BD!$AF$5:$AF$66000))))/1000 -> 0 | H56: =(IF($C$3<>1,IF($E$5<500,SUMIF(BD!$Z$5:$Z$66000,$O56,BD!$AG$5:$AG$66000),SUMIF(BD!$X$5:$X$66000,$O56,BD!$AG$5:$AG$66000)),IF($E$5<500,SUMIF(BD!$U$5:$U$66000,$O56,BD!$AG$5:$AG$66000),SUMIF(BD!$T$5:$T$66000,$O56,BD!$AG$5:$AG$66000))))/1000 -> 0 | I56: =(IF($C$3<>1,IF($E$5<500,SUMIF(BD!$Q$5:$Q$66000,$N56,BD!$AH$5:$AH$66000),SUMIF(BD!$O$5:$O$66000,$N56,BD!$AH$5:$AH$66000)),IF($E$5<500,SUMIF(BD!$L$5:$L$66000,$N56,BD!$AH$5:$AH$66000),SUMIF(BD!$K$5:$K$66000,$N56,BD!$AH$5:$AH$66000))))/1000 -> 0 | J56: =(IF($C$3<>1,IF($E$5<500,SUMIF(BD!$Z$5:$Z$66000,$O56,BD!$AI$5:$AI$66000),SUMIF(BD!$X$5:$X$66000,$O56,BD!$AI$5:$AI$66000)),IF($E$5<500,SUMIF(BD!$U$5:$U$66000,$O56,BD!$AI$5:$AI$66000),SUMIF(BD!$T$5:$T$66000,$O56,BD!$AI$5:$AI$66000))))/1000 -> 0 | K56: =(IF($C$3<>1,IF($E$5<500,SUMIF(BD!$Q$5:$Q$66000,$N56,BD!$AJ$5:$AJ$66000),SUMIF(BD!$O$5:$O$66000,$N56,BD!$AJ$5:$AJ$66000)),IF($E$5<500,SUMIF(BD!$L$5:$L$66000,$N56,BD!$AJ$5:$AJ$66000),SUMIF(BD!$K$5:$K$66000,$N56,BD!$AJ$5:$AJ$66000))))/1000 -> 0 | L56: =(IF($C$3<>1,IF($E$5<500,SUMIF(BD!$Z$5:$Z$66000,$O56,BD!$AK$5:$AK$66000),SUMIF(BD!$X$5:$X$66000,$O56,BD!$AK$5:$AK$66000)),IF($E$5<500,SUMIF(BD!$U$5:$U$66000,$O56,BD!$AK$5:$AK$66000),SUMIF(BD!$T$5:$T$66000,$O56,BD!$AK$5:$AK$66000))))/1000 -> 0 | N56: =IFERROR(VALUE($E$5)&"/"&$G$5&"/"&$C$7&$A56,"") -> 0/Total/201602 | O56: =IFERROR(VALUE($E$5)&"/"&$G$5&"/"&$D$7&$A56,"") -> 0/Total/201502
A57: 03 | B57: MARÇO | C57: =(IF($C$3<>1,IF($E$5<500,SUMIF(BD!$Q$5:$Q$66000,$N57,BD!$AB$5:$AB$66000),SUMIF(BD!$O$5:$O$66000,$N57,BD!$AB$5:$AB$66000)),IF($E$5<500,SUMIF(BD!$L$5:$L$66000,$N57,BD!$AB$5:$AB$66000),SUMIF(BD!$K$5:$K$66000,$N57,BD!$AB$5:$AB$66000))))/1000 -> 0 | D57: =(IF($C$3<>1,IF($E$5<500,SUMIF(BD!$Z$5:$Z$66000,$O57,BD!$AC$5:$AC$66000),SUMIF(BD!$X$5:$X$66000,$O57,BD!$AC$5:$AC$66000)),IF($E$5<500,SUMIF(BD!$U$5:$U$66000,$O57,BD!$AC$5:$AC$66000),SUMIF(BD!$T$5:$T$66000,$O57,BD!$AC$5:$AC$66000))))/1000 -> 0 | E57: =(IF($C$3<>1,IF($E$5<500,SUMIF(BD!$Q$5:$Q$66000,$N57,BD!$AD$5:$AD$66000),SUMIF(BD!$O$5:$O$66000,$N57,BD!$AD$5:$AD$66000)),IF($E$5<500,SUMIF(BD!$L$5:$L$66000,$N57,BD!$AD$5:$AD$66000),SUMIF(BD!$K$5:$K$66000,$N57,BD!$AD$5:$AD$66000))))/1000 -> 0 | F57: =(IF($C$3<>1,IF($E$5<500,SUMIF(BD!$Z$5:$Z$66000,$O57,BD!$AE$5:$AE$66000),SUMIF(BD!$X$5:$X$66000,$O57,BD!$AE$5:$AE$66000)),IF($E$5<500,SUMIF(BD!$U$5:$U$66000,$O57,BD!$AE$5:$AE$66000),SUMIF(BD!$T$5:$T$66000,$O57,BD!$AE$5:$AE$66000))))/1000 -> 0 | G57: =(IF($C$3<>1,IF($E$5<500,SUMIF(BD!$Q$5:$Q$66000,$N57,BD!$AF$5:$AF$66000),SUMIF(BD!$O$5:$O$66000,$N57,BD!$AF$5:$AF$66000)),IF($E$5<500,SUMIF(BD!$L$5:$L$66000,$N57,BD!$AF$5:$AF$66000),SUMIF(BD!$K$5:$K$66000,$N57,BD!$AF$5:$AF$66000))))/1000 -> 0 | H57: =(IF($C$3<>1,IF($E$5<500,SUMIF(BD!$Z$5:$Z$66000,$O57,BD!$AG$5:$AG$66000),SUMIF(BD!$X$5:$X$66000,$O57,BD!$AG$5:$AG$66000)),IF($E$5<500,SUMIF(BD!$U$5:$U$66000,$O57,BD!$AG$5:$AG$66000),SUMIF(BD!$T$5:$T$66000,$O57,BD!$AG$5:$AG$66000))))/1000 -> 0 | I57: =(IF($C$3<>1,IF($E$5<500,SUMIF(BD!$Q$5:$Q$66000,$N57,BD!$AH$5:$AH$66000),SUMIF(BD!$O$5:$O$66000,$N57,BD!$AH$5:$AH$66000)),IF($E$5<500,SUMIF(BD!$L$5:$L$66000,$N57,BD!$AH$5:$AH$66000),SUMIF(BD!$K$5:$K$66000,$N57,BD!$AH$5:$AH$66000))))/1000 -> 0 | J57: =(IF($C$3<>1,IF($E$5<500,SUMIF(BD!$Z$5:$Z$66000,$O57,BD!$AI$5:$AI$66000),SUMIF(BD!$X$5:$X$66000,$O57,BD!$AI$5:$AI$66000)),IF($E$5<500,SUMIF(BD!$U$5:$U$66000,$O57,BD!$AI$5:$AI$66000),SUMIF(BD!$T$5:$T$66000,$O57,BD!$AI$5:$AI$66000))))/1000 -> 0 | K57: =(IF($C$3<>1,IF($E$5<500,SUMIF(BD!$Q$5:$Q$66000,$N57,BD!$AJ$5:$AJ$66000),SUMIF(BD!$O$5:$O$66000,$N57,BD!$AJ$5:$AJ$66000)),IF($E$5<500,SUMIF(BD!$L$5:$L$66000,$N57,BD!$AJ$5:$AJ$66000),SUMIF(BD!$K$5:$K$66000,$N57,BD!$AJ$5:$AJ$66000))))/1000 -> 0 | L57: =(IF($C$3<>1,IF($E$5<500,SUMIF(BD!$Z$5:$Z$66000,$O57,BD!$AK$5:$AK$66000),SUMIF(BD!$X$5:$X$66000,$O57,BD!$AK$5:$AK$66000)),IF($E$5<500,SUMIF(BD!$U$5:$U$66000,$O57,BD!$AK$5:$AK$66000),SUMIF(BD!$T$5:$T$66000,$O57,BD!$AK$5:$AK$66000))))/1000 -> 0 | N57: 0/Total/201603 | O57: 0/Total/201503
A58: 04 | B58: ABRIL | C58: =(IF($C$3<>1,IF($E$5<500,SUMIF(BD!$Q$5:$Q$66000,$N58,BD!$AB$5:$AB$66000),SUMIF(BD!$O$5:$O$66000,$N58,BD!$AB$5:$AB$66000)),IF($E$5<500,SUMIF(BD!$L$5:$L$66000,$N58,BD!$AB$5:$AB$66000),SUMIF(BD!$K$5:$K$66000,$N58,BD!$AB$5:$AB$66000))))/1000 -> 0 | D58: =(IF($C$3<>1,IF($E$5<500,SUMIF(BD!$Z$5:$Z$66000,$O58,BD!$AC$5:$AC$66000),SUMIF(BD!$X$5:$X$66000,$O58,BD!$AC$5:$AC$66000)),IF($E$5<500,SUMIF(BD!$U$5:$U$66000,$O58,BD!$AC$5:$AC$66000),SUMIF(BD!$T$5:$T$66000,$O58,BD!$AC$5:$AC$66000))))/1000 -> 0 | E58: =(IF($C$3<>1,IF($E$5<500,SUMIF(BD!$Q$5:$Q$66000,$N58,BD!$AD$5:$AD$66000),SUMIF(BD!$O$5:$O$66000,$N58,BD!$AD$5:$AD$66000)),IF($E$5<500,SUMIF(BD!$L$5:$L$66000,$N58,BD!$AD$5:$AD$66000),SUMIF(BD!$K$5:$K$66000,$N58,BD!$AD$5:$AD$66000))))/1000 -> 0 | F58: =(IF($C$3<>1,IF($E$5<500,SUMIF(BD!$Z$5:$Z$66000,$O58,BD!$AE$5:$AE$66000),SUMIF(BD!$X$5:$X$66000,$O58,BD!$AE$5:$AE$66000)),IF($E$5<500,SUMIF(BD!$U$5:$U$66000,$O58,BD!$AE$5:$AE$66000),SUMIF(BD!$T$5:$T$66000,$O58,BD!$AE$5:$AE$66000))))/1000 -> 0 | G58: =(IF($C$3<>1,IF($E$5<500,SUMIF(BD!$Q$5:$Q$66000,$N58,BD!$AF$5:$AF$66000),SUMIF(BD!$O$5:$O$66000,$N58,BD!$AF$5:$AF$66000)),IF($E$5<500,SUMIF(BD!$L$5:$L$66000,$N58,BD!$AF$5:$AF$66000),SUMIF(BD!$K$5:$K$66000,$N58,BD!$AF$5:$AF$66000))))/1000 -> 0 | H58: =(IF($C$3<>1,IF($E$5<500,SUMIF(BD!$Z$5:$Z$66000,$O58,BD!$AG$5:$AG$66000),SUMIF(BD!$X$5:$X$66000,$O58,BD!$AG$5:$AG$66000)),IF($E$5<500,SUMIF(BD!$U$5:$U$66000,$O58,BD!$AG$5:$AG$66000),SUMIF(BD!$T$5:$T$66000,$O58,BD!$AG$5:$AG$66000))))/1000 -> 0 | I58: =(IF($C$3<>1,IF($E$5<500,SUMIF(BD!$Q$5:$Q$66000,$N58,BD!$AH$5:$AH$66000),SUMIF(BD!$O$5:$O$66000,$N58,BD!$AH$5:$AH$66000)),IF($E$5<500,SUMIF(BD!$L$5:$L$66000,$N58,BD!$AH$5:$AH$66000),SUMIF(BD!$K$5:$K$66000,$N58,BD!$AH$5:$AH$66000))))/1000 -> 0 | J58: =(IF($C$3<>1,IF($E$5<500,SUMIF(BD!$Z$5:$Z$66000,$O58,BD!$AI$5:$AI$66000),SUMIF(BD!$X$5:$X$66000,$O58,BD!$AI$5:$AI$66000)),IF($E$5<500,SUMIF(BD!$U$5:$U$66000,$O58,BD!$AI$5:$AI$66000),SUMIF(BD!$T$5:$T$66000,$O58,BD!$AI$5:$AI$66000))))/1000 -> 0 | K58: =(IF($C$3<>1,IF($E$5<500,SUMIF(BD!$Q$5:$Q$66000,$N58,BD!$AJ$5:$AJ$66000),SUMIF(BD!$O$5:$O$66000,$N58,BD!$AJ$5:$AJ$66000)),IF($E$5<500,SUMIF(BD!$L$5:$L$66000,$N58,BD!$AJ$5:$AJ$66000),SUMIF(BD!$K$5:$K$66000,$N58,BD!$AJ$5:$AJ$66000))))/1000 -> 0 | L58: =(IF($C$3<>1,IF($E$5<500,SUMIF(BD!$Z$5:$Z$66000,$O58,BD!$AK$5:$AK$66000),SUMIF(BD!$X$5:$X$66000,$O58,BD!$AK$5:$AK$66000)),IF($E$5<500,SUMIF(BD!$U$5:$U$66000,$O58,BD!$AK$5:$AK$66000),SUMIF(BD!$T$5:$T$66000,$O58,BD!$AK$5:$AK$66000))))/1000 -> 0 | N58: 0/Total/201604 | O58: 0/Total/201504
A59: 05 | B59: MAIO | C59: =(IF($C$3<>1,IF($E$5<500,SUMIF(BD!$Q$5:$Q$66000,$N59,BD!$AB$5:$AB$66000),SUMIF(BD!$O$5:$O$66000,$N59,BD!$AB$5:$AB$66000)),IF($E$5<500,SUMIF(BD!$L$5:$L$66000,$N59,BD!$AB$5:$AB$66000),SUMIF(BD!$K$5:$K$66000,$N59,BD!$AB$5:$AB$66000))))/1000 -> 0 | D59: =(IF($C$3<>1,IF($E$5<500,SUMIF(BD!$Z$5:$Z$66000,$O59,BD!$AC$5:$AC$66000),SUMIF(BD!$X$5:$X$66000,$O59,BD!$AC$5:$AC$66000)),IF($E$5<500,SUMIF(BD!$U$5:$U$66000,$O59,BD!$AC$5:$AC$66000),SUMIF(BD!$T$5:$T$66000,$O59,BD!$AC$5:$AC$66000))))/1000 -> 0 | E59: =(IF($C$3<>1,IF($E$5<500,SUMIF(BD!$Q$5:$Q$66000,$N59,BD!$AD$5:$AD$66000),SUMIF(BD!$O$5:$O$66000,$N59,BD!$AD$5:$AD$66000)),IF($E$5<500,SUMIF(BD!$L$5:$L$66000,$N59,BD!$AD$5:$AD$66000),SUMIF(BD!$K$5:$K$66000,$N59,BD!$AD$5:$AD$66000))))/1000 -> 0 | F59: =(IF($C$3<>1,IF($E$5<500,SUMIF(BD!$Z$5:$Z$66000,$O59,BD!$AE$5:$AE$66000),SUMIF(BD!$X$5:$X$66000,$O59,BD!$AE$5:$AE$66000)),IF($E$5<500,SUMIF(BD!$U$5:$U$66000,$O59,BD!$AE$5:$AE$66000),SUMIF(BD!$T$5:$T$66000,$O59,BD!$AE$5:$AE$66000))))/1000 -> 0 | G59: =(IF($C$3<>1,IF($E$5<500,SUMIF(BD!$Q$5:$Q$66000,$N59,BD!$AF$5:$AF$66000),SUMIF(BD!$O$5:$O$66000,$N59,BD!$AF$5:$AF$66000)),IF($E$5<500,SUMIF(BD!$L$5:$L$66000,$N59,BD!$AF$5:$AF$66000),SUMIF(BD!$K$5:$K$66000,$N59,BD!$AF$5:$AF$66000))))/1000 -> 0 | H59: =(IF($C$3<>1,IF($E$5<500,SUMIF(BD!$Z$5:$Z$66000,$O59,BD!$AG$5:$AG$66000),SUMIF(BD!$X$5:$X$66000,$O59,BD!$AG$5:$AG$66000)),IF($E$5<500,SUMIF(BD!$U$5:$U$66000,$O59,BD!$AG$5:$AG$66000),SUMIF(BD!$T$5:$T$66000,$O59,BD!$AG$5:$AG$66000))))/1000 -> 0 | I59: =(IF($C$3<>1,IF($E$5<500,SUMIF(BD!$Q$5:$Q$66000,$N59,BD!$AH$5:$AH$66000),SUMIF(BD!$O$5:$O$66000,$N59,BD!$AH$5:$AH$66000)),IF($E$5<500,SUMIF(BD!$L$5:$L$66000,$N59,BD!$AH$5:$AH$66000),SUMIF(BD!$K$5:$K$66000,$N59,BD!$AH$5:$AH$66000))))/1000 -> 0 | J59: =(IF($C$3<>1,IF($E$5<500,SUMIF(BD!$Z$5:$Z$66000,$O59,BD!$AI$5:$AI$66000),SUMIF(BD!$X$5:$X$66000,$O59,BD!$AI$5:$AI$66000)),IF($E$5<500,SUMIF(BD!$U$5:$U$66000,$O59,BD!$AI$5:$AI$66000),SUMIF(BD!$T$5:$T$66000,$O59,BD!$AI$5:$AI$66000))))/1000 -> 0 | K59: =(IF($C$3<>1,IF($E$5<500,SUMIF(BD!$Q$5:$Q$66000,$N59,BD!$AJ$5:$AJ$66000),SUMIF(BD!$O$5:$O$66000,$N59,BD!$AJ$5:$AJ$66000)),IF($E$5<500,SUMIF(BD!$L$5:$L$66000,$N59,BD!$AJ$5:$AJ$66000),SUMIF(BD!$K$5:$K$66000,$N59,BD!$AJ$5:$AJ$66000))))/1000 -> 0 | L59: =(IF($C$3<>1,IF($E$5<500,SUMIF(BD!$Z$5:$Z$66000,$O59,BD!$AK$5:$AK$66000),SUMIF(BD!$X$5:$X$66000,$O59,BD!$AK$5:$AK$66000)),IF($E$5<500,SUMIF(BD!$U$5:$U$66000,$O59,BD!$AK$5:$AK$66000),SUMIF(BD!$T$5:$T$66000,$O59,BD!$AK$5:$AK$66000))))/1000 -> 0 | N59: 0/Total/201605 | O59: 0/Total/201505
A60: 06 | B60: JUNHO | C60: =(IF($C$3<>1,IF($E$5<500,SUMIF(BD!$Q$5:$Q$66000,$N60,BD!$AB$5:$AB$66000),SUMIF(BD!$O$5:$O$66000,$N60,BD!$AB$5:$AB$66000)),IF($E$5<500,SUMIF(BD!$L$5:$L$66000,$N60,BD!$AB$5:$AB$66000),SUMIF(BD!$K$5:$K$66000,$N60,BD!$AB$5:$AB$66000))))/1000 -> 0 | D60: =(IF($C$3<>1,IF($E$5<500,SUMIF(BD!$Z$5:$Z$66000,$O60,BD!$AC$5:$AC$66000),SUMIF(BD!$X$5:$X$66000,$O60,BD!$AC$5:$AC$66000)),IF($E$5<500,SUMIF(BD!$U$5:$U$66000,$O60,BD!$AC$5:$AC$66000),SUMIF(BD!$T$5:$T$66000,$O60,BD!$AC$5:$AC$66000))))/1000 -> 0 | E60: =(IF($C$3<>1,IF($E$5<500,SUMIF(BD!$Q$5:$Q$66000,$N60,BD!$AD$5:$AD$66000),SUMIF(BD!$O$5:$O$66000,$N60,BD!$AD$5:$AD$66000)),IF($E$5<500,SUMIF(BD!$L$5:$L$66000,$N60,BD!$AD$5:$AD$66000),SUMIF(BD!$K$5:$K$66000,$N60,BD!$AD$5:$AD$66000))))/1000 -> 0 | F60: =(IF($C$3<>1,IF($E$5<500,SUMIF(BD!$Z$5:$Z$66000,$O60,BD!$AE$5:$AE$66000),SUMIF(BD!$X$5:$X$66000,$O60,BD!$AE$5:$AE$66000)),IF($E$5<500,SUMIF(BD!$U$5:$U$66000,$O60,BD!$AE$5:$AE$66000),SUMIF(BD!$T$5:$T$66000,$O60,BD!$AE$5:$AE$66000))))/1000 -> 0 | G60: =(IF($C$3<>1,IF($E$5<500,SUMIF(BD!$Q$5:$Q$66000,$N60,BD!$AF$5:$AF$66000),SUMIF(BD!$O$5:$O$66000,$N60,BD!$AF$5:$AF$66000)),IF($E$5<500,SUMIF(BD!$L$5:$L$66000,$N60,BD!$AF$5:$AF$66000),SUMIF(BD!$K$5:$K$66000,$N60,BD!$AF$5:$AF$66000))))/1000 -> 0 | H60: =(IF($C$3<>1,IF($E$5<500,SUMIF(BD!$Z$5:$Z$66000,$O60,BD!$AG$5:$AG$66000),SUMIF(BD!$X$5:$X$66000,$O60,BD!$AG$5:$AG$66000)),IF($E$5<500,SUMIF(BD!$U$5:$U$66000,$O60,BD!$AG$5:$AG$66000),SUMIF(BD!$T$5:$T$66000,$O60,BD!$AG$5:$AG$66000))))/1000 -> 0 | I60: =(IF($C$3<>1,IF($E$5<500,SUMIF(BD!$Q$5:$Q$66000,$N60,BD!$AH$5:$AH$66000),SUMIF(BD!$O$5:$O$66000,$N60,BD!$AH$5:$AH$66000)),IF($E$5<500,SUMIF(BD!$L$5:$L$66000,$N60,BD!$AH$5:$AH$66000),SUMIF(BD!$K$5:$K$66000,$N60,BD!$AH$5:$AH$66000))))/1000 -> 0 | J60: =(IF($C$3<>1,IF($E$5<500,SUMIF(BD!$Z$5:$Z$66000,$O60,BD!$AI$5:$AI$66000),SUMIF(BD!$X$5:$X$66000,$O60,BD!$AI$5:$AI$66000)),IF($E$5<500,SUMIF(BD!$U$5:$U$66000,$O60,BD!$AI$5:$AI$66000),SUMIF(BD!$T$5:$T$66000,$O60,BD!$AI$5:$AI$66000))))/1000 -> 0 | K60: =(IF($C$3<>1,IF($E$5<500,SUMIF(BD!$Q$5:$Q$66000,$N60,BD!$AJ$5:$AJ$66000),SUMIF(BD!$O$5:$O$66000,$N60,BD!$AJ$5:$AJ$66000)),IF($E$5<500,SUMIF(BD!$L$5:$L$66000,$N60,BD!$AJ$5:$AJ$66000),SUMIF(BD!$K$5:$K$66000,$N60,BD!$AJ$5:$AJ$66000))))/1000 -> 0 | L60: =(IF($C$3<>1,IF($E$5<500,SUMIF(BD!$Z$5:$Z$66000,$O60,BD!$AK$5:$AK$66000),SUMIF(BD!$X$5:$X$66000,$O60,BD!$AK$5:$AK$66000)),IF($E$5<500,SUMIF(BD!$U$5:$U$66000,$O60,BD!$AK$5:$AK$66000),SUMIF(BD!$T$5:$T$66000,$O60,BD!$AK$5:$AK$66000))))/1000 -> 0 | N60: 0/Total/201606 | O60: 0/Total/201506
A61: 07 | B61: JULHO | C61: =(IF($C$3<>1,IF($E$5<500,SUMIF(BD!$Q$5:$Q$66000,$N61,BD!$AB$5:$AB$66000),SUMIF(BD!$O$5:$O$66000,$N61,BD!$AB$5:$AB$66000)),IF($E$5<500,SUMIF(BD!$L$5:$L$66000,$N61,BD!$AB$5:$AB$66000),SUMIF(BD!$K$5:$K$66000,$N61,BD!$AB$5:$AB$66000))))/1000 -> 0 | D61: =(IF($C$3<>1,IF($E$5<500,SUMIF(BD!$Z$5:$Z$66000,$O61,BD!$AC$5:$AC$66000),SUMIF(BD!$X$5:$X$66000,$O61,BD!$AC$5:$AC$66000)),IF($E$5<500,SUMIF(BD!$U$5:$U$66000,$O61,BD!$AC$5:$AC$66000),SUMIF(BD!$T$5:$T$66000,$O61,BD!$AC$5:$AC$66000))))/1000 -> 0 | E61: =(IF($C$3<>1,IF($E$5<500,SUMIF(BD!$Q$5:$Q$66000,$N61,BD!$AD$5:$AD$66000),SUMIF(BD!$O$5:$O$66000,$N61,BD!$AD$5:$AD$66000)),IF($E$5<500,SUMIF(BD!$L$5:$L$66000,$N61,BD!$AD$5:$AD$66000),SUMIF(BD!$K$5:$K$66000,$N61,BD!$AD$5:$AD$66000))))/1000 -> 0 | F61: =(IF($C$3<>1,IF($E$5<500,SUMIF(BD!$Z$5:$Z$66000,$O61,BD!$AE$5:$AE$66000),SUMIF(BD!$X$5:$X$66000,$O61,BD!$AE$5:$AE$66000)),IF($E$5<500,SUMIF(BD!$U$5:$U$66000,$O61,BD!$AE$5:$AE$66000),SUMIF(BD!$T$5:$T$66000,$O61,BD!$AE$5:$AE$66000))))/1000 -> 0 | G61: =(IF($C$3<>1,IF($E$5<500,SUMIF(BD!$Q$5:$Q$66000,$N61,BD!$AF$5:$AF$66000),SUMIF(BD!$O$5:$O$66000,$N61,BD!$AF$5:$AF$66000)),IF($E$5<500,SUMIF(BD!$L$5:$L$66000,$N61,BD!$AF$5:$AF$66000),SUMIF(BD!$K$5:$K$66000,$N61,BD!$AF$5:$AF$66000))))/1000 -> 0 | H61: =(IF($C$3<>1,IF($E$5<500,SUMIF(BD!$Z$5:$Z$66000,$O61,BD!$AG$5:$AG$66000),SUMIF(BD!$X$5:$X$66000,$O61,BD!$AG$5:$AG$66000)),IF($E$5<500,SUMIF(BD!$U$5:$U$66000,$O61,BD!$AG$5:$AG$66000),SUMIF(BD!$T$5:$T$66000,$O61,BD!$AG$5:$AG$66000))))/1000 -> 0 | I61: =(IF($C$3<>1,IF($E$5<500,SUMIF(BD!$Q$5:$Q$66000,$N61,BD!$AH$5:$AH$66000),SUMIF(BD!$O$5:$O$66000,$N61,BD!$AH$5:$AH$66000)),IF($E$5<500,SUMIF(BD!$L$5:$L$66000,$N61,BD!$AH$5:$AH$66000),SUMIF(BD!$K$5:$K$66000,$N61,BD!$AH$5:$AH$66000))))/1000 -> 0 | J61: =(IF($C$3<>1,IF($E$5<500,SUMIF(BD!$Z$5:$Z$66000,$O61,BD!$AI$5:$AI$66000),SUMIF(BD!$X$5:$X$66000,$O61,BD!$AI$5:$AI$66000)),IF($E$5<500,SUMIF(BD!$U$5:$U$66000,$O61,BD!$AI$5:$AI$66000),SUMIF(BD!$T$5:$T$66000,$O61,BD!$AI$5:$AI$66000))))/1000 -> 0 | K61: =(IF($C$3<>1,IF($E$5<500,SUMIF(BD!$Q$5:$Q$66000,$N61,BD!$AJ$5:$AJ$66000),SUMIF(BD!$O$5:$O$66000,$N61,BD!$AJ$5:$AJ$66000)),IF($E$5<500,SUMIF(BD!$L$5:$L$66000,$N61,BD!$AJ$5:$AJ$66000),SUMIF(BD!$K$5:$K$66000,$N61,BD!$AJ$5:$AJ$66000))))/1000 -> 0 | L61: =(IF($C$3<>1,IF($E$5<500,SUMIF(BD!$Z$5:$Z$66000,$O61,BD!$AK$5:$AK$66000),SUMIF(BD!$X$5:$X$66000,$O61,BD!$AK$5:$AK$66000)),IF($E$5<500,SUMIF(BD!$U$5:$U$66000,$O61,BD!$AK$5:$AK$66000),SUMIF(BD!$T$5:$T$66000,$O61,BD!$AK$5:$AK$66000))))/1000 -> 0 | N61: 0/Total/201607 | O61: 0/Total/201507
A62: 08 | B62: AGOSTO | C62: =(IF($C$3<>1,IF($E$5<500,SUMIF(BD!$Q$5:$Q$66000,$N62,BD!$AB$5:$AB$66000),SUMIF(BD!$O$5:$O$66000,$N62,BD!$AB$5:$AB$66000)),IF($E$5<500,SUMIF(BD!$L$5:$L$66000,$N62,BD!$AB$5:$AB$66000),SUMIF(BD!$K$5:$K$66000,$N62,BD!$AB$5:$AB$66000))))/1000 -> 0 | D62: =(IF($C$3<>1,IF($E$5<500,SUMIF(BD!$Z$5:$Z$66000,$O62,BD!$AC$5:$AC$66000),SUMIF(BD!$X$5:$X$66000,$O62,BD!$AC$5:$AC$66000)),IF($E$5<500,SUMIF(BD!$U$5:$U$66000,$O62,BD!$AC$5:$AC$66000),SUMIF(BD!$T$5:$T$66000,$O62,BD!$AC$5:$AC$66000))))/1000 -> 0 | E62: =(IF($C$3<>1,IF($E$5<500,SUMIF(BD!$Q$5:$Q$66000,$N62,BD!$AD$5:$AD$66000),SUMIF(BD!$O$5:$O$66000,$N62,BD!$AD$5:$AD$66000)),IF($E$5<500,SUMIF(BD!$L$5:$L$66000,$N62,BD!$AD$5:$AD$66000),SUMIF(BD!$K$5:$K$66000,$N62,BD!$AD$5:$AD$66000))))/1000 -> 0 | F62: =(IF($C$3<>1,IF($E$5<500,SUMIF(BD!$Z$5:$Z$66000,$O62,BD!$AE$5:$AE$66000),SUMIF(BD!$X$5:$X$66000,$O62,BD!$AE$5:$AE$66000)),IF($E$5<500,SUMIF(BD!$U$5:$U$66000,$O62,BD!$AE$5:$AE$66000),SUMIF(BD!$T$5:$T$66000,$O62,BD!$AE$5:$AE$66000))))/1000 -> 0 | G62: =(IF($C$3<>1,IF($E$5<500,SUMIF(BD!$Q$5:$Q$66000,$N62,BD!$AF$5:$AF$66000),SUMIF(BD!$O$5:$O$66000,$N62,BD!$AF$5:$AF$66000)),IF($E$5<500,SUMIF(BD!$L$5:$L$66000,$N62,BD!$AF$5:$AF$66000),SUMIF(BD!$K$5:$K$66000,$N62,BD!$AF$5:$AF$66000))))/1000 -> 0 | H62: =(IF($C$3<>1,IF($E$5<500,SUMIF(BD!$Z$5:$Z$66000,$O62,BD!$AG$5:$AG$66000),SUMIF(BD!$X$5:$X$66000,$O62,BD!$AG$5:$AG$66000)),IF($E$5<500,SUMIF(BD!$U$5:$U$66000,$O62,BD!$AG$5:$AG$66000),SUMIF(BD!$T$5:$T$66000,$O62,BD!$AG$5:$AG$66000))))/1000 -> 0 | I62: =(IF($C$3<>1,IF($E$5<500,SUMIF(BD!$Q$5:$Q$66000,$N62,BD!$AH$5:$AH$66000),SUMIF(BD!$O$5:$O$66000,$N62,BD!$AH$5:$AH$66000)),IF($E$5<500,SUMIF(BD!$L$5:$L$66000,$N62,BD!$AH$5:$AH$66000),SUMIF(BD!$K$5:$K$66000,$N62,BD!$AH$5:$AH$66000))))/1000 -> 0 | J62: =(IF($C$3<>1,IF($E$5<500,SUMIF(BD!$Z$5:$Z$66000,$O62,BD!$AI$5:$AI$66000),SUMIF(BD!$X$5:$X$66000,$O62,BD!$AI$5:$AI$66000)),IF($E$5<500,SUMIF(BD!$U$5:$U$66000,$O62,BD!$AI$5:$AI$66000),SUMIF(BD!$T$5:$T$66000,$O62,BD!$AI$5:$AI$66000))))/1000 -> 0 | K62: =(IF($C$3<>1,IF($E$5<500,SUMIF(BD!$Q$5:$Q$66000,$N62,BD!$AJ$5:$AJ$66000),SUMIF(BD!$O$5:$O$66000,$N62,BD!$AJ$5:$AJ$66000)),IF($E$5<500,SUMIF(BD!$L$5:$L$66000,$N62,BD!$AJ$5:$AJ$66000),SUMIF(BD!$K$5:$K$66000,$N62,BD!$AJ$5:$AJ$66000))))/1000 -> 0 | L62: =(IF($C$3<>1,IF($E$5<500,SUMIF(BD!$Z$5:$Z$66000,$O62,BD!$AK$5:$AK$66000),SUMIF(BD!$X$5:$X$66000,$O62,BD!$AK$5:$AK$66000)),IF($E$5<500,SUMIF(BD!$U$5:$U$66000,$O62,BD!$AK$5:$AK$66000),SUMIF(BD!$T$5:$T$66000,$O62,BD!$AK$5:$AK$66000))))/1000 -> 0 | N62: 0/Total/201608 | O62: 0/Total/201508
A63: 09 | B63: SETEMBRO | C63: =(IF($C$3<>1,IF($E$5<500,SUMIF(BD!$Q$5:$Q$66000,$N63,BD!$AB$5:$AB$66000),SUMIF(BD!$O$5:$O$66000,$N63,BD!$AB$5:$AB$66000)),IF($E$5<500,SUMIF(BD!$L$5:$L$66000,$N63,BD!$AB$5:$AB$66000),SUMIF(BD!$K$5:$K$66000,$N63,BD!$AB$5:$AB$66000))))/1000 -> 0 | D63: =(IF($C$3<>1,IF($E$5<500,SUMIF(BD!$Z$5:$Z$66000,$O63,BD!$AC$5:$AC$66000),SUMIF(BD!$X$5:$X$66000,$O63,BD!$AC$5:$AC$66000)),IF($E$5<500,SUMIF(BD!$U$5:$U$66000,$O63,BD!$AC$5:$AC$66000),SUMIF(BD!$T$5:$T$66000,$O63,BD!$AC$5:$AC$66000))))/1000 -> 0 | E63: =(IF($C$3<>1,IF($E$5<500,SUMIF(BD!$Q$5:$Q$66000,$N63,BD!$AD$5:$AD$66000),SUMIF(BD!$O$5:$O$66000,$N63,BD!$AD$5:$AD$66000)),IF($E$5<500,SUMIF(BD!$L$5:$L$66000,$N63,BD!$AD$5:$AD$66000),SUMIF(BD!$K$5:$K$66000,$N63,BD!$AD$5:$AD$66000))))/1000 -> 0 | F63: =(IF($C$3<>1,IF($E$5<500,SUMIF(BD!$Z$5:$Z$66000,$O63,BD!$AE$5:$AE$66000),SUMIF(BD!$X$5:$X$66000,$O63,BD!$AE$5:$AE$66000)),IF($E$5<500,SUMIF(BD!$U$5:$U$66000,$O63,BD!$AE$5:$AE$66000),SUMIF(BD!$T$5:$T$66000,$O63,BD!$AE$5:$AE$66000))))/1000 -> 0 | G63: =(IF($C$3<>1,IF($E$5<500,SUMIF(BD!$Q$5:$Q$66000,$N63,BD!$AF$5:$AF$66000),SUMIF(BD!$O$5:$O$66000,$N63,BD!$AF$5:$AF$66000)),IF($E$5<500,SUMIF(BD!$L$5:$L$66000,$N63,BD!$AF$5:$AF$66000),SUMIF(BD!$K$5:$K$66000,$N63,BD!$AF$5:$AF$66000))))/1000 -> 0 | H63: =(IF($C$3<>1,IF($E$5<500,SUMIF(BD!$Z$5:$Z$66000,$O63,BD!$AG$5:$AG$66000),SUMIF(BD!$X$5:$X$66000,$O63,BD!$AG$5:$AG$66000)),IF($E$5<500,SUMIF(BD!$U$5:$U$66000,$O63,BD!$AG$5:$AG$66000),SUMIF(BD!$T$5:$T$66000,$O63,BD!$AG$5:$AG$66000))))/1000 -> 0 | I63: =(IF($C$3<>1,IF($E$5<500,SUMIF(BD!$Q$5:$Q$66000,$N63,BD!$AH$5:$AH$66000),SUMIF(BD!$O$5:$O$66000,$N63,BD!$AH$5:$AH$66000)),IF($E$5<500,SUMIF(BD!$L$5:$L$66000,$N63,BD!$AH$5:$AH$66000),SUMIF(BD!$K$5:$K$66000,$N63,BD!$AH$5:$AH$66000))))/1000 -> 0 | J63: =(IF($C$3<>1,IF($E$5<500,SUMIF(BD!$Z$5:$Z$66000,$O63,BD!$AI$5:$AI$66000),SUMIF(BD!$X$5:$X$66000,$O63,BD!$AI$5:$AI$66000)),IF($E$5<500,SUMIF(BD!$U$5:$U$66000,$O63,BD!$AI$5:$AI$66000),SUMIF(BD!$T$5:$T$66000,$O63,BD!$AI$5:$AI$66000))))/1000 -> 0 | K63: =(IF($C$3<>1,IF($E$5<500,SUMIF(BD!$Q$5:$Q$66000,$N63,BD!$AJ$5:$AJ$66000),SUMIF(BD!$O$5:$O$66000,$N63,BD!$AJ$5:$AJ$66000)),IF($E$5<500,SUMIF(BD!$L$5:$L$66000,$N63,BD!$AJ$5:$AJ$66000),SUMIF(BD!$K$5:$K$66000,$N63,BD!$AJ$5:$AJ$66000))))/1000 -> 0 | L63: =(IF($C$3<>1,IF($E$5<500,SUMIF(BD!$Z$5:$Z$66000,$O63,BD!$AK$5:$AK$66000),SUMIF(BD!$X$5:$X$66000,$O63,BD!$AK$5:$AK$66000)),IF($E$5<500,SUMIF(BD!$U$5:$U$66000,$O63,BD!$AK$5:$AK$66000),SUMIF(BD!$T$5:$T$66000,$O63,BD!$AK$5:$AK$66000))))/1000 -> 0 | N63: 0/Total/201609 | O63: 0/Total/201509
A64: 10 | B64: OUTUBRO | C64: =(IF($C$3<>1,IF($E$5<500,SUMIF(BD!$Q$5:$Q$66000,$N64,BD!$AB$5:$AB$66000),SUMIF(BD!$O$5:$O$66000,$N64,BD!$AB$5:$AB$66000)),IF($E$5<500,SUMIF(BD!$L$5:$L$66000,$N64,BD!$AB$5:$AB$66000),SUMIF(BD!$K$5:$K$66000,$N64,BD!$AB$5:$AB$66000))))/1000 -> 0 | D64: =(IF($C$3<>1,IF($E$5<500,SUMIF(BD!$Z$5:$Z$66000,$O64,BD!$AC$5:$AC$66000),SUMIF(BD!$X$5:$X$66000,$O64,BD!$AC$5:$AC$66000)),IF($E$5<500,SUMIF(BD!$U$5:$U$66000,$O64,BD!$AC$5:$AC$66000),SUMIF(BD!$T$5:$T$66000,$O64,BD!$AC$5:$AC$66000))))/1000 -> 0 | E64: =(IF($C$3<>1,IF($E$5<500,SUMIF(BD!$Q$5:$Q$66000,$N64,BD!$AD$5:$AD$66000),SUMIF(BD!$O$5:$O$66000,$N64,BD!$AD$5:$AD$66000)),IF($E$5<500,SUMIF(BD!$L$5:$L$66000,$N64,BD!$AD$5:$AD$66000),SUMIF(BD!$K$5:$K$66000,$N64,BD!$AD$5:$AD$66000))))/1000 -> 0 | F64: =(IF($C$3<>1,IF($E$5<500,SUMIF(BD!$Z$5:$Z$66000,$O64,BD!$AE$5:$AE$66000),SUMIF(BD!$X$5:$X$66000,$O64,BD!$AE$5:$AE$66000)),IF($E$5<500,SUMIF(BD!$U$5:$U$66000,$O64,BD!$AE$5:$AE$66000),SUMIF(BD!$T$5:$T$66000,$O64,BD!$AE$5:$AE$66000))))/1000 -> 0 | G64: =(IF($C$3<>1,IF($E$5<500,SUMIF(BD!$Q$5:$Q$66000,$N64,BD!$AF$5:$AF$66000),SUMIF(BD!$O$5:$O$66000,$N64,BD!$AF$5:$AF$66000)),IF($E$5<500,SUMIF(BD!$L$5:$L$66000,$N64,BD!$AF$5:$AF$66000),SUMIF(BD!$K$5:$K$66000,$N64,BD!$AF$5:$AF$66000))))/1000 -> 0 | H64: =(IF($C$3<>1,IF($E$5<500,SUMIF(BD!$Z$5:$Z$66000,$O64,BD!$AG$5:$AG$66000),SUMIF(BD!$X$5:$X$66000,$O64,BD!$AG$5:$AG$66000)),IF($E$5<500,SUMIF(BD!$U$5:$U$66000,$O64,BD!$AG$5:$AG$66000),SUMIF(BD!$T$5:$T$66000,$O64,BD!$AG$5:$AG$66000))))/1000 -> 0 | I64: =(IF($C$3<>1,IF($E$5<500,SUMIF(BD!$Q$5:$Q$66000,$N64,BD!$AH$5:$AH$66000),SUMIF(BD!$O$5:$O$66000,$N64,BD!$AH$5:$AH$66000)),IF($E$5<500,SUMIF(BD!$L$5:$L$66000,$N64,BD!$AH$5:$AH$66000),SUMIF(BD!$K$5:$K$66000,$N64,BD!$AH$5:$AH$66000))))/1000 -> 0 | J64: =(IF($C$3<>1,IF($E$5<500,SUMIF(BD!$Z$5:$Z$66000,$O64,BD!$AI$5:$AI$66000),SUMIF(BD!$X$5:$X$66000,$O64,BD!$AI$5:$AI$66000)),IF($E$5<500,SUMIF(BD!$U$5:$U$66000,$O64,BD!$AI$5:$AI$66000),SUMIF(BD!$T$5:$T$66000,$O64,BD!$AI$5:$AI$66000))))/1000 -> 0 | K64: =(IF($C$3<>1,IF($E$5<500,SUMIF(BD!$Q$5:$Q$66000,$N64,BD!$AJ$5:$AJ$66000),SUMIF(BD!$O$5:$O$66000,$N64,BD!$AJ$5:$AJ$66000)),IF($E$5<500,SUMIF(BD!$L$5:$L$66000,$N64,BD!$AJ$5:$AJ$66000),SUMIF(BD!$K$5:$K$66000,$N64,BD!$AJ$5:$AJ$66000))))/1000 -> 0 | L64: =(IF($C$3<>1,IF($E$5<500,SUMIF(BD!$Z$5:$Z$66000,$O64,BD!$AK$5:$AK$66000),SUMIF(BD!$X$5:$X$66000,$O64,BD!$AK$5:$AK$66000)),IF($E$5<500,SUMIF(BD!$U$5:$U$66000,$O64,BD!$AK$5:$AK$66000),SUMIF(BD!$T$5:$T$66000,$O64,BD!$AK$5:$AK$66000))))/1000 -> 0 | N64: 0/Total/201610 | O64: 0/Total/201510
A65: 11 | B65: NOVEMBRO | C65: =(IF($C$3<>1,IF($E$5<500,SUMIF(BD!$Q$5:$Q$66000,$N65,BD!$AB$5:$AB$66000),SUMIF(BD!$O$5:$O$66000,$N65,BD!$AB$5:$AB$66000)),IF($E$5<500,SUMIF(BD!$L$5:$L$66000,$N65,BD!$AB$5:$AB$66000),SUMIF(BD!$K$5:$K$66000,$N65,BD!$AB$5:$AB$66000))))/1000 -> 0 | D65: =(IF($C$3<>1,IF($E$5<500,SUMIF(BD!$Z$5:$Z$66000,$O65,BD!$AC$5:$AC$66000),SUMIF(BD!$X$5:$X$66000,$O65,BD!$AC$5:$AC$66000)),IF($E$5<500,SUMIF(BD!$U$5:$U$66000,$O65,BD!$AC$5:$AC$66000),SUMIF(BD!$T$5:$T$66000,$O65,BD!$AC$5:$AC$66000))))/1000 -> 0 | E65: =(IF($C$3<>1,IF($E$5<500,SUMIF(BD!$Q$5:$Q$66000,$N65,BD!$AD$5:$AD$66000),SUMIF(BD!$O$5:$O$66000,$N65,BD!$AD$5:$AD$66000)),IF($E$5<500,SUMIF(BD!$L$5:$L$66000,$N65,BD!$AD$5:$AD$66000),SUMIF(BD!$K$5:$K$66000,$N65,BD!$AD$5:$AD$66000))))/1000 -> 0 | F65: =(IF($C$3<>1,IF($E$5<500,SUMIF(BD!$Z$5:$Z$66000,$O65,BD!$AE$5:$AE$66000),SUMIF(BD!$X$5:$X$66000,$O65,BD!$AE$5:$AE$66000)),IF($E$5<500,SUMIF(BD!$U$5:$U$66000,$O65,BD!$AE$5:$AE$66000),SUMIF(BD!$T$5:$T$66000,$O65,BD!$AE$5:$AE$66000))))/1000 -> 0 | G65: =(IF($C$3<>1,IF($E$5<500,SUMIF(BD!$Q$5:$Q$66000,$N65,BD!$AF$5:$AF$66000),SUMIF(BD!$O$5:$O$66000,$N65,BD!$AF$5:$AF$66000)),IF($E$5<500,SUMIF(BD!$L$5:$L$66000,$N65,BD!$AF$5:$AF$66000),SUMIF(BD!$K$5:$K$66000,$N65,BD!$AF$5:$AF$66000))))/1000 -> 0 | H65: =(IF($C$3<>1,IF($E$5<500,SUMIF(BD!$Z$5:$Z$66000,$O65,BD!$AG$5:$AG$66000),SUMIF(BD!$X$5:$X$66000,$O65,BD!$AG$5:$AG$66000)),IF($E$5<500,SUMIF(BD!$U$5:$U$66000,$O65,BD!$AG$5:$AG$66000),SUMIF(BD!$T$5:$T$66000,$O65,BD!$AG$5:$AG$66000))))/1000 -> 0 | I65: =(IF($C$3<>1,IF($E$5<500,SUMIF(BD!$Q$5:$Q$66000,$N65,BD!$AH$5:$AH$66000),SUMIF(BD!$O$5:$O$66000,$N65,BD!$AH$5:$AH$66000)),IF($E$5<500,SUMIF(BD!$L$5:$L$66000,$N65,BD!$AH$5:$AH$66000),SUMIF(BD!$K$5:$K$66000,$N65,BD!$AH$5:$AH$66000))))/1000 -> 0 | J65: =(IF($C$3<>1,IF($E$5<500,SUMIF(BD!$Z$5:$Z$66000,$O65,BD!$AI$5:$AI$66000),SUMIF(BD!$X$5:$X$66000,$O65,BD!$AI$5:$AI$66000)),IF($E$5<500,SUMIF(BD!$U$5:$U$66000,$O65,BD!$AI$5:$AI$66000),SUMIF(BD!$T$5:$T$66000,$O65,BD!$AI$5:$AI$66000))))/1000 -> 0 | K65: =(IF($C$3<>1,IF($E$5<500,SUMIF(BD!$Q$5:$Q$66000,$N65,BD!$AJ$5:$AJ$66000),SUMIF(BD!$O$5:$O$66000,$N65,BD!$AJ$5:$AJ$66000)),IF($E$5<500,SUMIF(BD!$L$5:$L$66000,$N65,BD!$AJ$5:$AJ$66000),SUMIF(BD!$K$5:$K$66000,$N65,BD!$AJ$5:$AJ$66000))))/1000 -> 0 | L65: =(IF($C$3<>1,IF($E$5<500,SUMIF(BD!$Z$5:$Z$66000,$O65,BD!$AK$5:$AK$66000),SUMIF(BD!$X$5:$X$66000,$O65,BD!$AK$5:$AK$66000)),IF($E$5<500,SUMIF(BD!$U$5:$U$66000,$O65,BD!$AK$5:$AK$66000),SUMIF(BD!$T$5:$T$66000,$O65,BD!$AK$5:$AK$66000))))/1000 -> 0 | N65: 0/Total/201611 | O65: 0/Total/201511
A66: 12 | B66: DEZEMBRO | C66: =(IF($C$3<>1,IF($E$5<500,SUMIF(BD!$Q$5:$Q$66000,$N66,BD!$AB$5:$AB$66000),SUMIF(BD!$O$5:$O$66000,$N66,BD!$AB$5:$AB$66000)),IF($E$5<500,SUMIF(BD!$L$5:$L$66000,$N66,BD!$AB$5:$AB$66000),SUMIF(BD!$K$5:$K$66000,$N66,BD!$AB$5:$AB$66000))))/1000 -> 0 | D66: =(IF($C$3<>1,IF($E$5<500,SUMIF(BD!$Z$5:$Z$66000,$O66,BD!$AC$5:$AC$66000),SUMIF(BD!$X$5:$X$66000,$O66,BD!$AC$5:$AC$66000)),IF($E$5<500,SUMIF(BD!$U$5:$U$66000,$O66,BD!$AC$5:$AC$66000),SUMIF(BD!$T$5:$T$66000,$O66,BD!$AC$5:$AC$66000))))/1000 -> 0 | E66: =(IF($C$3<>1,IF($E$5<500,SUMIF(BD!$Q$5:$Q$66000,$N66,BD!$AD$5:$AD$66000),SUMIF(BD!$O$5:$O$66000,$N66,BD!$AD$5:$AD$66000)),IF($E$5<500,SUMIF(BD!$L$5:$L$66000,$N66,BD!$AD$5:$AD$66000),SUMIF(BD!$K$5:$K$66000,$N66,BD!$AD$5:$AD$66000))))/1000 -> 0 | F66: =(IF($C$3<>1,IF($E$5<500,SUMIF(BD!$Z$5:$Z$66000,$O66,BD!$AE$5:$AE$66000),SUMIF(BD!$X$5:$X$66000,$O66,BD!$AE$5:$AE$66000)),IF($E$5<500,SUMIF(BD!$U$5:$U$66000,$O66,BD!$AE$5:$AE$66000),SUMIF(BD!$T$5:$T$66000,$O66,BD!$AE$5:$AE$66000))))/1000 -> 0 | G66: =(IF($C$3<>1,IF($E$5<500,SUMIF(BD!$Q$5:$Q$66000,$N66,BD!$AF$5:$AF$66000),SUMIF(BD!$O$5:$O$66000,$N66,BD!$AF$5:$AF$66000)),IF($E$5<500,SUMIF(BD!$L$5:$L$66000,$N66,BD!$AF$5:$AF$66000),SUMIF(BD!$K$5:$K$66000,$N66,BD!$AF$5:$AF$66000))))/1000 -> 0 | H66: =(IF($C$3<>1,IF($E$5<500,SUMIF(BD!$Z$5:$Z$66000,$O66,BD!$AG$5:$AG$66000),SUMIF(BD!$X$5:$X$66000,$O66,BD!$AG$5:$AG$66000)),IF($E$5<500,SUMIF(BD!$U$5:$U$66000,$O66,BD!$AG$5:$AG$66000),SUMIF(BD!$T$5:$T$66000,$O66,BD!$AG$5:$AG$66000))))/1000 -> 0 | I66: =(IF($C$3<>1,IF($E$5<500,SUMIF(BD!$Q$5:$Q$66000,$N66,BD!$AH$5:$AH$66000),SUMIF(BD!$O$5:$O$66000,$N66,BD!$AH$5:$AH$66000)),IF($E$5<500,SUMIF(BD!$L$5:$L$66000,$N66,BD!$AH$5:$AH$66000),SUMIF(BD!$K$5:$K$66000,$N66,BD!$AH$5:$AH$66000))))/1000 -> 0 | J66: =(IF($C$3<>1,IF($E$5<500,SUMIF(BD!$Z$5:$Z$66000,$O66,BD!$AI$5:$AI$66000),SUMIF(BD!$X$5:$X$66000,$O66,BD!$AI$5:$AI$66000)),IF($E$5<500,SUMIF(BD!$U$5:$U$66000,$O66,BD!$AI$5:$AI$66000),SUMIF(BD!$T$5:$T$66000,$O66,BD!$AI$5:$AI$66000))))/1000 -> 0 | K66: =(IF($C$3<>1,IF($E$5<500,SUMIF(BD!$Q$5:$Q$66000,$N66,BD!$AJ$5:$AJ$66000),SUMIF(BD!$O$5:$O$66000,$N66,BD!$AJ$5:$AJ$66000)),IF($E$5<500,SUMIF(BD!$L$5:$L$66000,$N66,BD!$AJ$5:$AJ$66000),SUMIF(BD!$K$5:$K$66000,$N66,BD!$AJ$5:$AJ$66000))))/1000 -> 0 | L66: =(IF($C$3<>1,IF($E$5<500,SUMIF(BD!$Z$5:$Z$66000,$O66,BD!$AK$5:$AK$66000),SUMIF(BD!$X$5:$X$66000,$O66,BD!$AK$5:$AK$66000)),IF($E$5<500,SUMIF(BD!$U$5:$U$66000,$O66,BD!$AK$5:$AK$66000),SUMIF(BD!$T$5:$T$66000,$O66,BD!$AK$5:$AK$66000))))/1000 -> 0 | N66: 0/Total/201612 | O66: 0/Total/201512
B67: TOTAL | C67: =SUM(C55:C66) -> 0 | D67: 0 | E67: 0 | F67: 0 | G67: 0 | H67: 0 | I67: 0 | J67: 0 | K67: 0 | L67: 0
C68: TODOS OS AGRUPAMENTOS / TODOS OS RAMOS / POR GRUPO SEGURADOR OU POR SEGURADORA
C69: PRÊMIO EMTIDO | E69: PRÊMIO RETIDO | G69: PRÊMIO GANHO | I69: SINISTRO RETIDO | K69: DESP. COMERCIAIS | N69: LOCALIZADORES
B70: PERÍODO | C70: =C54 -> 2016 | D70: =D54 -> 2015 | E70: =C70 -> 2016 | F70: 2015 | G70: 2016 | H70: 2015 | I70: 2016 | J70: 2015 | K70: 2016 | L70: 2015 | N70: =K70 -> 2016 | O70: =L70 -> 2015
A71: 01 | B71: JANEIRO | C71: =IF(AND($B$3=1,$C$3=1),IF($E$5<500,SUMIF(BD!$P$5:$P$66000,$N71,BD!$AB$5:$AB$66000),SUMIF(BD!$N$5:$N$66000,$N71,BD!$AB$5:$AB$66000)))/1000 -> 0 | D71: =IF(AND($B$3=1,$C$3=1),IF($E$5<500,SUMIF(BD!$Y$5:$Y$66000,$O71,BD!$AC$5:$AC$66000),SUMIF(BD!$W$5:$W$66000,$O71,BD!$AC$5:$AC$66000)))/1000 -> 0 | E71: =IF(AND($B$3=1,$C$3=1),IF($E$5<500,SUMIF(BD!$P$5:$P$66000,$N71,BD!$AD$5:$AD$66000),SUMIF(BD!$N$5:$N$66000,$N71,BD!$AD$5:$AD$66000)))/1000 -> 0 | F71: =IF(AND($B$3=1,$C$3=1),IF($E$5<500,SUMIF(BD!$Y$5:$Y$66000,$O71,BD!$AE$5:$AE$66000),SUMIF(BD!$W$5:$W$66000,$O71,BD!$AE$5:$AE$66000)))/1000 -> 0 | G71: =IF(AND($B$3=1,$C$3=1),IF($E$5<500,SUMIF(BD!$P$5:$P$66000,$N71,BD!$AF$5:$AF$66000),SUMIF(BD!$N$5:$N$66000,$N71,BD!$AF$5:$AF$66000)))/1000 -> 0 | H71: =IF(AND($B$3=1,$C$3=1),IF($E$5<500,SUMIF(BD!$Y$5:$Y$66000,$O71,BD!$AG$5:$AG$66000),SUMIF(BD!$W$5:$W$66000,$O71,BD!$AG$5:$AG$66000)))/1000 -> 0 | I71: =IF(AND($B$3=1,$C$3=1),IF($E$5<500,SUMIF(BD!$P$5:$P$66000,$N71,BD!$AH$5:$AH$66000),SUMIF(BD!$N$5:$N$66000,$N71,BD!$AH$5:$AH$66000)))/1000 -> 0 | J71: =IF(AND($B$3=1,$C$3=1),IF($E$5<500,SUMIF(BD!$Y$5:$Y$66000,$O71,BD!$AI$5:$AI$66000),SUMIF(BD!$W$5:$W$66000,$O71,BD!$AI$5:$AI$66000)))/1000 -> 0 | K71: =IF(AND($B$3=1,$C$3=1),IF($E$5<500,SUMIF(BD!$P$5:$P$66000,$N71,BD!$AJ$5:$AJ$66000),SUMIF(BD!$N$5:$N$66000,$N71,BD!$AJ$5:$AJ$66000)))/1000 -> 0 | L71: =IF(AND($B$3=1,$C$3=1),IF($E$5<500,SUMIF(BD!$Y$5:$Y$66000,$O71,BD!$AK$5:$AK$66000),SUMIF(BD!$W$5:$W$66000,$O71,BD!$AK$5:$AK$66000)))/1000 -> 0 | N71: =VALUE($E$5)&"/"&$C$7&$A71 -> 0/201601 | O71: =VALUE($E$5)&"/"&$D$7&$A71 -> 0/201501
A72: 02 | B72: FEVEREIRO | C72: =IF(AND($B$3=1,$C$3=1),IF($E$5<500,SUMIF(BD!$P$5:$P$66000,$N72,BD!$AB$5:$AB$66000),SUMIF(BD!$N$5:$N$66000,$N72,BD!$AB$5:$AB$66000)))/1000 -> 0 | D72: =IF(AND($B$3=1,$C$3=1),IF($E$5<500,SUMIF(BD!$Y$5:$Y$66000,$O72,BD!$AC$5:$AC$66000),SUMIF(BD!$W$5:$W$66000,$O72,BD!$AC$5:$AC$66000)))/1000 -> 0 | E72: =IF(AND($B$3=1,$C$3=1),IF($E$5<500,SUMIF(BD!$P$5:$P$66000,$N72,BD!$AD$5:$AD$66000),SUMIF(BD!$N$5:$N$66000,$N72,BD!$AD$5:$AD$66000)))/1000 -> 0 | F72: =IF(AND($B$3=1,$C$3=1),IF($E$5<500,SUMIF(BD!$Y$5:$Y$66000,$O72,BD!$AE$5:$AE$66000),SUMIF(BD!$W$5:$W$66000,$O72,BD!$AE$5:$AE$66000)))/1000 -> 0 | G72: =IF(AND($B$3=1,$C$3=1),IF($E$5<500,SUMIF(BD!$P$5:$P$66000,$N72,BD!$AF$5:$AF$66000),SUMIF(BD!$N$5:$N$66000,$N72,BD!$AF$5:$AF$66000)))/1000 -> 0 | H72: =IF(AND($B$3=1,$C$3=1),IF($E$5<500,SUMIF(BD!$Y$5:$Y$66000,$O72,BD!$AG$5:$AG$66000),SUMIF(BD!$W$5:$W$66000,$O72,BD!$AG$5:$AG$66000)))/1000 -> 0 | I72: =IF(AND($B$3=1,$C$3=1),IF($E$5<500,SUMIF(BD!$P$5:$P$66000,$N72,BD!$AH$5:$AH$66000),SUMIF(BD!$N$5:$N$66000,$N72,BD!$AH$5:$AH$66000)))/1000 -> 0 | J72: =IF(AND($B$3=1,$C$3=1),IF($E$5<500,SUMIF(BD!$Y$5:$Y$66000,$O72,BD!$AI$5:$AI$66000),SUMIF(BD!$W$5:$W$66000,$O72,BD!$AI$5:$AI$66000)))/1000 -> 0 | K72: =IF(AND($B$3=1,$C$3=1),IF($E$5<500,SUMIF(BD!$P$5:$P$66000,$N72,BD!$AJ$5:$AJ$66000),SUMIF(BD!$N$5:$N$66000,$N72,BD!$AJ$5:$AJ$66000)))/1000 -> 0 | L72: =IF(AND($B$3=1,$C$3=1),IF($E$5<500,SUMIF(BD!$Y$5:$Y$66000,$O72,BD!$AK$5:$AK$66000),SUMIF(BD!$W$5:$W$66000,$O72,BD!$AK$5:$AK$66000)))/1000 -> 0 | N72: =VALUE($E$5)&"/"&$C$7&$A72 -> 0/201602 | O72: =VALUE($E$5)&"/"&$D$7&$A72 -> 0/201502
A73: 03 | B73: MARÇO | C73: =IF(AND($B$3=1,$C$3=1),IF($E$5<500,SUMIF(BD!$P$5:$P$66000,$N73,BD!$AB$5:$AB$66000),SUMIF(BD!$N$5:$N$66000,$N73,BD!$AB$5:$AB$66000)))/1000 -> 0 | D73: =IF(AND($B$3=1,$C$3=1),IF($E$5<500,SUMIF(BD!$Y$5:$Y$66000,$O73,BD!$AC$5:$AC$66000),SUMIF(BD!$W$5:$W$66000,$O73,BD!$AC$5:$AC$66000)))/1000 -> 0 | E73: =IF(AND($B$3=1,$C$3=1),IF($E$5<500,SUMIF(BD!$P$5:$P$66000,$N73,BD!$AD$5:$AD$66000),SUMIF(BD!$N$5:$N$66000,$N73,BD!$AD$5:$AD$66000)))/1000 -> 0 | F73: =IF(AND($B$3=1,$C$3=1),IF($E$5<500,SUMIF(BD!$Y$5:$Y$66000,$O73,BD!$AE$5:$AE$66000),SUMIF(BD!$W$5:$W$66000,$O73,BD!$AE$5:$AE$66000)))/1000 -> 0 | G73: =IF(AND($B$3=1,$C$3=1),IF($E$5<500,SUMIF(BD!$P$5:$P$66000,$N73,BD!$AF$5:$AF$66000),SUMIF(BD!$N$5:$N$66000,$N73,BD!$AF$5:$AF$66000)))/1000 -> 0 | H73: =IF(AND($B$3=1,$C$3=1),IF($E$5<500,SUMIF(BD!$Y$5:$Y$66000,$O73,BD!$AG$5:$AG$66000),SUMIF(BD!$W$5:$W$66000,$O73,BD!$AG$5:$AG$66000)))/1000 -> 0 | I73: =IF(AND($B$3=1,$C$3=1),IF($E$5<500,SUMIF(BD!$P$5:$P$66000,$N73,BD!$AH$5:$AH$66000),SUMIF(BD!$N$5:$N$66000,$N73,BD!$AH$5:$AH$66000)))/1000 -> 0 | J73: =IF(AND($B$3=1,$C$3=1),IF($E$5<500,SUMIF(BD!$Y$5:$Y$66000,$O73,BD!$AI$5:$AI$66000),SUMIF(BD!$W$5:$W$66000,$O73,BD!$AI$5:$AI$66000)))/1000 -> 0 | K73: =IF(AND($B$3=1,$C$3=1),IF($E$5<500,SUMIF(BD!$P$5:$P$66000,$N73,BD!$AJ$5:$AJ$66000),SUMIF(BD!$N$5:$N$66000,$N73,BD!$AJ$5:$AJ$66000)))/1000 -> 0 | L73: =IF(AND($B$3=1,$C$3=1),IF($E$5<500,SUMIF(BD!$Y$5:$Y$66000,$O73,BD!$AK$5:$AK$66000),SUMIF(BD!$W$5:$W$66000,$O73,BD!$AK$5:$AK$66000)))/1000 -> 0 | N73: 0/201603 | O73: 0/201503
A74: 04 | B74: ABRIL | C74: =IF(AND($B$3=1,$C$3=1),IF($E$5<500,SUMIF(BD!$P$5:$P$66000,$N74,BD!$AB$5:$AB$66000),SUMIF(BD!$N$5:$N$66000,$N74,BD!$AB$5:$AB$66000)))/1000 -> 0 | D74: =IF(AND($B$3=1,$C$3=1),IF($E$5<500,SUMIF(BD!$Y$5:$Y$66000,$O74,BD!$AC$5:$AC$66000),SUMIF(BD!$W$5:$W$66000,$O74,BD!$AC$5:$AC$66000)))/1000 -> 0 | E74: =IF(AND($B$3=1,$C$3=1),IF($E$5<500,SUMIF(BD!$P$5:$P$66000,$N74,BD!$AD$5:$AD$66000),SUMIF(BD!$N$5:$N$66000,$N74,BD!$AD$5:$AD$66000)))/1000 -> 0 | F74: =IF(AND($B$3=1,$C$3=1),IF($E$5<500,SUMIF(BD!$Y$5:$Y$66000,$O74,BD!$AE$5:$AE$66000),SUMIF(BD!$W$5:$W$66000,$O74,BD!$AE$5:$AE$66000)))/1000 -> 0 | G74: =IF(AND($B$3=1,$C$3=1),IF($E$5<500,SUMIF(BD!$P$5:$P$66000,$N74,BD!$AF$5:$AF$66000),SUMIF(BD!$N$5:$N$66000,$N74,BD!$AF$5:$AF$66000)))/1000 -> 0 | H74: =IF(AND($B$3=1,$C$3=1),IF($E$5<500,SUMIF(BD!$Y$5:$Y$66000,$O74,BD!$AG$5:$AG$66000),SUMIF(BD!$W$5:$W$66000,$O74,BD!$AG$5:$AG$66000)))/1000 -> 0 | I74: =IF(AND($B$3=1,$C$3=1),IF($E$5<500,SUMIF(BD!$P$5:$P$66000,$N74,BD!$AH$5:$AH$66000),SUMIF(BD!$N$5:$N$66000,$N74,BD!$AH$5:$AH$66000)))/1000 -> 0 | J74: =IF(AND($B$3=1,$C$3=1),IF($E$5<500,SUMIF(BD!$Y$5:$Y$66000,$O74,BD!$AI$5:$AI$66000),SUMIF(BD!$W$5:$W$66000,$O74,BD!$AI$5:$AI$66000)))/1000 -> 0 | K74: =IF(AND($B$3=1,$C$3=1),IF($E$5<500,SUMIF(BD!$P$5:$P$66000,$N74,BD!$AJ$5:$AJ$66000),SUMIF(BD!$N$5:$N$66000,$N74,BD!$AJ$5:$AJ$66000)))/1000 -> 0 | L74: =IF(AND($B$3=1,$C$3=1),IF($E$5<500,SUMIF(BD!$Y$5:$Y$66000,$O74,BD!$AK$5:$AK$66000),SUMIF(BD!$W$5:$W$66000,$O74,BD!$AK$5:$AK$66000)))/1000 -> 0 | N74: 0/201604 | O74: 0/201504
A75: 05 | B75: MAIO | C75: =IF(AND($B$3=1,$C$3=1),IF($E$5<500,SUMIF(BD!$P$5:$P$66000,$N75,BD!$AB$5:$AB$66000),SUMIF(BD!$N$5:$N$66000,$N75,BD!$AB$5:$AB$66000)))/1000 -> 0 | D75: =IF(AND($B$3=1,$C$3=1),IF($E$5<500,SUMIF(BD!$Y$5:$Y$66000,$O75,BD!$AC$5:$AC$66000),SUMIF(BD!$W$5:$W$66000,$O75,BD!$AC$5:$AC$66000)))/1000 -> 0 | E75: =IF(AND($B$3=1,$C$3=1),IF($E$5<500,SUMIF(BD!$P$5:$P$66000,$N75,BD!$AD$5:$AD$66000),SUMIF(BD!$N$5:$N$66000,$N75,BD!$AD$5:$AD$66000)))/1000 -> 0 | F75: =IF(AND($B$3=1,$C$3=1),IF($E$5<500,SUMIF(BD!$Y$5:$Y$66000,$O75,BD!$AE$5:$AE$66000),SUMIF(BD!$W$5:$W$66000,$O75,BD!$AE$5:$AE$66000)))/1000 -> 0 | G75: =IF(AND($B$3=1,$C$3=1),IF($E$5<500,SUMIF(BD!$P$5:$P$66000,$N75,BD!$AF$5:$AF$66000),SUMIF(BD!$N$5:$N$66000,$N75,BD!$AF$5:$AF$66000)))/1000 -> 0 | H75: =IF(AND($B$3=1,$C$3=1),IF($E$5<500,SUMIF(BD!$Y$5:$Y$66000,$O75,BD!$AG$5:$AG$66000),SUMIF(BD!$W$5:$W$66000,$O75,BD!$AG$5:$AG$66000)))/1000 -> 0 | I75: =IF(AND($B$3=1,$C$3=1),IF($E$5<500,SUMIF(BD!$P$5:$P$66000,$N75,BD!$AH$5:$AH$66000),SUMIF(BD!$N$5:$N$66000,$N75,BD!$AH$5:$AH$66000)))/1000 -> 0 | J75: =IF(AND($B$3=1,$C$3=1),IF($E$5<500,SUMIF(BD!$Y$5:$Y$66000,$O75,BD!$AI$5:$AI$66000),SUMIF(BD!$W$5:$W$66000,$O75,BD!$AI$5:$AI$66000)))/1000 -> 0 | K75: =IF(AND($B$3=1,$C$3=1),IF($E$5<500,SUMIF(BD!$P$5:$P$66000,$N75,BD!$AJ$5:$AJ$66000),SUMIF(BD!$N$5:$N$66000,$N75,BD!$AJ$5:$AJ$66000)))/1000 -> 0 | L75: =IF(AND($B$3=1,$C$3=1),IF($E$5<500,SUMIF(BD!$Y$5:$Y$66000,$O75,BD!$AK$5:$AK$66000),SUMIF(BD!$W$5:$W$66000,$O75,BD!$AK$5:$AK$66000)))/1000 -> 0 | N75: 0/201605 | O75: 0/201505
A76: 06 | B76: JUNHO | C76: =IF(AND($B$3=1,$C$3=1),IF($E$5<500,SUMIF(BD!$P$5:$P$66000,$N76,BD!$AB$5:$AB$66000),SUMIF(BD!$N$5:$N$66000,$N76,BD!$AB$5:$AB$66000)))/1000 -> 0 | D76: =IF(AND($B$3=1,$C$3=1),IF($E$5<500,SUMIF(BD!$Y$5:$Y$66000,$O76,BD!$AC$5:$AC$66000),SUMIF(BD!$W$5:$W$66000,$O76,BD!$AC$5:$AC$66000)))/1000 -> 0 | E76: =IF(AND($B$3=1,$C$3=1),IF($E$5<500,SUMIF(BD!$P$5:$P$66000,$N76,BD!$AD$5:$AD$66000),SUMIF(BD!$N$5:$N$66000,$N76,BD!$AD$5:$AD$66000)))/1000 -> 0 | F76: =IF(AND($B$3=1,$C$3=1),IF($E$5<500,SUMIF(BD!$Y$5:$Y$66000,$O76,BD!$AE$5:$AE$66000),SUMIF(BD!$W$5:$W$66000,$O76,BD!$AE$5:$AE$66000)))/1000 -> 0 | G76: =IF(AND($B$3=1,$C$3=1),IF($E$5<500,SUMIF(BD!$P$5:$P$66000,$N76,BD!$AF$5:$AF$66000),SUMIF(BD!$N$5:$N$66000,$N76,BD!$AF$5:$AF$66000)))/1000 -> 0 | H76: =IF(AND($B$3=1,$C$3=1),IF($E$5<500,SUMIF(BD!$Y$5:$Y$66000,$O76,BD!$AG$5:$AG$66000),SUMIF(BD!$W$5:$W$66000,$O76,BD!$AG$5:$AG$66000)))/1000 -> 0 | I76: =IF(AND($B$3=1,$C$3=1),IF($E$5<500,SUMIF(BD!$P$5:$P$66000,$N76,BD!$AH$5:$AH$66000),SUMIF(BD!$N$5:$N$66000,$N76,BD!$AH$5:$AH$66000)))/1000 -> 0 | J76: =IF(AND($B$3=1,$C$3=1),IF($E$5<500,SUMIF(BD!$Y$5:$Y$66000,$O76,BD!$AI$5:$AI$66000),SUMIF(BD!$W$5:$W$66000,$O76,BD!$AI$5:$AI$66000)))/1000 -> 0 | K76: =IF(AND($B$3=1,$C$3=1),IF($E$5<500,SUMIF(BD!$P$5:$P$66000,$N76,BD!$AJ$5:$AJ$66000),SUMIF(BD!$N$5:$N$66000,$N76,BD!$AJ$5:$AJ$66000)))/1000 -> 0 | L76: =IF(AND($B$3=1,$C$3=1),IF($E$5<500,SUMIF(BD!$Y$5:$Y$66000,$O76,BD!$AK$5:$AK$66000),SUMIF(BD!$W$5:$W$66000,$O76,BD!$AK$5:$AK$66000)))/1000 -> 0 | N76: 0/201606 | O76: 0/201506
A77: 07 | B77: JULHO | C77: =IF(AND($B$3=1,$C$3=1),IF($E$5<500,SUMIF(BD!$P$5:$P$66000,$N77,BD!$AB$5:$AB$66000),SUMIF(BD!$N$5:$N$66000,$N77,BD!$AB$5:$AB$66000)))/1000 -> 0 | D77: =IF(AND($B$3=1,$C$3=1),IF($E$5<500,SUMIF(BD!$Y$5:$Y$66000,$O77,BD!$AC$5:$AC$66000),SUMIF(BD!$W$5:$W$66000,$O77,BD!$AC$5:$AC$66000)))/1000 -> 0 | E77: =IF(AND($B$3=1,$C$3=1),IF($E$5<500,SUMIF(BD!$P$5:$P$66000,$N77,BD!$AD$5:$AD$66000),SUMIF(BD!$N$5:$N$66000,$N77,BD!$AD$5:$AD$66000)))/1000 -> 0 | F77: =IF(AND($B$3=1,$C$3=1),IF($E$5<500,SUMIF(BD!$Y$5:$Y$66000,$O77,BD!$AE$5:$AE$66000),SUMIF(BD!$W$5:$W$66000,$O77,BD!$AE$5:$AE$66000)))/1000 -> 0 | G77: =IF(AND($B$3=1,$C$3=1),IF($E$5<500,SUMIF(BD!$P$5:$P$66000,$N77,BD!$AF$5:$AF$66000),SUMIF(BD!$N$5:$N$66000,$N77,BD!$AF$5:$AF$66000)))/1000 -> 0 | H77: =IF(AND($B$3=1,$C$3=1),IF($E$5<500,SUMIF(BD!$Y$5:$Y$66000,$O77,BD!$AG$5:$AG$66000),SUMIF(BD!$W$5:$W$66000,$O77,BD!$AG$5:$AG$66000)))/1000 -> 0 | I77: =IF(AND($B$3=1,$C$3=1),IF($E$5<500,SUMIF(BD!$P$5:$P$66000,$N77,BD!$AH$5:$AH$66000),SUMIF(BD!$N$5:$N$66000,$N77,BD!$AH$5:$AH$66000)))/1000 -> 0 | J77: =IF(AND($B$3=1,$C$3=1),IF($E$5<500,SUMIF(BD!$Y$5:$Y$66000,$O77,BD!$AI$5:$AI$66000),SUMIF(BD!$W$5:$W$66000,$O77,BD!$AI$5:$AI$66000)))/1000 -> 0 | K77: =IF(AND($B$3=1,$C$3=1),IF($E$5<500,SUMIF(BD!$P$5:$P$66000,$N77,BD!$AJ$5:$AJ$66000),SUMIF(BD!$N$5:$N$66000,$N77,BD!$AJ$5:$AJ$66000)))/1000 -> 0 | L77: =IF(AND($B$3=1,$C$3=1),IF($E$5<500,SUMIF(BD!$Y$5:$Y$66000,$O77,BD!$AK$5:$AK$66000),SUMIF(BD!$W$5:$W$66000,$O77,BD!$AK$5:$AK$66000)))/1000 -> 0 | N77: 0/201607 | O77: 0/201507
A78: 08 | B78: AGOSTO | C78: =IF(AND($B$3=1,$C$3=1),IF($E$5<500,SUMIF(BD!$P$5:$P$66000,$N78,BD!$AB$5:$AB$66000),SUMIF(BD!$N$5:$N$66000,$N78,BD!$AB$5:$AB$66000)))/1000 -> 0 | D78: =IF(AND($B$3=1,$C$3=1),IF($E$5<500,SUMIF(BD!$Y$5:$Y$66000,$O78,BD!$AC$5:$AC$66000),SUMIF(BD!$W$5:$W$66000,$O78,BD!$AC$5:$AC$66000)))/1000 -> 0 | E78: =IF(AND($B$3=1,$C$3=1),IF($E$5<500,SUMIF(BD!$P$5:$P$66000,$N78,BD!$AD$5:$AD$66000),SUMIF(BD!$N$5:$N$66000,$N78,BD!$AD$5:$AD$66000)))/1000 -> 0 | F78: =IF(AND($B$3=1,$C$3=1),IF($E$5<500,SUMIF(BD!$Y$5:$Y$66000,$O78,BD!$AE$5:$AE$66000),SUMIF(BD!$W$5:$W$66000,$O78,BD!$AE$5:$AE$66000)))/1000 -> 0 | G78: =IF(AND($B$3=1,$C$3=1),IF($E$5<500,SUMIF(BD!$P$5:$P$66000,$N78,BD!$AF$5:$AF$66000),SUMIF(BD!$N$5:$N$66000,$N78,BD!$AF$5:$AF$66000)))/1000 -> 0 | H78: =IF(AND($B$3=1,$C$3=1),IF($E$5<500,SUMIF(BD!$Y$5:$Y$66000,$O78,BD!$AG$5:$AG$66000),SUMIF(BD!$W$5:$W$66000,$O78,BD!$AG$5:$AG$66000)))/1000 -> 0 | I78: =IF(AND($B$3=1,$C$3=1),IF($E$5<500,SUMIF(BD!$P$5:$P$66000,$N78,BD!$AH$5:$AH$66000),SUMIF(BD!$N$5:$N$66000,$N78,BD!$AH$5:$AH$66000)))/1000 -> 0 | J78: =IF(AND($B$3=1,$C$3=1),IF($E$5<500,SUMIF(BD!$Y$5:$Y$66000,$O78,BD!$AI$5:$AI$66000),SUMIF(BD!$W$5:$W$66000,$O78,BD!$AI$5:$AI$66000)))/1000 -> 0 | K78: =IF(AND($B$3=1,$C$3=1),IF($E$5<500,SUMIF(BD!$P$5:$P$66000,$N78,BD!$AJ$5:$AJ$66000),SUMIF(BD!$N$5:$N$66000,$N78,BD!$AJ$5:$AJ$66000)))/1000 -> 0 | L78: =IF(AND($B$3=1,$C$3=1),IF($E$5<500,SUMIF(BD!$Y$5:$Y$66000,$O78,BD!$AK$5:$AK$66000),SUMIF(BD!$W$5:$W$66000,$O78,BD!$AK$5:$AK$66000)))/1000 -> 0 | N78: 0/201608 | O78: 0/201508
A79: 09 | B79: SETEMBRO | C79: =IF(AND($B$3=1,$C$3=1),IF($E$5<500,SUMIF(BD!$P$5:$P$66000,$N79,BD!$AB$5:$AB$66000),SUMIF(BD!$N$5:$N$66000,$N79,BD!$AB$5:$AB$66000)))/1000 -> 0 | D79: =IF(AND($B$3=1,$C$3=1),IF($E$5<500,SUMIF(BD!$Y$5:$Y$66000,$O79,BD!$AC$5:$AC$66000),SUMIF(BD!$W$5:$W$66000,$O79,BD!$AC$5:$AC$66000)))/1000 -> 0 | E79: =IF(AND($B$3=1,$C$3=1),IF($E$5<500,SUMIF(BD!$P$5:$P$66000,$N79,BD!$AD$5:$AD$66000),SUMIF(BD!$N$5:$N$66000,$N79,BD!$AD$5:$AD$66000)))/1000 -> 0 | F79: =IF(AND($B$3=1,$C$3=1),IF($E$5<500,SUMIF(BD!$Y$5:$Y$66000,$O79,BD!$AE$5:$AE$66000),SUMIF(BD!$W$5:$W$66000,$O79,BD!$AE$5:$AE$66000)))/1000 -> 0 | G79: =IF(AND($B$3=1,$C$3=1),IF($E$5<500,SUMIF(BD!$P$5:$P$66000,$N79,BD!$AF$5:$AF$66000),SUMIF(BD!$N$5:$N$66000,$N79,BD!$AF$5:$AF$66000)))/1000 -> 0 | H79: =IF(AND($B$3=1,$C$3=1),IF($E$5<500,SUMIF(BD!$Y$5:$Y$66000,$O79,BD!$AG$5:$AG$66000),SUMIF(BD!$W$5:$W$66000,$O79,BD!$AG$5:$AG$66000)))/1000 -> 0 | I79: =IF(AND($B$3=1,$C$3=1),IF($E$5<500,SUMIF(BD!$P$5:$P$66000,$N79,BD!$AH$5:$AH$66000),SUMIF(BD!$N$5:$N$66000,$N79,BD!$AH$5:$AH$66000)))/1000 -> 0 | J79: =IF(AND($B$3=1,$C$3=1),IF($E$5<500,SUMIF(BD!$Y$5:$Y$66000,$O79,BD!$AI$5:$AI$66000),SUMIF(BD!$W$5:$W$66000,$O79,BD!$AI$5:$AI$66000)))/1000 -> 0 | K79: =IF(AND($B$3=1,$C$3=1),IF($E$5<500,SUMIF(BD!$P$5:$P$66000,$N79,BD!$AJ$5:$AJ$66000),SUMIF(BD!$N$5:$N$66000,$N79,BD!$AJ$5:$AJ$66000)))/1000 -> 0 | L79: =IF(AND($B$3=1,$C$3=1),IF($E$5<500,SUMIF(BD!$Y$5:$Y$66000,$O79,BD!$AK$5:$AK$66000),SUMIF(BD!$W$5:$W$66000,$O79,BD!$AK$5:$AK$66000)))/1000 -> 0 | N79: 0/201609 | O79: 0/201509
A80: 10 | B80: OUTUBRO | C80: =IF(AND($B$3=1,$C$3=1),IF($E$5<500,SUMIF(BD!$P$5:$P$66000,$N80,BD!$AB$5:$AB$66000),SUMIF(BD!$N$5:$N$66000,$N80,BD!$AB$5:$AB$66000)))/1000 -> 0 | D80: =IF(AND($B$3=1,$C$3=1),IF($E$5<500,SUMIF(BD!$Y$5:$Y$66000,$O80,BD!$AC$5:$AC$66000),SUMIF(BD!$W$5:$W$66000,$O80,BD!$AC$5:$AC$66000)))/1000 -> 0 | E80: =IF(AND($B$3=1,$C$3=1),IF($E$5<500,SUMIF(BD!$P$5:$P$66000,$N80,BD!$AD$5:$AD$66000),SUMIF(BD!$N$5:$N$66000,$N80,BD!$AD$5:$AD$66000)))/1000 -> 0 | F80: =IF(AND($B$3=1,$C$3=1),IF($E$5<500,SUMIF(BD!$Y$5:$Y$66000,$O80,BD!$AE$5:$AE$66000),SUMIF(BD!$W$5:$W$66000,$O80,BD!$AE$5:$AE$66000)))/1000 -> 0 | G80: =IF(AND($B$3=1,$C$3=1),IF($E$5<500,SUMIF(BD!$P$5:$P$66000,$N80,BD!$AF$5:$AF$66000),SUMIF(BD!$N$5:$N$66000,$N80,BD!$AF$5:$AF$66000)))/1000 -> 0 | H80: =IF(AND($B$3=1,$C$3=1),IF($E$5<500,SUMIF(BD!$Y$5:$Y$66000,$O80,BD!$AG$5:$AG$66000),SUMIF(BD!$W$5:$W$66000,$O80,BD!$AG$5:$AG$66000)))/1000 -> 0 | I80: =IF(AND($B$3=1,$C$3=1),IF($E$5<500,SUMIF(BD!$P$5:$P$66000,$N80,BD!$AH$5:$AH$66000),SUMIF(BD!$N$5:$N$66000,$N80,BD!$AH$5:$AH$66000)))/1000 -> 0 | J80: =IF(AND($B$3=1,$C$3=1),IF($E$5<500,SUMIF(BD!$Y$5:$Y$66000,$O80,BD!$AI$5:$AI$66000),SUMIF(BD!$W$5:$W$66000,$O80,BD!$AI$5:$AI$66000)))/1000 -> 0 | K80: =IF(AND($B$3=1,$C$3=1),IF($E$5<500,SUMIF(BD!$P$5:$P$66000,$N80,BD!$AJ$5:$AJ$66000),SUMIF(BD!$N$5:$N$66000,$N80,BD!$AJ$5:$AJ$66000)))/1000 -> 0 | L80: =IF(AND($B$3=1,$C$3=1),IF($E$5<500,SUMIF(BD!$Y$5:$Y$66000,$O80,BD!$AK$5:$AK$66000),SUMIF(BD!$W$5:$W$66000,$O80,BD!$AK$5:$AK$66000)))/1000 -> 0 | N80: 0/201610 | O80: 0/201510
A81: 11 | B81: NOVEMBRO | C81: =IF(AND($B$3=1,$C$3=1),IF($E$5<500,SUMIF(BD!$P$5:$P$66000,$N81,BD!$AB$5:$AB$66000),SUMIF(BD!$N$5:$N$66000,$N81,BD!$AB$5:$AB$66000)))/1000 -> 0 | D81: =IF(AND($B$3=1,$C$3=1),IF($E$5<500,SUMIF(BD!$Y$5:$Y$66000,$O81,BD!$AC$5:$AC$66000),SUMIF(BD!$W$5:$W$66000,$O81,BD!$AC$5:$AC$66000)))/1000 -> 0 | E81: =IF(AND($B$3=1,$C$3=1),IF($E$5<500,SUMIF(BD!$P$5:$P$66000,$N81,BD!$AD$5:$AD$66000),SUMIF(BD!$N$5:$N$66000,$N81,BD!$AD$5:$AD$66000)))/1000 -> 0 | F81: =IF(AND($B$3=1,$C$3=1),IF($E$5<500,SUMIF(BD!$Y$5:$Y$66000,$O81,BD!$AE$5:$AE$66000),SUMIF(BD!$W$5:$W$66000,$O81,BD!$AE$5:$AE$66000)))/1000 -> 0 | G81: =IF(AND($B$3=1,$C$3=1),IF($E$5<500,SUMIF(BD!$P$5:$P$66000,$N81,BD!$AF$5:$AF$66000),SUMIF(BD!$N$5:$N$66000,$N81,BD!$AF$5:$AF$66000)))/1000 -> 0 | H81: =IF(AND($B$3=1,$C$3=1),IF($E$5<500,SUMIF(BD!$Y$5:$Y$66000,$O81,BD!$AG$5:$AG$66000),SUMIF(BD!$W$5:$W$66000,$O81,BD!$AG$5:$AG$66000)))/1000 -> 0 | I81: =IF(AND($B$3=1,$C$3=1),IF($E$5<500,SUMIF(BD!$P$5:$P$66000,$N81,BD!$AH$5:$AH$66000),SUMIF(BD!$N$5:$N$66000,$N81,BD!$AH$5:$AH$66000)))/1000 -> 0 | J81: =IF(AND($B$3=1,$C$3=1),IF($E$5<500,SUMIF(BD!$Y$5:$Y$66000,$O81,BD!$AI$5:$AI$66000),SUMIF(BD!$W$5:$W$66000,$O81,BD!$AI$5:$AI$66000)))/1000 -> 0 | K81: =IF(AND($B$3=1,$C$3=1),IF($E$5<500,SUMIF(BD!$P$5:$P$66000,$N81,BD!$AJ$5:$AJ$66000),SUMIF(BD!$N$5:$N$66000,$N81,BD!$AJ$5:$AJ$66000)))/1000 -> 0 | L81: =IF(AND($B$3=1,$C$3=1),IF($E$5<500,SUMIF(BD!$Y$5:$Y$66000,$O81,BD!$AK$5:$AK$66000),SUMIF(BD!$W$5:$W$66000,$O81,BD!$AK$5:$AK$66000)))/1000 -> 0 | N81: 0/201611 | O81: 0/201511
A82: 12 | B82: DEZEMBRO | C82: =IF(AND($B$3=1,$C$3=1),IF($E$5<500,SUMIF(BD!$P$5:$P$66000,$N82,BD!$AB$5:$AB$66000),SUMIF(BD!$N$5:$N$66000,$N82,BD!$AB$5:$AB$66000)))/1000 -> 0 | D82: =IF(AND($B$3=1,$C$3=1),IF($E$5<500,SUMIF(BD!$Y$5:$Y$66000,$O82,BD!$AC$5:$AC$66000),SUMIF(BD!$W$5:$W$66000,$O82,BD!$AC$5:$AC$66000)))/1000 -> 0 | E82: =IF(AND($B$3=1,$C$3=1),IF($E$5<500,SUMIF(BD!$P$5:$P$66000,$N82,BD!$AD$5:$AD$66000),SUMIF(BD!$N$5:$N$66000,$N82,BD!$AD$5:$AD$66000)))/1000 -> 0 | F82: =IF(AND($B$3=1,$C$3=1),IF($E$5<500,SUMIF(BD!$Y$5:$Y$66000,$O82,BD!$AE$5:$AE$66000),SUMIF(BD!$W$5:$W$66000,$O82,BD!$AE$5:$AE$66000)))/1000 -> 0 | G82: =IF(AND($B$3=1,$C$3=1),IF($E$5<500,SUMIF(BD!$P$5:$P$66000,$N82,BD!$AF$5:$AF$66000),SUMIF(BD!$N$5:$N$66000,$N82,BD!$AF$5:$AF$66000)))/1000 -> 0 | H82: =IF(AND($B$3=1,$C$3=1),IF($E$5<500,SUMIF(BD!$Y$5:$Y$66000,$O82,BD!$AG$5:$AG$66000),SUMIF(BD!$W$5:$W$66000,$O82,BD!$AG$5:$AG$66000)))/1000 -> 0 | I82: =IF(AND($B$3=1,$C$3=1),IF($E$5<500,SUMIF(BD!$P$5:$P$66000,$N82,BD!$AH$5:$AH$66000),SUMIF(BD!$N$5:$N$66000,$N82,BD!$AH$5:$AH$66000)))/1000 -> 0 | J82: =IF(AND($B$3=1,$C$3=1),IF($E$5<500,SUMIF(BD!$Y$5:$Y$66000,$O82,BD!$AI$5:$AI$66000),SUMIF(BD!$W$5:$W$66000,$O82,BD!$AI$5:$AI$66000)))/1000 -> 0 | K82: =IF(AND($B$3=1,$C$3=1),IF($E$5<500,SUMIF(BD!$P$5:$P$66000,$N82,BD!$AJ$5:$AJ$66000),SUMIF(BD!$N$5:$N$66000,$N82,BD!$AJ$5:$AJ$66000)))/1000 -> 0 | L82: =IF(AND($B$3=1,$C$3=1),IF($E$5<500,SUMIF(BD!$Y$5:$Y$66000,$O82,BD!$AK$5:$AK$66000),SUMIF(BD!$W$5:$W$66000,$O82,BD!$AK$5:$AK$66000)))/1000 -> 0 | N82: 0/201612 | O82: 0/201512
B83: TOTAL | C83: =SUM(C71:C82) -> 0 | D83: 0 | E83: 0 | F83: 0 | G83: 0 | H83: 0 | I83: 0 | J83: 0 | K83: 0 | L83: 0
C84: POR AGRUPAMENTOS / POR RAMOS / TODAS AS COMPANHIAS
C85: PRÊMIO EMTIDO | E85: PRÊMIO RETIDO | G85: PRÊMIO GANHO | I85: SINISTRO RETIDO | K85: DESP. COMERCIAIS | N85: LOCALIZADORES
B86: PERÍODO | C86: =C70 -> 2016 | D86: =D70 -> 2015 | E86: =C86 -> 2016 | F86: 2015 | G86: 2016 | H86: 2015 | I86: 2016 | J86: 2015 | K86: 2016 | L86: 2015 | N86: =K86 -> 2016 | O86: =L86 -> 2015
A87: 01 | B87: JANEIRO | C87: =IF(AND($B$3=1,$C$3=1,$D$3=1),SUMIF(BD!$D$5:$D$66000,RelatSuporte!$C$86&RelatSuporte!$A87,BD!$AB$5:$AB$66000),(IF(AND($B$3>1,$C$3=1,$D$3=1),SUMIF(BD!$M$5:$M$66000,$N87,BD!$AB$5:$AB$66000),IF($D$3=1,SUMIF(BD!$R$5:$R$66000,$N87,BD!$AB$5:$AB$66000)))))/1000 -> 13384291.61 | D87: =IF(AND($B$3=1,$C$3=1,$D$3=1),SUMIF(BD!$H$5:$H$66000,RelatSuporte!$D$86&RelatSuporte!$A87,BD!$AC$5:$AC$66000),(IF(AND($B$3>1,$C$3=1,$D$3=1),SUMIF(BD!$V$5:$V$66000,$O87,BD!$AC$5:$AC$66000),IF($D$3=1,SUMIF(BD!$AA$5:$AA$66000,$O87,BD!$AC$5:$AC$66000)))))/1000 -> 12187244.63 | E87: =IF(AND($B$3=1,$C$3=1,$D$3=1),SUMIF(BD!$D$5:$D$66000,RelatSuporte!$C$86&RelatSuporte!$A87,BD!$AD$5:$AD$66000),(IF(AND($B$3>1,$C$3=1,$D$3=1),SUMIF(BD!$M$5:$M$66000,$N87,BD!$AD$5:$AD$66000),IF($D$3=1,SUMIF(BD!$R$5:$R$66000,$N87,BD!$AD$5:$AD$66000)))))/1000 -> 12748613.94 | F87: =IF(AND($B$3=1,$C$3=1,$D$3=1),SUMIF(BD!$H$5:$H$66000,RelatSuporte!$D$86&RelatSuporte!$A87,BD!$AE$5:$AE$66000),(IF(AND($B$3>1,$C$3=1,$D$3=1),SUMIF(BD!$V$5:$V$66000,$O87,BD!$AE$5:$AE$66000),IF($D$3=1,SUMIF(BD!$AA$5:$AA$66000,$O87,BD!$AE$5:$AE$66000)))))/1000 -> 11580859.65 | G87: =IF(AND($B$3=1,$C$3=1,$D$3=1),SUMIF(BD!$D$5:$D$66000,RelatSuporte!$C$86&RelatSuporte!$A87,BD!$AF$5:$AF$66000),(IF(AND($B$3>1,$C$3=1,$D$3=1),SUMIF(BD!$M$5:$M$66000,$N87,BD!$AF$5:$AF$66000),IF($D$3=1,SUMIF(BD!$R$5:$R$66000,$N87,BD!$AF$5:$AF$66000)))))/1000 -> 7356646.833 | H87: =IF(AND($B$3=1,$C$3=1,$D$3=1),SUMIF(BD!$H$5:$H$66000,RelatSuporte!$D$86&RelatSuporte!$A87,BD!$AG$5:$AG$66000),(IF(AND($B$3>1,$C$3=1,$D$3=1),SUMIF(BD!$V$5:$V$66000,$O87,BD!$AG$5:$AG$66000),IF($D$3=1,SUMIF(BD!$AA$5:$AA$66000,$O87,BD!$AG$5:$AG$66000)))))/1000 -> 6962897.295 | I87: =IF(AND($B$3=1,$C$3=1,$D$3=1),SUMIF(BD!$D$5:$D$66000,RelatSuporte!$C$86&RelatSuporte!$A87,BD!$AH$5:$AH$66000),(IF(AND($B$3>1,$C$3=1,$D$3=1),SUMIF(BD!$M$5:$M$66000,$N87,BD!$AH$5:$AH$66000),IF($D$3=1,SUMIF(BD!$R$5:$R$66000,$N87,BD!$AH$5:$AH$66000)))))/1000 -> 3573463.521 | J87: =IF(AND($B$3=1,$C$3=1,$D$3=1),SUMIF(BD!$H$5:$H$66000,RelatSuporte!$D$86&RelatSuporte!$A87,BD!$AI$5:$AI$66000),(IF(AND($B$3>1,$C$3=1,$D$3=1),SUMIF(BD!$V$5:$V$66000,$O87,BD!$AI$5:$AI$66000),IF($D$3=1,SUMIF(BD!$AA$5:$AA$66000,$O87,BD!$AI$5:$AI$66000)))))/1000 -> 3529945.165 | K87: =IF(AND($B$3=1,$C$3=1,$D$3=1),SUMIF(BD!$D$5:$D$66000,RelatSuporte!$C$86&RelatSuporte!$A87,BD!$AJ$5:$AJ$66000),(IF(AND($B$3>1,$C$3=1,$D$3=1),SUMIF(BD!$M$5:$M$66000,$N87,BD!$AJ$5:$AJ$66000),IF($D$3=1,SUMIF(BD!$R$5:$R$66000,$N87,BD!$AJ$5:$AJ$66000)))))/1000 -> 1896014.264 | L87: =IF(AND($B$3=1,$C$3=1,$D$3=1),SUMIF(BD!$H$5:$H$66000,RelatSuporte!$D$86&RelatSuporte!$A87,BD!$AK$5:$AK$66000),(IF(AND($B$3>1,$C$3=1,$D$3=1),SUMIF(BD!$V$5:$V$66000,$O87,BD!$AK$5:$AK$66000),IF($D$3=1,SUMIF(BD!$AA$5:$AA$66000,$O87,BD!$AK$5:$AK$66000)))))/1000 -> 1696386.422 | N87: =IF($G$5="",0,$G$5)&"/"&RelatSuporte!$C$86&RelatSuporte!$A87 -> Total/201601 | O87: =IF($G$5="",0,$G$5)&"/"&RelatSuporte!$D$86&RelatSuporte!$A87 -> Total/201501
A88: 02 | B88: FEVEREIRO | C88: =IF(AND($B$3=1,$C$3=1,$D$3=1),SUMIF(BD!$D$5:$D$66000,RelatSuporte!$C$86&RelatSuporte!$A88,BD!$AB$5:$AB$66000),(IF(AND($B$3>1,$C$3=1,$D$3=1),SUMIF(BD!$M$5:$M$66000,$N88,BD!$AB$5:$AB$66000),IF($D$3=1,SUMIF(BD!$R$5:$R$66000,$N88,BD!$AB$5:$AB$66000)))))/1000 -> 13136872.74 | D88: =IF(AND($B$3=1,$C$3=1,$D$3=1),SUMIF(BD!$H$5:$H$66000,RelatSuporte!$D$86&RelatSuporte!$A88,BD!$AC$5:$AC$66000),(IF(AND($B$3>1,$C$3=1,$D$3=1),SUMIF(BD!$V$5:$V$66000,$O88,BD!$AC$5:$AC$66000),IF($D$3=1,SUMIF(BD!$AA$5:$AA$66000,$O88,BD!$AC$5:$AC$66000)))))/1000 -> 12817672.41 | E88: =IF(AND($B$3=1,$C$3=1,$D$3=1),SUMIF(BD!$D$5:$D$66000,RelatSuporte!$C$86&RelatSuporte!$A88,BD!$AD$5:$AD$66000),(IF(AND($B$3>1,$C$3=1,$D$3=1),SUMIF(BD!$M$5:$M$66000,$N88,BD!$AD$5:$AD$66000),IF($D$3=1,SUMIF(BD!$R$5:$R$66000,$N88,BD!$AD$5:$AD$66000)))))/1000 -> 12481574.3 | F88: =IF(AND($B$3=1,$C$3=1,$D$3=1),SUMIF(BD!$H$5:$H$66000,RelatSuporte!$D$86&RelatSuporte!$A88,BD!$AE$5:$AE$66000),(IF(AND($B$3>1,$C$3=1,$D$3=1),SUMIF(BD!$V$5:$V$66000,$O88,BD!$AE$5:$AE$66000),IF($D$3=1,SUMIF(BD!$AA$5:$AA$66000,$O88,BD!$AE$5:$AE$66000)))))/1000 -> 12240988.46 | G88: =IF(AND($B$3=1,$C$3=1,$D$3=1),SUMIF(BD!$D$5:$D$66000,RelatSuporte!$C$86&RelatSuporte!$A88,BD!$AF$5:$AF$66000),(IF(AND($B$3>1,$C$3=1,$D$3=1),SUMIF(BD!$M$5:$M$66000,$N88,BD!$AF$5:$AF$66000),IF($D$3=1,SUMIF(BD!$R$5:$R$66000,$N88,BD!$AF$5:$AF$66000)))))/1000 -> 6734718.346 | H88: =IF(AND($B$3=1,$C$3=1,$D$3=1),SUMIF(BD!$H$5:$H$66000,RelatSuporte!$D$86&RelatSuporte!$A88,BD!$AG$5:$AG$66000),(IF(AND($B$3>1,$C$3=1,$D$3=1),SUMIF(BD!$V$5:$V$66000,$O88,BD!$AG$5:$AG$66000),IF($D$3=1,SUMIF(BD!$AA$5:$AA$66000,$O88,BD!$AG$5:$AG$66000)))))/1000 -> 6372408.696 | I88: =IF(AND($B$3=1,$C$3=1,$D$3=1),SUMIF(BD!$D$5:$D$66000,RelatSuporte!$C$86&RelatSuporte!$A88,BD!$AH$5:$AH$66000),(IF(AND($B$3>1,$C$3=1,$D$3=1),SUMIF(BD!$M$5:$M$66000,$N88,BD!$AH$5:$AH$66000),IF($D$3=1,SUMIF(BD!$R$5:$R$66000,$N88,BD!$AH$5:$AH$66000)))))/1000 -> 3281821.934 | J88: =IF(AND($B$3=1,$C$3=1,$D$3=1),SUMIF(BD!$H$5:$H$66000,RelatSuporte!$D$86&RelatSuporte!$A88,BD!$AI$5:$AI$66000),(IF(AND($B$3>1,$C$3=1,$D$3=1),SUMIF(BD!$V$5:$V$66000,$O88,BD!$AI$5:$AI$66000),IF($D$3=1,SUMIF(BD!$AA$5:$AA$66000,$O88,BD!$AI$5:$AI$66000)))))/1000 -> 2842169.478 | K88: =IF(AND($B$3=1,$C$3=1,$D$3=1),SUMIF(BD!$D$5:$D$66000,RelatSuporte!$C$86&RelatSuporte!$A88,BD!$AJ$5:$AJ$66000),(IF(AND($B$3>1,$C$3=1,$D$3=1),SUMIF(BD!$M$5:$M$66000,$N88,BD!$AJ$5:$AJ$66000),IF($D$3=1,SUMIF(BD!$R$5:$R$66000,$N88,BD!$AJ$5:$AJ$66000)))))/1000 -> 1741566.772 | L88: =IF(AND($B$3=1,$C$3=1,$D$3=1),SUMIF(BD!$H$5:$H$66000,RelatSuporte!$D$86&RelatSuporte!$A88,BD!$AK$5:$AK$66000),(IF(AND($B$3>1,$C$3=1,$D$3=1),SUMIF(BD!$V$5:$V$66000,$O88,BD!$AK$5:$AK$66000),IF($D$3=1,SUMIF(BD!$AA$5:$AA$66000,$O88,BD!$AK$5:$AK$66000)))))/1000 -> 1655452.616 | N88: =IF($G$5="",0,$G$5)&"/"&RelatSuporte!$C$86&RelatSuporte!$A88 -> Total/201602 | O88: =IF($G$5="",0,$G$5)&"/"&RelatSuporte!$D$86&RelatSuporte!$A88 -> Total/201502
A89: 03 | B89: MARÇO | C89: =IF(AND($B$3=1,$C$3=1,$D$3=1),SUMIF(BD!$D$5:$D$66000,RelatSuporte!$C$86&RelatSuporte!$A89,BD!$AB$5:$AB$66000),(IF(AND($B$3>1,$C$3=1,$D$3=1),SUMIF(BD!$M$5:$M$66000,$N89,BD!$AB$5:$AB$66000),IF($D$3=1,SUMIF(BD!$R$5:$R$66000,$N89,BD!$AB$5:$AB$66000)))))/1000 -> 16233928.9 | D89: =IF(AND($B$3=1,$C$3=1,$D$3=1),SUMIF(BD!$H$5:$H$66000,RelatSuporte!$D$86&RelatSuporte!$A89,BD!$AC$5:$AC$66000),(IF(AND($B$3>1,$C$3=1,$D$3=1),SUMIF(BD!$V$5:$V$66000,$O89,BD!$AC$5:$AC$66000),IF($D$3=1,SUMIF(BD!$AA$5:$AA$66000,$O89,BD!$AC$5:$AC$66000)))))/1000 -> 16194491.2 | E89: =IF(AND($B$3=1,$C$3=1,$D$3=1),SUMIF(BD!$D$5:$D$66000,RelatSuporte!$C$86&RelatSuporte!$A89,BD!$AD$5:$AD$66000),(IF(AND($B$3>1,$C$3=1,$D$3=1),SUMIF(BD!$M$5:$M$66000,$N89,BD!$AD$5:$AD$66000),IF($D$3=1,SUMIF(BD!$R$5:$R$66000,$N89,BD!$AD$5:$AD$66000)))))/1000 -> 15536828.89 | F89: =IF(AND($B$3=1,$C$3=1,$D$3=1),SUMIF(BD!$H$5:$H$66000,RelatSuporte!$D$86&RelatSuporte!$A89,BD!$AE$5:$AE$66000),(IF(AND($B$3>1,$C$3=1,$D$3=1),SUMIF(BD!$V$5:$V$66000,$O89,BD!$AE$5:$AE$66000),IF($D$3=1,SUMIF(BD!$AA$5:$AA$66000,$O89,BD!$AE$5:$AE$66000)))))/1000 -> 15557761.78 | G89: =IF(AND($B$3=1,$C$3=1,$D$3=1),SUMIF(BD!$D$5:$D$66000,RelatSuporte!$C$86&RelatSuporte!$A89,BD!$AF$5:$AF$66000),(IF(AND($B$3>1,$C$3=1,$D$3=1),SUMIF(BD!$M$5:$M$66000,$N89,BD!$AF$5:$AF$66000),IF($D$3=1,SUMIF(BD!$R$5:$R$66000,$N89,BD!$AF$5:$AF$66000)))))/1000 -> 7178824.249 | H89: =IF(AND($B$3=1,$C$3=1,$D$3=1),SUMIF(BD!$H$5:$H$66000,RelatSuporte!$D$86&RelatSuporte!$A89,BD!$AG$5:$AG$66000),(IF(AND($B$3>1,$C$3=1,$D$3=1),SUMIF(BD!$V$5:$V$66000,$O89,BD!$AG$5:$AG$66000),IF($D$3=1,SUMIF(BD!$AA$5:$AA$66000,$O89,BD!$AG$5:$AG$66000)))))/1000 -> 6886180.153 | I89: =IF(AND($B$3=1,$C$3=1,$D$3=1),SUMIF(BD!$D$5:$D$66000,RelatSuporte!$C$86&RelatSuporte!$A89,BD!$AH$5:$AH$66000),(IF(AND($B$3>1,$C$3=1,$D$3=1),SUMIF(BD!$M$5:$M$66000,$N89,BD!$AH$5:$AH$66000),IF($D$3=1,SUMIF(BD!$R$5:$R$66000,$N89,BD!$AH$5:$AH$66000)))))/1000 -> 3834858.642 | J89: =IF(AND($B$3=1,$C$3=1,$D$3=1),SUMIF(BD!$H$5:$H$66000,RelatSuporte!$D$86&RelatSuporte!$A89,BD!$AI$5:$AI$66000),(IF(AND($B$3>1,$C$3=1,$D$3=1),SUMIF(BD!$V$5:$V$66000,$O89,BD!$AI$5:$AI$66000),IF($D$3=1,SUMIF(BD!$AA$5:$AA$66000,$O89,BD!$AI$5:$AI$66000)))))/1000 -> 3466118.473 | K89: =IF(AND($B$3=1,$C$3=1,$D$3=1),SUMIF(BD!$D$5:$D$66000,RelatSuporte!$C$86&RelatSuporte!$A89,BD!$AJ$5:$AJ$66000),(IF(AND($B$3>1,$C$3=1,$D$3=1),SUMIF(BD!$M$5:$M$66000,$N89,BD!$AJ$5:$AJ$66000),IF($D$3=1,SUMIF(BD!$R$5:$R$66000,$N89,BD!$AJ$5:$AJ$66000)))))/1000 -> 1874424.12 | L89: =IF(AND($B$3=1,$C$3=1,$D$3=1),SUMIF(BD!$H$5:$H$66000,RelatSuporte!$D$86&RelatSuporte!$A89,BD!$AK$5:$AK$66000),(IF(AND($B$3>1,$C$3=1,$D$3=1),SUMIF(BD!$V$5:$V$66000,$O89,BD!$AK$5:$AK$66000),IF($D$3=1,SUMIF(BD!$AA$5:$AA$66000,$O89,BD!$AK$5:$AK$66000)))))/1000 -> 1768850.888 | N89: =IF($G$5="",0,$G$5)&"/"&RelatSuporte!$C$86&RelatSuporte!$A89 -> Total/201603 | O89: =IF($G$5="",0,$G$5)&"/"&RelatSuporte!$D$86&RelatSuporte!$A89 -> Total/201503
A90: 04 | B90: ABRIL | C90: =IF(AND($B$3=1,$C$3=1,$D$3=1),SUMIF(BD!$D$5:$D$66000,RelatSuporte!$C$86&RelatSuporte!$A90,BD!$AB$5:$AB$66000),(IF(AND($B$3>1,$C$3=1,$D$3=1),SUMIF(BD!$M$5:$M$66000,$N90,BD!$AB$5:$AB$66000),IF($D$3=1,SUMIF(BD!$R$5:$R$66000,$N90,BD!$AB$5:$AB$66000)))))/1000 -> 16037674.65 | D90: =IF(AND($B$3=1,$C$3=1,$D$3=1),SUMIF(BD!$H$5:$H$66000,RelatSuporte!$D$86&RelatSuporte!$A90,BD!$AC$5:$AC$66000),(IF(AND($B$3>1,$C$3=1,$D$3=1),SUMIF(BD!$V$5:$V$66000,$O90,BD!$AC$5:$AC$66000),IF($D$3=1,SUMIF(BD!$AA$5:$AA$66000,$O90,BD!$AC$5:$AC$66000)))))/1000 -> 14057938.42 | E90: =IF(AND($B$3=1,$C$3=1,$D$3=1),SUMIF(BD!$D$5:$D$66000,RelatSuporte!$C$86&RelatSuporte!$A90,BD!$AD$5:$AD$66000),(IF(AND($B$3>1,$C$3=1,$D$3=1),SUMIF(BD!$M$5:$M$66000,$N90,BD!$AD$5:$AD$66000),IF($D$3=1,SUMIF(BD!$R$5:$R$66000,$N90,BD!$AD$5:$AD$66000)))))/1000 -> 15335366.98 | F90: =IF(AND($B$3=1,$C$3=1,$D$3=1),SUMIF(BD!$H$5:$H$66000,RelatSuporte!$D$86&RelatSuporte!$A90,BD!$AE$5:$AE$66000),(IF(AND($B$3>1,$C$3=1,$D$3=1),SUMIF(BD!$V$5:$V$66000,$O90,BD!$AE$5:$AE$66000),IF($D$3=1,SUMIF(BD!$AA$5:$AA$66000,$O90,BD!$AE$5:$AE$66000)))))/1000 -> 13440339.07 | G90: =IF(AND($B$3=1,$C$3=1,$D$3=1),SUMIF(BD!$D$5:$D$66000,RelatSuporte!$C$86&RelatSuporte!$A90,BD!$AF$5:$AF$66000),(IF(AND($B$3>1,$C$3=1,$D$3=1),SUMIF(BD!$M$5:$M$66000,$N90,BD!$AF$5:$AF$66000),IF($D$3=1,SUMIF(BD!$R$5:$R$66000,$N90,BD!$AF$5:$AF$66000)))))/1000 -> 6916856.937 | H90: =IF(AND($B$3=1,$C$3=1,$D$3=1),SUMIF(BD!$H$5:$H$66000,RelatSuporte!$D$86&RelatSuporte!$A90,BD!$AG$5:$AG$66000),(IF(AND($B$3>1,$C$3=1,$D$3=1),SUMIF(BD!$V$5:$V$66000,$O90,BD!$AG$5:$AG$66000),IF($D$3=1,SUMIF(BD!$AA$5:$AA$66000,$O90,BD!$AG$5:$AG$66000)))))/1000 -> 6640543.861 | I90: =IF(AND($B$3=1,$C$3=1,$D$3=1),SUMIF(BD!$D$5:$D$66000,RelatSuporte!$C$86&RelatSuporte!$A90,BD!$AH$5:$AH$66000),(IF(AND($B$3>1,$C$3=1,$D$3=1),SUMIF(BD!$M$5:$M$66000,$N90,BD!$AH$5:$AH$66000),IF($D$3=1,SUMIF(BD!$R$5:$R$66000,$N90,BD!$AH$5:$AH$66000)))))/1000 -> 3441190.933 | J90: =IF(AND($B$3=1,$C$3=1,$D$3=1),SUMIF(BD!$H$5:$H$66000,RelatSuporte!$D$86&RelatSuporte!$A90,BD!$AI$5:$AI$66000),(IF(AND($B$3>1,$C$3=1,$D$3=1),SUMIF(BD!$V$5:$V$66000,$O90,BD!$AI$5:$AI$66000),IF($D$3=1,SUMIF(BD!$AA$5:$AA$66000,$O90,BD!$AI$5:$AI$66000)))))/1000 -> 3052156.473 | K90: =IF(AND($B$3=1,$C$3=1,$D$3=1),SUMIF(BD!$D$5:$D$66000,RelatSuporte!$C$86&RelatSuporte!$A90,BD!$AJ$5:$AJ$66000),(IF(AND($B$3>1,$C$3=1,$D$3=1),SUMIF(BD!$M$5:$M$66000,$N90,BD!$AJ$5:$AJ$66000),IF($D$3=1,SUMIF(BD!$R$5:$R$66000,$N90,BD!$AJ$5:$AJ$66000)))))/1000 -> 1866446.24 | L90: =IF(AND($B$3=1,$C$3=1,$D$3=1),SUMIF(BD!$H$5:$H$66000,RelatSuporte!$D$86&RelatSuporte!$A90,BD!$AK$5:$AK$66000),(IF(AND($B$3>1,$C$3=1,$D$3=1),SUMIF(BD!$V$5:$V$66000,$O90,BD!$AK$5:$AK$66000),IF($D$3=1,SUMIF(BD!$AA$5:$AA$66000,$O90,BD!$AK$5:$AK$66000)))))/1000 -> 1715270.679 | N90: =IF($G$5="",0,$G$5)&"/"&RelatSuporte!$C$86&RelatSuporte!$A90 -> Total/201604 | O90: =IF($G$5="",0,$G$5)&"/"&RelatSuporte!$D$86&RelatSuporte!$A90 -> Total/201504
A91: 05 | B91: MAIO | C91: =IF(AND($B$3=1,$C$3=1,$D$3=1),SUMIF(BD!$D$5:$D$66000,RelatSuporte!$C$86&RelatSuporte!$A91,BD!$AB$5:$AB$66000),(IF(AND($B$3>1,$C$3=1,$D$3=1),SUMIF(BD!$M$5:$M$66000,$N91,BD!$AB$5:$AB$66000),IF($D$3=1,SUMIF(BD!$R$5:$R$66000,$N91,BD!$AB$5:$AB$66000)))))/1000 -> 17244408.94 | D91: =IF(AND($B$3=1,$C$3=1,$D$3=1),SUMIF(BD!$H$5:$H$66000,RelatSuporte!$D$86&RelatSuporte!$A91,BD!$AC$5:$AC$66000),(IF(AND($B$3>1,$C$3=1,$D$3=1),SUMIF(BD!$V$5:$V$66000,$O91,BD!$AC$5:$AC$66000),IF($D$3=1,SUMIF(BD!$AA$5:$AA$66000,$O91,BD!$AC$5:$AC$66000)))))/1000 -> 15810123.9 | E91: =IF(AND($B$3=1,$C$3=1,$D$3=1),SUMIF(BD!$D$5:$D$66000,RelatSuporte!$C$86&RelatSuporte!$A91,BD!$AD$5:$AD$66000),(IF(AND($B$3>1,$C$3=1,$D$3=1),SUMIF(BD!$M$5:$M$66000,$N91,BD!$AD$5:$AD$66000),IF($D$3=1,SUMIF(BD!$R$5:$R$66000,$N91,BD!$AD$5:$AD$66000)))))/1000 -> 16575741.63 | F91: =IF(AND($B$3=1,$C$3=1,$D$3=1),SUMIF(BD!$H$5:$H$66000,RelatSuporte!$D$86&RelatSuporte!$A91,BD!$AE$5:$AE$66000),(IF(AND($B$3>1,$C$3=1,$D$3=1),SUMIF(BD!$V$5:$V$66000,$O91,BD!$AE$5:$AE$66000),IF($D$3=1,SUMIF(BD!$AA$5:$AA$66000,$O91,BD!$AE$5:$AE$66000)))))/1000 -> 15160578.43 | G91: =IF(AND($B$3=1,$C$3=1,$D$3=1),SUMIF(BD!$D$5:$D$66000,RelatSuporte!$C$86&RelatSuporte!$A91,BD!$AF$5:$AF$66000),(IF(AND($B$3>1,$C$3=1,$D$3=1),SUMIF(BD!$M$5:$M$66000,$N91,BD!$AF$5:$AF$66000),IF($D$3=1,SUMIF(BD!$R$5:$R$66000,$N91,BD!$AF$5:$AF$66000)))))/1000 -> 7127053.294 | H91: =IF(AND($B$3=1,$C$3=1,$D$3=1),SUMIF(BD!$H$5:$H$66000,RelatSuporte!$D$86&RelatSuporte!$A91,BD!$AG$5:$AG$66000),(IF(AND($B$3>1,$C$3=1,$D$3=1),SUMIF(BD!$V$5:$V$66000,$O91,BD!$AG$5:$AG$66000),IF($D$3=1,SUMIF(BD!$AA$5:$AA$66000,$O91,BD!$AG$5:$AG$66000)))))/1000 -> 6806243.43 | I91: =IF(AND($B$3=1,$C$3=1,$D$3=1),SUMIF(BD!$D$5:$D$66000,RelatSuporte!$C$86&RelatSuporte!$A91,BD!$AH$5:$AH$66000),(IF(AND($B$3>1,$C$3=1,$D$3=1),SUMIF(BD!$M$5:$M$66000,$N91,BD!$AH$5:$AH$66000),IF($D$3=1,SUMIF(BD!$R$5:$R$66000,$N91,BD!$AH$5:$AH$66000)))))/1000 -> 3433106.807 | J91: =IF(AND($B$3=1,$C$3=1,$D$3=1),SUMIF(BD!$H$5:$H$66000,RelatSuporte!$D$86&RelatSuporte!$A91,BD!$AI$5:$AI$66000),(IF(AND($B$3>1,$C$3=1,$D$3=1),SUMIF(BD!$V$5:$V$66000,$O91,BD!$AI$5:$AI$66000),IF($D$3=1,SUMIF(BD!$AA$5:$AA$66000,$O91,BD!$AI$5:$AI$66000)))))/1000 -> 3140328.062 | K91: =IF(AND($B$3=1,$C$3=1,$D$3=1),SUMIF(BD!$D$5:$D$66000,RelatSuporte!$C$86&RelatSuporte!$A91,BD!$AJ$5:$AJ$66000),(IF(AND($B$3>1,$C$3=1,$D$3=1),SUMIF(BD!$M$5:$M$66000,$N91,BD!$AJ$5:$AJ$66000),IF($D$3=1,SUMIF(BD!$R$5:$R$66000,$N91,BD!$AJ$5:$AJ$66000)))))/1000 -> 1861330.604 | L91: =IF(AND($B$3=1,$C$3=1,$D$3=1),SUMIF(BD!$H$5:$H$66000,RelatSuporte!$D$86&RelatSuporte!$A91,BD!$AK$5:$AK$66000),(IF(AND($B$3>1,$C$3=1,$D$3=1),SUMIF(BD!$V$5:$V$66000,$O91,BD!$AK$5:$AK$66000),IF($D$3=1,SUMIF(BD!$AA$5:$AA$66000,$O91,BD!$AK$5:$AK$66000)))))/1000 -> 1791687.812 | N91: =IF($G$5="",0,$G$5)&"/"&RelatSuporte!$C$86&RelatSuporte!$A91 -> Total/201605 | O91: =IF($G$5="",0,$G$5)&"/"&RelatSuporte!$D$86&RelatSuporte!$A91 -> Total/201505
A92: 06 | B92: JUNHO | C92: =IF(AND($B$3=1,$C$3=1,$D$3=1),SUMIF(BD!$D$5:$D$66000,RelatSuporte!$C$86&RelatSuporte!$A92,BD!$AB$5:$AB$66000),(IF(AND($B$3>1,$C$3=1,$D$3=1),SUMIF(BD!$M$5:$M$66000,$N92,BD!$AB$5:$AB$66000),IF($D$3=1,SUMIF(BD!$R$5:$R$66000,$N92,BD!$AB$5:$AB$66000)))))/1000 -> 19479174.48 | D92: =IF(AND($B$3=1,$C$3=1,$D$3=1),SUMIF(BD!$H$5:$H$66000,RelatSuporte!$D$86&RelatSuporte!$A92,BD!$AC$5:$AC$66000),(IF(AND($B$3>1,$C$3=1,$D$3=1),SUMIF(BD!$V$5:$V$66000,$O92,BD!$AC$5:$AC$66000),IF($D$3=1,SUMIF(BD!$AA$5:$AA$66000,$O92,BD!$AC$5:$AC$66000)))))/1000 -> 17091571.06 | E92: =IF(AND($B$3=1,$C$3=1,$D$3=1),SUMIF(BD!$D$5:$D$66000,RelatSuporte!$C$86&RelatSuporte!$A92,BD!$AD$5:$AD$66000),(IF(AND($B$3>1,$C$3=1,$D$3=1),SUMIF(BD!$M$5:$M$66000,$N92,BD!$AD$5:$AD$66000),IF($D$3=1,SUMIF(BD!$R$5:$R$66000,$N92,BD!$AD$5:$AD$66000)))))/1000 -> 18780195.05 | F92: =IF(AND($B$3=1,$C$3=1,$D$3=1),SUMIF(BD!$H$5:$H$66000,RelatSuporte!$D$86&RelatSuporte!$A92,BD!$AE$5:$AE$66000),(IF(AND($B$3>1,$C$3=1,$D$3=1),SUMIF(BD!$V$5:$V$66000,$O92,BD!$AE$5:$AE$66000),IF($D$3=1,SUMIF(BD!$AA$5:$AA$66000,$O92,BD!$AE$5:$AE$66000)))))/1000 -> 16456354.87 | G92: =IF(AND($B$3=1,$C$3=1,$D$3=1),SUMIF(BD!$D$5:$D$66000,RelatSuporte!$C$86&RelatSuporte!$A92,BD!$AF$5:$AF$66000),(IF(AND($B$3>1,$C$3=1,$D$3=1),SUMIF(BD!$M$5:$M$66000,$N92,BD!$AF$5:$AF$66000),IF($D$3=1,SUMIF(BD!$R$5:$R$66000,$N92,BD!$AF$5:$AF$66000)))))/1000 -> 6889269.176 | H92: =IF(AND($B$3=1,$C$3=1,$D$3=1),SUMIF(BD!$H$5:$H$66000,RelatSuporte!$D$86&RelatSuporte!$A92,BD!$AG$5:$AG$66000),(IF(AND($B$3>1,$C$3=1,$D$3=1),SUMIF(BD!$V$5:$V$66000,$O92,BD!$AG$5:$AG$66000),IF($D$3=1,SUMIF(BD!$AA$5:$AA$66000,$O92,BD!$AG$5:$AG$66000)))))/1000 -> 6759447.243 | I92: =IF(AND($B$3=1,$C$3=1,$D$3=1),SUMIF(BD!$D$5:$D$66000,RelatSuporte!$C$86&RelatSuporte!$A92,BD!$AH$5:$AH$66000),(IF(AND($B$3>1,$C$3=1,$D$3=1),SUMIF(BD!$M$5:$M$66000,$N92,BD!$AH$5:$AH$66000),IF($D$3=1,SUMIF(BD!$R$5:$R$66000,$N92,BD!$AH$5:$AH$66000)))))/1000 -> 3268423.508 | J92: =IF(AND($B$3=1,$C$3=1,$D$3=1),SUMIF(BD!$H$5:$H$66000,RelatSuporte!$D$86&RelatSuporte!$A92,BD!$AI$5:$AI$66000),(IF(AND($B$3>1,$C$3=1,$D$3=1),SUMIF(BD!$V$5:$V$66000,$O92,BD!$AI$5:$AI$66000),IF($D$3=1,SUMIF(BD!$AA$5:$AA$66000,$O92,BD!$AI$5:$AI$66000)))))/1000 -> 2883350.615 | K92: =IF(AND($B$3=1,$C$3=1,$D$3=1),SUMIF(BD!$D$5:$D$66000,RelatSuporte!$C$86&RelatSuporte!$A92,BD!$AJ$5:$AJ$66000),(IF(AND($B$3>1,$C$3=1,$D$3=1),SUMIF(BD!$M$5:$M$66000,$N92,BD!$AJ$5:$AJ$66000),IF($D$3=1,SUMIF(BD!$R$5:$R$66000,$N92,BD!$AJ$5:$AJ$66000)))))/1000 -> 1941433.362 | L92: =IF(AND($B$3=1,$C$3=1,$D$3=1),SUMIF(BD!$H$5:$H$66000,RelatSuporte!$D$86&RelatSuporte!$A92,BD!$AK$5:$AK$66000),(IF(AND($B$3>1,$C$3=1,$D$3=1),SUMIF(BD!$V$5:$V$66000,$O92,BD!$AK$5:$AK$66000),IF($D$3=1,SUMIF(BD!$AA$5:$AA$66000,$O92,BD!$AK$5:$AK$66000)))))/1000 -> 1826685.113 | N92: =IF($G$5="",0,$G$5)&"/"&RelatSuporte!$C$86&RelatSuporte!$A92 -> Total/201606 | O92: =IF($G$5="",0,$G$5)&"/"&RelatSuporte!$D$86&RelatSuporte!$A92 -> Total/201506
A93: 07 | B93: JULHO | C93: =IF(AND($B$3=1,$C$3=1,$D$3=1),SUMIF(BD!$D$5:$D$66000,RelatSuporte!$C$86&RelatSuporte!$A93,BD!$AB$5:$AB$66000),(IF(AND($B$3>1,$C$3=1,$D$3=1),SUMIF(BD!$M$5:$M$66000,$N93,BD!$AB$5:$AB$66000),IF($D$3=1,SUMIF(BD!$R$5:$R$66000,$N93,BD!$AB$5:$AB$66000)))))/1000 -> 16433362.3 | D93: =IF(AND($B$3=1,$C$3=1,$D$3=1),SUMIF(BD!$H$5:$H$66000,RelatSuporte!$D$86&RelatSuporte!$A93,BD!$AC$5:$AC$66000),(IF(AND($B$3>1,$C$3=1,$D$3=1),SUMIF(BD!$V$5:$V$66000,$O93,BD!$AC$5:$AC$66000),IF($D$3=1,SUMIF(BD!$AA$5:$AA$66000,$O93,BD!$AC$5:$AC$66000)))))/1000 -> 14921223.52 | E93: =IF(AND($B$3=1,$C$3=1,$D$3=1),SUMIF(BD!$D$5:$D$66000,RelatSuporte!$C$86&RelatSuporte!$A93,BD!$AD$5:$AD$66000),(IF(AND($B$3>1,$C$3=1,$D$3=1),SUMIF(BD!$M$5:$M$66000,$N93,BD!$AD$5:$AD$66000),IF($D$3=1,SUMIF(BD!$R$5:$R$66000,$N93,BD!$AD$5:$AD$66000)))))/1000 -> 15703011.57 | F93: =IF(AND($B$3=1,$C$3=1,$D$3=1),SUMIF(BD!$H$5:$H$66000,RelatSuporte!$D$86&RelatSuporte!$A93,BD!$AE$5:$AE$66000),(IF(AND($B$3>1,$C$3=1,$D$3=1),SUMIF(BD!$V$5:$V$66000,$O93,BD!$AE$5:$AE$66000),IF($D$3=1,SUMIF(BD!$AA$5:$AA$66000,$O93,BD!$AE$5:$AE$66000)))))/1000 -> 14306340.05 | G93: =IF(AND($B$3=1,$C$3=1,$D$3=1),SUMIF(BD!$D$5:$D$66000,RelatSuporte!$C$86&RelatSuporte!$A93,BD!$AF$5:$AF$66000),(IF(AND($B$3>1,$C$3=1,$D$3=1),SUMIF(BD!$M$5:$M$66000,$N93,BD!$AF$5:$AF$66000),IF($D$3=1,SUMIF(BD!$R$5:$R$66000,$N93,BD!$AF$5:$AF$66000)))))/1000 -> 7042257.06 | H93: =IF(AND($B$3=1,$C$3=1,$D$3=1),SUMIF(BD!$H$5:$H$66000,RelatSuporte!$D$86&RelatSuporte!$A93,BD!$AG$5:$AG$66000),(IF(AND($B$3>1,$C$3=1,$D$3=1),SUMIF(BD!$V$5:$V$66000,$O93,BD!$AG$5:$AG$66000),IF($D$3=1,SUMIF(BD!$AA$5:$AA$66000,$O93,BD!$AG$5:$AG$66000)))))/1000 -> 6932219.635 | I93: =IF(AND($B$3=1,$C$3=1,$D$3=1),SUMIF(BD!$D$5:$D$66000,RelatSuporte!$C$86&RelatSuporte!$A93,BD!$AH$5:$AH$66000),(IF(AND($B$3>1,$C$3=1,$D$3=1),SUMIF(BD!$M$5:$M$66000,$N93,BD!$AH$5:$AH$66000),IF($D$3=1,SUMIF(BD!$R$5:$R$66000,$N93,BD!$AH$5:$AH$66000)))))/1000 -> 3392009.163 | J93: =IF(AND($B$3=1,$C$3=1,$D$3=1),SUMIF(BD!$H$5:$H$66000,RelatSuporte!$D$86&RelatSuporte!$A93,BD!$AI$5:$AI$66000),(IF(AND($B$3>1,$C$3=1,$D$3=1),SUMIF(BD!$V$5:$V$66000,$O93,BD!$AI$5:$AI$66000),IF($D$3=1,SUMIF(BD!$AA$5:$AA$66000,$O93,BD!$AI$5:$AI$66000)))))/1000 -> 3123347.308 | K93: =IF(AND($B$3=1,$C$3=1,$D$3=1),SUMIF(BD!$D$5:$D$66000,RelatSuporte!$C$86&RelatSuporte!$A93,BD!$AJ$5:$AJ$66000),(IF(AND($B$3>1,$C$3=1,$D$3=1),SUMIF(BD!$M$5:$M$66000,$N93,BD!$AJ$5:$AJ$66000),IF($D$3=1,SUMIF(BD!$R$5:$R$66000,$N93,BD!$AJ$5:$AJ$66000)))))/1000 -> 1851868.14 | L93: =IF(AND($B$3=1,$C$3=1,$D$3=1),SUMIF(BD!$H$5:$H$66000,RelatSuporte!$D$86&RelatSuporte!$A93,BD!$AK$5:$AK$66000),(IF(AND($B$3>1,$C$3=1,$D$3=1),SUMIF(BD!$V$5:$V$66000,$O93,BD!$AK$5:$AK$66000),IF($D$3=1,SUMIF(BD!$AA$5:$AA$66000,$O93,BD!$AK$5:$AK$66000)))))/1000 -> 1846095.586 | N93: =IF($G$5="",0,$G$5)&"/"&RelatSuporte!$C$86&RelatSuporte!$A93 -> Total/201607 | O93: =IF($G$5="",0,$G$5)&"/"&RelatSuporte!$D$86&RelatSuporte!$A93 -> Total/201507
A94: 08 | B94: AGOSTO | C94: =IF(AND($B$3=1,$C$3=1,$D$3=1),SUMIF(BD!$D$5:$D$66000,RelatSuporte!$C$86&RelatSuporte!$A94,BD!$AB$5:$AB$66000),(IF(AND($B$3>1,$C$3=1,$D$3=1),SUMIF(BD!$M$5:$M$66000,$N94,BD!$AB$5:$AB$66000),IF($D$3=1,SUMIF(BD!$R$5:$R$66000,$N94,BD!$AB$5:$AB$66000)))))/1000 -> 17324168.09 | D94: =IF(AND($B$3=1,$C$3=1,$D$3=1),SUMIF(BD!$H$5:$H$66000,RelatSuporte!$D$86&RelatSuporte!$A94,BD!$AC$5:$AC$66000),(IF(AND($B$3>1,$C$3=1,$D$3=1),SUMIF(BD!$V$5:$V$66000,$O94,BD!$AC$5:$AC$66000),IF($D$3=1,SUMIF(BD!$AA$5:$AA$66000,$O94,BD!$AC$5:$AC$66000)))))/1000 -> 14650005.53 | E94: =IF(AND($B$3=1,$C$3=1,$D$3=1),SUMIF(BD!$D$5:$D$66000,RelatSuporte!$C$86&RelatSuporte!$A94,BD!$AD$5:$AD$66000),(IF(AND($B$3>1,$C$3=1,$D$3=1),SUMIF(BD!$M$5:$M$66000,$N94,BD!$AD$5:$AD$66000),IF($D$3=1,SUMIF(BD!$R$5:$R$66000,$N94,BD!$AD$5:$AD$66000)))))/1000 -> 16593307.54 | F94: =IF(AND($B$3=1,$C$3=1,$D$3=1),SUMIF(BD!$H$5:$H$66000,RelatSuporte!$D$86&RelatSuporte!$A94,BD!$AE$5:$AE$66000),(IF(AND($B$3>1,$C$3=1,$D$3=1),SUMIF(BD!$V$5:$V$66000,$O94,BD!$AE$5:$AE$66000),IF($D$3=1,SUMIF(BD!$AA$5:$AA$66000,$O94,BD!$AE$5:$AE$66000)))))/1000 -> 14000172.1 | G94: =IF(AND($B$3=1,$C$3=1,$D$3=1),SUMIF(BD!$D$5:$D$66000,RelatSuporte!$C$86&RelatSuporte!$A94,BD!$AF$5:$AF$66000),(IF(AND($B$3>1,$C$3=1,$D$3=1),SUMIF(BD!$M$5:$M$66000,$N94,BD!$AF$5:$AF$66000),IF($D$3=1,SUMIF(BD!$R$5:$R$66000,$N94,BD!$AF$5:$AF$66000)))))/1000 -> 7107970.137 | H94: =IF(AND($B$3=1,$C$3=1,$D$3=1),SUMIF(BD!$H$5:$H$66000,RelatSuporte!$D$86&RelatSuporte!$A94,BD!$AG$5:$AG$66000),(IF(AND($B$3>1,$C$3=1,$D$3=1),SUMIF(BD!$V$5:$V$66000,$O94,BD!$AG$5:$AG$66000),IF($D$3=1,SUMIF(BD!$AA$5:$AA$66000,$O94,BD!$AG$5:$AG$66000)))))/1000 -> 6940367.11 | I94: =IF(AND($B$3=1,$C$3=1,$D$3=1),SUMIF(BD!$D$5:$D$66000,RelatSuporte!$C$86&RelatSuporte!$A94,BD!$AH$5:$AH$66000),(IF(AND($B$3>1,$C$3=1,$D$3=1),SUMIF(BD!$M$5:$M$66000,$N94,BD!$AH$5:$AH$66000),IF($D$3=1,SUMIF(BD!$R$5:$R$66000,$N94,BD!$AH$5:$AH$66000)))))/1000 -> 3490945.074 | J94: =IF(AND($B$3=1,$C$3=1,$D$3=1),SUMIF(BD!$H$5:$H$66000,RelatSuporte!$D$86&RelatSuporte!$A94,BD!$AI$5:$AI$66000),(IF(AND($B$3>1,$C$3=1,$D$3=1),SUMIF(BD!$V$5:$V$66000,$O94,BD!$AI$5:$AI$66000),IF($D$3=1,SUMIF(BD!$AA$5:$AA$66000,$O94,BD!$AI$5:$AI$66000)))))/1000 -> 3116761.363 | K94: =IF(AND($B$3=1,$C$3=1,$D$3=1),SUMIF(BD!$D$5:$D$66000,RelatSuporte!$C$86&RelatSuporte!$A94,BD!$AJ$5:$AJ$66000),(IF(AND($B$3>1,$C$3=1,$D$3=1),SUMIF(BD!$M$5:$M$66000,$N94,BD!$AJ$5:$AJ$66000),IF($D$3=1,SUMIF(BD!$R$5:$R$66000,$N94,BD!$AJ$5:$AJ$66000)))))/1000 -> 1939611.861 | L94: =IF(AND($B$3=1,$C$3=1,$D$3=1),SUMIF(BD!$H$5:$H$66000,RelatSuporte!$D$86&RelatSuporte!$A94,BD!$AK$5:$AK$66000),(IF(AND($B$3>1,$C$3=1,$D$3=1),SUMIF(BD!$V$5:$V$66000,$O94,BD!$AK$5:$AK$66000),IF($D$3=1,SUMIF(BD!$AA$5:$AA$66000,$O94,BD!$AK$5:$AK$66000)))))/1000 -> 1828433.158 | N94: =IF($G$5="",0,$G$5)&"/"&RelatSuporte!$C$86&RelatSuporte!$A94 -> Total/201608 | O94: =IF($G$5="",0,$G$5)&"/"&RelatSuporte!$D$86&RelatSuporte!$A94 -> Total/201508
A95: 09 | B95: SETEMBRO | C95: =IF(AND($B$3=1,$C$3=1,$D$3=1),SUMIF(BD!$D$5:$D$66000,RelatSuporte!$C$86&RelatSuporte!$A95,BD!$AB$5:$AB$66000),(IF(AND($B$3>1,$C$3=1,$D$3=1),SUMIF(BD!$M$5:$M$66000,$N95,BD!$AB$5:$AB$66000),IF($D$3=1,SUMIF(BD!$R$5:$R$66000,$N95,BD!$AB$5:$AB$66000)))))/1000 -> 14622190.58 | D95: =IF(AND($B$3=1,$C$3=1,$D$3=1),SUMIF(BD!$H$5:$H$66000,RelatSuporte!$D$86&RelatSuporte!$A95,BD!$AC$5:$AC$66000),(IF(AND($B$3>1,$C$3=1,$D$3=1),SUMIF(BD!$V$5:$V$66000,$O95,BD!$AC$5:$AC$66000),IF($D$3=1,SUMIF(BD!$AA$5:$AA$66000,$O95,BD!$AC$5:$AC$66000)))))/1000 -> 14089686.39 | E95: =IF(AND($B$3=1,$C$3=1,$D$3=1),SUMIF(BD!$D$5:$D$66000,RelatSuporte!$C$86&RelatSuporte!$A95,BD!$AD$5:$AD$66000),(IF(AND($B$3>1,$C$3=1,$D$3=1),SUMIF(BD!$M$5:$M$66000,$N95,BD!$AD$5:$AD$66000),IF($D$3=1,SUMIF(BD!$R$5:$R$66000,$N95,BD!$AD$5:$AD$66000)))))/1000 -> 13924366.78 | F95: =IF(AND($B$3=1,$C$3=1,$D$3=1),SUMIF(BD!$H$5:$H$66000,RelatSuporte!$D$86&RelatSuporte!$A95,BD!$AE$5:$AE$66000),(IF(AND($B$3>1,$C$3=1,$D$3=1),SUMIF(BD!$V$5:$V$66000,$O95,BD!$AE$5:$AE$66000),IF($D$3=1,SUMIF(BD!$AA$5:$AA$66000,$O95,BD!$AE$5:$AE$66000)))))/1000 -> 13355425.61 | G95: =IF(AND($B$3=1,$C$3=1,$D$3=1),SUMIF(BD!$D$5:$D$66000,RelatSuporte!$C$86&RelatSuporte!$A95,BD!$AF$5:$AF$66000),(IF(AND($B$3>1,$C$3=1,$D$3=1),SUMIF(BD!$M$5:$M$66000,$N95,BD!$AF$5:$AF$66000),IF($D$3=1,SUMIF(BD!$R$5:$R$66000,$N95,BD!$AF$5:$AF$66000)))))/1000 -> 6780327.976 | H95: =IF(AND($B$3=1,$C$3=1,$D$3=1),SUMIF(BD!$H$5:$H$66000,RelatSuporte!$D$86&RelatSuporte!$A95,BD!$AG$5:$AG$66000),(IF(AND($B$3>1,$C$3=1,$D$3=1),SUMIF(BD!$V$5:$V$66000,$O95,BD!$AG$5:$AG$66000),IF($D$3=1,SUMIF(BD!$AA$5:$AA$66000,$O95,BD!$AG$5:$AG$66000)))))/1000 -> 6709449.534 | I95: =IF(AND($B$3=1,$C$3=1,$D$3=1),SUMIF(BD!$D$5:$D$66000,RelatSuporte!$C$86&RelatSuporte!$A95,BD!$AH$5:$AH$66000),(IF(AND($B$3>1,$C$3=1,$D$3=1),SUMIF(BD!$M$5:$M$66000,$N95,BD!$AH$5:$AH$66000),IF($D$3=1,SUMIF(BD!$R$5:$R$66000,$N95,BD!$AH$5:$AH$66000)))))/1000 -> 3179861.883 | J95: =IF(AND($B$3=1,$C$3=1,$D$3=1),SUMIF(BD!$H$5:$H$66000,RelatSuporte!$D$86&RelatSuporte!$A95,BD!$AI$5:$AI$66000),(IF(AND($B$3>1,$C$3=1,$D$3=1),SUMIF(BD!$V$5:$V$66000,$O95,BD!$AI$5:$AI$66000),IF($D$3=1,SUMIF(BD!$AA$5:$AA$66000,$O95,BD!$AI$5:$AI$66000)))))/1000 -> 3132565.491 | K95: =IF(AND($B$3=1,$C$3=1,$D$3=1),SUMIF(BD!$D$5:$D$66000,RelatSuporte!$C$86&RelatSuporte!$A95,BD!$AJ$5:$AJ$66000),(IF(AND($B$3>1,$C$3=1,$D$3=1),SUMIF(BD!$M$5:$M$66000,$N95,BD!$AJ$5:$AJ$66000),IF($D$3=1,SUMIF(BD!$R$5:$R$66000,$N95,BD!$AJ$5:$AJ$66000)))))/1000 -> 1874412.613 | L95: =IF(AND($B$3=1,$C$3=1,$D$3=1),SUMIF(BD!$H$5:$H$66000,RelatSuporte!$D$86&RelatSuporte!$A95,BD!$AK$5:$AK$66000),(IF(AND($B$3>1,$C$3=1,$D$3=1),SUMIF(BD!$V$5:$V$66000,$O95,BD!$AK$5:$AK$66000),IF($D$3=1,SUMIF(BD!$AA$5:$AA$66000,$O95,BD!$AK$5:$AK$66000)))))/1000 -> 1806787.424 | N95: =IF($G$5="",0,$G$5)&"/"&RelatSuporte!$C$86&RelatSuporte!$A95 -> Total/201609 | O95: =IF($G$5="",0,$G$5)&"/"&RelatSuporte!$D$86&RelatSuporte!$A95 -> Total/201509
A96: 10 | B96: OUTUBRO | C96: =IF(AND($B$3=1,$C$3=1,$D$3=1),SUMIF(BD!$D$5:$D$66000,RelatSuporte!$C$86&RelatSuporte!$A96,BD!$AB$5:$AB$66000),(IF(AND($B$3>1,$C$3=1,$D$3=1),SUMIF(BD!$M$5:$M$66000,$N96,BD!$AB$5:$AB$66000),IF($D$3=1,SUMIF(BD!$R$5:$R$66000,$N96,BD!$AB$5:$AB$66000)))))/1000 -> 15807514.39 | D96: =IF(AND($B$3=1,$C$3=1,$D$3=1),SUMIF(BD!$H$5:$H$66000,RelatSuporte!$D$86&RelatSuporte!$A96,BD!$AC$5:$AC$66000),(IF(AND($B$3>1,$C$3=1,$D$3=1),SUMIF(BD!$V$5:$V$66000,$O96,BD!$AC$5:$AC$66000),IF($D$3=1,SUMIF(BD!$AA$5:$AA$66000,$O96,BD!$AC$5:$AC$66000)))))/1000 -> 13482572.12 | E96: =IF(AND($B$3=1,$C$3=1,$D$3=1),SUMIF(BD!$D$5:$D$66000,RelatSuporte!$C$86&RelatSuporte!$A96,BD!$AD$5:$AD$66000),(IF(AND($B$3>1,$C$3=1,$D$3=1),SUMIF(BD!$M$5:$M$66000,$N96,BD!$AD$5:$AD$66000),IF($D$3=1,SUMIF(BD!$R$5:$R$66000,$N96,BD!$AD$5:$AD$66000)))))/1000 -> 15064290.65 | F96: =IF(AND($B$3=1,$C$3=1,$D$3=1),SUMIF(BD!$H$5:$H$66000,RelatSuporte!$D$86&RelatSuporte!$A96,BD!$AE$5:$AE$66000),(IF(AND($B$3>1,$C$3=1,$D$3=1),SUMIF(BD!$V$5:$V$66000,$O96,BD!$AE$5:$AE$66000),IF($D$3=1,SUMIF(BD!$AA$5:$AA$66000,$O96,BD!$AE$5:$AE$66000)))))/1000 -> 12793055.03 | G96: =IF(AND($B$3=1,$C$3=1,$D$3=1),SUMIF(BD!$D$5:$D$66000,RelatSuporte!$C$86&RelatSuporte!$A96,BD!$AF$5:$AF$66000),(IF(AND($B$3>1,$C$3=1,$D$3=1),SUMIF(BD!$M$5:$M$66000,$N96,BD!$AF$5:$AF$66000),IF($D$3=1,SUMIF(BD!$R$5:$R$66000,$N96,BD!$AF$5:$AF$66000)))))/1000 -> 6881038.804 | H96: =IF(AND($B$3=1,$C$3=1,$D$3=1),SUMIF(BD!$H$5:$H$66000,RelatSuporte!$D$86&RelatSuporte!$A96,BD!$AG$5:$AG$66000),(IF(AND($B$3>1,$C$3=1,$D$3=1),SUMIF(BD!$V$5:$V$66000,$O96,BD!$AG$5:$AG$66000),IF($D$3=1,SUMIF(BD!$AA$5:$AA$66000,$O96,BD!$AG$5:$AG$66000)))))/1000 -> 6831709.277 | I96: =IF(AND($B$3=1,$C$3=1,$D$3=1),SUMIF(BD!$D$5:$D$66000,RelatSuporte!$C$86&RelatSuporte!$A96,BD!$AH$5:$AH$66000),(IF(AND($B$3>1,$C$3=1,$D$3=1),SUMIF(BD!$M$5:$M$66000,$N96,BD!$AH$5:$AH$66000),IF($D$3=1,SUMIF(BD!$R$5:$R$66000,$N96,BD!$AH$5:$AH$66000)))))/1000 -> 3213630.071 | J96: =IF(AND($B$3=1,$C$3=1,$D$3=1),SUMIF(BD!$H$5:$H$66000,RelatSuporte!$D$86&RelatSuporte!$A96,BD!$AI$5:$AI$66000),(IF(AND($B$3>1,$C$3=1,$D$3=1),SUMIF(BD!$V$5:$V$66000,$O96,BD!$AI$5:$AI$66000),IF($D$3=1,SUMIF(BD!$AA$5:$AA$66000,$O96,BD!$AI$5:$AI$66000)))))/1000 -> 3200834.893 | K96: =IF(AND($B$3=1,$C$3=1,$D$3=1),SUMIF(BD!$D$5:$D$66000,RelatSuporte!$C$86&RelatSuporte!$A96,BD!$AJ$5:$AJ$66000),(IF(AND($B$3>1,$C$3=1,$D$3=1),SUMIF(BD!$M$5:$M$66000,$N96,BD!$AJ$5:$AJ$66000),IF($D$3=1,SUMIF(BD!$R$5:$R$66000,$N96,BD!$AJ$5:$AJ$66000)))))/1000 -> 1910432.598 | L96: =IF(AND($B$3=1,$C$3=1,$D$3=1),SUMIF(BD!$H$5:$H$66000,RelatSuporte!$D$86&RelatSuporte!$A96,BD!$AK$5:$AK$66000),(IF(AND($B$3>1,$C$3=1,$D$3=1),SUMIF(BD!$V$5:$V$66000,$O96,BD!$AK$5:$AK$66000),IF($D$3=1,SUMIF(BD!$AA$5:$AA$66000,$O96,BD!$AK$5:$AK$66000)))))/1000 -> 1833227.645 | N96: =IF($G$5="",0,$G$5)&"/"&RelatSuporte!$C$86&RelatSuporte!$A96 -> Total/201610 | O96: =IF($G$5="",0,$G$5)&"/"&RelatSuporte!$D$86&RelatSuporte!$A96 -> Total/201510
A97: 11 | B97: NOVEMBRO | C97: =IF(AND($B$3=1,$C$3=1,$D$3=1),SUMIF(BD!$D$5:$D$66000,RelatSuporte!$C$86&RelatSuporte!$A97,BD!$AB$5:$AB$66000),(IF(AND($B$3>1,$C$3=1,$D$3=1),SUMIF(BD!$M$5:$M$66000,$N97,BD!$AB$5:$AB$66000),IF($D$3=1,SUMIF(BD!$R$5:$R$66000,$N97,BD!$AB$5:$AB$66000)))))/1000 -> 18576137.11 | D97: =IF(AND($B$3=1,$C$3=1,$D$3=1),SUMIF(BD!$H$5:$H$66000,RelatSuporte!$D$86&RelatSuporte!$A97,BD!$AC$5:$AC$66000),(IF(AND($B$3>1,$C$3=1,$D$3=1),SUMIF(BD!$V$5:$V$66000,$O97,BD!$AC$5:$AC$66000),IF($D$3=1,SUMIF(BD!$AA$5:$AA$66000,$O97,BD!$AC$5:$AC$66000)))))/1000 -> 15728137.91 | E97: =IF(AND($B$3=1,$C$3=1,$D$3=1),SUMIF(BD!$D$5:$D$66000,RelatSuporte!$C$86&RelatSuporte!$A97,BD!$AD$5:$AD$66000),(IF(AND($B$3>1,$C$3=1,$D$3=1),SUMIF(BD!$M$5:$M$66000,$N97,BD!$AD$5:$AD$66000),IF($D$3=1,SUMIF(BD!$R$5:$R$66000,$N97,BD!$AD$5:$AD$66000)))))/1000 -> 17757495.2 | F97: =IF(AND($B$3=1,$C$3=1,$D$3=1),SUMIF(BD!$H$5:$H$66000,RelatSuporte!$D$86&RelatSuporte!$A97,BD!$AE$5:$AE$66000),(IF(AND($B$3>1,$C$3=1,$D$3=1),SUMIF(BD!$V$5:$V$66000,$O97,BD!$AE$5:$AE$66000),IF($D$3=1,SUMIF(BD!$AA$5:$AA$66000,$O97,BD!$AE$5:$AE$66000)))))/1000 -> 15061312.88 | G97: =IF(AND($B$3=1,$C$3=1,$D$3=1),SUMIF(BD!$D$5:$D$66000,RelatSuporte!$C$86&RelatSuporte!$A97,BD!$AF$5:$AF$66000),(IF(AND($B$3>1,$C$3=1,$D$3=1),SUMIF(BD!$M$5:$M$66000,$N97,BD!$AF$5:$AF$66000),IF($D$3=1,SUMIF(BD!$R$5:$R$66000,$N97,BD!$AF$5:$AF$66000)))))/1000 -> 6708045.757 | H97: =IF(AND($B$3=1,$C$3=1,$D$3=1),SUMIF(BD!$H$5:$H$66000,RelatSuporte!$D$86&RelatSuporte!$A97,BD!$AG$5:$AG$66000),(IF(AND($B$3>1,$C$3=1,$D$3=1),SUMIF(BD!$V$5:$V$66000,$O97,BD!$AG$5:$AG$66000),IF($D$3=1,SUMIF(BD!$AA$5:$AA$66000,$O97,BD!$AG$5:$AG$66000)))))/1000 -> 6607852.12 | I97: =IF(AND($B$3=1,$C$3=1,$D$3=1),SUMIF(BD!$D$5:$D$66000,RelatSuporte!$C$86&RelatSuporte!$A97,BD!$AH$5:$AH$66000),(IF(AND($B$3>1,$C$3=1,$D$3=1),SUMIF(BD!$M$5:$M$66000,$N97,BD!$AH$5:$AH$66000),IF($D$3=1,SUMIF(BD!$R$5:$R$66000,$N97,BD!$AH$5:$AH$66000)))))/1000 -> 3299254.548 | J97: =IF(AND($B$3=1,$C$3=1,$D$3=1),SUMIF(BD!$H$5:$H$66000,RelatSuporte!$D$86&RelatSuporte!$A97,BD!$AI$5:$AI$66000),(IF(AND($B$3>1,$C$3=1,$D$3=1),SUMIF(BD!$V$5:$V$66000,$O97,BD!$AI$5:$AI$66000),IF($D$3=1,SUMIF(BD!$AA$5:$AA$66000,$O97,BD!$AI$5:$AI$66000)))))/1000 -> 3133526.286 | K97: =IF(AND($B$3=1,$C$3=1,$D$3=1),SUMIF(BD!$D$5:$D$66000,RelatSuporte!$C$86&RelatSuporte!$A97,BD!$AJ$5:$AJ$66000),(IF(AND($B$3>1,$C$3=1,$D$3=1),SUMIF(BD!$M$5:$M$66000,$N97,BD!$AJ$5:$AJ$66000),IF($D$3=1,SUMIF(BD!$R$5:$R$66000,$N97,BD!$AJ$5:$AJ$66000)))))/1000 -> 1908089.525 | L97: =IF(AND($B$3=1,$C$3=1,$D$3=1),SUMIF(BD!$H$5:$H$66000,RelatSuporte!$D$86&RelatSuporte!$A97,BD!$AK$5:$AK$66000),(IF(AND($B$3>1,$C$3=1,$D$3=1),SUMIF(BD!$V$5:$V$66000,$O97,BD!$AK$5:$AK$66000),IF($D$3=1,SUMIF(BD!$AA$5:$AA$66000,$O97,BD!$AK$5:$AK$66000)))))/1000 -> 1784978.133 | N97: =IF($G$5="",0,$G$5)&"/"&RelatSuporte!$C$86&RelatSuporte!$A97 -> Total/201611 | O97: =IF($G$5="",0,$G$5)&"/"&RelatSuporte!$D$86&RelatSuporte!$A97 -> Total/201511
A98: 12 | B98: DEZEMBRO | C98: =IF(AND($B$3=1,$C$3=1,$D$3=1),SUMIF(BD!$D$5:$D$66000,RelatSuporte!$C$86&RelatSuporte!$A98,BD!$AB$5:$AB$66000),(IF(AND($B$3>1,$C$3=1,$D$3=1),SUMIF(BD!$M$5:$M$66000,$N98,BD!$AB$5:$AB$66000),IF($D$3=1,SUMIF(BD!$R$5:$R$66000,$N98,BD!$AB$5:$AB$66000)))))/1000 -> 23971934.25 | D98: =IF(AND($B$3=1,$C$3=1,$D$3=1),SUMIF(BD!$H$5:$H$66000,RelatSuporte!$D$86&RelatSuporte!$A98,BD!$AC$5:$AC$66000),(IF(AND($B$3>1,$C$3=1,$D$3=1),SUMIF(BD!$V$5:$V$66000,$O98,BD!$AC$5:$AC$66000),IF($D$3=1,SUMIF(BD!$AA$5:$AA$66000,$O98,BD!$AC$5:$AC$66000)))))/1000 -> 20199488.56 | E98: =IF(AND($B$3=1,$C$3=1,$D$3=1),SUMIF(BD!$D$5:$D$66000,RelatSuporte!$C$86&RelatSuporte!$A98,BD!$AD$5:$AD$66000),(IF(AND($B$3>1,$C$3=1,$D$3=1),SUMIF(BD!$M$5:$M$66000,$N98,BD!$AD$5:$AD$66000),IF($D$3=1,SUMIF(BD!$R$5:$R$66000,$N98,BD!$AD$5:$AD$66000)))))/1000 -> 23231337.97 | F98: =IF(AND($B$3=1,$C$3=1,$D$3=1),SUMIF(BD!$H$5:$H$66000,RelatSuporte!$D$86&RelatSuporte!$A98,BD!$AE$5:$AE$66000),(IF(AND($B$3>1,$C$3=1,$D$3=1),SUMIF(BD!$V$5:$V$66000,$O98,BD!$AE$5:$AE$66000),IF($D$3=1,SUMIF(BD!$AA$5:$AA$66000,$O98,BD!$AE$5:$AE$66000)))))/1000 -> 19403201.12 | G98: =IF(AND($B$3=1,$C$3=1,$D$3=1),SUMIF(BD!$D$5:$D$66000,RelatSuporte!$C$86&RelatSuporte!$A98,BD!$AF$5:$AF$66000),(IF(AND($B$3>1,$C$3=1,$D$3=1),SUMIF(BD!$M$5:$M$66000,$N98,BD!$AF$5:$AF$66000),IF($D$3=1,SUMIF(BD!$R$5:$R$66000,$N98,BD!$AF$5:$AF$66000)))))/1000 -> 6841331.49 | H98: =IF(AND($B$3=1,$C$3=1,$D$3=1),SUMIF(BD!$H$5:$H$66000,RelatSuporte!$D$86&RelatSuporte!$A98,BD!$AG$5:$AG$66000),(IF(AND($B$3>1,$C$3=1,$D$3=1),SUMIF(BD!$V$5:$V$66000,$O98,BD!$AG$5:$AG$66000),IF($D$3=1,SUMIF(BD!$AA$5:$AA$66000,$O98,BD!$AG$5:$AG$66000)))))/1000 -> 6684344.336 | I98: =IF(AND($B$3=1,$C$3=1,$D$3=1),SUMIF(BD!$D$5:$D$66000,RelatSuporte!$C$86&RelatSuporte!$A98,BD!$AH$5:$AH$66000),(IF(AND($B$3>1,$C$3=1,$D$3=1),SUMIF(BD!$M$5:$M$66000,$N98,BD!$AH$5:$AH$66000),IF($D$3=1,SUMIF(BD!$R$5:$R$66000,$N98,BD!$AH$5:$AH$66000)))))/1000 -> 3288702.92 | J98: =IF(AND($B$3=1,$C$3=1,$D$3=1),SUMIF(BD!$H$5:$H$66000,RelatSuporte!$D$86&RelatSuporte!$A98,BD!$AI$5:$AI$66000),(IF(AND($B$3>1,$C$3=1,$D$3=1),SUMIF(BD!$V$5:$V$66000,$O98,BD!$AI$5:$AI$66000),IF($D$3=1,SUMIF(BD!$AA$5:$AA$66000,$O98,BD!$AI$5:$AI$66000)))))/1000 -> 3430352.319 | K98: =IF(AND($B$3=1,$C$3=1,$D$3=1),SUMIF(BD!$D$5:$D$66000,RelatSuporte!$C$86&RelatSuporte!$A98,BD!$AJ$5:$AJ$66000),(IF(AND($B$3>1,$C$3=1,$D$3=1),SUMIF(BD!$M$5:$M$66000,$N98,BD!$AJ$5:$AJ$66000),IF($D$3=1,SUMIF(BD!$R$5:$R$66000,$N98,BD!$AJ$5:$AJ$66000)))))/1000 -> 2091189.35 | L98: =IF(AND($B$3=1,$C$3=1,$D$3=1),SUMIF(BD!$H$5:$H$66000,RelatSuporte!$D$86&RelatSuporte!$A98,BD!$AK$5:$AK$66000),(IF(AND($B$3>1,$C$3=1,$D$3=1),SUMIF(BD!$V$5:$V$66000,$O98,BD!$AK$5:$AK$66000),IF($D$3=1,SUMIF(BD!$AA$5:$AA$66000,$O98,BD!$AK$5:$AK$66000)))))/1000 -> 1870981.195 | N98: =IF($G$5="",0,$G$5)&"/"&RelatSuporte!$C$86&RelatSuporte!$A98 -> Total/201612 | O98: =IF($G$5="",0,$G$5)&"/"&RelatSuporte!$D$86&RelatSuporte!$A98 -> Total/201512
B99: TOTAL | C99: =SUM(C87:C98) -> 202251658 | D99: 181230155.7 | E99: 193732130.5 | F99: 173356389.1 | G99: 83564340.06 | H99: 81133662.69 | I99: 40697269 | J99: 38051455.93 | K99: 22756819.45 | L99: 21424836.67
B101: =IF(E5=9,-I101,IF(E5=42,I101,0)) -> 0 | C101: MAPFRE NOSSA CAIXA | E101: 04561 | G101: PARTICIPAÇÃO DA MAPFRE = | I101: 0.51 | N101: situação específica para a Mapfre
C102: PARTICIPAÇÃO DA MAPFRE NA MAPFRE NOSSA CAIXA A SER ESTORNADA NA TOTALIZAÇÃO DO BCO. DO BRASIL E ACRESCIDA NA TOTALIZAÇÃO DA MAPFRE
C103: PRÊMIO EMTIDO | E103: PRÊMIO RETIDO | G103: PRÊMIO GANHO | I103: SINISTRO RETIDO | K103: DESP. COMERCIAIS
B104: PERÍODO | C104: =C86 -> 2016 | D104: =D86 -> 2015 | E104: =C104 -> 2016 | F104: 2015 | G104: 2016 | H104: 2015 | I104: 2016 | J104: 2015 | K104: 2016 | L104: 2015
A105: 01 | B105: JANEIRO | C105: =IF($B$101=0,0,(IF($C$3<>1,IF($E$5<500,SUMIF(BD!$O$5:$O$66000,VALUE($E$101)&"/"&$G$5&"/"&$C$7&$A105,BD!$AB$5:$AB$66000),0),IF(AND($B$3<>1,$E$5<500),SUMIF(BD!$K$5:$K$66000,VALUE($E$101)&"/"&$G$5&"/"&$C$7&$A105,BD!$AB$5:$AB$66000),IF(AND($B$3=1,$E$5<500),SUMIF(BD!$N$5:$N$66000,VALUE($E$101)&"/"&$C$7&$A105,BD!$AB$5:$AB$66000),0))))/1000*$B$101) -> 0 | D105: =IF($B$101=0,0,(IF($C$3<>1,IF($E$5<500,SUMIF(BD!$X$5:$X$66000,VALUE($E$101)&"/"&$G$5&"/"&$D$7&$A105,BD!$AC$5:$AC$66000),0),IF(AND($B$3<>1,$E$5<500),SUMIF(BD!$T$5:$T$66000,VALUE($E$101)&"/"&$G$5&"/"&$D$7&$A105,BD!$AC$5:$AC$66000),IF(AND($B$3=1,$E$5<500),SUMIF(BD!$W$5:$W$66000,VALUE($E$101)&"/"&$D$7&$A105,BD!$AC$5:$AC$66000),0))))/1000*$B$101) -> 0 | E105: =IF($B$101=0,0,(IF($C$3<>1,IF($E$5<500,SUMIF(BD!$O$5:$O$66000,VALUE($E$101)&"/"&$G$5&"/"&$C$7&$A105,BD!$AD$5:$AD$66000),0),IF(AND($B$3<>1,$E$5<500),SUMIF(BD!$K$5:$K$66000,VALUE($E$101)&"/"&$G$5&"/"&$C$7&$A105,BD!$AD$5:$AD$66000),IF(AND($B$3=1,$E$5<500),SUMIF(BD!$N$5:$N$66000,VALUE($E$101)&"/"&$C$7&$A105,BD!$AD$5:$AD$66000),0))))/1000*$B$101) -> 0 | F105: =IF($B$101=0,0,(IF($C$3<>1,IF($E$5<500,SUMIF(BD!$X$5:$X$66000,VALUE($E$101)&"/"&$G$5&"/"&$D$7&$A105,BD!$AE$5:$AE$66000),0),IF(AND($B$3<>1,$E$5<500),SUMIF(BD!$T$5:$T$66000,VALUE($E$101)&"/"&$G$5&"/"&$D$7&$A105,BD!$AE$5:$AE$66000),IF(AND($B$3=1,$E$5<500),SUMIF(BD!$W$5:$W$66000,VALUE($E$101)&"/"&$D$7&$A105,BD!$AE$5:$AE$66000),0))))/1000*$B$101) -> 0 | G105: =IF($B$101=0,0,(IF($C$3<>1,IF($E$5<500,SUMIF(BD!$O$5:$O$66000,VALUE($E$101)&"/"&$G$5&"/"&$C$7&$A105,BD!$AF$5:$AF$66000),0),IF(AND($B$3<>1,$E$5<500),SUMIF(BD!$K$5:$K$66000,VALUE($E$101)&"/"&$G$5&"/"&$C$7&$A105,BD!$AF$5:$AF$66000),IF(AND($B$3=1,$E$5<500),SUMIF(BD!$N$5:$N$66000,VALUE($E$101)&"/"&$C$7&$A105,BD!$AF$5:$AF$66000),0))))/1000*$B$101) -> 0 | H105: =IF($B$101=0,0,(IF($C$3<>1,IF($E$5<500,SUMIF(BD!$X$5:$X$66000,VALUE($E$101)&"/"&$G$5&"/"&$D$7&$A105,BD!$AG$5:$AG$66000),0),IF(AND($B$3<>1,$E$5<500),SUMIF(BD!$T$5:$T$66000,VALUE($E$101)&"/"&$G$5&"/"&$D$7&$A105,BD!$AG$5:$AG$66000),IF(AND($B$3=1,$E$5<500),SUMIF(BD!$W$5:$W$66000,VALUE($E$101)&"/"&$D$7&$A105,BD!$AG$5:$AG$66000),0))))/1000*$B$101) -> 0 | I105: =IF($B$101=0,0,(IF($C$3<>1,IF($E$5<500,SUMIF(BD!$O$5:$O$66000,VALUE($E$101)&"/"&$G$5&"/"&$C$7&$A105,BD!$AH$5:$AH$66000),0),IF(AND($B$3<>1,$E$5<500),SUMIF(BD!$K$5:$K$66000,VALUE($E$101)&"/"&$G$5&"/"&$C$7&$A105,BD!$AH$5:$AH$66000),IF(AND($B$3=1,$E$5<500),SUMIF(BD!$N$5:$N$66000,VALUE($E$101)&"/"&$C$7&$A105,BD!$AH$5:$AH$66000),0))))/1000*$B$101) -> 0 | J105: =IF($B$101=0,0,(IF($C$3<>1,IF($E$5<500,SUMIF(BD!$X$5:$X$66000,VALUE($E$101)&"/"&$G$5&"/"&$D$7&$A105,BD!$AI$5:$AI$66000),0),IF(AND($B$3<>1,$E$5<500),SUMIF(BD!$T$5:$T$66000,VALUE($E$101)&"/"&$G$5&"/"&$D$7&$A105,BD!$AI$5:$AI$66000),IF(AND($B$3=1,$E$5<500),SUMIF(BD!$W$5:$W$66000,VALUE($E$101)&"/"&$D$7&$A105,BD!$AI$5:$AI$66000),0))))/1000*$B$101) -> 0 | K105: =IF($B$101=0,0,(IF($C$3<>1,IF($E$5<500,SUMIF(BD!$O$5:$O$66000,VALUE($E$101)&"/"&$G$5&"/"&$C$7&$A105,BD!$AJ$5:$AJ$66000),0),IF(AND($B$3<>1,$E$5<500),SUMIF(BD!$K$5:$K$66000,VALUE($E$101)&"/"&$G$5&"/"&$C$7&$A105,BD!$AJ$5:$AJ$66000),IF(AND($B$3=1,$E$5<500),SUMIF(BD!$N$5:$N$66000,VALUE($E$101)&"/"&$C$7&$A105,BD!$AJ$5:$AJ$66000),0))))/1000*$B$101) -> 0 | L105: =IF($B$101=0,0,(IF($C$3<>1,IF($E$5<500,SUMIF(BD!$X$5:$X$66000,VALUE($E$101)&"/"&$G$5&"/"&$D$7&$A105,BD!$AK$5:$AK$66000),0),IF(AND($B$3<>1,$E$5<500),SUMIF(BD!$T$5:$T$66000,VALUE($E$101)&"/"&$G$5&"/"&$D$7&$A105,BD!$AK$5:$AK$66000),IF(AND($B$3=1,$E$5<500),SUMIF(BD!$W$5:$W$66000,VALUE($E$101)&"/"&$D$7&$A105,BD!$AK$5:$AK$66000),0))))/1000*$B$101) -> 0 | M105: 0
A106: 02 | B106: FEVEREIRO | C106: =IF($B$101=0,0,(IF($C$3<>1,IF($E$5<500,SUMIF(BD!$O$5:$O$66000,VALUE($E$101)&"/"&$G$5&"/"&$C$7&$A106,BD!$AB$5:$AB$66000),0),IF(AND($B$3<>1,$E$5<500),SUMIF(BD!$K$5:$K$66000,VALUE($E$101)&"/"&$G$5&"/"&$C$7&$A106,BD!$AB$5:$AB$66000),IF(AND($B$3=1,$E$5<500),SUMIF(BD!$N$5:$N$66000,VALUE($E$101)&"/"&$C$7&$A106,BD!$AB$5:$AB$66000),0))))/1000*$B$101) -> 0 | D106: =IF($B$101=0,0,(IF($C$3<>1,IF($E$5<500,SUMIF(BD!$X$5:$X$66000,VALUE($E$101)&"/"&$G$5&"/"&$D$7&$A106,BD!$AC$5:$AC$66000),0),IF(AND($B$3<>1,$E$5<500),SUMIF(BD!$T$5:$T$66000,VALUE($E$101)&"/"&$G$5&"/"&$D$7&$A106,BD!$AC$5:$AC$66000),IF(AND($B$3=1,$E$5<500),SUMIF(BD!$W$5:$W$66000,VALUE($E$101)&"/"&$D$7&$A106,BD!$AC$5:$AC$66000),0))))/1000*$B$101) -> 0 | E106: =IF($B$101=0,0,(IF($C$3<>1,IF($E$5<500,SUMIF(BD!$O$5:$O$66000,VALUE($E$101)&"/"&$G$5&"/"&$C$7&$A106,BD!$AD$5:$AD$66000),0),IF(AND($B$3<>1,$E$5<500),SUMIF(BD!$K$5:$K$66000,VALUE($E$101)&"/"&$G$5&"/"&$C$7&$A106,BD!$AD$5:$AD$66000),IF(AND($B$3=1,$E$5<500),SUMIF(BD!$N$5:$N$66000,VALUE($E$101)&"/"&$C$7&$A106,BD!$AD$5:$AD$66000),0))))/1000*$B$101) -> 0 | F106: =IF($B$101=0,0,(IF($C$3<>1,IF($E$5<500,SUMIF(BD!$X$5:$X$66000,VALUE($E$101)&"/"&$G$5&"/"&$D$7&$A106,BD!$AE$5:$AE$66000),0),IF(AND($B$3<>1,$E$5<500),SUMIF(BD!$T$5:$T$66000,VALUE($E$101)&"/"&$G$5&"/"&$D$7&$A106,BD!$AE$5:$AE$66000),IF(AND($B$3=1,$E$5<500),SUMIF(BD!$W$5:$W$66000,VALUE($E$101)&"/"&$D$7&$A106,BD!$AE$5:$AE$66000),0))))/1000*$B$101) -> 0 | G106: =IF($B$101=0,0,(IF($C$3<>1,IF($E$5<500,SUMIF(BD!$O$5:$O$66000,VALUE($E$101)&"/"&$G$5&"/"&$C$7&$A106,BD!$AF$5:$AF$66000),0),IF(AND($B$3<>1,$E$5<500),SUMIF(BD!$K$5:$K$66000,VALUE($E$101)&"/"&$G$5&"/"&$C$7&$A106,BD!$AF$5:$AF$66000),IF(AND($B$3=1,$E$5<500),SUMIF(BD!$N$5:$N$66000,VALUE($E$101)&"/"&$C$7&$A106,BD!$AF$5:$AF$66000),0))))/1000*$B$101) -> 0 | H106: =IF($B$101=0,0,(IF($C$3<>1,IF($E$5<500,SUMIF(BD!$X$5:$X$66000,VALUE($E$101)&"/"&$G$5&"/"&$D$7&$A106,BD!$AG$5:$AG$66000),0),IF(AND($B$3<>1,$E$5<500),SUMIF(BD!$T$5:$T$66000,VALUE($E$101)&"/"&$G$5&"/"&$D$7&$A106,BD!$AG$5:$AG$66000),IF(AND($B$3=1,$E$5<500),SUMIF(BD!$W$5:$W$66000,VALUE($E$101)&"/"&$D$7&$A106,BD!$AG$5:$AG$66000),0))))/1000*$B$101) -> 0 | I106: =IF($B$101=0,0,(IF($C$3<>1,IF($E$5<500,SUMIF(BD!$O$5:$O$66000,VALUE($E$101)&"/"&$G$5&"/"&$C$7&$A106,BD!$AH$5:$AH$66000),0),IF(AND($B$3<>1,$E$5<500),SUMIF(BD!$K$5:$K$66000,VALUE($E$101)&"/"&$G$5&"/"&$C$7&$A106,BD!$AH$5:$AH$66000),IF(AND($B$3=1,$E$5<500),SUMIF(BD!$N$5:$N$66000,VALUE($E$101)&"/"&$C$7&$A106,BD!$AH$5:$AH$66000),0))))/1000*$B$101) -> 0 | J106: =IF($B$101=0,0,(IF($C$3<>1,IF($E$5<500,SUMIF(BD!$X$5:$X$66000,VALUE($E$101)&"/"&$G$5&"/"&$D$7&$A106,BD!$AI$5:$AI$66000),0),IF(AND($B$3<>1,$E$5<500),SUMIF(BD!$T$5:$T$66000,VALUE($E$101)&"/"&$G$5&"/"&$D$7&$A106,BD!$AI$5:$AI$66000),IF(AND($B$3=1,$E$5<500),SUMIF(BD!$W$5:$W$66000,VALUE($E$101)&"/"&$D$7&$A106,BD!$AI$5:$AI$66000),0))))/1000*$B$101) -> 0 | K106: =IF($B$101=0,0,(IF($C$3<>1,IF($E$5<500,SUMIF(BD!$O$5:$O$66000,VALUE($E$101)&"/"&$G$5&"/"&$C$7&$A106,BD!$AJ$5:$AJ$66000),0),IF(AND($B$3<>1,$E$5<500),SUMIF(BD!$K$5:$K$66000,VALUE($E$101)&"/"&$G$5&"/"&$C$7&$A106,BD!$AJ$5:$AJ$66000),IF(AND($B$3=1,$E$5<500),SUMIF(BD!$N$5:$N$66000,VALUE($E$101)&"/"&$C$7&$A106,BD!$AJ$5:$AJ$66000),0))))/1000*$B$101) -> 0 | L106: =IF($B$101=0,0,(IF($C$3<>1,IF($E$5<500,SUMIF(BD!$X$5:$X$66000,VALUE($E$101)&"/"&$G$5&"/"&$D$7&$A106,BD!$AK$5:$AK$66000),0),IF(AND($B$3<>1,$E$5<500),SUMIF(BD!$T$5:$T$66000,VALUE($E$101)&"/"&$G$5&"/"&$D$7&$A106,BD!$AK$5:$AK$66000),IF(AND($B$3=1,$E$5<500),SUMIF(BD!$W$5:$W$66000,VALUE($E$101)&"/"&$D$7&$A106,BD!$AK$5:$AK$66000),0))))/1000*$B$101) -> 0
A107: 03 | B107: MARÇO | C107: =IF($B$101=0,0,(IF($C$3<>1,IF($E$5<500,SUMIF(BD!$O$5:$O$66000,VALUE($E$101)&"/"&$G$5&"/"&$C$7&$A107,BD!$AB$5:$AB$66000),0),IF(AND($B$3<>1,$E$5<500),SUMIF(BD!$K$5:$K$66000,VALUE($E$101)&"/"&$G$5&"/"&$C$7&$A107,BD!$AB$5:$AB$66000),IF(AND($B$3=1,$E$5<500),SUMIF(BD!$N$5:$N$66000,VALUE($E$101)&"/"&$C$7&$A107,BD!$AB$5:$AB$66000),0))))/1000*$B$101) -> 0 | D107: =IF($B$101=0,0,(IF($C$3<>1,IF($E$5<500,SUMIF(BD!$X$5:$X$66000,VALUE($E$101)&"/"&$G$5&"/"&$D$7&$A107,BD!$AC$5:$AC$66000),0),IF(AND($B$3<>1,$E$5<500),SUMIF(BD!$T$5:$T$66000,VALUE($E$101)&"/"&$G$5&"/"&$D$7&$A107,BD!$AC$5:$AC$66000),IF(AND($B$3=1,$E$5<500),SUMIF(BD!$W$5:$W$66000,VALUE($E$101)&"/"&$D$7&$A107,BD!$AC$5:$AC$66000),0))))/1000*$B$101) -> 0 | E107: =IF($B$101=0,0,(IF($C$3<>1,IF($E$5<500,SUMIF(BD!$O$5:$O$66000,VALUE($E$101)&"/"&$G$5&"/"&$C$7&$A107,BD!$AD$5:$AD$66000),0),IF(AND($B$3<>1,$E$5<500),SUMIF(BD!$K$5:$K$66000,VALUE($E$101)&"/"&$G$5&"/"&$C$7&$A107,BD!$AD$5:$AD$66000),IF(AND($B$3=1,$E$5<500),SUMIF(BD!$N$5:$N$66000,VALUE($E$101)&"/"&$C$7&$A107,BD!$AD$5:$AD$66000),0))))/1000*$B$101) -> 0 | F107: =IF($B$101=0,0,(IF($C$3<>1,IF($E$5<500,SUMIF(BD!$X$5:$X$66000,VALUE($E$101)&"/"&$G$5&"/"&$D$7&$A107,BD!$AE$5:$AE$66000),0),IF(AND($B$3<>1,$E$5<500),SUMIF(BD!$T$5:$T$66000,VALUE($E$101)&"/"&$G$5&"/"&$D$7&$A107,BD!$AE$5:$AE$66000),IF(AND($B$3=1,$E$5<500),SUMIF(BD!$W$5:$W$66000,VALUE($E$101)&"/"&$D$7&$A107,BD!$AE$5:$AE$66000),0))))/1000*$B$101) -> 0 | G107: =IF($B$101=0,0,(IF($C$3<>1,IF($E$5<500,SUMIF(BD!$O$5:$O$66000,VALUE($E$101)&"/"&$G$5&"/"&$C$7&$A107,BD!$AF$5:$AF$66000),0),IF(AND($B$3<>1,$E$5<500),SUMIF(BD!$K$5:$K$66000,VALUE($E$101)&"/"&$G$5&"/"&$C$7&$A107,BD!$AF$5:$AF$66000),IF(AND($B$3=1,$E$5<500),SUMIF(BD!$N$5:$N$66000,VALUE($E$101)&"/"&$C$7&$A107,BD!$AF$5:$AF$66000),0))))/1000*$B$101) -> 0 | H107: =IF($B$101=0,0,(IF($C$3<>1,IF($E$5<500,SUMIF(BD!$X$5:$X$66000,VALUE($E$101)&"/"&$G$5&"/"&$D$7&$A107,BD!$AG$5:$AG$66000),0),IF(AND($B$3<>1,$E$5<500),SUMIF(BD!$T$5:$T$66000,VALUE($E$101)&"/"&$G$5&"/"&$D$7&$A107,BD!$AG$5:$AG$66000),IF(AND($B$3=1,$E$5<500),SUMIF(BD!$W$5:$W$66000,VALUE($E$101)&"/"&$D$7&$A107,BD!$AG$5:$AG$66000),0))))/1000*$B$101) -> 0 | I107: =IF($B$101=0,0,(IF($C$3<>1,IF($E$5<500,SUMIF(BD!$O$5:$O$66000,VALUE($E$101)&"/"&$G$5&"/"&$C$7&$A107,BD!$AH$5:$AH$66000),0),IF(AND($B$3<>1,$E$5<500),SUMIF(BD!$K$5:$K$66000,VALUE($E$101)&"/"&$G$5&"/"&$C$7&$A107,BD!$AH$5:$AH$66000),IF(AND($B$3=1,$E$5<500),SUMIF(BD!$N$5:$N$66000,VALUE($E$101)&"/"&$C$7&$A107,BD!$AH$5:$AH$66000),0))))/1000*$B$101) -> 0 | J107: =IF($B$101=0,0,(IF($C$3<>1,IF($E$5<500,SUMIF(BD!$X$5:$X$66000,VALUE($E$101)&"/"&$G$5&"/"&$D$7&$A107,BD!$AI$5:$AI$66000),0),IF(AND($B$3<>1,$E$5<500),SUMIF(BD!$T$5:$T$66000,VALUE($E$101)&"/"&$G$5&"/"&$D$7&$A107,BD!$AI$5:$AI$66000),IF(AND($B$3=1,$E$5<500),SUMIF(BD!$W$5:$W$66000,VALUE($E$101)&"/"&$D$7&$A107,BD!$AI$5:$AI$66000),0))))/1000*$B$101) -> 0 | K107: =IF($B$101=0,0,(IF($C$3<>1,IF($E$5<500,SUMIF(BD!$O$5:$O$66000,VALUE($E$101)&"/"&$G$5&"/"&$C$7&$A107,BD!$AJ$5:$AJ$66000),0),IF(AND($B$3<>1,$E$5<500),SUMIF(BD!$K$5:$K$66000,VALUE($E$101)&"/"&$G$5&"/"&$C$7&$A107,BD!$AJ$5:$AJ$66000),IF(AND($B$3=1,$E$5<500),SUMIF(BD!$N$5:$N$66000,VALUE($E$101)&"/"&$C$7&$A107,BD!$AJ$5:$AJ$66000),0))))/1000*$B$101) -> 0 | L107: =IF($B$101=0,0,(IF($C$3<>1,IF($E$5<500,SUMIF(BD!$X$5:$X$66000,VALUE($E$101)&"/"&$G$5&"/"&$D$7&$A107,BD!$AK$5:$AK$66000),0),IF(AND($B$3<>1,$E$5<500),SUMIF(BD!$T$5:$T$66000,VALUE($E$101)&"/"&$G$5&"/"&$D$7&$A107,BD!$AK$5:$AK$66000),IF(AND($B$3=1,$E$5<500),SUMIF(BD!$W$5:$W$66000,VALUE($E$101)&"/"&$D$7&$A107,BD!$AK$5:$AK$66000),0))))/1000*$B$101) -> 0
A108: 04 | B108: ABRIL | C108: =IF($B$101=0,0,(IF($C$3<>1,IF($E$5<500,SUMIF(BD!$O$5:$O$66000,VALUE($E$101)&"/"&$G$5&"/"&$C$7&$A108,BD!$AB$5:$AB$66000),0),IF(AND($B$3<>1,$E$5<500),SUMIF(BD!$K$5:$K$66000,VALUE($E$101)&"/"&$G$5&"/"&$C$7&$A108,BD!$AB$5:$AB$66000),IF(AND($B$3=1,$E$5<500),SUMIF(BD!$N$5:$N$66000,VALUE($E$101)&"/"&$C$7&$A108,BD!$AB$5:$AB$66000),0))))/1000*$B$101) -> 0 | D108: =IF($B$101=0,0,(IF($C$3<>1,IF($E$5<500,SUMIF(BD!$X$5:$X$66000,VALUE($E$101)&"/"&$G$5&"/"&$D$7&$A108,BD!$AC$5:$AC$66000),0),IF(AND($B$3<>1,$E$5<500),SUMIF(BD!$T$5:$T$66000,VALUE($E$101)&"/"&$G$5&"/"&$D$7&$A108,BD!$AC$5:$AC$66000),IF(AND($B$3=1,$E$5<500),SUMIF(BD!$W$5:$W$66000,VALUE($E$101)&"/"&$D$7&$A108,BD!$AC$5:$AC$66000),0))))/1000*$B$101) -> 0 | E108: =IF($B$101=0,0,(IF($C$3<>1,IF($E$5<500,SUMIF(BD!$O$5:$O$66000,VALUE($E$101)&"/"&$G$5&"/"&$C$7&$A108,BD!$AD$5:$AD$66000),0),IF(AND($B$3<>1,$E$5<500),SUMIF(BD!$K$5:$K$66000,VALUE($E$101)&"/"&$G$5&"/"&$C$7&$A108,BD!$AD$5:$AD$66000),IF(AND($B$3=1,$E$5<500),SUMIF(BD!$N$5:$N$66000,VALUE($E$101)&"/"&$C$7&$A108,BD!$AD$5:$AD$66000),0))))/1000*$B$101) -> 0 | F108: =IF($B$101=0,0,(IF($C$3<>1,IF($E$5<500,SUMIF(BD!$X$5:$X$66000,VALUE($E$101)&"/"&$G$5&"/"&$D$7&$A108,BD!$AE$5:$AE$66000),0),IF(AND($B$3<>1,$E$5<500),SUMIF(BD!$T$5:$T$66000,VALUE($E$101)&"/"&$G$5&"/"&$D$7&$A108,BD!$AE$5:$AE$66000),IF(AND($B$3=1,$E$5<500),SUMIF(BD!$W$5:$W$66000,VALUE($E$101)&"/"&$D$7&$A108,BD!$AE$5:$AE$66000),0))))/1000*$B$101) -> 0 | G108: =IF($B$101=0,0,(IF($C$3<>1,IF($E$5<500,SUMIF(BD!$O$5:$O$66000,VALUE($E$101)&"/"&$G$5&"/"&$C$7&$A108,BD!$AF$5:$AF$66000),0),IF(AND($B$3<>1,$E$5<500),SUMIF(BD!$K$5:$K$66000,VALUE($E$101)&"/"&$G$5&"/"&$C$7&$A108,BD!$AF$5:$AF$66000),IF(AND($B$3=1,$E$5<500),SUMIF(BD!$N$5:$N$66000,VALUE($E$101)&"/"&$C$7&$A108,BD!$AF$5:$AF$66000),0))))/1000*$B$101) -> 0 | H108: =IF($B$101=0,0,(IF($C$3<>1,IF($E$5<500,SUMIF(BD!$X$5:$X$66000,VALUE($E$101)&"/"&$G$5&"/"&$D$7&$A108,BD!$AG$5:$AG$66000),0),IF(AND($B$3<>1,$E$5<500),SUMIF(BD!$T$5:$T$66000,VALUE($E$101)&"/"&$G$5&"/"&$D$7&$A108,BD!$AG$5:$AG$66000),IF(AND($B$3=1,$E$5<500),SUMIF(BD!$W$5:$W$66000,VALUE($E$101)&"/"&$D$7&$A108,BD!$AG$5:$AG$66000),0))))/1000*$B$101) -> 0 | I108: =IF($B$101=0,0,(IF($C$3<>1,IF($E$5<500,SUMIF(BD!$O$5:$O$66000,VALUE($E$101)&"/"&$G$5&"/"&$C$7&$A108,BD!$AH$5:$AH$66000),0),IF(AND($B$3<>1,$E$5<500),SUMIF(BD!$K$5:$K$66000,VALUE($E$101)&"/"&$G$5&"/"&$C$7&$A108,BD!$AH$5:$AH$66000),IF(AND($B$3=1,$E$5<500),SUMIF(BD!$N$5:$N$66000,VALUE($E$101)&"/"&$C$7&$A108,BD!$AH$5:$AH$66000),0))))/1000*$B$101) -> 0 | J108: =IF($B$101=0,0,(IF($C$3<>1,IF($E$5<500,SUMIF(BD!$X$5:$X$66000,VALUE($E$101)&"/"&$G$5&"/"&$D$7&$A108,BD!$AI$5:$AI$66000),0),IF(AND($B$3<>1,$E$5<500),SUMIF(BD!$T$5:$T$66000,VALUE($E$101)&"/"&$G$5&"/"&$D$7&$A108,BD!$AI$5:$AI$66000),IF(AND($B$3=1,$E$5<500),SUMIF(BD!$W$5:$W$66000,VALUE($E$101)&"/"&$D$7&$A108,BD!$AI$5:$AI$66000),0))))/1000*$B$101) -> 0 | K108: =IF($B$101=0,0,(IF($C$3<>1,IF($E$5<500,SUMIF(BD!$O$5:$O$66000,VALUE($E$101)&"/"&$G$5&"/"&$C$7&$A108,BD!$AJ$5:$AJ$66000),0),IF(AND($B$3<>1,$E$5<500),SUMIF(BD!$K$5:$K$66000,VALUE($E$101)&"/"&$G$5&"/"&$C$7&$A108,BD!$AJ$5:$AJ$66000),IF(AND($B$3=1,$E$5<500),SUMIF(BD!$N$5:$N$66000,VALUE($E$101)&"/"&$C$7&$A108,BD!$AJ$5:$AJ$66000),0))))/1000*$B$101) -> 0 | L108: =IF($B$101=0,0,(IF($C$3<>1,IF($E$5<500,SUMIF(BD!$X$5:$X$66000,VALUE($E$101)&"/"&$G$5&"/"&$D$7&$A108,BD!$AK$5:$AK$66000),0),IF(AND($B$3<>1,$E$5<500),SUMIF(BD!$T$5:$T$66000,VALUE($E$101)&"/"&$G$5&"/"&$D$7&$A108,BD!$AK$5:$AK$66000),IF(AND($B$3=1,$E$5<500),SUMIF(BD!$W$5:$W$66000,VALUE($E$101)&"/"&$D$7&$A108,BD!$AK$5:$AK$66000),0))))/1000*$B$101) -> 0
A109: 05 | B109: MAIO | C109: =IF($B$101=0,0,(IF($C$3<>1,IF($E$5<500,SUMIF(BD!$O$5:$O$66000,VALUE($E$101)&"/"&$G$5&"/"&$C$7&$A109,BD!$AB$5:$AB$66000),0),IF(AND($B$3<>1,$E$5<500),SUMIF(BD!$K$5:$K$66000,VALUE($E$101)&"/"&$G$5&"/"&$C$7&$A109,BD!$AB$5:$AB$66000),IF(AND($B$3=1,$E$5<500),SUMIF(BD!$N$5:$N$66000,VALUE($E$101)&"/"&$C$7&$A109,BD!$AB$5:$AB$66000),0))))/1000*$B$101) -> 0 | D109: =IF($B$101=0,0,(IF($C$3<>1,IF($E$5<500,SUMIF(BD!$X$5:$X$66000,VALUE($E$101)&"/"&$G$5&"/"&$D$7&$A109,BD!$AC$5:$AC$66000),0),IF(AND($B$3<>1,$E$5<500),SUMIF(BD!$T$5:$T$66000,VALUE($E$101)&"/"&$G$5&"/"&$D$7&$A109,BD!$AC$5:$AC$66000),IF(AND($B$3=1,$E$5<500),SUMIF(BD!$W$5:$W$66000,VALUE($E$101)&"/"&$D$7&$A109,BD!$AC$5:$AC$66000),0))))/1000*$B$101) -> 0 | E109: =IF($B$101=0,0,(IF($C$3<>1,IF($E$5<500,SUMIF(BD!$O$5:$O$66000,VALUE($E$101)&"/"&$G$5&"/"&$C$7&$A109,BD!$AD$5:$AD$66000),0),IF(AND($B$3<>1,$E$5<500),SUMIF(BD!$K$5:$K$66000,VALUE($E$101)&"/"&$G$5&"/"&$C$7&$A109,BD!$AD$5:$AD$66000),IF(AND($B$3=1,$E$5<500),SUMIF(BD!$N$5:$N$66000,VALUE($E$101)&"/"&$C$7&$A109,BD!$AD$5:$AD$66000),0))))/1000*$B$101) -> 0 | F109: =IF($B$101=0,0,(IF($C$3<>1,IF($E$5<500,SUMIF(BD!$X$5:$X$66000,VALUE($E$101)&"/"&$G$5&"/"&$D$7&$A109,BD!$AE$5:$AE$66000),0),IF(AND($B$3<>1,$E$5<500),SUMIF(BD!$T$5:$T$66000,VALUE($E$101)&"/"&$G$5&"/"&$D$7&$A109,BD!$AE$5:$AE$66000),IF(AND($B$3=1,$E$5<500),SUMIF(BD!$W$5:$W$66000,VALUE($E$101)&"/"&$D$7&$A109,BD!$AE$5:$AE$66000),0))))/1000*$B$101) -> 0 | G109: =IF($B$101=0,0,(IF($C$3<>1,IF($E$5<500,SUMIF(BD!$O$5:$O$66000,VALUE($E$101)&"/"&$G$5&"/"&$C$7&$A109,BD!$AF$5:$AF$66000),0),IF(AND($B$3<>1,$E$5<500),SUMIF(BD!$K$5:$K$66000,VALUE($E$101)&"/"&$G$5&"/"&$C$7&$A109,BD!$AF$5:$AF$66000),IF(AND($B$3=1,$E$5<500),SUMIF(BD!$N$5:$N$66000,VALUE($E$101)&"/"&$C$7&$A109,BD!$AF$5:$AF$66000),0))))/1000*$B$101) -> 0 | H109: =IF($B$101=0,0,(IF($C$3<>1,IF($E$5<500,SUMIF(BD!$X$5:$X$66000,VALUE($E$101)&"/"&$G$5&"/"&$D$7&$A109,BD!$AG$5:$AG$66000),0),IF(AND($B$3<>1,$E$5<500),SUMIF(BD!$T$5:$T$66000,VALUE($E$101)&"/"&$G$5&"/"&$D$7&$A109,BD!$AG$5:$AG$66000),IF(AND($B$3=1,$E$5<500),SUMIF(BD!$W$5:$W$66000,VALUE($E$101)&"/"&$D$7&$A109,BD!$AG$5:$AG$66000),0))))/1000*$B$101) -> 0 | I109: =IF($B$101=0,0,(IF($C$3<>1,IF($E$5<500,SUMIF(BD!$O$5:$O$66000,VALUE($E$101)&"/"&$G$5&"/"&$C$7&$A109,BD!$AH$5:$AH$66000),0),IF(AND($B$3<>1,$E$5<500),SUMIF(BD!$K$5:$K$66000,VALUE($E$101)&"/"&$G$5&"/"&$C$7&$A109,BD!$AH$5:$AH$66000),IF(AND($B$3=1,$E$5<500),SUMIF(BD!$N$5:$N$66000,VALUE($E$101)&"/"&$C$7&$A109,BD!$AH$5:$AH$66000),0))))/1000*$B$101) -> 0 | J109: =IF($B$101=0,0,(IF($C$3<>1,IF($E$5<500,SUMIF(BD!$X$5:$X$66000,VALUE($E$101)&"/"&$G$5&"/"&$D$7&$A109,BD!$AI$5:$AI$66000),0),IF(AND($B$3<>1,$E$5<500),SUMIF(BD!$T$5:$T$66000,VALUE($E$101)&"/"&$G$5&"/"&$D$7&$A109,BD!$AI$5:$AI$66000),IF(AND($B$3=1,$E$5<500),SUMIF(BD!$W$5:$W$66000,VALUE($E$101)&"/"&$D$7&$A109,BD!$AI$5:$AI$66000),0))))/1000*$B$101) -> 0 | K109: =IF($B$101=0,0,(IF($C$3<>1,IF($E$5<500,SUMIF(BD!$O$5:$O$66000,VALUE($E$101)&"/"&$G$5&"/"&$C$7&$A109,BD!$AJ$5:$AJ$66000),0),IF(AND($B$3<>1,$E$5<500),SUMIF(BD!$K$5:$K$66000,VALUE($E$101)&"/"&$G$5&"/"&$C$7&$A109,BD!$AJ$5:$AJ$66000),IF(AND($B$3=1,$E$5<500),SUMIF(BD!$N$5:$N$66000,VALUE($E$101)&"/"&$C$7&$A109,BD!$AJ$5:$AJ$66000),0))))/1000*$B$101) -> 0 | L109: =IF($B$101=0,0,(IF($C$3<>1,IF($E$5<500,SUMIF(BD!$X$5:$X$66000,VALUE($E$101)&"/"&$G$5&"/"&$D$7&$A109,BD!$AK$5:$AK$66000),0),IF(AND($B$3<>1,$E$5<500),SUMIF(BD!$T$5:$T$66000,VALUE($E$101)&"/"&$G$5&"/"&$D$7&$A109,BD!$AK$5:$AK$66000),IF(AND($B$3=1,$E$5<500),SUMIF(BD!$W$5:$W$66000,VALUE($E$101)&"/"&$D$7&$A109,BD!$AK$5:$AK$66000),0))))/1000*$B$101) -> 0
A110: 06 | B110: JUNHO | C110: =IF($B$101=0,0,(IF($C$3<>1,IF($E$5<500,SUMIF(BD!$O$5:$O$66000,VALUE($E$101)&"/"&$G$5&"/"&$C$7&$A110,BD!$AB$5:$AB$66000),0),IF(AND($B$3<>1,$E$5<500),SUMIF(BD!$K$5:$K$66000,VALUE($E$101)&"/"&$G$5&"/"&$C$7&$A110,BD!$AB$5:$AB$66000),IF(AND($B$3=1,$E$5<500),SUMIF(BD!$N$5:$N$66000,VALUE($E$101)&"/"&$C$7&$A110,BD!$AB$5:$AB$66000),0))))/1000*$B$101) -> 0 | D110: =IF($B$101=0,0,(IF($C$3<>1,IF($E$5<500,SUMIF(BD!$X$5:$X$66000,VALUE($E$101)&"/"&$G$5&"/"&$D$7&$A110,BD!$AC$5:$AC$66000),0),IF(AND($B$3<>1,$E$5<500),SUMIF(BD!$T$5:$T$66000,VALUE($E$101)&"/"&$G$5&"/"&$D$7&$A110,BD!$AC$5:$AC$66000),IF(AND($B$3=1,$E$5<500),SUMIF(BD!$W$5:$W$66000,VALUE($E$101)&"/"&$D$7&$A110,BD!$AC$5:$AC$66000),0))))/1000*$B$101) -> 0 | E110: =IF($B$101=0,0,(IF($C$3<>1,IF($E$5<500,SUMIF(BD!$O$5:$O$66000,VALUE($E$101)&"/"&$G$5&"/"&$C$7&$A110,BD!$AD$5:$AD$66000),0),IF(AND($B$3<>1,$E$5<500),SUMIF(BD!$K$5:$K$66000,VALUE($E$101)&"/"&$G$5&"/"&$C$7&$A110,BD!$AD$5:$AD$66000),IF(AND($B$3=1,$E$5<500),SUMIF(BD!$N$5:$N$66000,VALUE($E$101)&"/"&$C$7&$A110,BD!$AD$5:$AD$66000),0))))/1000*$B$101) -> 0 | F110: =IF($B$101=0,0,(IF($C$3<>1,IF($E$5<500,SUMIF(BD!$X$5:$X$66000,VALUE($E$101)&"/"&$G$5&"/"&$D$7&$A110,BD!$AE$5:$AE$66000),0),IF(AND($B$3<>1,$E$5<500),SUMIF(BD!$T$5:$T$66000,VALUE($E$101)&"/"&$G$5&"/"&$D$7&$A110,BD!$AE$5:$AE$66000),IF(AND($B$3=1,$E$5<500),SUMIF(BD!$W$5:$W$66000,VALUE($E$101)&"/"&$D$7&$A110,BD!$AE$5:$AE$66000),0))))/1000*$B$101) -> 0 | G110: =IF($B$101=0,0,(IF($C$3<>1,IF($E$5<500,SUMIF(BD!$O$5:$O$66000,VALUE($E$101)&"/"&$G$5&"/"&$C$7&$A110,BD!$AF$5:$AF$66000),0),IF(AND($B$3<>1,$E$5<500),SUMIF(BD!$K$5:$K$66000,VALUE($E$101)&"/"&$G$5&"/"&$C$7&$A110,BD!$AF$5:$AF$66000),IF(AND($B$3=1,$E$5<500),SUMIF(BD!$N$5:$N$66000,VALUE($E$101)&"/"&$C$7&$A110,BD!$AF$5:$AF$66000),0))))/1000*$B$101) -> 0 | H110: =IF($B$101=0,0,(IF($C$3<>1,IF($E$5<500,SUMIF(BD!$X$5:$X$66000,VALUE($E$101)&"/"&$G$5&"/"&$D$7&$A110,BD!$AG$5:$AG$66000),0),IF(AND($B$3<>1,$E$5<500),SUMIF(BD!$T$5:$T$66000,VALUE($E$101)&"/"&$G$5&"/"&$D$7&$A110,BD!$AG$5:$AG$66000),IF(AND($B$3=1,$E$5<500),SUMIF(BD!$W$5:$W$66000,VALUE($E$101)&"/"&$D$7&$A110,BD!$AG$5:$AG$66000),0))))/1000*$B$101) -> 0 | I110: =IF($B$101=0,0,(IF($C$3<>1,IF($E$5<500,SUMIF(BD!$O$5:$O$66000,VALUE($E$101)&"/"&$G$5&"/"&$C$7&$A110,BD!$AH$5:$AH$66000),0),IF(AND($B$3<>1,$E$5<500),SUMIF(BD!$K$5:$K$66000,VALUE($E$101)&"/"&$G$5&"/"&$C$7&$A110,BD!$AH$5:$AH$66000),IF(AND($B$3=1,$E$5<500),SUMIF(BD!$N$5:$N$66000,VALUE($E$101)&"/"&$C$7&$A110,BD!$AH$5:$AH$66000),0))))/1000*$B$101) -> 0 | J110: =IF($B$101=0,0,(IF($C$3<>1,IF($E$5<500,SUMIF(BD!$X$5:$X$66000,VALUE($E$101)&"/"&$G$5&"/"&$D$7&$A110,BD!$AI$5:$AI$66000),0),IF(AND($B$3<>1,$E$5<500),SUMIF(BD!$T$5:$T$66000,VALUE($E$101)&"/"&$G$5&"/"&$D$7&$A110,BD!$AI$5:$AI$66000),IF(AND($B$3=1,$E$5<500),SUMIF(BD!$W$5:$W$66000,VALUE($E$101)&"/"&$D$7&$A110,BD!$AI$5:$AI$66000),0))))/1000*$B$101) -> 0 | K110: =IF($B$101=0,0,(IF($C$3<>1,IF($E$5<500,SUMIF(BD!$O$5:$O$66000,VALUE($E$101)&"/"&$G$5&"/"&$C$7&$A110,BD!$AJ$5:$AJ$66000),0),IF(AND($B$3<>1,$E$5<500),SUMIF(BD!$K$5:$K$66000,VALUE($E$101)&"/"&$G$5&"/"&$C$7&$A110,BD!$AJ$5:$AJ$66000),IF(AND($B$3=1,$E$5<500),SUMIF(BD!$N$5:$N$66000,VALUE($E$101)&"/"&$C$7&$A110,BD!$AJ$5:$AJ$66000),0))))/1000*$B$101) -> 0 | L110: =IF($B$101=0,0,(IF($C$3<>1,IF($E$5<500,SUMIF(BD!$X$5:$X$66000,VALUE($E$101)&"/"&$G$5&"/"&$D$7&$A110,BD!$AK$5:$AK$66000),0),IF(AND($B$3<>1,$E$5<500),SUMIF(BD!$T$5:$T$66000,VALUE($E$101)&"/"&$G$5&"/"&$D$7&$A110,BD!$AK$5:$AK$66000),IF(AND($B$3=1,$E$5<500),SUMIF(BD!$W$5:$W$66000,VALUE($E$101)&"/"&$D$7&$A110,BD!$AK$5:$AK$66000),0))))/1000*$B$101) -> 0
A111: 07 | B111: JULHO | C111: =IF($B$101=0,0,(IF($C$3<>1,IF($E$5<500,SUMIF(BD!$O$5:$O$66000,VALUE($E$101)&"/"&$G$5&"/"&$C$7&$A111,BD!$AB$5:$AB$66000),0),IF(AND($B$3<>1,$E$5<500),SUMIF(BD!$K$5:$K$66000,VALUE($E$101)&"/"&$G$5&"/"&$C$7&$A111,BD!$AB$5:$AB$66000),IF(AND($B$3=1,$E$5<500),SUMIF(BD!$N$5:$N$66000,VALUE($E$101)&"/"&$C$7&$A111,BD!$AB$5:$AB$66000),0))))/1000*$B$101) -> 0 | D111: =IF($B$101=0,0,(IF($C$3<>1,IF($E$5<500,SUMIF(BD!$X$5:$X$66000,VALUE($E$101)&"/"&$G$5&"/"&$D$7&$A111,BD!$AC$5:$AC$66000),0),IF(AND($B$3<>1,$E$5<500),SUMIF(BD!$T$5:$T$66000,VALUE($E$101)&"/"&$G$5&"/"&$D$7&$A111,BD!$AC$5:$AC$66000),IF(AND($B$3=1,$E$5<500),SUMIF(BD!$W$5:$W$66000,VALUE($E$101)&"/"&$D$7&$A111,BD!$AC$5:$AC$66000),0))))/1000*$B$101) -> 0 | E111: =IF($B$101=0,0,(IF($C$3<>1,IF($E$5<500,SUMIF(BD!$O$5:$O$66000,VALUE($E$101)&"/"&$G$5&"/"&$C$7&$A111,BD!$AD$5:$AD$66000),0),IF(AND($B$3<>1,$E$5<500),SUMIF(BD!$K$5:$K$66000,VALUE($E$101)&"/"&$G$5&"/"&$C$7&$A111,BD!$AD$5:$AD$66000),IF(AND($B$3=1,$E$5<500),SUMIF(BD!$N$5:$N$66000,VALUE($E$101)&"/"&$C$7&$A111,BD!$AD$5:$AD$66000),0))))/1000*$B$101) -> 0 | F111: =IF($B$101=0,0,(IF($C$3<>1,IF($E$5<500,SUMIF(BD!$X$5:$X$66000,VALUE($E$101)&"/"&$G$5&"/"&$D$7&$A111,BD!$AE$5:$AE$66000),0),IF(AND($B$3<>1,$E$5<500),SUMIF(BD!$T$5:$T$66000,VALUE($E$101)&"/"&$G$5&"/"&$D$7&$A111,BD!$AE$5:$AE$66000),IF(AND($B$3=1,$E$5<500),SUMIF(BD!$W$5:$W$66000,VALUE($E$101)&"/"&$D$7&$A111,BD!$AE$5:$AE$66000),0))))/1000*$B$101) -> 0 | G111: =IF($B$101=0,0,(IF($C$3<>1,IF($E$5<500,SUMIF(BD!$O$5:$O$66000,VALUE($E$101)&"/"&$G$5&"/"&$C$7&$A111,BD!$AF$5:$AF$66000),0),IF(AND($B$3<>1,$E$5<500),SUMIF(BD!$K$5:$K$66000,VALUE($E$101)&"/"&$G$5&"/"&$C$7&$A111,BD!$AF$5:$AF$66000),IF(AND($B$3=1,$E$5<500),SUMIF(BD!$N$5:$N$66000,VALUE($E$101)&"/"&$C$7&$A111,BD!$AF$5:$AF$66000),0))))/1000*$B$101) -> 0 | H111: =IF($B$101=0,0,(IF($C$3<>1,IF($E$5<500,SUMIF(BD!$X$5:$X$66000,VALUE($E$101)&"/"&$G$5&"/"&$D$7&$A111,BD!$AG$5:$AG$66000),0),IF(AND($B$3<>1,$E$5<500),SUMIF(BD!$T$5:$T$66000,VALUE($E$101)&"/"&$G$5&"/"&$D$7&$A111,BD!$AG$5:$AG$66000),IF(AND($B$3=1,$E$5<500),SUMIF(BD!$W$5:$W$66000,VALUE($E$101)&"/"&$D$7&$A111,BD!$AG$5:$AG$66000),0))))/1000*$B$101) -> 0 | I111: =IF($B$101=0,0,(IF($C$3<>1,IF($E$5<500,SUMIF(BD!$O$5:$O$66000,VALUE($E$101)&"/"&$G$5&"/"&$C$7&$A111,BD!$AH$5:$AH$66000),0),IF(AND($B$3<>1,$E$5<500),SUMIF(BD!$K$5:$K$66000,VALUE($E$101)&"/"&$G$5&"/"&$C$7&$A111,BD!$AH$5:$AH$66000),IF(AND($B$3=1,$E$5<500),SUMIF(BD!$N$5:$N$66000,VALUE($E$101)&"/"&$C$7&$A111,BD!$AH$5:$AH$66000),0))))/1000*$B$101) -> 0 | J111: =IF($B$101=0,0,(IF($C$3<>1,IF($E$5<500,SUMIF(BD!$X$5:$X$66000,VALUE($E$101)&"/"&$G$5&"/"&$D$7&$A111,BD!$AI$5:$AI$66000),0),IF(AND($B$3<>1,$E$5<500),SUMIF(BD!$T$5:$T$66000,VALUE($E$101)&"/"&$G$5&"/"&$D$7&$A111,BD!$AI$5:$AI$66000),IF(AND($B$3=1,$E$5<500),SUMIF(BD!$W$5:$W$66000,VALUE($E$101)&"/"&$D$7&$A111,BD!$AI$5:$AI$66000),0))))/1000*$B$101) -> 0 | K111: =IF($B$101=0,0,(IF($C$3<>1,IF($E$5<500,SUMIF(BD!$O$5:$O$66000,VALUE($E$101)&"/"&$G$5&"/"&$C$7&$A111,BD!$AJ$5:$AJ$66000),0),IF(AND($B$3<>1,$E$5<500),SUMIF(BD!$K$5:$K$66000,VALUE($E$101)&"/"&$G$5&"/"&$C$7&$A111,BD!$AJ$5:$AJ$66000),IF(AND($B$3=1,$E$5<500),SUMIF(BD!$N$5:$N$66000,VALUE($E$101)&"/"&$C$7&$A111,BD!$AJ$5:$AJ$66000),0))))/1000*$B$101) -> 0 | L111: =IF($B$101=0,0,(IF($C$3<>1,IF($E$5<500,SUMIF(BD!$X$5:$X$66000,VALUE($E$101)&"/"&$G$5&"/"&$D$7&$A111,BD!$AK$5:$AK$66000),0),IF(AND($B$3<>1,$E$5<500),SUMIF(BD!$T$5:$T$66000,VALUE($E$101)&"/"&$G$5&"/"&$D$7&$A111,BD!$AK$5:$AK$66000),IF(AND($B$3=1,$E$5<500),SUMIF(BD!$W$5:$W$66000,VALUE($E$101)&"/"&$D$7&$A111,BD!$AK$5:$AK$66000),0))))/1000*$B$101) -> 0
A112: 08 | B112: AGOSTO | C112: =IF($B$101=0,0,(IF($C$3<>1,IF($E$5<500,SUMIF(BD!$O$5:$O$66000,VALUE($E$101)&"/"&$G$5&"/"&$C$7&$A112,BD!$AB$5:$AB$66000),0),IF(AND($B$3<>1,$E$5<500),SUMIF(BD!$K$5:$K$66000,VALUE($E$101)&"/"&$G$5&"/"&$C$7&$A112,BD!$AB$5:$AB$66000),IF(AND($B$3=1,$E$5<500),SUMIF(BD!$N$5:$N$66000,VALUE($E$101)&"/"&$C$7&$A112,BD!$AB$5:$AB$66000),0))))/1000*$B$101) -> 0 | D112: =IF($B$101=0,0,(IF($C$3<>1,IF($E$5<500,SUMIF(BD!$X$5:$X$66000,VALUE($E$101)&"/"&$G$5&"/"&$D$7&$A112,BD!$AC$5:$AC$66000),0),IF(AND($B$3<>1,$E$5<500),SUMIF(BD!$T$5:$T$66000,VALUE($E$101)&"/"&$G$5&"/"&$D$7&$A112,BD!$AC$5:$AC$66000),IF(AND($B$3=1,$E$5<500),SUMIF(BD!$W$5:$W$66000,VALUE($E$101)&"/"&$D$7&$A112,BD!$AC$5:$AC$66000),0))))/1000*$B$101) -> 0 | E112: =IF($B$101=0,0,(IF($C$3<>1,IF($E$5<500,SUMIF(BD!$O$5:$O$66000,VALUE($E$101)&"/"&$G$5&"/"&$C$7&$A112,BD!$AD$5:$AD$66000),0),IF(AND($B$3<>1,$E$5<500),SUMIF(BD!$K$5:$K$66000,VALUE($E$101)&"/"&$G$5&"/"&$C$7&$A112,BD!$AD$5:$AD$66000),IF(AND($B$3=1,$E$5<500),SUMIF(BD!$N$5:$N$66000,VALUE($E$101)&"/"&$C$7&$A112,BD!$AD$5:$AD$66000),0))))/1000*$B$101) -> 0 | F112: =IF($B$101=0,0,(IF($C$3<>1,IF($E$5<500,SUMIF(BD!$X$5:$X$66000,VALUE($E$101)&"/"&$G$5&"/"&$D$7&$A112,BD!$AE$5:$AE$66000),0),IF(AND($B$3<>1,$E$5<500),SUMIF(BD!$T$5:$T$66000,VALUE($E$101)&"/"&$G$5&"/"&$D$7&$A112,BD!$AE$5:$AE$66000),IF(AND($B$3=1,$E$5<500),SUMIF(BD!$W$5:$W$66000,VALUE($E$101)&"/"&$D$7&$A112,BD!$AE$5:$AE$66000),0))))/1000*$B$101) -> 0 | G112: =IF($B$101=0,0,(IF($C$3<>1,IF($E$5<500,SUMIF(BD!$O$5:$O$66000,VALUE($E$101)&"/"&$G$5&"/"&$C$7&$A112,BD!$AF$5:$AF$66000),0),IF(AND($B$3<>1,$E$5<500),SUMIF(BD!$K$5:$K$66000,VALUE($E$101)&"/"&$G$5&"/"&$C$7&$A112,BD!$AF$5:$AF$66000),IF(AND($B$3=1,$E$5<500),SUMIF(BD!$N$5:$N$66000,VALUE($E$101)&"/"&$C$7&$A112,BD!$AF$5:$AF$66000),0))))/1000*$B$101) -> 0 | H112: =IF($B$101=0,0,(IF($C$3<>1,IF($E$5<500,SUMIF(BD!$X$5:$X$66000,VALUE($E$101)&"/"&$G$5&"/"&$D$7&$A112,BD!$AG$5:$AG$66000),0),IF(AND($B$3<>1,$E$5<500),SUMIF(BD!$T$5:$T$66000,VALUE($E$101)&"/"&$G$5&"/"&$D$7&$A112,BD!$AG$5:$AG$66000),IF(AND($B$3=1,$E$5<500),SUMIF(BD!$W$5:$W$66000,VALUE($E$101)&"/"&$D$7&$A112,BD!$AG$5:$AG$66000),0))))/1000*$B$101) -> 0 | I112: =IF($B$101=0,0,(IF($C$3<>1,IF($E$5<500,SUMIF(BD!$O$5:$O$66000,VALUE($E$101)&"/"&$G$5&"/"&$C$7&$A112,BD!$AH$5:$AH$66000),0),IF(AND($B$3<>1,$E$5<500),SUMIF(BD!$K$5:$K$66000,VALUE($E$101)&"/"&$G$5&"/"&$C$7&$A112,BD!$AH$5:$AH$66000),IF(AND($B$3=1,$E$5<500),SUMIF(BD!$N$5:$N$66000,VALUE($E$101)&"/"&$C$7&$A112,BD!$AH$5:$AH$66000),0))))/1000*$B$101) -> 0 | J112: =IF($B$101=0,0,(IF($C$3<>1,IF($E$5<500,SUMIF(BD!$X$5:$X$66000,VALUE($E$101)&"/"&$G$5&"/"&$D$7&$A112,BD!$AI$5:$AI$66000),0),IF(AND($B$3<>1,$E$5<500),SUMIF(BD!$T$5:$T$66000,VALUE($E$101)&"/"&$G$5&"/"&$D$7&$A112,BD!$AI$5:$AI$66000),IF(AND($B$3=1,$E$5<500),SUMIF(BD!$W$5:$W$66000,VALUE($E$101)&"/"&$D$7&$A112,BD!$AI$5:$AI$66000),0))))/1000*$B$101) -> 0 | K112: =IF($B$101=0,0,(IF($C$3<>1,IF($E$5<500,SUMIF(BD!$O$5:$O$66000,VALUE($E$101)&"/"&$G$5&"/"&$C$7&$A112,BD!$AJ$5:$AJ$66000),0),IF(AND($B$3<>1,$E$5<500),SUMIF(BD!$K$5:$K$66000,VALUE($E$101)&"/"&$G$5&"/"&$C$7&$A112,BD!$AJ$5:$AJ$66000),IF(AND($B$3=1,$E$5<500),SUMIF(BD!$N$5:$N$66000,VALUE($E$101)&"/"&$C$7&$A112,BD!$AJ$5:$AJ$66000),0))))/1000*$B$101) -> 0 | L112: =IF($B$101=0,0,(IF($C$3<>1,IF($E$5<500,SUMIF(BD!$X$5:$X$66000,VALUE($E$101)&"/"&$G$5&"/"&$D$7&$A112,BD!$AK$5:$AK$66000),0),IF(AND($B$3<>1,$E$5<500),SUMIF(BD!$T$5:$T$66000,VALUE($E$101)&"/"&$G$5&"/"&$D$7&$A112,BD!$AK$5:$AK$66000),IF(AND($B$3=1,$E$5<500),SUMIF(BD!$W$5:$W$66000,VALUE($E$101)&"/"&$D$7&$A112,BD!$AK$5:$AK$66000),0))))/1000*$B$101) -> 0
A113: 09 | B113: SETEMBRO | C113: =IF($B$101=0,0,(IF($C$3<>1,IF($E$5<500,SUMIF(BD!$O$5:$O$66000,VALUE($E$101)&"/"&$G$5&"/"&$C$7&$A113,BD!$AB$5:$AB$66000),0),IF(AND($B$3<>1,$E$5<500),SUMIF(BD!$K$5:$K$66000,VALUE($E$101)&"/"&$G$5&"/"&$C$7&$A113,BD!$AB$5:$AB$66000),IF(AND($B$3=1,$E$5<500),SUMIF(BD!$N$5:$N$66000,VALUE($E$101)&"/"&$C$7&$A113,BD!$AB$5:$AB$66000),0))))/1000*$B$101) -> 0 | D113: =IF($B$101=0,0,(IF($C$3<>1,IF($E$5<500,SUMIF(BD!$X$5:$X$66000,VALUE($E$101)&"/"&$G$5&"/"&$D$7&$A113,BD!$AC$5:$AC$66000),0),IF(AND($B$3<>1,$E$5<500),SUMIF(BD!$T$5:$T$66000,VALUE($E$101)&"/"&$G$5&"/"&$D$7&$A113,BD!$AC$5:$AC$66000),IF(AND($B$3=1,$E$5<500),SUMIF(BD!$W$5:$W$66000,VALUE($E$101)&"/"&$D$7&$A113,BD!$AC$5:$AC$66000),0))))/1000*$B$101) -> 0 | E113: =IF($B$101=0,0,(IF($C$3<>1,IF($E$5<500,SUMIF(BD!$O$5:$O$66000,VALUE($E$101)&"/"&$G$5&"/"&$C$7&$A113,BD!$AD$5:$AD$66000),0),IF(AND($B$3<>1,$E$5<500),SUMIF(BD!$K$5:$K$66000,VALUE($E$101)&"/"&$G$5&"/"&$C$7&$A113,BD!$AD$5:$AD$66000),IF(AND($B$3=1,$E$5<500),SUMIF(BD!$N$5:$N$66000,VALUE($E$101)&"/"&$C$7&$A113,BD!$AD$5:$AD$66000),0))))/1000*$B$101) -> 0 | F113: =IF($B$101=0,0,(IF($C$3<>1,IF($E$5<500,SUMIF(BD!$X$5:$X$66000,VALUE($E$101)&"/"&$G$5&"/"&$D$7&$A113,BD!$AE$5:$AE$66000),0),IF(AND($B$3<>1,$E$5<500),SUMIF(BD!$T$5:$T$66000,VALUE($E$101)&"/"&$G$5&"/"&$D$7&$A113,BD!$AE$5:$AE$66000),IF(AND($B$3=1,$E$5<500),SUMIF(BD!$W$5:$W$66000,VALUE($E$101)&"/"&$D$7&$A113,BD!$AE$5:$AE$66000),0))))/1000*$B$101) -> 0 | G113: =IF($B$101=0,0,(IF($C$3<>1,IF($E$5<500,SUMIF(BD!$O$5:$O$66000,VALUE($E$101)&"/"&$G$5&"/"&$C$7&$A113,BD!$AF$5:$AF$66000),0),IF(AND($B$3<>1,$E$5<500),SUMIF(BD!$K$5:$K$66000,VALUE($E$101)&"/"&$G$5&"/"&$C$7&$A113,BD!$AF$5:$AF$66000),IF(AND($B$3=1,$E$5<500),SUMIF(BD!$N$5:$N$66000,VALUE($E$101)&"/"&$C$7&$A113,BD!$AF$5:$AF$66000),0))))/1000*$B$101) -> 0 | H113: =IF($B$101=0,0,(IF($C$3<>1,IF($E$5<500,SUMIF(BD!$X$5:$X$66000,VALUE($E$101)&"/"&$G$5&"/"&$D$7&$A113,BD!$AG$5:$AG$66000),0),IF(AND($B$3<>1,$E$5<500),SUMIF(BD!$T$5:$T$66000,VALUE($E$101)&"/"&$G$5&"/"&$D$7&$A113,BD!$AG$5:$AG$66000),IF(AND($B$3=1,$E$5<500),SUMIF(BD!$W$5:$W$66000,VALUE($E$101)&"/"&$D$7&$A113,BD!$AG$5:$AG$66000),0))))/1000*$B$101) -> 0 | I113: =IF($B$101=0,0,(IF($C$3<>1,IF($E$5<500,SUMIF(BD!$O$5:$O$66000,VALUE($E$101)&"/"&$G$5&"/"&$C$7&$A113,BD!$AH$5:$AH$66000),0),IF(AND($B$3<>1,$E$5<500),SUMIF(BD!$K$5:$K$66000,VALUE($E$101)&"/"&$G$5&"/"&$C$7&$A113,BD!$AH$5:$AH$66000),IF(AND($B$3=1,$E$5<500),SUMIF(BD!$N$5:$N$66000,VALUE($E$101)&"/"&$C$7&$A113,BD!$AH$5:$AH$66000),0))))/1000*$B$101) -> 0 | J113: =IF($B$101=0,0,(IF($C$3<>1,IF($E$5<500,SUMIF(BD!$X$5:$X$66000,VALUE($E$101)&"/"&$G$5&"/"&$D$7&$A113,BD!$AI$5:$AI$66000),0),IF(AND($B$3<>1,$E$5<500),SUMIF(BD!$T$5:$T$66000,VALUE($E$101)&"/"&$G$5&"/"&$D$7&$A113,BD!$AI$5:$AI$66000),IF(AND($B$3=1,$E$5<500),SUMIF(BD!$W$5:$W$66000,VALUE($E$101)&"/"&$D$7&$A113,BD!$AI$5:$AI$66000),0))))/1000*$B$101) -> 0 | K113: =IF($B$101=0,0,(IF($C$3<>1,IF($E$5<500,SUMIF(BD!$O$5:$O$66000,VALUE($E$101)&"/"&$G$5&"/"&$C$7&$A113,BD!$AJ$5:$AJ$66000),0),IF(AND($B$3<>1,$E$5<500),SUMIF(BD!$K$5:$K$66000,VALUE($E$101)&"/"&$G$5&"/"&$C$7&$A113,BD!$AJ$5:$AJ$66000),IF(AND($B$3=1,$E$5<500),SUMIF(BD!$N$5:$N$66000,VALUE($E$101)&"/"&$C$7&$A113,BD!$AJ$5:$AJ$66000),0))))/1000*$B$101) -> 0 | L113: =IF($B$101=0,0,(IF($C$3<>1,IF($E$5<500,SUMIF(BD!$X$5:$X$66000,VALUE($E$101)&"/"&$G$5&"/"&$D$7&$A113,BD!$AK$5:$AK$66000),0),IF(AND($B$3<>1,$E$5<500),SUMIF(BD!$T$5:$T$66000,VALUE($E$101)&"/"&$G$5&"/"&$D$7&$A113,BD!$AK$5:$AK$66000),IF(AND($B$3=1,$E$5<500),SUMIF(BD!$W$5:$W$66000,VALUE($E$101)&"/"&$D$7&$A113,BD!$AK$5:$AK$66000),0))))/1000*$B$101) -> 0
A114: 10 | B114: OUTUBRO | C114: =IF($B$101=0,0,(IF($C$3<>1,IF($E$5<500,SUMIF(BD!$O$5:$O$66000,VALUE($E$101)&"/"&$G$5&"/"&$C$7&$A114,BD!$AB$5:$AB$66000),0),IF(AND($B$3<>1,$E$5<500),SUMIF(BD!$K$5:$K$66000,VALUE($E$101)&"/"&$G$5&"/"&$C$7&$A114,BD!$AB$5:$AB$66000),IF(AND($B$3=1,$E$5<500),SUMIF(BD!$N$5:$N$66000,VALUE($E$101)&"/"&$C$7&$A114,BD!$AB$5:$AB$66000),0))))/1000*$B$101) -> 0 | D114: =IF($B$101=0,0,(IF($C$3<>1,IF($E$5<500,SUMIF(BD!$X$5:$X$66000,VALUE($E$101)&"/"&$G$5&"/"&$D$7&$A114,BD!$AC$5:$AC$66000),0),IF(AND($B$3<>1,$E$5<500),SUMIF(BD!$T$5:$T$66000,VALUE($E$101)&"/"&$G$5&"/"&$D$7&$A114,BD!$AC$5:$AC$66000),IF(AND($B$3=1,$E$5<500),SUMIF(BD!$W$5:$W$66000,VALUE($E$101)&"/"&$D$7&$A114,BD!$AC$5:$AC$66000),0))))/1000*$B$101) -> 0 | E114: =IF($B$101=0,0,(IF($C$3<>1,IF($E$5<500,SUMIF(BD!$O$5:$O$66000,VALUE($E$101)&"/"&$G$5&"/"&$C$7&$A114,BD!$AD$5:$AD$66000),0),IF(AND($B$3<>1,$E$5<500),SUMIF(BD!$K$5:$K$66000,VALUE($E$101)&"/"&$G$5&"/"&$C$7&$A114,BD!$AD$5:$AD$66000),IF(AND($B$3=1,$E$5<500),SUMIF(BD!$N$5:$N$66000,VALUE($E$101)&"/"&$C$7&$A114,BD!$AD$5:$AD$66000),0))))/1000*$B$101) -> 0 | F114: =IF($B$101=0,0,(IF($C$3<>1,IF($E$5<500,SUMIF(BD!$X$5:$X$66000,VALUE($E$101)&"/"&$G$5&"/"&$D$7&$A114,BD!$AE$5:$AE$66000),0),IF(AND($B$3<>1,$E$5<500),SUMIF(BD!$T$5:$T$66000,VALUE($E$101)&"/"&$G$5&"/"&$D$7&$A114,BD!$AE$5:$AE$66000),IF(AND($B$3=1,$E$5<500),SUMIF(BD!$W$5:$W$66000,VALUE($E$101)&"/"&$D$7&$A114,BD!$AE$5:$AE$66000),0))))/1000*$B$101) -> 0 | G114: =IF($B$101=0,0,(IF($C$3<>1,IF($E$5<500,SUMIF(BD!$O$5:$O$66000,VALUE($E$101)&"/"&$G$5&"/"&$C$7&$A114,BD!$AF$5:$AF$66000),0),IF(AND($B$3<>1,$E$5<500),SUMIF(BD!$K$5:$K$66000,VALUE($E$101)&"/"&$G$5&"/"&$C$7&$A114,BD!$AF$5:$AF$66000),IF(AND($B$3=1,$E$5<500),SUMIF(BD!$N$5:$N$66000,VALUE($E$101)&"/"&$C$7&$A114,BD!$AF$5:$AF$66000),0))))/1000*$B$101) -> 0 | H114: =IF($B$101=0,0,(IF($C$3<>1,IF($E$5<500,SUMIF(BD!$X$5:$X$66000,VALUE($E$101)&"/"&$G$5&"/"&$D$7&$A114,BD!$AG$5:$AG$66000),0),IF(AND($B$3<>1,$E$5<500),SUMIF(BD!$T$5:$T$66000,VALUE($E$101)&"/"&$G$5&"/"&$D$7&$A114,BD!$AG$5:$AG$66000),IF(AND($B$3=1,$E$5<500),SUMIF(BD!$W$5:$W$66000,VALUE($E$101)&"/"&$D$7&$A114,BD!$AG$5:$AG$66000),0))))/1000*$B$101) -> 0 | I114: =IF($B$101=0,0,(IF($C$3<>1,IF($E$5<500,SUMIF(BD!$O$5:$O$66000,VALUE($E$101)&"/"&$G$5&"/"&$C$7&$A114,BD!$AH$5:$AH$66000),0),IF(AND($B$3<>1,$E$5<500),SUMIF(BD!$K$5:$K$66000,VALUE($E$101)&"/"&$G$5&"/"&$C$7&$A114,BD!$AH$5:$AH$66000),IF(AND($B$3=1,$E$5<500),SUMIF(BD!$N$5:$N$66000,VALUE($E$101)&"/"&$C$7&$A114,BD!$AH$5:$AH$66000),0))))/1000*$B$101) -> 0 | J114: =IF($B$101=0,0,(IF($C$3<>1,IF($E$5<500,SUMIF(BD!$X$5:$X$66000,VALUE($E$101)&"/"&$G$5&"/"&$D$7&$A114,BD!$AI$5:$AI$66000),0),IF(AND($B$3<>1,$E$5<500),SUMIF(BD!$T$5:$T$66000,VALUE($E$101)&"/"&$G$5&"/"&$D$7&$A114,BD!$AI$5:$AI$66000),IF(AND($B$3=1,$E$5<500),SUMIF(BD!$W$5:$W$66000,VALUE($E$101)&"/"&$D$7&$A114,BD!$AI$5:$AI$66000),0))))/1000*$B$101) -> 0 | K114: =IF($B$101=0,0,(IF($C$3<>1,IF($E$5<500,SUMIF(BD!$O$5:$O$66000,VALUE($E$101)&"/"&$G$5&"/"&$C$7&$A114,BD!$AJ$5:$AJ$66000),0),IF(AND($B$3<>1,$E$5<500),SUMIF(BD!$K$5:$K$66000,VALUE($E$101)&"/"&$G$5&"/"&$C$7&$A114,BD!$AJ$5:$AJ$66000),IF(AND($B$3=1,$E$5<500),SUMIF(BD!$N$5:$N$66000,VALUE($E$101)&"/"&$C$7&$A114,BD!$AJ$5:$AJ$66000),0))))/1000*$B$101) -> 0 | L114: =IF($B$101=0,0,(IF($C$3<>1,IF($E$5<500,SUMIF(BD!$X$5:$X$66000,VALUE($E$101)&"/"&$G$5&"/"&$D$7&$A114,BD!$AK$5:$AK$66000),0),IF(AND($B$3<>1,$E$5<500),SUMIF(BD!$T$5:$T$66000,VALUE($E$101)&"/"&$G$5&"/"&$D$7&$A114,BD!$AK$5:$AK$66000),IF(AND($B$3=1,$E$5<500),SUMIF(BD!$W$5:$W$66000,VALUE($E$101)&"/"&$D$7&$A114,BD!$AK$5:$AK$66000),0))))/1000*$B$101) -> 0
A115: 11 | B115: NOVEMBRO | C115: =IF($B$101=0,0,(IF($C$3<>1,IF($E$5<500,SUMIF(BD!$O$5:$O$66000,VALUE($E$101)&"/"&$G$5&"/"&$C$7&$A115,BD!$AB$5:$AB$66000),0),IF(AND($B$3<>1,$E$5<500),SUMIF(BD!$K$5:$K$66000,VALUE($E$101)&"/"&$G$5&"/"&$C$7&$A115,BD!$AB$5:$AB$66000),IF(AND($B$3=1,$E$5<500),SUMIF(BD!$N$5:$N$66000,VALUE($E$101)&"/"&$C$7&$A115,BD!$AB$5:$AB$66000),0))))/1000*$B$101) -> 0 | D115: =IF($B$101=0,0,(IF($C$3<>1,IF($E$5<500,SUMIF(BD!$X$5:$X$66000,VALUE($E$101)&"/"&$G$5&"/"&$D$7&$A115,BD!$AC$5:$AC$66000),0),IF(AND($B$3<>1,$E$5<500),SUMIF(BD!$T$5:$T$66000,VALUE($E$101)&"/"&$G$5&"/"&$D$7&$A115,BD!$AC$5:$AC$66000),IF(AND($B$3=1,$E$5<500),SUMIF(BD!$W$5:$W$66000,VALUE($E$101)&"/"&$D$7&$A115,BD!$AC$5:$AC$66000),0))))/1000*$B$101) -> 0 | E115: =IF($B$101=0,0,(IF($C$3<>1,IF($E$5<500,SUMIF(BD!$O$5:$O$66000,VALUE($E$101)&"/"&$G$5&"/"&$C$7&$A115,BD!$AD$5:$AD$66000),0),IF(AND($B$3<>1,$E$5<500),SUMIF(BD!$K$5:$K$66000,VALUE($E$101)&"/"&$G$5&"/"&$C$7&$A115,BD!$AD$5:$AD$66000),IF(AND($B$3=1,$E$5<500),SUMIF(BD!$N$5:$N$66000,VALUE($E$101)&"/"&$C$7&$A115,BD!$AD$5:$AD$66000),0))))/1000*$B$101) -> 0 | F115: =IF($B$101=0,0,(IF($C$3<>1,IF($E$5<500,SUMIF(BD!$X$5:$X$66000,VALUE($E$101)&"/"&$G$5&"/"&$D$7&$A115,BD!$AE$5:$AE$66000),0),IF(AND($B$3<>1,$E$5<500),SUMIF(BD!$T$5:$T$66000,VALUE($E$101)&"/"&$G$5&"/"&$D$7&$A115,BD!$AE$5:$AE$66000),IF(AND($B$3=1,$E$5<500),SUMIF(BD!$W$5:$W$66000,VALUE($E$101)&"/"&$D$7&$A115,BD!$AE$5:$AE$66000),0))))/1000*$B$101) -> 0 | G115: =IF($B$101=0,0,(IF($C$3<>1,IF($E$5<500,SUMIF(BD!$O$5:$O$66000,VALUE($E$101)&"/"&$G$5&"/"&$C$7&$A115,BD!$AF$5:$AF$66000),0),IF(AND($B$3<>1,$E$5<500),SUMIF(BD!$K$5:$K$66000,VALUE($E$101)&"/"&$G$5&"/"&$C$7&$A115,BD!$AF$5:$AF$66000),IF(AND($B$3=1,$E$5<500),SUMIF(BD!$N$5:$N$66000,VALUE($E$101)&"/"&$C$7&$A115,BD!$AF$5:$AF$66000),0))))/1000*$B$101) -> 0 | H115: =IF($B$101=0,0,(IF($C$3<>1,IF($E$5<500,SUMIF(BD!$X$5:$X$66000,VALUE($E$101)&"/"&$G$5&"/"&$D$7&$A115,BD!$AG$5:$AG$66000),0),IF(AND($B$3<>1,$E$5<500),SUMIF(BD!$T$5:$T$66000,VALUE($E$101)&"/"&$G$5&"/"&$D$7&$A115,BD!$AG$5:$AG$66000),IF(AND($B$3=1,$E$5<500),SUMIF(BD!$W$5:$W$66000,VALUE($E$101)&"/"&$D$7&$A115,BD!$AG$5:$AG$66000),0))))/1000*$B$101) -> 0 | I115: =IF($B$101=0,0,(IF($C$3<>1,IF($E$5<500,SUMIF(BD!$O$5:$O$66000,VALUE($E$101)&"/"&$G$5&"/"&$C$7&$A115,BD!$AH$5:$AH$66000),0),IF(AND($B$3<>1,$E$5<500),SUMIF(BD!$K$5:$K$66000,VALUE($E$101)&"/"&$G$5&"/"&$C$7&$A115,BD!$AH$5:$AH$66000),IF(AND($B$3=1,$E$5<500),SUMIF(BD!$N$5:$N$66000,VALUE($E$101)&"/"&$C$7&$A115,BD!$AH$5:$AH$66000),0))))/1000*$B$101) -> 0 | J115: =IF($B$101=0,0,(IF($C$3<>1,IF($E$5<500,SUMIF(BD!$X$5:$X$66000,VALUE($E$101)&"/"&$G$5&"/"&$D$7&$A115,BD!$AI$5:$AI$66000),0),IF(AND($B$3<>1,$E$5<500),SUMIF(BD!$T$5:$T$66000,VALUE($E$101)&"/"&$G$5&"/"&$D$7&$A115,BD!$AI$5:$AI$66000),IF(AND($B$3=1,$E$5<500),SUMIF(BD!$W$5:$W$66000,VALUE($E$101)&"/"&$D$7&$A115,BD!$AI$5:$AI$66000),0))))/1000*$B$101) -> 0 | K115: =IF($B$101=0,0,(IF($C$3<>1,IF($E$5<500,SUMIF(BD!$O$5:$O$66000,VALUE($E$101)&"/"&$G$5&"/"&$C$7&$A115,BD!$AJ$5:$AJ$66000),0),IF(AND($B$3<>1,$E$5<500),SUMIF(BD!$K$5:$K$66000,VALUE($E$101)&"/"&$G$5&"/"&$C$7&$A115,BD!$AJ$5:$AJ$66000),IF(AND($B$3=1,$E$5<500),SUMIF(BD!$N$5:$N$66000,VALUE($E$101)&"/"&$C$7&$A115,BD!$AJ$5:$AJ$66000),0))))/1000*$B$101) -> 0 | L115: =IF($B$101=0,0,(IF($C$3<>1,IF($E$5<500,SUMIF(BD!$X$5:$X$66000,VALUE($E$101)&"/"&$G$5&"/"&$D$7&$A115,BD!$AK$5:$AK$66000),0),IF(AND($B$3<>1,$E$5<500),SUMIF(BD!$T$5:$T$66000,VALUE($E$101)&"/"&$G$5&"/"&$D$7&$A115,BD!$AK$5:$AK$66000),IF(AND($B$3=1,$E$5<500),SUMIF(BD!$W$5:$W$66000,VALUE($E$101)&"/"&$D$7&$A115,BD!$AK$5:$AK$66000),0))))/1000*$B$101) -> 0
A116: 12 | B116: DEZEMBRO | C116: =IF($B$101=0,0,(IF($C$3<>1,IF($E$5<500,SUMIF(BD!$O$5:$O$66000,VALUE($E$101)&"/"&$G$5&"/"&$C$7&$A116,BD!$AB$5:$AB$66000),0),IF(AND($B$3<>1,$E$5<500),SUMIF(BD!$K$5:$K$66000,VALUE($E$101)&"/"&$G$5&"/"&$C$7&$A116,BD!$AB$5:$AB$66000),IF(AND($B$3=1,$E$5<500),SUMIF(BD!$N$5:$N$66000,VALUE($E$101)&"/"&$C$7&$A116,BD!$AB$5:$AB$66000),0))))/1000*$B$101) -> 0 | D116: =IF($B$101=0,0,(IF($C$3<>1,IF($E$5<500,SUMIF(BD!$X$5:$X$66000,VALUE($E$101)&"/"&$G$5&"/"&$D$7&$A116,BD!$AC$5:$AC$66000),0),IF(AND($B$3<>1,$E$5<500),SUMIF(BD!$T$5:$T$66000,VALUE($E$101)&"/"&$G$5&"/"&$D$7&$A116,BD!$AC$5:$AC$66000),IF(AND($B$3=1,$E$5<500),SUMIF(BD!$W$5:$W$66000,VALUE($E$101)&"/"&$D$7&$A116,BD!$AC$5:$AC$66000),0))))/1000*$B$101) -> 0 | E116: =IF($B$101=0,0,(IF($C$3<>1,IF($E$5<500,SUMIF(BD!$O$5:$O$66000,VALUE($E$101)&"/"&$G$5&"/"&$C$7&$A116,BD!$AD$5:$AD$66000),0),IF(AND($B$3<>1,$E$5<500),SUMIF(BD!$K$5:$K$66000,VALUE($E$101)&"/"&$G$5&"/"&$C$7&$A116,BD!$AD$5:$AD$66000),IF(AND($B$3=1,$E$5<500),SUMIF(BD!$N$5:$N$66000,VALUE($E$101)&"/"&$C$7&$A116,BD!$AD$5:$AD$66000),0))))/1000*$B$101) -> 0 | F116: =IF($B$101=0,0,(IF($C$3<>1,IF($E$5<500,SUMIF(BD!$X$5:$X$66000,VALUE($E$101)&"/"&$G$5&"/"&$D$7&$A116,BD!$AE$5:$AE$66000),0),IF(AND($B$3<>1,$E$5<500),SUMIF(BD!$T$5:$T$66000,VALUE($E$101)&"/"&$G$5&"/"&$D$7&$A116,BD!$AE$5:$AE$66000),IF(AND($B$3=1,$E$5<500),SUMIF(BD!$W$5:$W$66000,VALUE($E$101)&"/"&$D$7&$A116,BD!$AE$5:$AE$66000),0))))/1000*$B$101) -> 0 | G116: =IF($B$101=0,0,(IF($C$3<>1,IF($E$5<500,SUMIF(BD!$O$5:$O$66000,VALUE($E$101)&"/"&$G$5&"/"&$C$7&$A116,BD!$AF$5:$AF$66000),0),IF(AND($B$3<>1,$E$5<500),SUMIF(BD!$K$5:$K$66000,VALUE($E$101)&"/"&$G$5&"/"&$C$7&$A116,BD!$AF$5:$AF$66000),IF(AND($B$3=1,$E$5<500),SUMIF(BD!$N$5:$N$66000,VALUE($E$101)&"/"&$C$7&$A116,BD!$AF$5:$AF$66000),0))))/1000*$B$101) -> 0 | H116: =IF($B$101=0,0,(IF($C$3<>1,IF($E$5<500,SUMIF(BD!$X$5:$X$66000,VALUE($E$101)&"/"&$G$5&"/"&$D$7&$A116,BD!$AG$5:$AG$66000),0),IF(AND($B$3<>1,$E$5<500),SUMIF(BD!$T$5:$T$66000,VALUE($E$101)&"/"&$G$5&"/"&$D$7&$A116,BD!$AG$5:$AG$66000),IF(AND($B$3=1,$E$5<500),SUMIF(BD!$W$5:$W$66000,VALUE($E$101)&"/"&$D$7&$A116,BD!$AG$5:$AG$66000),0))))/1000*$B$101) -> 0 | I116: =IF($B$101=0,0,(IF($C$3<>1,IF($E$5<500,SUMIF(BD!$O$5:$O$66000,VALUE($E$101)&"/"&$G$5&"/"&$C$7&$A116,BD!$AH$5:$AH$66000),0),IF(AND($B$3<>1,$E$5<500),SUMIF(BD!$K$5:$K$66000,VALUE($E$101)&"/"&$G$5&"/"&$C$7&$A116,BD!$AH$5:$AH$66000),IF(AND($B$3=1,$E$5<500),SUMIF(BD!$N$5:$N$66000,VALUE($E$101)&"/"&$C$7&$A116,BD!$AH$5:$AH$66000),0))))/1000*$B$101) -> 0 | J116: =IF($B$101=0,0,(IF($C$3<>1,IF($E$5<500,SUMIF(BD!$X$5:$X$66000,VALUE($E$101)&"/"&$G$5&"/"&$D$7&$A116,BD!$AI$5:$AI$66000),0),IF(AND($B$3<>1,$E$5<500),SUMIF(BD!$T$5:$T$66000,VALUE($E$101)&"/"&$G$5&"/"&$D$7&$A116,BD!$AI$5:$AI$66000),IF(AND($B$3=1,$E$5<500),SUMIF(BD!$W$5:$W$66000,VALUE($E$101)&"/"&$D$7&$A116,BD!$AI$5:$AI$66000),0))))/1000*$B$101) -> 0 | K116: =IF($B$101=0,0,(IF($C$3<>1,IF($E$5<500,SUMIF(BD!$O$5:$O$66000,VALUE($E$101)&"/"&$G$5&"/"&$C$7&$A116,BD!$AJ$5:$AJ$66000),0),IF(AND($B$3<>1,$E$5<500),SUMIF(BD!$K$5:$K$66000,VALUE($E$101)&"/"&$G$5&"/"&$C$7&$A116,BD!$AJ$5:$AJ$66000),IF(AND($B$3=1,$E$5<500),SUMIF(BD!$N$5:$N$66000,VALUE($E$101)&"/"&$C$7&$A116,BD!$AJ$5:$AJ$66000),0))))/1000*$B$101) -> 0 | L116: =IF($B$101=0,0,(IF($C$3<>1,IF($E$5<500,SUMIF(BD!$X$5:$X$66000,VALUE($E$101)&"/"&$G$5&"/"&$D$7&$A116,BD!$AK$5:$AK$66000),0),IF(AND($B$3<>1,$E$5<500),SUMIF(BD!$T$5:$T$66000,VALUE($E$101)&"/"&$G$5&"/"&$D$7&$A116,BD!$AK$5:$AK$66000),IF(AND($B$3=1,$E$5<500),SUMIF(BD!$W$5:$W$66000,VALUE($E$101)&"/"&$D$7&$A116,BD!$AK$5:$AK$66000),0))))/1000*$B$101) -> 0
B117: TOTAL | C117: =SUM(C105:C116) -> 0 | D117: 0 | E117: 0 | F117: 0 | G117: 0 | H117: 0 | I117: 0 | J117: 0 | K117: 0 | L117: 0
C118: TOTALIZADOR PARA CÁLCULO DA PARTICIPAÇÃO NO MERCADO
C119: PRÊMIO EMTIDO
B120: PERÍODO | C120: =C104 -> 2016 | D120: =D104 -> 2015
A121: 01 | B121: JANEIRO | C121: =IF(AND($B$3=1,$C$3=1),SUMIF(BD!$D$5:$D$66000,RelatSuporte!$C$120&RelatSuporte!$A121,BD!$AB$5:$AB$66000),IF($C$3=1,SUMIF(BD!$M$5:$M$66000,$G$5&"/"&RelatSuporte!$C$120&RelatSuporte!$A121,BD!$AB$5:$AB$66000),SUMIF(BD!$R$5:$R$66000,$G$5&"/"&RelatSuporte!$C$120&RelatSuporte!$A121,BD!$AB$5:$AB$66000)))/1000 -> 13384291.61 | D121: =IF(AND($B$3=1,$C$3=1),SUMIF(BD!$H$5:$H$66000,RelatSuporte!$D$120&RelatSuporte!$A121,BD!$AC$5:$AC$66000),IF($C$3=1,SUMIF(BD!$V$5:$V$66000,$G$5&"/"&RelatSuporte!$D$120&RelatSuporte!$A121,BD!$AC$5:$AC$66000),SUMIF(BD!$AA$5:$AA$66000,$G$5&"/"&RelatSuporte!$D$120&RelatSuporte!$A121,BD!$AC$5:$AC$66000)))/1000 -> 12187244.63
A122: 02 | B122: FEVEREIRO | C122: =IF(AND($B$3=1,$C$3=1),SUMIF(BD!$D$5:$D$66000,RelatSuporte!$C$120&RelatSuporte!$A122,BD!$AB$5:$AB$66000),IF($C$3=1,SUMIF(BD!$M$5:$M$66000,$G$5&"/"&RelatSuporte!$C$120&RelatSuporte!$A122,BD!$AB$5:$AB$66000),SUMIF(BD!$R$5:$R$66000,$G$5&"/"&RelatSuporte!$C$120&RelatSuporte!$A122,BD!$AB$5:$AB$66000)))/1000 -> 13136872.74 | D122: =IF(AND($B$3=1,$C$3=1),SUMIF(BD!$H$5:$H$66000,RelatSuporte!$D$120&RelatSuporte!$A122,BD!$AC$5:$AC$66000),IF($C$3=1,SUMIF(BD!$V$5:$V$66000,$G$5&"/"&RelatSuporte!$D$120&RelatSuporte!$A122,BD!$AC$5:$AC$66000),SUMIF(BD!$AA$5:$AA$66000,$G$5&"/"&RelatSuporte!$D$120&RelatSuporte!$A122,BD!$AC$5:$AC$66000)))/1000 -> 12817672.41
A123: 03 | B123: MARÇO | C123: =IF(AND($B$3=1,$C$3=1),SUMIF(BD!$D$5:$D$66000,RelatSuporte!$C$120&RelatSuporte!$A123,BD!$AB$5:$AB$66000),IF($C$3=1,SUMIF(BD!$M$5:$M$66000,$G$5&"/"&RelatSuporte!$C$120&RelatSuporte!$A123,BD!$AB$5:$AB$66000),SUMIF(BD!$R$5:$R$66000,$G$5&"/"&RelatSuporte!$C$120&RelatSuporte!$A123,BD!$AB$5:$AB$66000)))/1000 -> 16233928.9 | D123: =IF(AND($B$3=1,$C$3=1),SUMIF(BD!$H$5:$H$66000,RelatSuporte!$D$120&RelatSuporte!$A123,BD!$AC$5:$AC$66000),IF($C$3=1,SUMIF(BD!$V$5:$V$66000,$G$5&"/"&RelatSuporte!$D$120&RelatSuporte!$A123,BD!$AC$5:$AC$66000),SUMIF(BD!$AA$5:$AA$66000,$G$5&"/"&RelatSuporte!$D$120&RelatSuporte!$A123,BD!$AC$5:$AC$66000)))/1000 -> 16194491.2
A124: 04 | B124: ABRIL | C124: =IF(AND($B$3=1,$C$3=1),SUMIF(BD!$D$5:$D$66000,RelatSuporte!$C$120&RelatSuporte!$A124,BD!$AB$5:$AB$66000),IF($C$3=1,SUMIF(BD!$M$5:$M$66000,$G$5&"/"&RelatSuporte!$C$120&RelatSuporte!$A124,BD!$AB$5:$AB$66000),SUMIF(BD!$R$5:$R$66000,$G$5&"/"&RelatSuporte!$C$120&RelatSuporte!$A124,BD!$AB$5:$AB$66000)))/1000 -> 16037674.65 | D124: =IF(AND($B$3=1,$C$3=1),SUMIF(BD!$H$5:$H$66000,RelatSuporte!$D$120&RelatSuporte!$A124,BD!$AC$5:$AC$66000),IF($C$3=1,SUMIF(BD!$V$5:$V$66000,$G$5&"/"&RelatSuporte!$D$120&RelatSuporte!$A124,BD!$AC$5:$AC$66000),SUMIF(BD!$AA$5:$AA$66000,$G$5&"/"&RelatSuporte!$D$120&RelatSuporte!$A124,BD!$AC$5:$AC$66000)))/1000 -> 14057938.42
A125: 05 | B125: MAIO | C125: =IF(AND($B$3=1,$C$3=1),SUMIF(BD!$D$5:$D$66000,RelatSuporte!$C$120&RelatSuporte!$A125,BD!$AB$5:$AB$66000),IF($C$3=1,SUMIF(BD!$M$5:$M$66000,$G$5&"/"&RelatSuporte!$C$120&RelatSuporte!$A125,BD!$AB$5:$AB$66000),SUMIF(BD!$R$5:$R$66000,$G$5&"/"&RelatSuporte!$C$120&RelatSuporte!$A125,BD!$AB$5:$AB$66000)))/1000 -> 17244408.94 | D125: =IF(AND($B$3=1,$C$3=1),SUMIF(BD!$H$5:$H$66000,RelatSuporte!$D$120&RelatSuporte!$A125,BD!$AC$5:$AC$66000),IF($C$3=1,SUMIF(BD!$V$5:$V$66000,$G$5&"/"&RelatSuporte!$D$120&RelatSuporte!$A125,BD!$AC$5:$AC$66000),SUMIF(BD!$AA$5:$AA$66000,$G$5&"/"&RelatSuporte!$D$120&RelatSuporte!$A125,BD!$AC$5:$AC$66000)))/1000 -> 15810123.9
A126: 06 | B126: JUNHO | C126: =IF(AND($B$3=1,$C$3=1),SUMIF(BD!$D$5:$D$66000,RelatSuporte!$C$120&RelatSuporte!$A126,BD!$AB$5:$AB$66000),IF($C$3=1,SUMIF(BD!$M$5:$M$66000,$G$5&"/"&RelatSuporte!$C$120&RelatSuporte!$A126,BD!$AB$5:$AB$66000),SUMIF(BD!$R$5:$R$66000,$G$5&"/"&RelatSuporte!$C$120&RelatSuporte!$A126,BD!$AB$5:$AB$66000)))/1000 -> 19479174.48 | D126: =IF(AND($B$3=1,$C$3=1),SUMIF(BD!$H$5:$H$66000,RelatSuporte!$D$120&RelatSuporte!$A126,BD!$AC$5:$AC$66000),IF($C$3=1,SUMIF(BD!$V$5:$V$66000,$G$5&"/"&RelatSuporte!$D$120&RelatSuporte!$A126,BD!$AC$5:$AC$66000),SUMIF(BD!$AA$5:$AA$66000,$G$5&"/"&RelatSuporte!$D$120&RelatSuporte!$A126,BD!$AC$5:$AC$66000)))/1000 -> 17091571.06
A127: 07 | B127: JULHO | C127: =IF(AND($B$3=1,$C$3=1),SUMIF(BD!$D$5:$D$66000,RelatSuporte!$C$120&RelatSuporte!$A127,BD!$AB$5:$AB$66000),IF($C$3=1,SUMIF(BD!$M$5:$M$66000,$G$5&"/"&RelatSuporte!$C$120&RelatSuporte!$A127,BD!$AB$5:$AB$66000),SUMIF(BD!$R$5:$R$66000,$G$5&"/"&RelatSuporte!$C$120&RelatSuporte!$A127,BD!$AB$5:$AB$66000)))/1000 -> 16433362.3 | D127: =IF(AND($B$3=1,$C$3=1),SUMIF(BD!$H$5:$H$66000,RelatSuporte!$D$120&RelatSuporte!$A127,BD!$AC$5:$AC$66000),IF($C$3=1,SUMIF(BD!$V$5:$V$66000,$G$5&"/"&RelatSuporte!$D$120&RelatSuporte!$A127,BD!$AC$5:$AC$66000),SUMIF(BD!$AA$5:$AA$66000,$G$5&"/"&RelatSuporte!$D$120&RelatSuporte!$A127,BD!$AC$5:$AC$66000)))/1000 -> 14921223.52
A128: 08 | B128: AGOSTO | C128: =IF(AND($B$3=1,$C$3=1),SUMIF(BD!$D$5:$D$66000,RelatSuporte!$C$120&RelatSuporte!$A128,BD!$AB$5:$AB$66000),IF($C$3=1,SUMIF(BD!$M$5:$M$66000,$G$5&"/"&RelatSuporte!$C$120&RelatSuporte!$A128,BD!$AB$5:$AB$66000),SUMIF(BD!$R$5:$R$66000,$G$5&"/"&RelatSuporte!$C$120&RelatSuporte!$A128,BD!$AB$5:$AB$66000)))/1000 -> 17324168.09 | D128: =IF(AND($B$3=1,$C$3=1),SUMIF(BD!$H$5:$H$66000,RelatSuporte!$D$120&RelatSuporte!$A128,BD!$AC$5:$AC$66000),IF($C$3=1,SUMIF(BD!$V$5:$V$66000,$G$5&"/"&RelatSuporte!$D$120&RelatSuporte!$A128,BD!$AC$5:$AC$66000),SUMIF(BD!$AA$5:$AA$66000,$G$5&"/"&RelatSuporte!$D$120&RelatSuporte!$A128,BD!$AC$5:$AC$66000)))/1000 -> 14650005.53
A129: 09 | B129: SETEMBRO | C129: =IF(AND($B$3=1,$C$3=1),SUMIF(BD!$D$5:$D$66000,RelatSuporte!$C$120&RelatSuporte!$A129,BD!$AB$5:$AB$66000),IF($C$3=1,SUMIF(BD!$M$5:$M$66000,$G$5&"/"&RelatSuporte!$C$120&RelatSuporte!$A129,BD!$AB$5:$AB$66000),SUMIF(BD!$R$5:$R$66000,$G$5&"/"&RelatSuporte!$C$120&RelatSuporte!$A129,BD!$AB$5:$AB$66000)))/1000 -> 14622190.58 | D129: =IF(AND($B$3=1,$C$3=1),SUMIF(BD!$H$5:$H$66000,RelatSuporte!$D$120&RelatSuporte!$A129,BD!$AC$5:$AC$66000),IF($C$3=1,SUMIF(BD!$V$5:$V$66000,$G$5&"/"&RelatSuporte!$D$120&RelatSuporte!$A129,BD!$AC$5:$AC$66000),SUMIF(BD!$AA$5:$AA$66000,$G$5&"/"&RelatSuporte!$D$120&RelatSuporte!$A129,BD!$AC$5:$AC$66000)))/1000 -> 14089686.39
A130: 10 | B130: OUTUBRO | C130: =IF(AND($B$3=1,$C$3=1),SUMIF(BD!$D$5:$D$66000,RelatSuporte!$C$120&RelatSuporte!$A130,BD!$AB$5:$AB$66000),IF($C$3=1,SUMIF(BD!$M$5:$M$66000,$G$5&"/"&RelatSuporte!$C$120&RelatSuporte!$A130,BD!$AB$5:$AB$66000),SUMIF(BD!$R$5:$R$66000,$G$5&"/"&RelatSuporte!$C$120&RelatSuporte!$A130,BD!$AB$5:$AB$66000)))/1000 -> 15807514.39 | D130: =IF(AND($B$3=1,$C$3=1),SUMIF(BD!$H$5:$H$66000,RelatSuporte!$D$120&RelatSuporte!$A130,BD!$AC$5:$AC$66000),IF($C$3=1,SUMIF(BD!$V$5:$V$66000,$G$5&"/"&RelatSuporte!$D$120&RelatSuporte!$A130,BD!$AC$5:$AC$66000),SUMIF(BD!$AA$5:$AA$66000,$G$5&"/"&RelatSuporte!$D$120&RelatSuporte!$A130,BD!$AC$5:$AC$66000)))/1000 -> 13482572.12
A131: 11 | B131: NOVEMBRO | C131: =IF(AND($B$3=1,$C$3=1),SUMIF(BD!$D$5:$D$66000,RelatSuporte!$C$120&RelatSuporte!$A131,BD!$AB$5:$AB$66000),IF($C$3=1,SUMIF(BD!$M$5:$M$66000,$G$5&"/"&RelatSuporte!$C$120&RelatSuporte!$A131,BD!$AB$5:$AB$66000),SUMIF(BD!$R$5:$R$66000,$G$5&"/"&RelatSuporte!$C$120&RelatSuporte!$A131,BD!$AB$5:$AB$66000)))/1000 -> 18576137.11 | D131: =IF(AND($B$3=1,$C$3=1),SUMIF(BD!$H$5:$H$66000,RelatSuporte!$D$120&RelatSuporte!$A131,BD!$AC$5:$AC$66000),IF($C$3=1,SUMIF(BD!$V$5:$V$66000,$G$5&"/"&RelatSuporte!$D$120&RelatSuporte!$A131,BD!$AC$5:$AC$66000),SUMIF(BD!$AA$5:$AA$66000,$G$5&"/"&RelatSuporte!$D$120&RelatSuporte!$A131,BD!$AC$5:$AC$66000)))/1000 -> 15728137.91
A132: 12 | B132: DEZEMBRO | C132: =IF(AND($B$3=1,$C$3=1),SUMIF(BD!$D$5:$D$66000,RelatSuporte!$C$120&RelatSuporte!$A132,BD!$AB$5:$AB$66000),IF($C$3=1,SUMIF(BD!$M$5:$M$66000,$G$5&"/"&RelatSuporte!$C$120&RelatSuporte!$A132,BD!$AB$5:$AB$66000),SUMIF(BD!$R$5:$R$66000,$G$5&"/"&RelatSuporte!$C$120&RelatSuporte!$A132,BD!$AB$5:$AB$66000)))/1000 -> 23971934.25 | D132: =IF(AND($B$3=1,$C$3=1),SUMIF(BD!$H$5:$H$66000,RelatSuporte!$D$120&RelatSuporte!$A132,BD!$AC$5:$AC$66000),IF($C$3=1,SUMIF(BD!$V$5:$V$66000,$G$5&"/"&RelatSuporte!$D$120&RelatSuporte!$A132,BD!$AC$5:$AC$66000),SUMIF(BD!$AA$5:$AA$66000,$G$5&"/"&RelatSuporte!$D$120&RelatSuporte!$A132,BD!$AC$5:$AC$66000)))/1000 -> 20199488.56
B133: TOTAL | C133: =SUM(C121:C132) -> 202251658 | D133: =SUM(D121:D132) -> 181230155.7
C135: PRÊMIO EMTIDO
B136: PERÍODO | C136: =C120 -> 2016 | D136: =D120 -> 2015
B137: JANEIRO | C137: =C121 -> 13384291.61 | D137: =D121 -> 12187244.63
B138: JAN/FEV | C138: =IF(C122=0,,C137+C122) -> 26521164.35 | D138: =IF(D122=0,,D137+D122) -> 25004917.04
B139: JAN/MAR | C139: =IF(C123=0,,C138+C123) -> 42755093.25 | D139: 41199408.25
B140: JAN/ABR | C140: 58792767.89 | D140: 55257346.66
B141: JAN/MAI | C141: 76037176.84 | D141: 71067470.56
B142: JAN/JUN | C142: 95516351.32 | D142: 88159041.62
B143: JAN/JUL | C143: 111949713.6 | D143: 103080265.1
B144: JAN/AGO | C144: 129273881.7 | D144: 117730270.7
B145: JAN/SET | C145: 143896072.3 | D145: 131819957.1
B146: JAN/OUT | C146: 159703586.7 | D146: 145302529.2
B147: JAN/NOV | C147: 178279723.8 | D147: 161030667.1
B148: JAN/DEZ | C148: 202251658 | D148: 181230155.7
C150: PRÊMIO EMTIDO
B151: PERÍODO | C151: =C136 -> 2016
A152: 1 | B152: =B39 -> JAN/DEZ-2015 | C152: =D133 -> 181230155.7
A153: =A152+1 -> 2 | B153: =B40 -> FEV-15/JAN-16 | C153: =IF($E$3+1<A153,0,SUM(D122:D$132)+SUM(C$121:C121)) -> 182427202.6
A154: =A153+1 -> 3 | B154: MAR-15/FEV-16 | C154: =IF($E$3+1<A154,0,SUM(D123:D$132)+SUM(C$121:C122)) -> 182746403
A155: 4 | B155: ABR-15/MAR-16 | C155: =IF($E$3+1<A155,0,SUM(D124:D$132)+SUM(C$121:C123)) -> 182785840.7
A156: 5 | B156: MAI-15/ABR-16 | C156: =IF($E$3+1<A156,0,SUM(D125:D$132)+SUM(C$121:C124)) -> 184765576.9
A157: 6 | B157: JUN-15/MAI-16 | C157: =IF($E$3+1<A157,0,SUM(D126:D$132)+SUM(C$121:C125)) -> 186199861.9
A158: 7 | B158: JUL-15/JUN-16 | C158: =IF($E$3+1<A158,0,SUM(D127:D$132)+SUM(C$121:C126)) -> 188587465.4
A159: 8 | B159: AGO-15/JUL-16 | C159: =IF($E$3+1<A159,0,SUM(D128:D$132)+SUM(C$121:C127)) -> 190099604.1
A160: 9 | B160: SET-15/AGO-16 | C160: =IF($E$3+1<A160,0,SUM(D129:D$132)+SUM(C$121:C128)) -> 192773766.7
A161: 10 | B161: OUT-15/SET-16 | C161: =IF($E$3+1<A161,0,SUM(D130:D$132)+SUM(C$121:C129)) -> 193306270.9
A162: 11 | B162: NOV-15/OUT-16 | C162: =IF($E$3+1<A162,0,SUM(D131:D$132)+SUM(C$121:C130)) -> 195631213.2
A163: 12 | B163: DEZ-15/NOV-16 | C163: =IF($E$3+1<A163,0,SUM(D132:D$132)+SUM(C$121:C131)) -> 198479212.4
A164: 13 | B164: JAN/DEZ-2016 | C164: =IF($E$3+1<A163,0,SUM(D$132:D133)+SUM(C$121:C132)) -> 403681302.3

Sheet BD (hidden)
A1: Atenção: Os cálculos são feitos com até 66.000 linhas. Mais do que isso precisa abrir linhas | V1: jan/dez 2015 processado no BD de | X1: DEZ/2016
B3: 2016 | F3: 2015 | AB3: premio_de_seguros | AD3: Soma de premio_retido | AF3: Soma de premio_ganho | AH3: Soma de sinistro_retido | AJ3: Soma de desp_com | AQ3: Ramos | AR3: Agrup.
J4: =B3 -> 2016 | S4: =F3 -> 2015 | AB4: 2016 | AC4: 2015 | AD4: 2016 | AE4: 2015 | AF4: 2016 | AG4: 2015 | AH4: 2016 | AI4: 2015 | AJ4: 2016 | AK4: 2015 | AQ4: =Cadastro!K2 -> 0435 | AR4: =Cadastro!H2 -> Aero
B5: 01007 | C5: 0111 | D5: 201601 | F5: 01007 | G5: 0111 | H5: 201501 | J5: =IF(C5=0,0,+VLOOKUP(C5,$AQ$4:$AR$130,2,FALSE)) -> Pat | K5: =IF(J5=0,0,+CONCATENATE(VALUE(B5),"/",J5,"/",D5)) -> 1007/Pat/201601 | L5: =IF(J5=0,0,+CONCATENATE(VLOOKUP(B5,Cadastro!$Q$3:$R$162,2,FALSE),"/",J5,"/",D5)) -> 64/Pat/201601 | M5: =IF(J5=0,0,+CONCATENATE(J5,"/",D5)) -> Pat/201601 | N5: 1007/201601 | O5: 1007/0111/201601 | P5: 64/201601 | Q5: 64/0111/201601 | R5: 0111/201601 | S5: =+VLOOKUP(G5,$AQ$4:$AR$130,2,FALSE) -> Pat | T5: =+CONCATENATE(VALUE(F5),"/",S5,"/",H5) -> 1007/Pat/201501 | U5: =+CONCATENATE(VLOOKUP(F5,Cadastro!$Q$3:$R$162,2,FALSE),"/",S5,"/",H5) -> 64/Pat/201501 | V5: =+CONCATENATE(S5,"/",H5) -> Pat/201501 | W5: 1007/201501 | X5: 1007/0111/201501 | Y5: 64/201501 | Z5: 64/0111/201501 | AA5: 0111/201501 | AB5: 0 | AC5: 0 | AD5: 0 | AE5: 0 | AF5: 0 | AG5: 0 | AH5: 0 | AI5: 0 | AJ5: 0 | AK5: 0 | AQ5: =Cadastro!K3 -> 0437 | AR5: =Cadastro!H3 -> Aero
B6: 01007 | C6: 0111 | D6: 201602 | F6: 01007 | G6: 0111 | H6: 201502 | J6: Pat | K6: 1007/Pat/201602 | L6: =IF(J6=0,0,+CONCATENATE(VLOOKUP(B6,Cadastro!$Q$3:$R$162,2,FALSE),"/",J6,"/",D6)) -> 64/Pat/201602 | M6: Pat/201602 | N6: 1007/201602 | O6: 1007/0111/201602 | P6: 64/201602 | Q6: 64/0111/201602 | R6: 0111/201602 | S6: Pat | T6: 1007/Pat/201502 | U6: =+CONCATENATE(VLOOKUP(F6,Cadastro!$Q$3:$R$162,2,FALSE),"/",S6,"/",H6) -> 64/Pat/201502 | V6: =+CONCATENATE(S6,"/",H6) -> Pat/201502 | W6: 1007/201502 | X6: 1007/0111/201502 | Y6: 64/201502 | Z6: 64/0111/201502 | AA6: 0111/201502 | AB6: 0 | AC6: 0 | AD6: 0 | AE6: 0 | AF6: 0 | AG6: 0 | AH6: -7.46 | AI6: 0 | AJ6: 0 | AK6: 0 | AQ6: =Cadastro!K4 -> 1528 | AR6: =Cadastro!H4 -> Aero
B7: 01007 | C7: 0111 | D7: 201603 | F7: 01007 | G7: 0111 | H7: 201503 | J7: Pat | K7: 1007/Pat/201603 | L7: =IF(J7=0,0,+CONCATENATE(VLOOKUP(B7,Cadastro!$Q$3:$R$162,2,FALSE),"/",J7,"/",D7)) -> 64/Pat/201603 | M7: Pat/201603 | N7: 1007/201603 | O7: 1007/0111/201603 | P7: 64/201603 | Q7: 64/0111/201603 | R7: 0111/201603 | S7: Pat | T7: 1007/Pat/201503 | U7: =+CONCATENATE(VLOOKUP(F7,Cadastro!$Q$3:$R$162,2,FALSE),"/",S7,"/",H7) -> 64/Pat/201503 | V7: Pat/201503 | W7: 1007/201503 | X7: 1007/0111/201503 | Y7: 64/201503 | Z7: 64/0111/201503 | AA7: 0111/201503 | AB7: 0 | AC7: 0 | AD7: 0 | AE7: 0 | AF7: 0 | AG7: 0 | AH7: 0 | AI7: 0 | AJ7: 0 | AK7: 0 | AQ7: =Cadastro!K5 -> 1535 | AR7: =Cadastro!H5 -> Aero
B8: 01007 | C8: 0111 | D8: 201604 | F8: 01007 | G8: 0111 | H8: 201504 | J8: Pat | K8: 1007/Pat/201604 | L8: =IF(J8=0,0,+CONCATENATE(VLOOKUP(B8,Cadastro!$Q$3:$R$162,2,FALSE),"/",J8,"/",D8)) -> 64/Pat/201604 | M8: Pat/201604 | N8: 1007/201604 | O8: 1007/0111/201604 | P8: 64/201604 | Q8: 64/0111/201604 | R8: 0111/201604 | S8: Pat | T8: 1007/Pat/201504 | U8: =+CONCATENATE(VLOOKUP(F8,Cadastro!$Q$3:$R$162,2,FALSE),"/",S8,"/",H8) -> 64/Pat/201504 | V8: Pat/201504 | W8: 1007/201504 | X8: 1007/0111/201504 | Y8: 64/201504 | Z8: 64/0111/201504 | AA8: 0111/201504 | AB8: 0 | AC8: 0 | AD8: 0 | AE8: 0 | AF8: 0 | AG8: 0 | AH8: 0 | AI8: 0 | AJ8: 0 | AK8: 0 | AQ8: =Cadastro!K6 -> 1537 | AR8: =Cadastro!H6 -> Aero
B9: 01007 | C9: 0111 | D9: 201605 | F9: 01007 | G9: 0111 | H9: 201505 | J9: Pat | K9: 1007/Pat/201605 | L9: =IF(J9=0,0,+CONCATENATE(VLOOKUP(B9,Cadastro!$Q$3:$R$162,2,FALSE),"/",J9,"/",D9)) -> 64/Pat/201605 | M9: Pat/201605 | N9: 1007/201605 | O9: 1007/0111/201605 | P9: 64/201605 | Q9: 64/0111/201605 | R9: 0111/201605 | S9: Pat | T9: 1007/Pat/201505 | U9: =+CONCATENATE(VLOOKUP(F9,Cadastro!$Q$3:$R$162,2,FALSE),"/",S9,"/",H9) -> 64/Pat/201505 | V9: Pat/201505 | W9: 1007/201505 | X9: 1007/0111/201505 | Y9: 64/201505 | Z9: 64/0111/201505 | AA9: 0111/201505 | AB9: 0 | AC9: 0 | AD9: 0 | AE9: 0 | AF9: 0 | AG9: 0 | AH9: 0 | AI9: 0 | AJ9: 0 | AK9: 0 | AQ9: =Cadastro!K7 -> 1574 | AR9: =Cadastro!H7 -> Aero
B10: 01007 | C10: 0111 | D10: 201606 | F10: 01007 | G10: 0111 | H10: 201506 | J10: Pat | K10: 1007/Pat/201606 | L10: =IF(J10=0,0,+CONCATENATE(VLOOKUP(B10,Cadastro!$Q$3:$R$162,2,FALSE),"/",J10,"/",D10)) -> 64/Pat/201606 | M10: Pat/201606 | N10: 1007/201606 | O10: 1007/0111/201606 | P10: 64/201606 | Q10: 64/0111/201606 | R10: 0111/201606 | S10: Pat | T10: 1007/Pat/201506 | U10: =+CONCATENATE(VLOOKUP(F10,Cadastro!$Q$3:$R$162,2,FALSE),"/",S10,"/",H10) -> 64/Pat/201506 | V10: Pat/201506 | W10: 1007/201506 | X10: 1007/0111/201506 | Y10: 64/201506 | Z10: 64/0111/201506 | AA10: 0111/201506 | AB10: 0 | AC10: 0 | AD10: 0 | AE10: 0 | AF10: 0 | AG10: 0 | AH10: 0 | AI10: 0 | AJ10: 0 | AK10: 0 | AQ10: =Cadastro!K8 -> 1597 | AR10: =Cadastro!H8 -> Aero
B11: 01007 | C11: 0111 | D11: 201607 | F11: 01007 | G11: 0111 | H11: 201507 | J11: Pat | K11: 1007/Pat/201607 | L11: =IF(J11=0,0,+CONCATENATE(VLOOKUP(B11,Cadastro!$Q$3:$R$162,2,FALSE),"/",J11,"/",D11)) -> 64/Pat/201607 | M11: Pat/201607 | N11: 1007/201607 | O11: 1007/0111/201607 | P11: 64/201607 | Q11: 64/0111/201607 | R11: 0111/201607 | S11: Pat | T11: 1007/Pat/201507 | U11: =+CONCATENATE(VLOOKUP(F11,Cadastro!$Q$3:$R$162,2,FALSE),"/",S11,"/",H11) -> 64/Pat/201507 | V11: Pat/201507 | W11: 1007/201507 | X11: 1007/0111/201507 | Y11: 64/201507 | Z11: 64/0111/201507 | AA11: 0111/201507 | AB11: 0 | AC11: 0 | AD11: 0 | AE11: 0 | AF11: 0 | AG11: 0 | AH11: 0 | AI11: 0 | AJ11: 0 | AK11: 0 | AQ11: =Cadastro!K9 -> 0520 | AR11: =Cadastro!H9 -> Aut
B12: 01007 | C12: 0111 | D12: 201608 | F12: 01007 | G12: 0111 | H12: 201508 | J12: Pat | K12: 1007/Pat/201608 | L12: =IF(J12=0,0,+CONCATENATE(VLOOKUP(B12,Cadastro!$Q$3:$R$162,2,FALSE),"/",J12,"/",D12)) -> 64/Pat/201608 | M12: Pat/201608 | N12: 1007/201608 | O12: 1007/0111/201608 | P12: 64/201608 | Q12: 64/0111/201608 | R12: 0111/201608 | S12: Pat | T12: 1007/Pat/201508 | U12: =+CONCATENATE(VLOOKUP(F12,Cadastro!$Q$3:$R$162,2,FALSE),"/",S12,"/",H12) -> 64/Pat/201508 | V12: Pat/201508 | W12: 1007/201508 | X12: 1007/0111/201508 | Y12: 64/201508 | Z12: 64/0111/201508 | AA12: 0111/201508 | AB12: 0 | AC12: 0 | AD12: 0 | AE12: 0 | AF12: 0 | AG12: 0 | AH12: 0 | AI12: 0 | AJ12: 0 | AK12: 0 | AQ12: =Cadastro!K10 -> 0524 | AR12: =Cadastro!H10 -> Aut
B13: 01007 | C13: 0111 | D13: 201609 | F13: 01007 | G13: 0111 | H13: 201509 | J13: Pat | K13: 1007/Pat/201609 | L13: =IF(J13=0,0,+CONCATENATE(VLOOKUP(B13,Cadastro!$Q$3:$R$162,2,FALSE),"/",J13,"/",D13)) -> 64/Pat/201609 | M13: Pat/201609 | N13: 1007/201609 | O13: 1007/0111/201609 | P13: 64/201609 | Q13: 64/0111/201609 | R13: 0111/201609 | S13: Pat | T13: 1007/Pat/201509 | U13: =+CONCATENATE(VLOOKUP(F13,Cadastro!$Q$3:$R$162,2,FALSE),"/",S13,"/",H13) -> 64/Pat/201509 | V13: Pat/201509 | W13: 1007/201509 | X13: 1007/0111/201509 | Y13: 64/201509 | Z13: 64/0111/201509 | AA13: 0111/201509 | AB13: 0 | AC13: 0 | AD13: 0 | AE13: 0 | AF13: 0 | AG13: 0 | AH13: 0 | AI13: 0 | AJ13: 0 | AK13: 0 | AQ13: =Cadastro!K11 -> 0525 | AR13: =Cadastro!H11 -> Aut
B14: 01007 | C14: 0111 | D14: 201610 | F14: 01007 | G14: 0111 | H14: 201510 | J14: Pat | K14: 1007/Pat/201610 | L14: =IF(J14=0,0,+CONCATENATE(VLOOKUP(B14,Cadastro!$Q$3:$R$162,2,FALSE),"/",J14,"/",D14)) -> 64/Pat/201610 | M14: Pat/201610 | N14: 1007/201610 | O14: 1007/0111/201610 | P14: 64/201610 | Q14: 64/0111/201610 | R14: 0111/201610 | S14: Pat | T14: 1007/Pat/201510 | U14: =+CONCATENATE(VLOOKUP(F14,Cadastro!$Q$3:$R$162,2,FALSE),"/",S14,"/",H14) -> 64/Pat/201510 | V14: Pat/201510 | W14: 1007/201510 | X14: 1007/0111/201510 | Y14: 64/201510 | Z14: 64/0111/201510 | AA14: 0111/201510 | AB14: 0 | AC14: 0 | AD14: 0 | AE14: 0 | AF14: 0 | AG14: 0 | AH14: 0 | AI14: 0 | AJ14: 0 | AK14: 0 | AQ14: =Cadastro!K12 -> 0526 | AR14: =Cadastro!H12 -> Aut
B15: 01007 | C15: 0111 | D15: 201611 | F15: 01007 | G15: 0111 | H15: 201511 | J15: Pat | K15: 1007/Pat/201611 | L15: =IF(J15=0,0,+CONCATENATE(VLOOKUP(B15,Cadastro!$Q$3:$R$162,2,FALSE),"/",J15,"/",D15)) -> 64/Pat/201611 | M15: Pat/201611 | N15: 1007/201611 | O15: 1007/0111/201611 | P15: 64/201611 | Q15: 64/0111/201611 | R15: 0111/201611 | S15: Pat | T15: 1007/Pat/201511 | U15: =+CONCATENATE(VLOOKUP(F15,Cadastro!$Q$3:$R$162,2,FALSE),"/",S15,"/",H15) -> 64/Pat/201511 | V15: Pat/201511 | W15: 1007/201511 | X15: 1007/0111/201511 | Y15: 64/201511 | Z15: 64/0111/201511 | AA15: 0111/201511 | AB15: 0 | AC15: 0 | AD15: 0 | AE15: 0 | AF15: 0 | AG15: 0 | AH15: 0 | AI15: 0 | AJ15: 0 | AK15: 0 | AQ15: =Cadastro!K13 -> 0531 | AR15: =Cadastro!H13 -> Aut
B16: 01007 | C16: 0111 | D16: 201612 | F16: 01007 | G16: 0111 | H16: 201512 | J16: Pat | K16: 1007/Pat/201612 | L16: =IF(J16=0,0,+CONCATENATE(VLOOKUP(B16,Cadastro!$Q$3:$R$162,2,FALSE),"/",J16,"/",D16)) -> 64/Pat/201612 | M16: Pat/201612 | N16: 1007/201612 | O16: 1007/0111/201612 | P16: 64/201612 | Q16: 64/0111/201612 | R16: 0111/201612 | S16: Pat | T16: 1007/Pat/201512 | U16: =+CONCATENATE(VLOOKUP(F16,Cadastro!$Q$3:$R$162,2,FALSE),"/",S16,"/",H16) -> 64/Pat/201512 | V16: Pat/201512 | W16: 1007/201512 | X16: 1007/0111/201512 | Y16: 64/201512 | Z16: 64/0111/201512 | AA16: 0111/201512 | AB16: 0 | AC16: 0 | AD16: 0 | AE16: 0 | AF16: 0 | AG16: 0 | AH16: 0 | AI16: 0 | AJ16: 0 | AK16: 0 | AQ16: =Cadastro!K14 -> 0542 | AR16: =Cadastro!H14 -> Aut
B17: 01007 | C17: 0115 | D17: 201601 | F17: 01007 | G17: 0115 | H17: 201501 | J17: Pat | K17: 1007/Pat/201601 | L17: =IF(J17=0,0,+CONCATENATE(VLOOKUP(B17,Cadastro!$Q$3:$R$162,2,FALSE),"/",J17,"/",D17)) -> 64/Pat/201601 | M17: Pat/201601 | N17: 1007/201601 | O17: 1007/0115/201601 | P17: 64/201601 | Q17: 64/0115/201601 | R17: 0115/201601 | S17: Pat | T17: 1007/Pat/201501 | U17: =+CONCATENATE(VLOOKUP(F17,Cadastro!$Q$3:$R$162,2,FALSE),"/",S17,"/",H17) -> 64/Pat/201501 | V17: Pat/201501 | W17: 1007/201501 | X17: 1007/0115/201501 | Y17: 64/201501 | Z17: 64/0115/201501 | AA17: 0115/201501 | AB17: 0 | AC17: 0 | AD17: 0 | AE17: 0 | AF17: 0 | AG17: 0 | AH17: 0 | AI17: 0 | AJ17: 0 | AK17: 0 | AQ17: =Cadastro!K15 -> 0544 | AR17: =Cadastro!H15 -> Aut
B18: 01007 | C18: 0115 | D18: 201602 | F18: 01007 | G18: 0115 | H18: 201502 | J18: Pat | K18: 1007/Pat/201602 | L18: =IF(J18=0,0,+CONCATENATE(VLOOKUP(B18,Cadastro!$Q$3:$R$162,2,FALSE),"/",J18,"/",D18)) -> 64/Pat/201602 | M18: Pat/201602 | N18: 1007/201602 | O18: 1007/0115/201602 | P18: 64/201602 | Q18: 64/0115/201602 | R18: 0115/201602 | S18: Pat | T18: 1007/Pat/201502 | U18: =+CONCATENATE(VLOOKUP(F18,Cadastro!$Q$3:$R$162,2,FALSE),"/",S18,"/",H18) -> 64/Pat/201502 | V18: Pat/201502 | W18: 1007/201502 | X18: 1007/0115/201502 | Y18: 64/201502 | Z18: 64/0115/201502 | AA18: 0115/201502 | AB18: 0 | AC18: 0 | AD18: 0 | AE18: 0 | AF18: 0 | AG18: 0 | AH18: -1.8 | AI18: 0 | AJ18: 0 | AK18: 0 | AQ18: =Cadastro!K16 -> 0553 | AR18: =Cadastro!H16 -> Aut
B19: 01007 | C19: 0115 | D19: 201603 | F19: 01007 | G19: 0115 | H19: 201503 | J19: Pat | K19: 1007/Pat/201603 | L19: =IF(J19=0,0,+CONCATENATE(VLOOKUP(B19,Cadastro!$Q$3:$R$162,2,FALSE),"/",J19,"/",D19)) -> 64/Pat/201603 | M19: Pat/201603 | N19: 1007/201603 | O19: 1007/0115/201603 | P19: 64/201603 | Q19: 64/0115/201603 | R19: 0115/201603 | S19: Pat | T19: 1007/Pat/201503 | U19: =+CONCATENATE(VLOOKUP(F19,Cadastro!$Q$3:$R$162,2,FALSE),"/",S19,"/",H19) -> 64/Pat/201503 | V19: Pat/201503 | W19: 1007/201503 | X19: 1007/0115/201503 | Y19: 64/201503 | Z19: 64/0115/201503 | AA19: 0115/201503 | AB19: 0 | AC19: 0 | AD19: 0 | AE19: 0 | AF19: 0 | AG19: 0 | AH19: 0 | AI19: 0 | AJ19: 0 | AK19: 0 | AQ19: =Cadastro!K17 -> 0588 | AR19: =Cadastro!H17 -> Dpvat
B20: 01007 | C20: 0115 | D20: 201604 | F20: 01007 | G20: 0115 | H20: 201504 | J20: Pat | K20: 1007/Pat/201604 | L20: =IF(J20=0,0,+CONCATENATE(VLOOKUP(B20,Cadastro!$Q$3:$R$162,2,FALSE),"/",J20,"/",D20)) -> 64/Pat/201604 | M20: Pat/201604 | N20: 1007/201604 | O20: 1007/0115/201604 | P20: 64/201604 | Q20: 64/0115/201604 | R20: 0115/201604 | S20: Pat | T20: 1007/Pat/201504 | U20: =+CONCATENATE(VLOOKUP(F20,Cadastro!$Q$3:$R$162,2,FALSE),"/",S20,"/",H20) -> 64/Pat/201504 | V20: Pat/201504 | W20: 1007/201504 | X20: 1007/0115/201504 | Y20: 64/201504 | Z20: 64/0115/201504 | AA20: 0115/201504 | AB20: 0 | AC20: 0 | AD20: 0 | AE20: 0 | AF20: 0 | AG20: 0 | AH20: 0 | AI20: 0 | AJ20: 0 | AK20: 0 | AQ20: =Cadastro!K18 -> 0589 | AR20: =Cadastro!H18 -> Dpvat
B21: 01007 | C21: 0115 | D21: 201605 | F21: 01007 | G21: 0115 | H21: 201505 | J21: Pat | K21: 1007/Pat/201605 | L21: =IF(J21=0,0,+CONCATENATE(VLOOKUP(B21,Cadastro!$Q$3:$R$162,2,FALSE),"/",J21,"/",D21)) -> 64/Pat/201605 | M21: Pat/201605 | N21: 1007/201605 | O21: 1007/0115/201605 | P21: 64/201605 | Q21: 64/0115/201605 | R21: 0115/201605 | S21: Pat | T21: 1007/Pat/201505 | U21: =+CONCATENATE(VLOOKUP(F21,Cadastro!$Q$3:$R$162,2,FALSE),"/",S21,"/",H21) -> 64/Pat/201505 | V21: Pat/201505 | W21: 1007/201505 | X21: 1007/0115/201505 | Y21: 64/201505 | Z21: 64/0115/201505 | AA21: 0115/201505 | AB21: 0 | AC21: 0 | AD21: 0 | AE21: 0 | AF21: 0 | AG21: 0 | AH21: 0 | AI21: 0 | AJ21: 0 | AK21: 0 | AQ21: =Cadastro!K19 -> 1061 | AR21: =Cadastro!H19 -> Hab
B22: 01007 | C22: 0115 | D22: 201606 | F22: 01007 | G22: 0115 | H22: 201506 | J22: Pat | K22: 1007/Pat/201606 | L22: =IF(J22=0,0,+CONCATENATE(VLOOKUP(B22,Cadastro!$Q$3:$R$162,2,FALSE),"/",J22,"/",D22)) -> 64/Pat/201606 | M22: Pat/201606 | N22: 1007/201606 | O22: 1007/0115/201606 | P22: 64/201606 | Q22: 64/0115/201606 | R22: 0115/201606 | S22: Pat | T22: 1007/Pat/201506 | U22: =+CONCATENATE(VLOOKUP(F22,Cadastro!$Q$3:$R$162,2,FALSE),"/",S22,"/",H22) -> 64/Pat/201506 | V22: Pat/201506 | W22: 1007/201506 | X22: 1007/0115/201506 | Y22: 64/201506 | Z22: 64/0115/201506 | AA22: 0115/201506 | AB22: 0 | AC22: 0 | AD22: 0 | AE22: 0 | AF22: 0 | AG22: 0 | AH22: 0 | AI22: 0 | AJ22: 0 | AK22: 0 | AQ22: =Cadastro!K20 -> 1065 | AR22: =Cadastro!H20 -> Hab
B23: 01007 | C23: 0115 | D23: 201607 | F23: 01007 | G23: 0115 | H23: 201507 | J23: Pat | K23: 1007/Pat/201607 | L23: =IF(J23=0,0,+CONCATENATE(VLOOKUP(B23,Cadastro!$Q$3:$R$162,2,FALSE),"/",J23,"/",D23)) -> 64/Pat/201607 | M23: Pat/201607 | N23: 1007/201607 | O23: 1007/0115/201607 | P23: 64/201607 | Q23: 64/0115/201607 | R23: 0115/201607 | S23: Pat | T23: 1007/Pat/201507 | U23: =+CONCATENATE(VLOOKUP(F23,Cadastro!$Q$3:$R$162,2,FALSE),"/",S23,"/",H23) -> 64/Pat/201507 | V23: Pat/201507 | W23: 1007/201507 | X23: 1007/0115/201507 | Y23: 64/201507 | Z23: 64/0115/201507 | AA23: 0115/201507 | AB23: 0 | AC23: 0 | AD23: 0 | AE23: 0 | AF23: 0 | AG23: 0 | AH23: 0 | AI23: 0 | AJ23: 0 | AK23: 0 | AQ23: =Cadastro!K21 -> 1066 | AR23: =Cadastro!H21 -> Hab
B24: 01007 | C24: 0115 | D24: 201608 | F24: 01007 | G24: 0115 | H24: 201508 | J24: Pat | K24: 1007/Pat/201608 | L24: =IF(J24=0,0,+CONCATENATE(VLOOKUP(B24,Cadastro!$Q$3:$R$162,2,FALSE),"/",J24,"/",D24)) -> 64/Pat/201608 | M24: Pat/201608 | N24: 1007/201608 | O24: 1007/0115/201608 | P24: 64/201608 | Q24: 64/0115/201608 | R24: 0115/201608 | S24: Pat | T24: 1007/Pat/201508 | U24: =+CONCATENATE(VLOOKUP(F24,Cadastro!$Q$3:$R$162,2,FALSE),"/",S24,"/",H24) -> 64/Pat/201508 | V24: Pat/201508 | W24: 1007/201508 | X24: 1007/0115/201508 | Y24: 64/201508 | Z24: 64/0115/201508 | AA24: 0115/201508 | AB24: 0 | AC24: 0 | AD24: 0 | AE24: 0 | AF24: 0 | AG24: 0 | AH24: 0 | AI24: 0 | AJ24: 0 | AK24: 0 | AQ24: =Cadastro!K22 -> 1068 | AR24: =Cadastro!H22 -> Hab
B25: 01007 | C25: 0115 | D25: 201609 | F25: 01007 | G25: 0115 | H25: 201509 | J25: Pat | K25: 1007/Pat/201609 | L25: =IF(J25=0,0,+CONCATENATE(VLOOKUP(B25,Cadastro!$Q$3:$R$162,2,FALSE),"/",J25,"/",D25)) -> 64/Pat/201609 | M25: Pat/201609 | N25: 1007/201609 | O25: 1007/0115/201609 | P25: 64/201609 | Q25: 64/0115/201609 | R25: 0115/201609 | S25: Pat | T25: 1007/Pat/201509 | U25: =+CONCATENATE(VLOOKUP(F25,Cadastro!$Q$3:$R$162,2,FALSE),"/",S25,"/",H25) -> 64/Pat/201509 | V25: Pat/201509 | W25: 1007/201509 | X25: 1007/0115/201509 | Y25: 64/201509 | Z25: 64/0115/201509 | AA25: 0115/201509 | AB25: 0 | AC25: 0 | AD25: 0 | AE25: 0 | AF25: 0 | AG25: 0 | AH25: 0 | AI25: 0 | AJ25: 0 | AK25: 0 | AQ25: =Cadastro!K23 -> 0433 | AR25: =Cadastro!H23 -> Mar
B26: 01007 | C26: 0115 | D26: 201610 | F26: 01007 | G26: 0115 | H26: 201510 | J26: Pat | K26: 1007/Pat/201610 | L26: =IF(J26=0,0,+CONCATENATE(VLOOKUP(B26,Cadastro!$Q$3:$R$162,2,FALSE),"/",J26,"/",D26)) -> 64/Pat/201610 | M26: Pat/201610 | N26: 1007/201610 | O26: 1007/0115/201610 | P26: 64/201610 | Q26: 64/0115/201610 | R26: 0115/201610 | S26: Pat | T26: 1007/Pat/201510 | U26: =+CONCATENATE(VLOOKUP(F26,Cadastro!$Q$3:$R$162,2,FALSE),"/",S26,"/",H26) -> 64/Pat/201510 | V26: Pat/201510 | W26: 1007/201510 | X26: 1007/0115/201510 | Y26: 64/201510 | Z26: 64/0115/201510 | AA26: 0115/201510 | AB26: 0 | AC26: 0 | AD26: 0 | AE26: 0 | AF26: 0 | AG26: 0 | AH26: 0 | AI26: 0 | AJ26: 0 | AK26: 0 | AQ26: =Cadastro!K24 -> 0457 | AR26: =Cadastro!H24 -> Mar
B27: 01007 | C27: 0115 | D27: 201611 | F27: 01007 | G27: 0115 | H27: 201511 | J27: Pat | K27: 1007/Pat/201611 | L27: =IF(J27=0,0,+CONCATENATE(VLOOKUP(B27,Cadastro!$Q$3:$R$162,2,FALSE),"/",J27,"/",D27)) -> 64/Pat/201611 | M27: Pat/201611 | N27: 1007/201611 | O27: 1007/0115/201611 | P27: 64/201611 | Q27: 64/0115/201611 | R27: 0115/201611 | S27: Pat | T27: 1007/Pat/201511 | U27: =+CONCATENATE(VLOOKUP(F27,Cadastro!$Q$3:$R$162,2,FALSE),"/",S27,"/",H27) -> 64/Pat/201511 | V27: Pat/201511 | W27: 1007/201511 | X27: 1007/0115/201511 | Y27: 64/201511 | Z27: 64/0115/201511 | AA27: 0115/201511 | AB27: 0 | AC27: 0 | AD27: 0 | AE27: 0 | AF27: 0 | AG27: 0 | AH27: 0 | AI27: 0 | AJ27: 0 | AK27: 0 | AQ27: =Cadastro!K25 -> 1417 | AR27: =Cadastro!H25 -> Mar
B28: 01007 | C28: 0115 | D28: 201612 | F28: 01007 | G28: 0115 | H28: 201512 | J28: Pat | K28: 1007/Pat/201612 | L28: =IF(J28=0,0,+CONCATENATE(VLOOKUP(B28,Cadastro!$Q$3:$R$162,2,FALSE),"/",J28,"/",D28)) -> 64/Pat/201612 | M28: Pat/201612 | N28: 1007/201612 | O28: 1007/0115/201612 | P28: 64/201612 | Q28: 64/0115/201612 | R28: 0115/201612 | S28: Pat | T28: 1007/Pat/201512 | U28: =+CONCATENATE(VLOOKUP(F28,Cadastro!$Q$3:$R$162,2,FALSE),"/",S28,"/",H28) -> 64/Pat/201512 | V28: Pat/201512 | W28: 1007/201512 | X28: 1007/0115/201512 | Y28: 64/201512 | Z28: 64/0115/201512 | AA28: 0115/201512 | AB28: 0 | AC28: 0 | AD28: 0 | AE28: 0 | AF28: 0 | AG28: 0 | AH28: 0 | AI28: 0 | AJ28: 0 | AK28: 0 | AQ28: =Cadastro!K26 -> 1428 | AR28: =Cadastro!H26 -> Mar
B29: 01007 | C29: 0141 | D29: 201601 | F29: 01007 | G29: 0141 | H29: 201501 | J29: Pat | K29: 1007/Pat/201601 | L29: =IF(J29=0,0,+CONCATENATE(VLOOKUP(B29,Cadastro!$Q$3:$R$162,2,FALSE),"/",J29,"/",D29)) -> 64/Pat/201601 | M29: Pat/201601 | N29: 1007/201601 | O29: 1007/0141/201601 | P29: 64/201601 | Q29: 64/0141/201601 | R29: 0141/201601 | S29: Pat | T29: 1007/Pat/201501 | U29: =+CONCATENATE(VLOOKUP(F29,Cadastro!$Q$3:$R$162,2,FALSE),"/",S29,"/",H29) -> 64/Pat/201501 | V29: Pat/201501 | W29: 1007/201501 | X29: 1007/0141/201501 | Y29: 64/201501 | Z29: 64/0141/201501 | AA29: 0141/201501 | AB29: 0 | AC29: 0 | AD29: 0 | AE29: 0 | AF29: 0 | AG29: 0 | AH29: 0 | AI29: 0 | AJ29: 0 | AK29: 0 | AQ29: =Cadastro!K27 -> 1433 | AR29: =Cadastro!H27 -> Mar
B30: 01007 | C30: 0141 | D30: 201602 | F30: 01007 | G30: 0141 | H30: 201502 | J30: Pat | K30: 1007/Pat/201602 | L30: =IF(J30=0,0,+CONCATENATE(VLOOKUP(B30,Cadastro!$Q$3:$R$162,2,FALSE),"/",J30,"/",D30)) -> 64/Pat/201602 | M30: Pat/201602 | N30: 1007/201602 | O30: 1007/0141/201602 | P30: 64/201602 | Q30: 64/0141/201602 | R30: 0141/201602 | S30: Pat | T30: 1007/Pat/201502 | U30: =+CONCATENATE(VLOOKUP(F30,Cadastro!$Q$3:$R$162,2,FALSE),"/",S30,"/",H30) -> 64/Pat/201502 | V30: Pat/201502 | W30: 1007/201502 | X30: 1007/0141/201502 | Y30: 64/201502 | Z30: 64/0141/201502 | AA30: 0141/201502 | AB30: 0 | AC30: 0 | AD30: 0 | AE30: 0 | AF30: 0 | AG30: 0 | AH30: 0 | AI30: 0 | AJ30: 0 | AK30: 0 | AQ30: =Cadastro!K28 -> 1457 | AR30: =Cadastro!H28 -> Mar
B31: 01007 | C31: 0141 | D31: 201603 | F31: 01007 | G31: 0141 | H31: 201503 | J31: Pat | K31: 1007/Pat/201603 | L31: =IF(J31=0,0,+CONCATENATE(VLOOKUP(B31,Cadastro!$Q$3:$R$162,2,FALSE),"/",J31,"/",D31)) -> 64/Pat/201603 | M31: Pat/201603 | N31: 1007/201603 | O31: 1007/0141/201603 | P31: 64/201603 | Q31: 64/0141/201603 | R31: 0141/201603 | S31: Pat | T31: 1007/Pat/201503 | U31: =+CONCATENATE(VLOOKUP(F31,Cadastro!$Q$3:$R$162,2,FALSE),"/",S31,"/",H31) -> 64/Pat/201503 | V31: Pat/201503 | W31: 1007/201503 | X31: 1007/0141/201503 | Y31: 64/201503 | Z31: 64/0141/201503 | AA31: 0141/201503 | AB31: 0 | AC31: 0 | AD31: 0 | AE31: 0 | AF31: 0 | AG31: 0 | AH31: 0 | AI31: 0 | AJ31: 0 | AK31: 0 | AQ31: =Cadastro!K29 -> 1602 | AR31: =Cadastro!H29 -> Mger
B32: 01007 | C32: 0141 | D32: 201604 | F32: 01007 | G32: 0141 | H32: 201504 | J32: Pat | K32: 1007/Pat/201604 | L32: =IF(J32=0,0,+CONCATENATE(VLOOKUP(B32,Cadastro!$Q$3:$R$162,2,FALSE),"/",J32,"/",D32)) -> 64/Pat/201604 | M32: Pat/201604 | N32: 1007/201604 | O32: 1007/0141/201604 | P32: 64/201604 | Q32: 64/0141/201604 | R32: 0141/201604 | S32: Pat | T32: 1007/Pat/201504 | U32: =+CONCATENATE(VLOOKUP(F32,Cadastro!$Q$3:$R$162,2,FALSE),"/",S32,"/",H32) -> 64/Pat/201504 | V32: Pat/201504 | W32: 1007/201504 | X32: 1007/0141/201504 | Y32: 64/201504 | Z32: 64/0141/201504 | AA32: 0141/201504 | AB32: 0 | AC32: 0 | AD32: 0 | AE32: 0 | AF32: 0 | AG32: 0 | AH32: 0 | AI32: 0 | AJ32: 0 | AK32: 0 | AQ32: =Cadastro!K30 -> 1601 | AR32: =Cadastro!H30 -> Mpes
B33: 01007 | C33: 0141 | D33: 201605 | F33: 01007 | G33: 0141 | H33: 201505 | J33: Pat | K33: 1007/Pat/201605 | L33: =IF(J33=0,0,+CONCATENATE(VLOOKUP(B33,Cadastro!$Q$3:$R$162,2,FALSE),"/",J33,"/",D33)) -> 64/Pat/201605 | M33: Pat/201605 | N33: 1007/201605 | O33: 1007/0141/201605 | P33: 64/201605 | Q33: 64/0141/201605 | R33: 0141/201605 | S33: Pat | T33: 1007/Pat/201505 | U33: =+CONCATENATE(VLOOKUP(F33,Cadastro!$Q$3:$R$162,2,FALSE),"/",S33,"/",H33) -> 64/Pat/201505 | V33: Pat/201505 | W33: 1007/201505 | X33: 1007/0141/201505 | Y33: 64/201505 | Z33: 64/0141/201505 | AA33: 0141/201505 | AB33: 0 | AC33: 0 | AD33: 0 | AE33: 0 | AF33: 0 | AG33: 0 | AH33: 0 | AI33: 0 | AJ33: 0 | AK33: 0 | AQ33: =Cadastro!K31 -> 1279 | AR33: =Cadastro!H31 -> Out
B34: 01007 | C34: 0141 | D34: 201606 | F34: 01007 | G34: 0141 | H34: 201506 | J34: Pat | K34: 1007/Pat/201606 | L34: =IF(J34=0,0,+CONCATENATE(VLOOKUP(B34,Cadastro!$Q$3:$R$162,2,FALSE),"/",J34,"/",D34)) -> 64/Pat/201606 | M34: Pat/201606 | N34: 1007/201606 | O34: 1007/0141/201606 | P34: 64/201606 | Q34: 64/0141/201606 | R34: 0141/201606 | S34: Pat | T34: 1007/Pat/201506 | U34: =+CONCATENATE(VLOOKUP(F34,Cadastro!$Q$3:$R$162,2,FALSE),"/",S34,"/",H34) -> 64/Pat/201506 | V34: Pat/201506 | W34: 1007/201506 | X34: 1007/0141/201506 | Y34: 64/201506 | Z34: 64/0141/201506 | AA34: 0141/201506 | AB34: 0 | AC34: 0 | AD34: 0 | AE34: 0 | AF34: 0 | AG34: 0 | AH34: 0 | AI34: 0 | AJ34: 0 | AK34: 0 | AQ34: =Cadastro!K32 -> 1299 | AR34: =Cadastro!H32 -> Out
B35: 01007 | C35: 0141 | D35: 201607 | F35: 01007 | G35: 0141 | H35: 201507 | J35: Pat | K35: 1007/Pat/201607 | L35: =IF(J35=0,0,+CONCATENATE(VLOOKUP(B35,Cadastro!$Q$3:$R$162,2,FALSE),"/",J35,"/",D35)) -> 64/Pat/201607 | M35: Pat/201607 | N35: 1007/201607 | O35: 1007/0141/201607 | P35: 64/201607 | Q35: 64/0141/201607 | R35: 0141/201607 | S35: Pat | T35: 1007/Pat/201507 | U35: =+CONCATENATE(VLOOKUP(F35,Cadastro!$Q$3:$R$162,2,FALSE),"/",S35,"/",H35) -> 64/Pat/201507 | V35: Pat/201507 | W35: 1007/201507 | X35: 1007/0141/201507 | Y35: 64/201507 | Z35: 64/0141/201507 | AA35: 0141/201507 | AB35: 0 | AC35: 0 | AD35: 0 | AE35: 0 | AF35: 0 | AG35: 0 | AH35: 0 | AI35: 0 | AJ35: 0 | AK35: 0 | AQ35: =Cadastro!K33 -> 2079 | AR35: =Cadastro!H33 -> Out
B36: 01007 | C36: 0141 | D36: 201608 | F36: 01007 | G36: 0141 | H36: 201508 | J36: Pat | K36: 1007/Pat/201608 | L36: =IF(J36=0,0,+CONCATENATE(VLOOKUP(B36,Cadastro!$Q$3:$R$162,2,FALSE),"/",J36,"/",D36)) -> 64/Pat/201608 | M36: Pat/201608 | N36: 1007/201608 | O36: 1007/0141/201608 | P36: 64/201608 | Q36: 64/0141/201608 | R36: 0141/201608 | S36: Pat | T36: 1007/Pat/201508 | U36: =+CONCATENATE(VLOOKUP(F36,Cadastro!$Q$3:$R$162,2,FALSE),"/",S36,"/",H36) -> 64/Pat/201508 | V36: Pat/201508 | W36: 1007/201508 | X36: 1007/0141/201508 | Y36: 64/201508 | Z36: 64/0141/201508 | AA36: 0141/201508 | AB36: 0 | AC36: 0 | AD36: 0 | AE36: 0 | AF36: 0 | AG36: 0 | AH36: 0 | AI36: 0 | AJ36: 0 | AK36: 0 | AQ36: =Cadastro!K34 -> 2199 | AR36: =Cadastro!H34 -> Out
B37: 01007 | C37: 0141 | D37: 201609 | F37: 01007 | G37: 0141 | H37: 201509 | J37: Pat | K37: 1007/Pat/201609 | L37: =IF(J37=0,0,+CONCATENATE(VLOOKUP(B37,Cadastro!$Q$3:$R$162,2,FALSE),"/",J37,"/",D37)) -> 64/Pat/201609 | M37: Pat/201609 | N37: 1007/201609 | O37: 1007/0141/201609 | P37: 64/201609 | Q37: 64/0141/201609 | R37: 0141/201609 | S37: Pat | T37: 1007/Pat/201509 | U37: =+CONCATENATE(VLOOKUP(F37,Cadastro!$Q$3:$R$162,2,FALSE),"/",S37,"/",H37) -> 64/Pat/201509 | V37: Pat/201509 | W37: 1007/201509 | X37: 1007/0141/201509 | Y37: 64/201509 | Z37: 64/0141/201509 | AA37: 0141/201509 | AB37: 0 | AC37: 0 | AD37: 0 | AE37: 0 | AF37: 0 | AG37: 0 | AH37: 0 | AI37: 0 | AJ37: 0 | AK37: 0 | AQ37: =Cadastro!K35 -> 0111 | AR37: =Cadastro!H35 -> Pat
B38: 01007 | C38: 0141 | D38: 201610 | F38: 01007 | G38: 0141 | H38: 201510 | J38: Pat | K38: 1007/Pat/201610 | L38: =IF(J38=0,0,+CONCATENATE(VLOOKUP(B38,Cadastro!$Q$3:$R$162,2,FALSE),"/",J38,"/",D38)) -> 64/Pat/201610 | M38: Pat/201610 | N38: 1007/201610 | O38: 1007/0141/201610 | P38: 64/201610 | Q38: 64/0141/201610 | R38: 0141/201610 | S38: Pat | T38: 1007/Pat/201510 | U38: =+CONCATENATE(VLOOKUP(F38,Cadastro!$Q$3:$R$162,2,FALSE),"/",S38,"/",H38) -> 64/Pat/201510 | V38: Pat/201510 | W38: 1007/201510 | X38: 1007/0141/201510 | Y38: 64/201510 | Z38: 64/0141/201510 | AA38: 0141/201510 | AB38: 0 | AC38: 0 | AD38: 0 | AE38: 0 | AF38: 0 | AG38: 0 | AH38: 0 | AI38: 0 | AJ38: 0 | AK38: 0 | AQ38: =Cadastro!K36 -> 0112 | AR38: =Cadastro!H36 -> Pat
B39: 01007 | C39: 0141 | D39: 201611 | F39: 01007 | G39: 0141 | H39: 201511 | J39: Pat | K39: 1007/Pat/201611 | L39: =IF(J39=0,0,+CONCATENATE(VLOOKUP(B39,Cadastro!$Q$3:$R$162,2,FALSE),"/",J39,"/",D39)) -> 64/Pat/201611 | M39: Pat/201611 | N39: 1007/201611 | O39: 1007/0141/201611 | P39: 64/201611 | Q39: 64/0141/201611 | R39: 0141/201611 | S39: Pat | T39: 1007/Pat/201511 | U39: =+CONCATENATE(VLOOKUP(F39,Cadastro!$Q$3:$R$162,2,FALSE),"/",S39,"/",H39) -> 64/Pat/201511 | V39: Pat/201511 | W39: 1007/201511 | X39: 1007/0141/201511 | Y39: 64/201511 | Z39: 64/0141/201511 | AA39: 0141/201511 | AB39: 0 | AC39: 0 | AD39: 0 | AE39: 0 | AF39: 0 | AG39: 0 | AH39: 0 | AI39: 0 | AJ39: 0 | AK39: 0 | AQ39: =Cadastro!K37 -> 0114 | AR39: =Cadastro!H37 -> Pat
B40: 01007 | C40: 0141 | D40: 201612 | F40: 01007 | G40: 0141 | H40: 201512 | J40: Pat | K40: 1007/Pat/201612 | L40: =IF(J40=0,0,+CONCATENATE(VLOOKUP(B40,Cadastro!$Q$3:$R$162,2,FALSE),"/",J40,"/",D40)) -> 64/Pat/201612 | M40: Pat/201612 | N40: 1007/201612 | O40: 1007/0141/201612 | P40: 64/201612 | Q40: 64/0141/201612 | R40: 0141/201612 | S40: Pat | T40: 1007/Pat/201512 | U40: =+CONCATENATE(VLOOKUP(F40,Cadastro!$Q$3:$R$162,2,FALSE),"/",S40,"/",H40) -> 64/Pat/201512 | V40: Pat/201512 | W40: 1007/201512 | X40: 1007/0141/201512 | Y40: 64/201512 | Z40: 64/0141/201512 | AA40: 0141/201512 | AB40: 0 | AC40: 0 | AD40: 0 | AE40: 0 | AF40: 0 | AG40: 0 | AH40: 0 | AI40: 0 | AJ40: 0 | AK40: 0 | AQ40: =Cadastro!K38 -> 0115 | AR40: =Cadastro!H38 -> Pat
B41: 01007 | C41: 0167 | D41: 201601 | F41: 01007 | G41: 0167 | H41: 201501 | J41: Pat | K41: 1007/Pat/201601 | L41: =IF(J41=0,0,+CONCATENATE(VLOOKUP(B41,Cadastro!$Q$3:$R$162,2,FALSE),"/",J41,"/",D41)) -> 64/Pat/201601 | M41: Pat/201601 | N41: 1007/201601 | O41: 1007/0167/201601 | P41: 64/201601 | Q41: 64/0167/201601 | R41: 0167/201601 | S41: Pat | T41: 1007/Pat/201501 | U41: =+CONCATENATE(VLOOKUP(F41,Cadastro!$Q$3:$R$162,2,FALSE),"/",S41,"/",H41) -> 64/Pat/201501 | V41: Pat/201501 | W41: 1007/201501 | X41: 1007/0167/201501 | Y41: 64/201501 | Z41: 64/0167/201501 | AA41: 0167/201501 | AB41: 0 | AC41: 0 | AD41: 0 | AE41: 0 | AF41: 0 | AG41: 0 | AH41: 0 | AI41: 0 | AJ41: 0 | AK41: 0 | AQ41: =Cadastro!K39 -> 0116 | AR41: =Cadastro!H39 -> Pat
B42: 01007 | C42: 0167 | D42: 201602 | F42: 01007 | G42: 0167 | H42: 201502 | J42: Pat | K42: 1007/Pat/201602 | L42: =IF(J42=0,0,+CONCATENATE(VLOOKUP(B42,Cadastro!$Q$3:$R$162,2,FALSE),"/",J42,"/",D42)) -> 64/Pat/201602 | M42: Pat/201602 | N42: 1007/201602 | O42: 1007/0167/201602 | P42: 64/201602 | Q42: 64/0167/201602 | R42: 0167/201602 | S42: Pat | T42: 1007/Pat/201502 | U42: =+CONCATENATE(VLOOKUP(F42,Cadastro!$Q$3:$R$162,2,FALSE),"/",S42,"/",H42) -> 64/Pat/201502 | V42: Pat/201502 | W42: 1007/201502 | X42: 1007/0167/201502 | Y42: 64/201502 | Z42: 64/0167/201502 | AA42: 0167/201502 | AB42: 0 | AC42: 0 | AD42: 0 | AE42: 0 | AF42: 0 | AG42: 0 | AH42: -47.27 | AI42: 0 | AJ42: 0 | AK42: 0 | AQ42: =Cadastro!K40 -> 0118 | AR42: =Cadastro!H40 -> Pat
B43: 01007 | C43: 0167 | D43: 201603 | F43: 01007 | G43: 0167 | H43: 201503 | J43: Pat | K43: 1007/Pat/201603 | L43: =IF(J43=0,0,+CONCATENATE(VLOOKUP(B43,Cadastro!$Q$3:$R$162,2,FALSE),"/",J43,"/",D43)) -> 64/Pat/201603 | M43: Pat/201603 | N43: 1007/201603 | O43: 1007/0167/201603 | P43: 64/201603 | Q43: 64/0167/201603 | R43: 0167/201603 | S43: Pat | T43: 1007/Pat/201503 | U43: =+CONCATENATE(VLOOKUP(F43,Cadastro!$Q$3:$R$162,2,FALSE),"/",S43,"/",H43) -> 64/Pat/201503 | V43: Pat/201503 | W43: 1007/201503 | X43: 1007/0167/201503 | Y43: 64/201503 | Z43: 64/0167/201503 | AA43: 0167/201503 | AB43: 0 | AC43: 0 | AD43: 0 | AE43: 0 | AF43: 0 | AG43: 0 | AH43: 0 | AI43: 0 | AJ43: 0 | AK43: 0 | AQ43: =Cadastro!K41 -> 0141 | AR43: =Cadastro!H41 -> Pat
B44: 01007 | C44: 0167 | D44: 201604 | F44: 01007 | G44: 0167 | H44: 201504 | J44: Pat | K44: 1007/Pat/201604 | L44: =IF(J44=0,0,+CONCATENATE(VLOOKUP(B44,Cadastro!$Q$3:$R$162,2,FALSE),"/",J44,"/",D44)) -> 64/Pat/201604 | M44: Pat/201604 | N44: 1007/201604 | O44: 1007/0167/201604 | P44: 64/201604 | Q44: 64/0167/201604 | R44: 0167/201604 | S44: Pat | T44: 1007/Pat/201504 | U44: =+CONCATENATE(VLOOKUP(F44,Cadastro!$Q$3:$R$162,2,FALSE),"/",S44,"/",H44) -> 64/Pat/201504 | V44: Pat/201504 | W44: 1007/201504 | X44: 1007/0167/201504 | Y44: 64/201504 | Z44: 64/0167/201504 | AA44: 0167/201504 | AB44: 0 | AC44: 0 | AD44: 0 | AE44: 0 | AF44: 0 | AG44: 0 | AH44: 0 | AI44: 0 | AJ44: 0 | AK44: 0 | AQ44: =Cadastro!K42 -> 0167 | AR44: =Cadastro!H42 -> Pat
B45: 01007 | C45: 0167 | D45: 201605 | F45: 01007 | G45: 0167 | H45: 201505 | J45: Pat | K45: 1007/Pat/201605 | L45: =IF(J45=0,0,+CONCATENATE(VLOOKUP(B45,Cadastro!$Q$3:$R$162,2,FALSE),"/",J45,"/",D45)) -> 64/Pat/201605 | M45: Pat/201605 | N45: 1007/201605 | O45: 1007/0167/201605 | P45: 64/201605 | Q45: 64/0167/201605 | R45: 0167/201605 | S45: Pat | T45: 1007/Pat/201505 | U45: =+CONCATENATE(VLOOKUP(F45,Cadastro!$Q$3:$R$162,2,FALSE),"/",S45,"/",H45) -> 64/Pat/201505 | V45: Pat/201505 | W45: 1007/201505 | X45: 1007/0167/201505 | Y45: 64/201505 | Z45: 64/0167/201505 | AA45: 0167/201505 | AB45: 0 | AC45: 0 | AD45: 0 | AE45: 0 | AF45: 0 | AG45: 0 | AH45: 0 | AI45: 0 | AJ45: 0 | AK45: 0 | AQ45: =Cadastro!K43 -> 0171 | AR45: =Cadastro!H43 -> Pat
B46: 01007 | C46: 0167 | D46: 201606 | F46: 01007 | G46: 0167 | H46: 201506 | J46: Pat | K46: 1007/Pat/201606 | L46: =IF(J46=0,0,+CONCATENATE(VLOOKUP(B46,Cadastro!$Q$3:$R$162,2,FALSE),"/",J46,"/",D46)) -> 64/Pat/201606 | M46: Pat/201606 | N46: 1007/201606 | O46: 1007/0167/201606 | P46: 64/201606 | Q46: 64/0167/201606 | R46: 0167/201606 | S46: Pat | T46: 1007/Pat/201506 | U46: =+CONCATENATE(VLOOKUP(F46,Cadastro!$Q$3:$R$162,2,FALSE),"/",S46,"/",H46) -> 64/Pat/201506 | V46: Pat/201506 | W46: 1007/201506 | X46: 1007/0167/201506 | Y46: 64/201506 | Z46: 64/0167/201506 | AA46: 0167/201506 | AB46: 0 | AC46: 0 | AD46: 0 | AE46: 0 | AF46: 0 | AG46: 0 | AH46: 0 | AI46: 0 | AJ46: 0 | AK46: 0 | AQ46: =Cadastro!K44 -> 0173 | AR46: =Cadastro!H44 -> Pat
B47: 01007 | C47: 0167 | D47: 201607 | F47: 01007 | G47: 0167 | H47: 201507 | J47: Pat | K47: 1007/Pat/201607 | L47: =IF(J47=0,0,+CONCATENATE(VLOOKUP(B47,Cadastro!$Q$3:$R$162,2,FALSE),"/",J47,"/",D47)) -> 64/Pat/201607 | M47: Pat/201607 | N47: 1007/201607 | O47: 1007/0167/201607 | P47: 64/201607 | Q47: 64/0167/201607 | R47: 0167/201607 | S47: Pat | T47: 1007/Pat/201507 | U47: =+CONCATENATE(VLOOKUP(F47,Cadastro!$Q$3:$R$162,2,FALSE),"/",S47,"/",H47) -> 64/Pat/201507 | V47: Pat/201507 | W47: 1007/201507 | X47: 1007/0167/201507 | Y47: 64/201507 | Z47: 64/0167/201507 | AA47: 0167/201507 | AB47: 0 | AC47: 0 | AD47: 0 | AE47: 0 | AF47: 0 | AG47: 0 | AH47: 0 | AI47: 0 | AJ47: 0 | AK47: 0 | AQ47: =Cadastro!K45 -> 0195 | AR47: =Cadastro!H45 -> Pat
B48: 01007 | C48: 0167 | D48: 201608 | F48: 01007 | G48: 0167 | H48: 201508 | J48: Pat | K48: 1007/Pat/201608 | L48: =IF(J48=0,0,+CONCATENATE(VLOOKUP(B48,Cadastro!$Q$3:$R$162,2,FALSE),"/",J48,"/",D48)) -> 64/Pat/201608 | M48: Pat/201608 | N48: 1007/201608 | O48: 1007/0167/201608 | P48: 64/201608 | Q48: 64/0167/201608 | R48: 0167/201608 | S48: Pat | T48: 1007/Pat/201508 | U48: =+CONCATENATE(VLOOKUP(F48,Cadastro!$Q$3:$R$162,2,FALSE),"/",S48,"/",H48) -> 64/Pat/201508 | V48: Pat/201508 | W48: 1007/201508 | X48: 1007/0167/201508 | Y48: 64/201508 | Z48: 64/0167/201508 | AA48: 0167/201508 | AB48: 0 | AC48: 0 | AD48: 0 | AE48: 0 | AF48: 0 | AG48: 0 | AH48: 0 | AI48: 0 | AJ48: 0 | AK48: 0 | AQ48: =Cadastro!K46 -> 0196 | AR48: =Cadastro!H46 -> Pat
B49: 01007 | C49: 0167 | D49: 201609 | F49: 01007 | G49: 0167 | H49: 201509 | J49: Pat | K49: 1007/Pat/201609 | L49: =IF(J49=0,0,+CONCATENATE(VLOOKUP(B49,Cadastro!$Q$3:$R$162,2,FALSE),"/",J49,"/",D49)) -> 64/Pat/201609 | M49: Pat/201609 | N49: 1007/201609 | O49: 1007/0167/201609 | P49: 64/201609 | Q49: 64/0167/201609 | R49: 0167/201609 | S49: Pat | T49: 1007/Pat/201509 | U49: =+CONCATENATE(VLOOKUP(F49,Cadastro!$Q$3:$R$162,2,FALSE),"/",S49,"/",H49) -> 64/Pat/201509 | V49: Pat/201509 | W49: 1007/201509 | X49: 1007/0167/201509 | Y49: 64/201509 | Z49: 64/0167/201509 | AA49: 0167/201509 | AB49: 0 | AC49: 0 | AD49: 0 | AE49: 0 | AF49: 0 | AG49: 0 | AH49: 0 | AI49: 0 | AJ49: 0 | AK49: 0 | AQ49: =Cadastro!K47 -> 0929 | AR49: =Cadastro!H47 -> Pes
B50: 01007 | C50: 0167 | D50: 201610 | F50: 01007 | G50: 0167 | H50: 201510 | J50: Pat | K50: 1007/Pat/201610 | L50: =IF(J50=0,0,+CONCATENATE(VLOOKUP(B50,Cadastro!$Q$3:$R$162,2,FALSE),"/",J50,"/",D50)) -> 64/Pat/201610 | M50: Pat/201610 | N50: 1007/201610 | O50: 1007/0167/201610 | P50: 64/201610 | Q50: 64/0167/201610 | R50: 0167/201610 | S50: Pat | T50: 1007/Pat/201510 | U50: =+CONCATENATE(VLOOKUP(F50,Cadastro!$Q$3:$R$162,2,FALSE),"/",S50,"/",H50) -> 64/Pat/201510 | V50: Pat/201510 | W50: 1007/201510 | X50: 1007/0167/201510 | Y50: 64/201510 | Z50: 64/0167/201510 | AA50: 0167/201510 | AB50: 0 | AC50: 0 | AD50: 0 | AE50: 0 | AF50: 0 | AG50: 0 | AH50: 0 | AI50: 0 | AJ50: 0 | AK50: 0 | AQ50: =Cadastro!K48 -> 0936 | AR50: =Cadastro!H48 -> Pes
B51: 01007 | C51: 0167 | D51: 201611 | F51: 01007 | G51: 0167 | H51: 201511 | J51: Pat | K51: 1007/Pat/201611 | L51: =IF(J51=0,0,+CONCATENATE(VLOOKUP(B51,Cadastro!$Q$3:$R$162,2,FALSE),"/",J51,"/",D51)) -> 64/Pat/201611 | M51: Pat/201611 | N51: 1007/201611 | O51: 1007/0167/201611 | P51: 64/201611 | Q51: 64/0167/201611 | R51: 0167/201611 | S51: Pat | T51: 1007/Pat/201511 | U51: =+CONCATENATE(VLOOKUP(F51,Cadastro!$Q$3:$R$162,2,FALSE),"/",S51,"/",H51) -> 64/Pat/201511 | V51: Pat/201511 | W51: 1007/201511 | X51: 1007/0167/201511 | Y51: 64/201511 | Z51: 64/0167/201511 | AA51: 0167/201511 | AB51: 0 | AC51: 0 | AD51: 0 | AE51: 0 | AF51: 0 | AG51: 0 | AH51: 0 | AI51: 0 | AJ51: 0 | AK51: 0 | AQ51: =Cadastro!K49 -> 0969 | AR51: =Cadastro!H49 -> Pes
B52: 01007 | C52: 0167 | D52: 201612 | F52: 01007 | G52: 0167 | H52: 201512 | J52: Pat | K52: 1007/Pat/201612 | L52: =IF(J52=0,0,+CONCATENATE(VLOOKUP(B52,Cadastro!$Q$3:$R$162,2,FALSE),"/",J52,"/",D52)) -> 64/Pat/201612 | M52: Pat/201612 | N52: 1007/201612 | O52: 1007/0167/201612 | P52: 64/201612 | Q52: 64/0167/201612 | R52: 0167/201612 | S52: Pat | T52: 1007/Pat/201512 | U52: =+CONCATENATE(VLOOKUP(F52,Cadastro!$Q$3:$R$162,2,FALSE),"/",S52,"/",H52) -> 64/Pat/201512 | V52: Pat/201512 | W52: 1007/201512 | X52: 1007/0167/201512 | Y52: 64/201512 | Z52: 64/0167/201512 | AA52: 0167/201512 | AB52: 0 | AC52: 0 | AD52: 0 | AE52: 0 | AF52: 0 | AG52: 0 | AH52: 0 | AI52: 0 | AJ52: 0 | AK52: 0 | AQ52: =Cadastro!K50 -> 0977 | AR52: =Cadastro!H50 -> Pes
B53: 01007 | C53: 0171 | D53: 201601 | F53: 01007 | G53: 0171 | H53: 201501 | J53: Pat | K53: 1007/Pat/201601 | L53: =IF(J53=0,0,+CONCATENATE(VLOOKUP(B53,Cadastro!$Q$3:$R$162,2,FALSE),"/",J53,"/",D53)) -> 64/Pat/201601 | M53: Pat/201601 | N53: 1007/201601 | O53: 1007/0171/201601 | P53: 64/201601 | Q53: 64/0171/201601 | R53: 0171/201601 | S53: Pat | T53: 1007/Pat/201501 | U53: =+CONCATENATE(VLOOKUP(F53,Cadastro!$Q$3:$R$162,2,FALSE),"/",S53,"/",H53) -> 64/Pat/201501 | V53: Pat/201501 | W53: 1007/201501 | X53: 1007/0171/201501 | Y53: 64/201501 | Z53: 64/0171/201501 | AA53: 0171/201501 | AB53: 0 | AC53: 0 | AD53: 0 | AE53: 0 | AF53: 0 | AG53: 0 | AH53: 0 | AI53: 0 | AJ53: 0 | AK53: 0 | AQ53: =Cadastro!K51 -> 0980 | AR53: =Cadastro!H51 -> Pes
B54: 01007 | C54: 0171 | D54: 201602 | F54: 01007 | G54: 0171 | H54: 201502 | J54: Pat | K54: 1007/Pat/201602 | L54: =IF(J54=0,0,+CONCATENATE(VLOOKUP(B54,Cadastro!$Q$3:$R$162,2,FALSE),"/",J54,"/",D54)) -> 64/Pat/201602 | M54: Pat/201602 | N54: 1007/201602 | O54: 1007/0171/201602 | P54: 64/201602 | Q54: 64/0171/201602 | R54: 0171/201602 | S54: Pat | T54: 1007/Pat/201502 | U54: =+CONCATENATE(VLOOKUP(F54,Cadastro!$Q$3:$R$162,2,FALSE),"/",S54,"/",H54) -> 64/Pat/201502 | V54: Pat/201502 | W54: 1007/201502 | X54: 1007/0171/201502 | Y54: 64/201502 | Z54: 64/0171/201502 | AA54: 0171/201502 | AB54: 0 | AC54: 0 | AD54: 0 | AE54: 0 | AF54: 0 | AG54: 0 | AH54: -220.2 | AI54: 0 | AJ54: 0 | AK54: 0 | AQ54: =Cadastro!K52 -> 0981 | AR54: =Cadastro!H52 -> Pes
B55: 01007 | C55: 0171 | D55: 201603 | F55: 01007 | G55: 0171 | H55: 201503 | J55: Pat | K55: 1007/Pat/201603 | L55: =IF(J55=0,0,+CONCATENATE(VLOOKUP(B55,Cadastro!$Q$3:$R$162,2,FALSE),"/",J55,"/",D55)) -> 64/Pat/201603 | M55: Pat/201603 | N55: 1007/201603 | O55: 1007/0171/201603 | P55: 64/201603 | Q55: 64/0171/201603 | R55: 0171/201603 | S55: Pat | T55: 1007/Pat/201503 | U55: =+CONCATENATE(VLOOKUP(F55,Cadastro!$Q$3:$R$162,2,FALSE),"/",S55,"/",H55) -> 64/Pat/201503 | V55: Pat/201503 | W55: 1007/201503 | X55: 1007/0171/201503 | Y55: 64/201503 | Z55: 64/0171/201503 | AA55: 0171/201503 | AB55: 0 | AC55: 0 | AD55: 0 | AE55: 0 | AF55: 0 | AG55: 0 | AH55: 0 | AI55: 0 | AJ55: 0 | AK55: 0 | AQ55: =Cadastro!K53 -> 0982 | AR55: =Cadastro!H53 -> Pes
B56: 01007 | C56: 0171 | D56: 201604 | F56: 01007 | G56: 0171 | H56: 201504 | J56: Pat | K56: 1007/Pat/201604 | L56: =IF(J56=0,0,+CONCATENATE(VLOOKUP(B56,Cadastro!$Q$3:$R$162,2,FALSE),"/",J56,"/",D56)) -> 64/Pat/201604 | M56: Pat/201604 | N56: 1007/201604 | O56: 1007/0171/201604 | P56: 64/201604 | Q56: 64/0171/201604 | R56: 0171/201604 | S56: Pat | T56: 1007/Pat/201504 | U56: =+CONCATENATE(VLOOKUP(F56,Cadastro!$Q$3:$R$162,2,FALSE),"/",S56,"/",H56) -> 64/Pat/201504 | V56: Pat/201504 | W56: 1007/201504 | X56: 1007/0171/201504 | Y56: 64/201504 | Z56: 64/0171/201504 | AA56: 0171/201504 | AB56: 0 | AC56: 0 | AD56: 0 | AE56: 0 | AF56: 0 | AG56: 0 | AH56: 0 | AI56: 0 | AJ56: 0 | AK56: 0 | AQ56: =Cadastro!K54 -> 0983 | AR56: =Cadastro!H54 -> Pes
B57: 01007 | C57: 0171 | D57: 201605 | F57: 01007 | G57: 0171 | H57: 201505 | J57: Pat | K57: 1007/Pat/201605 | L57: =IF(J57=0,0,+CONCATENATE(VLOOKUP(B57,Cadastro!$Q$3:$R$162,2,FALSE),"/",J57,"/",D57)) -> 64/Pat/201605 | M57: Pat/201605 | N57: 1007/201605 | O57: 1007/0171/201605 | P57: 64/201605 | Q57: 64/0171/201605 | R57: 0171/201605 | S57: Pat | T57: 1007/Pat/201505 | U57: =+CONCATENATE(VLOOKUP(F57,Cadastro!$Q$3:$R$162,2,FALSE),"/",S57,"/",H57) -> 64/Pat/201505 | V57: Pat/201505 | W57: 1007/201505 | X57: 1007/0171/201505 | Y57: 64/201505 | Z57: 64/0171/201505 | AA57: 0171/201505 | AB57: 0 | AC57: 0 | AD57: 0 | AE57: 0 | AF57: 0 | AG57: 0 | AH57: 0 | AI57: 0 | AJ57: 0 | AK57: 0 | AQ57: =Cadastro!K55 -> 0984 | AR57: =Cadastro!H55 -> Pes
B58: 01007 | C58: 0171 | D58: 201606 | F58: 01007 | G58: 0171 | H58: 201506 | J58: Pat | K58: 1007/Pat/201606 | L58: =IF(J58=0,0,+CONCATENATE(VLOOKUP(B58,Cadastro!$Q$3:$R$162,2,FALSE),"/",J58,"/",D58)) -> 64/Pat/201606 | M58: Pat/201606 | N58: 1007/201606 | O58: 1007/0171/201606 | P58: 64/201606 | Q58: 64/0171/201606 | R58: 0171/201606 | S58: Pat | T58: 1007/Pat/201506 | U58: =+CONCATENATE(VLOOKUP(F58,Cadastro!$Q$3:$R$162,2,FALSE),"/",S58,"/",H58) -> 64/Pat/201506 | V58: Pat/201506 | W58: 1007/201506 | X58: 1007/0171/201506 | Y58: 64/201506 | Z58: 64/0171/201506 | AA58: 0171/201506 | AB58: 0 | AC58: 0 | AD58: 0 | AE58: 0 | AF58: 0 | AG58: 0 | AH58: 0 | AI58: 0 | AJ58: 0 | AK58: 0 | AQ58: =Cadastro!K56 -> 0986 | AR58: =Cadastro!H56 -> Pes
B59: 01007 | C59: 0171 | D59: 201607 | F59: 01007 | G59: 0171 | H59: 201507 | J59: Pat | K59: 1007/Pat/201607 | L59: =IF(J59=0,0,+CONCATENATE(VLOOKUP(B59,Cadastro!$Q$3:$R$162,2,FALSE),"/",J59,"/",D59)) -> 64/Pat/201607 | M59: Pat/201607 | N59: 1007/201607 | O59: 1007/0171/201607 | P59: 64/201607 | Q59: 64/0171/201607 | R59: 0171/201607 | S59: Pat | T59: 1007/Pat/201507 | U59: =+CONCATENATE(VLOOKUP(F59,Cadastro!$Q$3:$R$162,2,FALSE),"/",S59,"/",H59) -> 64/Pat/201507 | V59: Pat/201507 | W59: 1007/201507 | X59: 1007/0171/201507 | Y59: 64/201507 | Z59: 64/0171/201507 | AA59: 0171/201507 | AB59: 0 | AC59: 0 | AD59: 0 | AE59: 0 | AF59: 0 | AG59: 0 | AH59: 0 | AI59: 0 | AJ59: 0 | AK59: 0 | AQ59: =Cadastro!K57 -> 0987 | AR59: =Cadastro!H57 -> Pes
B60: 01007 | C60: 0171 | D60: 201608 | F60: 01007 | G60: 0171 | H60: 201508 | J60: Pat | K60: 1007/Pat/201608 | L60: =IF(J60=0,0,+CONCATENATE(VLOOKUP(B60,Cadastro!$Q$3:$R$162,2,FALSE),"/",J60,"/",D60)) -> 64/Pat/201608 | M60: Pat/201608 | N60: 1007/201608 | O60: 1007/0171/201608 | P60: 64/201608 | Q60: 64/0171/201608 | R60: 0171/201608 | S60: Pat | T60: 1007/Pat/201508 | U60: =+CONCATENATE(VLOOKUP(F60,Cadastro!$Q$3:$R$162,2,FALSE),"/",S60,"/",H60) -> 64/Pat/201508 | V60: Pat/201508 | W60: 1007/201508 | X60: 1007/0171/201508 | Y60: 64/201508 | Z60: 64/0171/201508 | AA60: 0171/201508 | AB60: 0 | AC60: 0 | AD60: 0 | AE60: 0 | AF60: 0 | AG60: 0 | AH60: 0 | AI60: 0 | AJ60: 0 | AK60: 0 | AQ60: =Cadastro!K58 -> 0990 | AR60: =Cadastro!H58 -> Pes
B61: 01007 | C61: 0171 | D61: 201609 | F61: 01007 | G61: 0171 | H61: 201509 | J61: Pat | K61: 1007/Pat/201609 | L61: =IF(J61=0,0,+CONCATENATE(VLOOKUP(B61,Cadastro!$Q$3:$R$162,2,FALSE),"/",J61,"/",D61)) -> 64/Pat/201609 | M61: Pat/201609 | N61: 1007/201609 | O61: 1007/0171/201609 | P61: 64/201609 | Q61: 64/0171/201609 | R61: 0171/201609 | S61: Pat | T61: 1007/Pat/201509 | U61: =+CONCATENATE(VLOOKUP(F61,Cadastro!$Q$3:$R$162,2,FALSE),"/",S61,"/",H61) -> 64/Pat/201509 | V61: Pat/201509 | W61: 1007/201509 | X61: 1007/0171/201509 | Y61: 64/201509 | Z61: 64/0171/201509 | AA61: 0171/201509 | AB61: 0 | AC61: 0 | AD61: 0 | AE61: 0 | AF61: 0 | AG61: 0 | AH61: 0 | AI61: 0 | AJ61: 0 | AK61: 0 | AQ61: =Cadastro!K59 -> 0991 | AR61: =Cadastro!H59 -> Pes
B62: 01007 | C62: 0171 | D62: 201610 | F62: 01007 | G62: 0171 | H62: 201510 | J62: Pat | K62: 1007/Pat/201610 | L62: =IF(J62=0,0,+CONCATENATE(VLOOKUP(B62,Cadastro!$Q$3:$R$162,2,FALSE),"/",J62,"/",D62)) -> 64/Pat/201610 | M62: Pat/201610 | N62: 1007/201610 | O62: 1007/0171/201610 | P62: 64/201610 | Q62: 64/0171/201610 | R62: 0171/201610 | S62: Pat | T62: 1007/Pat/201510 | U62: =+CONCATENATE(VLOOKUP(F62,Cadastro!$Q$3:$R$162,2,FALSE),"/",S62,"/",H62) -> 64/Pat/201510 | V62: Pat/201510 | W62: 1007/201510 | X62: 1007/0171/201510 | Y62: 64/201510 | Z62: 64/0171/201510 | AA62: 0171/201510 | AB62: 0 | AC62: 0 | AD62: 0 | AE62: 0 | AF62: 0 | AG62: 0 | AH62: 0 | AI62: 0 | AJ62: 0 | AK62: 0 | AQ62: =Cadastro!K60 -> 0993 | AR62: =Cadastro!H60 -> Pes
B63: 01007 | C63: 0171 | D63: 201611 | F63: 01007 | G63: 0171 | H63: 201511 | J63: Pat | K63: 1007/Pat/201611 | L63: =IF(J63=0,0,+CONCATENATE(VLOOKUP(B63,Cadastro!$Q$3:$R$162,2,FALSE),"/",J63,"/",D63)) -> 64/Pat/201611 | M63: Pat/201611 | N63: 1007/201611 | O63: 1007/0171/201611 | P63: 64/201611 | Q63: 64/0171/201611 | R63: 0171/201611 | S63: Pat | T63: 1007/Pat/201511 | U63: =+CONCATENATE(VLOOKUP(F63,Cadastro!$Q$3:$R$162,2,FALSE),"/",S63,"/",H63) -> 64/Pat/201511 | V63: Pat/201511 | W63: 1007/201511 | X63: 1007/0171/201511 | Y63: 64/201511 | Z63: 64/0171/201511 | AA63: 0171/201511 | AB63: 0 | AC63: 0 | AD63: 0 | AE63: 0 | AF63: 0 | AG63: 0 | AH63: 0 | AI63: 0 | AJ63: 0 | AK63: 0 | AQ63: =Cadastro!K61 -> 1329 | AR63: =Cadastro!H61 -> Pes
B64: 01007 | C64: 0171 | D64: 201612 | F64: 01007 | G64: 0171 | H64: 201512 | J64: Pat | K64: 1007/Pat/201612 | L64: =IF(J64=0,0,+CONCATENATE(VLOOKUP(B64,Cadastro!$Q$3:$R$162,2,FALSE),"/",J64,"/",D64)) -> 64/Pat/201612 | M64: Pat/201612 | N64: 1007/201612 | O64: 1007/0171/201612 | P64: 64/201612 | Q64: 64/0171/201612 | R64: 0171/201612 | S64: Pat | T64: 1007/Pat/201512 | U64: =+CONCATENATE(VLOOKUP(F64,Cadastro!$Q$3:$R$162,2,FALSE),"/",S64,"/",H64) -> 64/Pat/201512 | V64: Pat/201512 | W64: 1007/201512 | X64: 1007/0171/201512 | Y64: 64/201512 | Z64: 64/0171/201512 | AA64: 0171/201512 | AB64: 0 | AC64: 0 | AD64: 0 | AE64: 0 | AF64: 0 | AG64: 0 | AH64: 0 | AI64: 0 | AJ64: 0 | AK64: 0 | AQ64: =Cadastro!K62 -> 1336 | AR64: =Cadastro!H62 -> Pes
B65: 01007 | C65: 0173 | D65: 201601 | F65: 01007 | G65: 0173 | H65: 201501 | J65: Pat | K65: 1007/Pat/201601 | L65: =IF(J65=0,0,+CONCATENATE(VLOOKUP(B65,Cadastro!$Q$3:$R$162,2,FALSE),"/",J65,"/",D65)) -> 64/Pat/201601 | M65: Pat/201601 | N65: 1007/201601 | O65: 1007/0173/201601 | P65: 64/201601 | Q65: 64/0173/201601 | R65: 0173/201601 | S65: Pat | T65: 1007/Pat/201501 | U65: =+CONCATENATE(VLOOKUP(F65,Cadastro!$Q$3:$R$162,2,FALSE),"/",S65,"/",H65) -> 64/Pat/201501 | V65: Pat/201501 | W65: 1007/201501 | X65: 1007/0173/201501 | Y65: 64/201501 | Z65: 64/0173/201501 | AA65: 0173/201501 | AB65: 0 | AC65: 0 | AD65: 0 | AE65: 0 | AF65: 0 | AG65: 0 | AH65: 0 | AI65: 0 | AJ65: 0 | AK65: 0 | AQ65: =Cadastro!K63 -> 1369 | AR65: =Cadastro!H63 -> Pes
B66: 01007 | C66: 0173 | D66: 201602 | F66: 01007 | G66: 0173 | H66: 201502 | J66: Pat | K66: 1007/Pat/201602 | L66: =IF(J66=0,0,+CONCATENATE(VLOOKUP(B66,Cadastro!$Q$3:$R$162,2,FALSE),"/",J66,"/",D66)) -> 64/Pat/201602 | M66: Pat/201602 | N66: 1007/201602 | O66: 1007/0173/201602 | P66: 64/201602 | Q66: 64/0173/201602 | R66: 0173/201602 | S66: Pat | T66: 1007/Pat/201502 | U66: =+CONCATENATE(VLOOKUP(F66,Cadastro!$Q$3:$R$162,2,FALSE),"/",S66,"/",H66) -> 64/Pat/201502 | V66: Pat/201502 | W66: 1007/201502 | X66: 1007/0173/201502 | Y66: 64/201502 | Z66: 64/0173/201502 | AA66: 0173/201502 | AB66: 0 | AC66: 0 | AD66: 0 | AE66: 0 | AF66: 0 | AG66: 0 | AH66: -1 | AI66: 0 | AJ66: 0 | AK66: 0 | AQ66: =Cadastro!K64 -> 1377 | AR66: =Cadastro!H64 -> Pes
B67: 01007 | C67: 0173 | D67: 201603 | F67: 01007 | G67: 0173 | H67: 201503 | J67: Pat | K67: 1007/Pat/201603 | L67: =IF(J67=0,0,+CONCATENATE(VLOOKUP(B67,Cadastro!$Q$3:$R$162,2,FALSE),"/",J67,"/",D67)) -> 64/Pat/201603 | M67: Pat/201603 | N67: 1007/201603 | O67: 1007/0173/201603 | P67: 64/201603 | Q67: 64/0173/201603 | R67: 0173/201603 | S67: Pat | T67: 1007/Pat/201503 | U67: =+CONCATENATE(VLOOKUP(F67,Cadastro!$Q$3:$R$162,2,FALSE),"/",S67,"/",H67) -> 64/Pat/201503 | V67: Pat/201503 | W67: 1007/201503 | X67: 1007/0173/201503 | Y67: 64/201503 | Z67: 64/0173/201503 | AA67: 0173/201503 | AB67: 0 | AC67: 0 | AD67: 0 | AE67: 0 | AF67: 0 | AG67: 0 | AH67: 0 | AI67: 0 | AJ67: 0 | AK67: 0 | AQ67: =Cadastro!K65 -> 1380 | AR67: =Cadastro!H65 -> Pes
B68: 01007 | C68: 0173 | D68: 201604 | F68: 01007 | G68: 0173 | H68: 201504 | J68: Pat | K68: 1007/Pat/201604 | L68: =IF(J68=0,0,+CONCATENATE(VLOOKUP(B68,Cadastro!$Q$3:$R$162,2,FALSE),"/",J68,"/",D68)) -> 64/Pat/201604 | M68: Pat/201604 | N68: 1007/201604 | O68: 1007/0173/201604 | P68: 64/201604 | Q68: 64/0173/201604 | R68: 0173/201604 | S68: Pat | T68: 1007/Pat/201504 | U68: =+CONCATENATE(VLOOKUP(F68,Cadastro!$Q$3:$R$162,2,FALSE),"/",S68,"/",H68) -> 64/Pat/201504 | V68: Pat/201504 | W68: 1007/201504 | X68: 1007/0173/201504 | Y68: 64/201504 | Z68: 64/0173/201504 | AA68: 0173/201504 | AB68: 0 | AC68: 0 | AD68: 0 | AE68: 0 | AF68: 0 | AG68: 0 | AH68: 0 | AI68: 0 | AJ68: 0 | AK68: 0 | AQ68: =Cadastro!K66 -> 1381 | AR68: =Cadastro!H66 -> Pes
B69: 01007 | C69: 0173 | D69: 201605 | F69: 01007 | G69: 0173 | H69: 201505 | J69: =IF(C69=0,0,+VLOOKUP(C69,$AQ$4:$AR$130,2,FALSE)) -> Pat | K69: =IF(J69=0,0,+CONCATENATE(VALUE(B69),"/",J69,"/",D69)) -> 1007/Pat/201605 | L69: =IF(J69=0,0,+CONCATENATE(VLOOKUP(B69,Cadastro!$Q$3:$R$162,2,FALSE),"/",J69,"/",D69)) -> 64/Pat/201605 | M69: =IF(J69=0,0,+CONCATENATE(J69,"/",D69)) -> Pat/201605 | N69: 1007/201605 | O69: 1007/0173/201605 | P69: 64/201605 | Q69: 64/0173/201605 | R69: 0173/201605 | S69: =+VLOOKUP(G69,$AQ$4:$AR$130,2,FALSE) -> Pat | T69: =+CONCATENATE(VALUE(F69),"/",S69,"/",H69) -> 1007/Pat/201505 | U69: =+CONCATENATE(VLOOKUP(F69,Cadastro!$Q$3:$R$162,2,FALSE),"/",S69,"/",H69) -> 64/Pat/201505 | V69: Pat/201505 | W69: 1007/201505 | X69: 1007/0173/201505 | Y69: 64/201505 | Z69: 64/0173/201505 | AA69: 0173/201505 | AB69: 0 | AC69: 0 | AD69: 0 | AE69: 0 | AF69: 0 | AG69: 0 | AH69: 0 | AI69: 0 | AJ69: 0 | AK69: 0 | AQ69: =Cadastro!K67 -> 1383 | AR69: =Cadastro!H67 -> Pes
B70: 01007 | C70: 0173 | D70: 201606 | F70: 01007 | G70: 0173 | H70: 201506 | J70: Pat | K70: 1007/Pat/201606 | L70: =IF(J70=0,0,+CONCATENATE(VLOOKUP(B70,Cadastro!$Q$3:$R$162,2,FALSE),"/",J70,"/",D70)) -> 64/Pat/201606 | M70: Pat/201606 | N70: 1007/201606 | O70: 1007/0173/201606 | P70: 64/201606 | Q70: 64/0173/201606 | R70: 0173/201606 | S70: Pat | T70: 1007/Pat/201506 | U70: =+CONCATENATE(VLOOKUP(F70,Cadastro!$Q$3:$R$162,2,FALSE),"/",S70,"/",H70) -> 64/Pat/201506 | V70: =+CONCATENATE(S70,"/",H70) -> Pat/201506 | W70: 1007/201506 | X70: 1007/0173/201506 | Y70: 64/201506 | Z70: 64/0173/201506 | AA70: 0173/201506 | AB70: 0 | AC70: 0 | AD70: 0 | AE70: 0 | AF70: 0 | AG70: 0 | AH70: 0 | AI70: 0 | AJ70: 0 | AK70: 0 | AQ70: =Cadastro!K68 -> 1384 | AR70: =Cadastro!H68 -> Pes
B71: 01007 | C71: 0173 | D71: 201607 | F71: 01007 | G71: 0173 | H71: 201507 | J71: Pat | K71: 1007/Pat/201607 | L71: =IF(J71=0,0,+CONCATENATE(VLOOKUP(B71,Cadastro!$Q$3:$R$162,2,FALSE),"/",J71,"/",D71)) -> 64/Pat/201607 | M71: Pat/201607 | N71: 1007/201607 | O71: 1007/0173/201607 | P71: 64/201607 | Q71: 64/0173/201607 | R71: 0173/201607 | S71: Pat | T71: 1007/Pat/201507 | U71: =+CONCATENATE(VLOOKUP(F71,Cadastro!$Q$3:$R$162,2,FALSE),"/",S71,"/",H71) -> 64/Pat/201507 | V71: Pat/201507 | W71: 1007/201507 | X71: 1007/0173/201507 | Y71: 64/201507 | Z71: 64/0173/201507 | AA71: 0173/201507 | AB71: 0 | AC71: 0 | AD71: 0 | AE71: 0 | AF71: 0 | AG71: 0 | AH71: 0 | AI71: 0 | AJ71: 0 | AK71: 0 | AQ71: =Cadastro!K69 -> 1386 | AR71: =Cadastro!H69 -> Pes
B72: 01007 | C72: 0173 | D72: 201608 | F72: 01007 | G72: 0173 | H72: 201508 | J72: Pat | K72: 1007/Pat/201608 | L72: =IF(J72=0,0,+CONCATENATE(VLOOKUP(B72,Cadastro!$Q$3:$R$162,2,FALSE),"/",J72,"/",D72)) -> 64/Pat/201608 | M72: Pat/201608 | N72: 1007/201608 | O72: 1007/0173/201608 | P72: 64/201608 | Q72: 64/0173/201608 | R72: 0173/201608 | S72: Pat | T72: 1007/Pat/201508 | U72: =+CONCATENATE(VLOOKUP(F72,Cadastro!$Q$3:$R$162,2,FALSE),"/",S72,"/",H72) -> 64/Pat/201508 | V72: Pat/201508 | W72: 1007/201508 | X72: 1007/0173/201508 | Y72: 64/201508 | Z72: 64/0173/201508 | AA72: 0173/201508 | AB72: 0 | AC72: 0 | AD72: 0 | AE72: 0 | AF72: 0 | AG72: 0 | AH72: 0 | AI72: 0 | AJ72: 0 | AK72: 0 | AQ72: =Cadastro!K70 -> 1387 | AR72: =Cadastro!H70 -> Pes
B73: 01007 | C73: 0173 | D73: 201609 | F73: 01007 | G73: 0173 | H73: 201509 | J73: Pat | K73: 1007/Pat/201609 | L73: =IF(J73=0,0,+CONCATENATE(VLOOKUP(B73,Cadastro!$Q$3:$R$162,2,FALSE),"/",J73,"/",D73)) -> 64/Pat/201609 | M73: Pat/201609 | N73: 1007/201609 | O73: 1007/0173/201609 | P73: 64/201609 | Q73: 64/0173/201609 | R73: 0173/201609 | S73: Pat | T73: 1007/Pat/201509 | U73: =+CONCATENATE(VLOOKUP(F73,Cadastro!$Q$3:$R$162,2,FALSE),"/",S73,"/",H73) -> 64/Pat/201509 | V73: Pat/201509 | W73: 1007/201509 | X73: 1007/0173/201509 | Y73: 64/201509 | Z73: 64/0173/201509 | AA73: 0173/201509 | AB73: 0 | AC73: 0 | AD73: 0 | AE73: 0 | AF73: 0 | AG73: 0 | AH73: 0 | AI73: 0 | AJ73: 0 | AK73: 0 | AQ73: =Cadastro!K71 -> 1390 | AR73: =Cadastro!H71 -> Pes
B74: 01007 | C74: 0173 | D74: 201610 | F74: 01007 | G74: 0173 | H74: 201510 | J74: Pat | K74: 1007/Pat/201610 | L74: =IF(J74=0,0,+CONCATENATE(VLOOKUP(B74,Cadastro!$Q$3:$R$162,2,FALSE),"/",J74,"/",D74)) -> 64/Pat/201610 | M74: Pat/201610 | N74: 1007/201610 | O74: 1007/0173/201610 | P74: 64/201610 | Q74: 64/0173/201610 | R74: 0173/201610 | S74: Pat | T74: 1007/Pat/201510 | U74: =+CONCATENATE(VLOOKUP(F74,Cadastro!$Q$3:$R$162,2,FALSE),"/",S74,"/",H74) -> 64/Pat/201510 | V74: Pat/201510 | W74: 1007/201510 | X74: 1007/0173/201510 | Y74: 64/201510 | Z74: 64/0173/201510 | AA74: 0173/201510 | AB74: 0 | AC74: 0 | AD74: 0 | AE74: 0 | AF74: 0 | AG74: 0 | AH74: 0 | AI74: 0 | AJ74: 0 | AK74: 0 | AQ74: =Cadastro!K72 -> 1391 | AR74: =Cadastro!H72 -> Pes
B75: 01007 | C75: 0173 | D75: 201611 | F75: 01007 | G75: 0173 | H75: 201511 | J75: Pat | K75: 1007/Pat/201611 | L75: =IF(J75=0,0,+CONCATENATE(VLOOKUP(B75,Cadastro!$Q$3:$R$162,2,FALSE),"/",J75,"/",D75)) -> 64/Pat/201611 | M75: Pat/201611 | N75: 1007/201611 | O75: 1007/0173/201611 | P75: 64/201611 | Q75: 64/0173/201611 | R75: 0173/201611 | S75: Pat | T75: 1007/Pat/201511 | U75: =+CONCATENATE(VLOOKUP(F75,Cadastro!$Q$3:$R$162,2,FALSE),"/",S75,"/",H75) -> 64/Pat/201511 | V75: Pat/201511 | W75: 1007/201511 | X75: 1007/0173/201511 | Y75: 64/201511 | Z75: 64/0173/201511 | AA75: 0173/201511 | AB75: 0 | AC75: 0 | AD75: 0 | AE75: 0 | AF75: 0 | AG75: 0 | AH75: 0 | AI75: 0 | AJ75: 0 | AK75: 0 | AQ75: =Cadastro!K73 -> 0234 | AR75: =Cadastro!H73 -> RE
B76: 01007 | C76: 0173 | D76: 201612 | F76: 01007 | G76: 0173 | H76: 201512 | J76: Pat | K76: 1007/Pat/201612 | L76: =IF(J76=0,0,+CONCATENATE(VLOOKUP(B76,Cadastro!$Q$3:$R$162,2,FALSE),"/",J76,"/",D76)) -> 64/Pat/201612 | M76: Pat/201612 | N76: 1007/201612 | O76: 1007/0173/201612 | P76: 64/201612 | Q76: 64/0173/201612 | R76: 0173/201612 | S76: Pat | T76: 1007/Pat/201512 | U76: =+CONCATENATE(VLOOKUP(F76,Cadastro!$Q$3:$R$162,2,FALSE),"/",S76,"/",H76) -> 64/Pat/201512 | V76: Pat/201512 | W76: 1007/201512 | X76: 1007/0173/201512 | Y76: 64/201512 | Z76: 64/0173/201512 | AA76: 0173/201512 | AB76: 0 | AC76: 0 | AD76: 0 | AE76: 0 | AF76: 0 | AG76: 0 | AH76: 0 | AI76: 0 | AJ76: 0 | AK76: 0 | AQ76: =Cadastro!K74 -> 0272 | AR76: =Cadastro!H74 -> RE
B77: 01007 | C77: 0234 | D77: 201601 | F77: 01007 | G77: 0234 | H77: 201501 | J77: RE | K77: 1007/RE/201601 | L77: =IF(J77=0,0,+CONCATENATE(VLOOKUP(B77,Cadastro!$Q$3:$R$162,2,FALSE),"/",J77,"/",D77)) -> 64/RE/201601 | M77: RE/201601 | N77: 1007/201601 | O77: 1007/0234/201601 | P77: 64/201601 | Q77: 64/0234/201601 | R77: 0234/201601 | S77: RE | T77: 1007/RE/201501 | U77: =+CONCATENATE(VLOOKUP(F77,Cadastro!$Q$3:$R$162,2,FALSE),"/",S77,"/",H77) -> 64/RE/201501 | V77: RE/201501 | W77: 1007/201501 | X77: 1007/0234/201501 | Y77: 64/201501 | Z77: 64/0234/201501 | AA77: 0234/201501 | AB77: 0 | AC77: 0 | AD77: 0 | AE77: 0 | AF77: 0 | AG77: 0 | AH77: 0 | AI77: 0 | AJ77: 0 | AK77: 0 | AQ77: =Cadastro!K75 -> 0274 | AR77: =Cadastro!H75 -> RE
B78: 01007 | C78: 0234 | D78: 201602 | F78: 01007 | G78: 0234 | H78: 201502 | J78: RE | K78: 1007/RE/201602 | L78: =IF(J78=0,0,+CONCATENATE(VLOOKUP(B78,Cadastro!$Q$3:$R$162,2,FALSE),"/",J78,"/",D78)) -> 64/RE/201602 | M78: RE/201602 | N78: 1007/201602 | O78: 1007/0234/201602 | P78: 64/201602 | Q78: 64/0234/201602 | R78: 0234/201602 | S78: RE | T78: 1007/RE/201502 | U78: =+CONCATENATE(VLOOKUP(F78,Cadastro!$Q$3:$R$162,2,FALSE),"/",S78,"/",H78) -> 64/RE/201502 | V78: RE/201502 | W78: 1007/201502 | X78: 1007/0234/201502 | Y78: 64/201502 | Z78: 64/0234/201502 | AA78: 0234/201502 | AB78: 0 | AC78: 0 | AD78: 0 | AE78: 0 | AF78: 0 | AG78: 0 | AH78: -25.18 | AI78: 0 | AJ78: 0 | AK78: 0 | AQ78: =Cadastro!K76 -> 1734 | AR78: =Cadastro!H76 -> RE
B79: 01007 | C79: 0234 | D79: 201603 | F79: 01007 | G79: 0234 | H79: 201503 | J79: RE | K79: 1007/RE/201603 | L79: =IF(J79=0,0,+CONCATENATE(VLOOKUP(B79,Cadastro!$Q$3:$R$162,2,FALSE),"/",J79,"/",D79)) -> 64/RE/201603 | M79: RE/201603 | N79: 1007/201603 | O79: 1007/0234/201603 | P79: 64/201603 | Q79: 64/0234/201603 | R79: 0234/201603 | S79: RE | T79: 1007/RE/201503 | U79: =+CONCATENATE(VLOOKUP(F79,Cadastro!$Q$3:$R$162,2,FALSE),"/",S79,"/",H79) -> 64/RE/201503 | V79: RE/201503 | W79: 1007/201503 | X79: 1007/0234/201503 | Y79: 64/201503 | Z79: 64/0234/201503 | AA79: 0234/201503 | AB79: 0 | AC79: 0 | AD79: 0 | AE79: 0 | AF79: 0 | AG79: 0 | AH79: 0 | AI79: 0 | AJ79: 0 | AK79: 0 | AQ79: =Cadastro!K77 -> 1872 | AR79: =Cadastro!H77 -> RE
B80: 01007 | C80: 0234 | D80: 201604 | F80: 01007 | G80: 0234 | H80: 201504 | J80: RE | K80: 1007/RE/201604 | L80: =IF(J80=0,0,+CONCATENATE(VLOOKUP(B80,Cadastro!$Q$3:$R$162,2,FALSE),"/",J80,"/",D80)) -> 64/RE/201604 | M80: RE/201604 | N80: 1007/201604 | O80: 1007/0234/201604 | P80: 64/201604 | Q80: 64/0234/201604 | R80: 0234/201604 | S80: RE | T80: 1007/RE/201504 | U80: =+CONCATENATE(VLOOKUP(F80,Cadastro!$Q$3:$R$162,2,FALSE),"/",S80,"/",H80) -> 64/RE/201504 | V80: RE/201504 | W80: 1007/201504 | X80: 1007/0234/201504 | Y80: 64/201504 | Z80: 64/0234/201504 | AA80: 0234/201504 | AB80: 0 | AC80: 0 | AD80: 0 | AE80: 0 | AF80: 0 | AG80: 0 | AH80: 0 | AI80: 0 | AJ80: 0 | AK80: 0 | AQ80: =Cadastro!K78 -> 0310 | AR80: =Cadastro!H78 -> Res
B81: 01007 | C81: 0234 | D81: 201605 | F81: 01007 | G81: 0234 | H81: 201505 | J81: RE | K81: 1007/RE/201605 | L81: =IF(J81=0,0,+CONCATENATE(VLOOKUP(B81,Cadastro!$Q$3:$R$162,2,FALSE),"/",J81,"/",D81)) -> 64/RE/201605 | M81: RE/201605 | N81: 1007/201605 | O81: 1007/0234/201605 | P81: 64/201605 | Q81: 64/0234/201605 | R81: 0234/201605 | S81: RE | T81: 1007/RE/201505 | U81: =+CONCATENATE(VLOOKUP(F81,Cadastro!$Q$3:$R$162,2,FALSE),"/",S81,"/",H81) -> 64/RE/201505 | V81: RE/201505 | W81: 1007/201505 | X81: 1007/0234/201505 | Y81: 64/201505 | Z81: 64/0234/201505 | AA81: 0234/201505 | AB81: 0 | AC81: 0 | AD81: 0 | AE81: 0 | AF81: 0 | AG81: 0 | AH81: 0 | AI81: 0 | AJ81: 0 | AK81: 0 | AQ81: =Cadastro!K79 -> 0313 | AR81: =Cadastro!H79 -> Res
B82: 01007 | C82: 0234 | D82: 201606 | F82: 01007 | G82: 0234 | H82: 201506 | J82: RE | K82: 1007/RE/201606 | L82: =IF(J82=0,0,+CONCATENATE(VLOOKUP(B82,Cadastro!$Q$3:$R$162,2,FALSE),"/",J82,"/",D82)) -> 64/RE/201606 | M82: RE/201606 | N82: 1007/201606 | O82: 1007/0234/201606 | P82: 64/201606 | Q82: 64/0234/201606 | R82: 0234/201606 | S82: RE | T82: 1007/RE/201506 | U82: =+CONCATENATE(VLOOKUP(F82,Cadastro!$Q$3:$R$162,2,FALSE),"/",S82,"/",H82) -> 64/RE/201506 | V82: RE/201506 | W82: 1007/201506 | X82: 1007/0234/201506 | Y82: 64/201506 | Z82: 64/0234/201506 | AA82: 0234/201506 | AB82: 0 | AC82: 0 | AD82: 0 | AE82: 0 | AF82: 0 | AG82: 0 | AH82: 0 | AI82: 0 | AJ82: 0 | AK82: 0 | AQ82: =Cadastro!K80 -> 0351 | AR82: =Cadastro!H80 -> Res
B83: 01007 | C83: 0234 | D83: 201607 | F83: 01007 | G83: 0234 | H83: 201507 | J83: RE | K83: 1007/RE/201607 | L83: =IF(J83=0,0,+CONCATENATE(VLOOKUP(B83,Cadastro!$Q$3:$R$162,2,FALSE),"/",J83,"/",D83)) -> 64/RE/201607 | M83: RE/201607 | N83: 1007/201607 | O83: 1007/0234/201607 | P83: 64/201607 | Q83: 64/0234/201607 | R83: 0234/201607 | S83: RE | T83: 1007/RE/201507 | U83: =+CONCATENATE(VLOOKUP(F83,Cadastro!$Q$3:$R$162,2,FALSE),"/",S83,"/",H83) -> 64/RE/201507 | V83: RE/201507 | W83: 1007/201507 | X83: 1007/0234/201507 | Y83: 64/201507 | Z83: 64/0234/201507 | AA83: 0234/201507 | AB83: 0 | AC83: 0 | AD83: 0 | AE83: 0 | AF83: 0 | AG83: 0 | AH83: 0 | AI83: 0 | AJ83: 0 | AK83: 0 | AQ83: =Cadastro!K81 -> 0378 | AR83: =Cadastro!H81 -> Res
B84: 01007 | C84: 0234 | D84: 201608 | F84: 01007 | G84: 0234 | H84: 201508 | J84: RE | K84: 1007/RE/201608 | L84: =IF(J84=0,0,+CONCATENATE(VLOOKUP(B84,Cadastro!$Q$3:$R$162,2,FALSE),"/",J84,"/",D84)) -> 64/RE/201608 | M84: RE/201608 | N84: 1007/201608 | O84: 1007/0234/201608 | P84: 64/201608 | Q84: 64/0234/201608 | R84: 0234/201608 | S84: RE | T84: 1007/RE/201508 | U84: =+CONCATENATE(VLOOKUP(F84,Cadastro!$Q$3:$R$162,2,FALSE),"/",S84,"/",H84) -> 64/RE/201508 | V84: RE/201508 | W84: 1007/201508 | X84: 1007/0234/201508 | Y84: 64/201508 | Z84: 64/0234/201508 | AA84: 0234/201508 | AB84: 0 | AC84: 0 | AD84: 0 | AE84: 0 | AF84: 0 | AG84: 0 | AH84: 0 | AI84: 0 | AJ84: 0 | AK84: 0 | AQ84: =Cadastro!K82 -> 0711 | AR84: =Cadastro!H82 -> RF
B85: 01007 | C85: 0234 | D85: 201609 | F85: 01007 | G85: 0234 | H85: 201509 | J85: RE | K85: 1007/RE/201609 | L85: =IF(J85=0,0,+CONCATENATE(VLOOKUP(B85,Cadastro!$Q$3:$R$162,2,FALSE),"/",J85,"/",D85)) -> 64/RE/201609 | M85: RE/201609 | N85: 1007/201609 | O85: 1007/0234/201609 | P85: 64/201609 | Q85: 64/0234/201609 | R85: 0234/201609 | S85: RE | T85: 1007/RE/201509 | U85: =+CONCATENATE(VLOOKUP(F85,Cadastro!$Q$3:$R$162,2,FALSE),"/",S85,"/",H85) -> 64/RE/201509 | V85: RE/201509 | W85: 1007/201509 | X85: 1007/0234/201509 | Y85: 64/201509 | Z85: 64/0234/201509 | AA85: 0234/201509 | AB85: 0 | AC85: 0 | AD85: 0 | AE85: 0 | AF85: 0 | AG85: 0 | AH85: 0 | AI85: 0 | AJ85: 0 | AK85: 0 | AQ85: =Cadastro!K83 -> 0739 | AR85: =Cadastro!H83 -> RF
B86: 01007 | C86: 0234 | D86: 201610 | F86: 01007 | G86: 0234 | H86: 201510 | J86: RE | K86: 1007/RE/201610 | L86: =IF(J86=0,0,+CONCATENATE(VLOOKUP(B86,Cadastro!$Q$3:$R$162,2,FALSE),"/",J86,"/",D86)) -> 64/RE/201610 | M86: RE/201610 | N86: 1007/201610 | O86: 1007/0234/201610 | P86: 64/201610 | Q86: 64/0234/201610 | R86: 0234/201610 | S86: RE | T86: 1007/RE/201510 | U86: =+CONCATENATE(VLOOKUP(F86,Cadastro!$Q$3:$R$162,2,FALSE),"/",S86,"/",H86) -> 64/RE/201510 | V86: RE/201510 | W86: 1007/201510 | X86: 1007/0234/201510 | Y86: 64/201510 | Z86: 64/0234/201510 | AA86: 0234/201510 | AB86: 0 | AC86: 0 | AD86: 0 | AE86: 0 | AF86: 0 | AG86: 0 | AH86: 0 | AI86: 0 | AJ86: 0 | AK86: 0 | AQ86: =Cadastro!K84 -> 0740 | AR86: =Cadastro!H84 -> RF
B87: 01007 | C87: 0234 | D87: 201611 | F87: 01007 | G87: 0234 | H87: 201511 | J87: RE | K87: 1007/RE/201611 | L87: =IF(J87=0,0,+CONCATENATE(VLOOKUP(B87,Cadastro!$Q$3:$R$162,2,FALSE),"/",J87,"/",D87)) -> 64/RE/201611 | M87: RE/201611 | N87: 1007/201611 | O87: 1007/0234/201611 | P87: 64/201611 | Q87: 64/0234/201611 | R87: 0234/201611 | S87: RE | T87: 1007/RE/201511 | U87: =+CONCATENATE(VLOOKUP(F87,Cadastro!$Q$3:$R$162,2,FALSE),"/",S87,"/",H87) -> 64/RE/201511 | V87: RE/201511 | W87: 1007/201511 | X87: 1007/0234/201511 | Y87: 64/201511 | Z87: 64/0234/201511 | AA87: 0234/201511 | AB87: 0 | AC87: 0 | AD87: 0 | AE87: 0 | AF87: 0 | AG87: 0 | AH87: 0 | AI87: 0 | AJ87: 0 | AK87: 0 | AQ87: =Cadastro!K85 -> 0743 | AR87: =Cadastro!H85 -> RF
B88: 01007 | C88: 0234 | D88: 201612 | F88: 01007 | G88: 0234 | H88: 201512 | J88: RE | K88: 1007/RE/201612 | L88: =IF(J88=0,0,+CONCATENATE(VLOOKUP(B88,Cadastro!$Q$3:$R$162,2,FALSE),"/",J88,"/",D88)) -> 64/RE/201612 | M88: RE/201612 | N88: 1007/201612 | O88: 1007/0234/201612 | P88: 64/201612 | Q88: 64/0234/201612 | R88: 0234/201612 | S88: RE | T88: 1007/RE/201512 | U88: =+CONCATENATE(VLOOKUP(F88,Cadastro!$Q$3:$R$162,2,FALSE),"/",S88,"/",H88) -> 64/RE/201512 | V88: RE/201512 | W88: 1007/201512 | X88: 1007/0234/201512 | Y88: 64/201512 | Z88: 64/0234/201512 | AA88: 0234/201512 | AB88: 0 | AC88: 0 | AD88: 0 | AE88: 0 | AF88: 0 | AG88: 0 | AH88: 0 | AI88: 0 | AJ88: 0 | AK88: 0 | AQ88: =Cadastro!K86 -> 0745 | AR88: =Cadastro!H86 -> RF
B89: 01007 | C89: 0351 | D89: 201601 | F89: 01007 | G89: 0351 | H89: 201501 | J89: Res | K89: 1007/Res/201601 | L89: =IF(J89=0,0,+CONCATENATE(VLOOKUP(B89,Cadastro!$Q$3:$R$162,2,FALSE),"/",J89,"/",D89)) -> 64/Res/201601 | M89: Res/201601 | N89: 1007/201601 | O89: 1007/0351/201601 | P89: 64/201601 | Q89: 64/0351/201601 | R89: 0351/201601 | S89: Res | T89: 1007/Res/201501 | U89: =+CONCATENATE(VLOOKUP(F89,Cadastro!$Q$3:$R$162,2,FALSE),"/",S89,"/",H89) -> 64/Res/201501 | V89: Res/201501 | W89: 1007/201501 | X89: 1007/0351/201501 | Y89: 64/201501 | Z89: 64/0351/201501 | AA89: 0351/201501 | AB89: 0 | AC89: 0 | AD89: 0 | AE89: 0 | AF89: 0 | AG89: 0 | AH89: 0 | AI89: 0 | AJ89: 0 | AK89: 0 | AQ89: =Cadastro!K87 -> 0746 | AR89: =Cadastro!H87 -> RF
B90: 01007 | C90: 0351 | D90: 201602 | F90: 01007 | G90: 0351 | H90: 201502 | J90: Res | K90: 1007/Res/201602 | L90: =IF(J90=0,0,+CONCATENATE(VLOOKUP(B90,Cadastro!$Q$3:$R$162,2,FALSE),"/",J90,"/",D90)) -> 64/Res/201602 | M90: Res/201602 | N90: 1007/201602 | O90: 1007/0351/201602 | P90: 64/201602 | Q90: 64/0351/201602 | R90: 0351/201602 | S90: Res | T90: 1007/Res/201502 | U90: =+CONCATENATE(VLOOKUP(F90,Cadastro!$Q$3:$R$162,2,FALSE),"/",S90,"/",H90) -> 64/Res/201502 | V90: Res/201502 | W90: 1007/201502 | X90: 1007/0351/201502 | Y90: 64/201502 | Z90: 64/0351/201502 | AA90: 0351/201502 | AB90: 0 | AC90: 0 | AD90: 0 | AE90: 0 | AF90: 0 | AG90: 0 | AH90: 0 | AI90: 0 | AJ90: 0 | AK90: 0 | AQ90: =Cadastro!K88 -> 0747 | AR90: =Cadastro!H88 -> RF
B91: 01007 | C91: 0351 | D91: 201603 | F91: 01007 | G91: 0351 | H91: 201503 | J91: Res | K91: 1007/Res/201603 | L91: =IF(J91=0,0,+CONCATENATE(VLOOKUP(B91,Cadastro!$Q$3:$R$162,2,FALSE),"/",J91,"/",D91)) -> 64/Res/201603 | M91: Res/201603 | N91: 1007/201603 | O91: 1007/0351/201603 | P91: 64/201603 | Q91: 64/0351/201603 | R91: 0351/201603 | S91: Res | T91: 1007/Res/201503 | U91: =+CONCATENATE(VLOOKUP(F91,Cadastro!$Q$3:$R$162,2,FALSE),"/",S91,"/",H91) -> 64/Res/201503 | V91: Res/201503 | W91: 1007/201503 | X91: 1007/0351/201503 | Y91: 64/201503 | Z91: 64/0351/201503 | AA91: 0351/201503 | AB91: 0 | AC91: 0 | AD91: 0 | AE91: 0 | AF91: 0 | AG91: 0 | AH91: 0 | AI91: 0 | AJ91: 0 | AK91: 0 | AQ91: =Cadastro!K89 -> 0748 | AR91: =Cadastro!H89 -> RF
B92: 01007 | C92: 0351 | D92: 201604 | F92: 01007 | G92: 0351 | H92: 201504 | J92: Res | K92: 1007/Res/201604 | L92: =IF(J92=0,0,+CONCATENATE(VLOOKUP(B92,Cadastro!$Q$3:$R$162,2,FALSE),"/",J92,"/",D92)) -> 64/Res/201604 | M92: Res/201604 | N92: 1007/201604 | O92: 1007/0351/201604 | P92: 64/201604 | Q92: 64/0351/201604 | R92: 0351/201604 | S92: Res | T92: 1007/Res/201504 | U92: =+CONCATENATE(VLOOKUP(F92,Cadastro!$Q$3:$R$162,2,FALSE),"/",S92,"/",H92) -> 64/Res/201504 | V92: Res/201504 | W92: 1007/201504 | X92: 1007/0351/201504 | Y92: 64/201504 | Z92: 64/0351/201504 | AA92: 0351/201504 | AB92: 0 | AC92: 0 | AD92: 0 | AE92: 0 | AF92: 0 | AG92: 0 | AH92: 0 | AI92: 0 | AJ92: 0 | AK92: 0 | AQ92: =Cadastro!K90 -> 0749 | AR92: =Cadastro!H90 -> RF
B93: 01007 | C93: 0351 | D93: 201605 | F93: 01007 | G93: 0351 | H93: 201505 | J93: Res | K93: 1007/Res/201605 | L93: =IF(J93=0,0,+CONCATENATE(VLOOKUP(B93,Cadastro!$Q$3:$R$162,2,FALSE),"/",J93,"/",D93)) -> 64/Res/201605 | M93: Res/201605 | N93: 1007/201605 | O93: 1007/0351/201605 | P93: 64/201605 | Q93: 64/0351/201605 | R93: 0351/201605 | S93: Res | T93: 1007/Res/201505 | U93: =+CONCATENATE(VLOOKUP(F93,Cadastro!$Q$3:$R$162,2,FALSE),"/",S93,"/",H93) -> 64/Res/201505 | V93: Res/201505 | W93: 1007/201505 | X93: 1007/0351/201505 | Y93: 64/201505 | Z93: 64/0351/201505 | AA93: 0351/201505 | AB93: 0 | AC93: 0 | AD93: 0 | AE93: 0 | AF93: 0 | AG93: 0 | AH93: 0 | AI93: 0 | AJ93: 0 | AK93: 0 | AQ93: =Cadastro!K91 -> 0750 | AR93: =Cadastro!H91 -> RF
B94: 01007 | C94: 0351 | D94: 201606 | F94: 01007 | G94: 0351 | H94: 201506 | J94: Res | K94: 1007/Res/201606 | L94: =IF(J94=0,0,+CONCATENATE(VLOOKUP(B94,Cadastro!$Q$3:$R$162,2,FALSE),"/",J94,"/",D94)) -> 64/Res/201606 | M94: Res/201606 | N94: 1007/201606 | O94: 1007/0351/201606 | P94: 64/201606 | Q94: 64/0351/201606 | R94: 0351/201606 | S94: Res | T94: 1007/Res/201506 | U94: =+CONCATENATE(VLOOKUP(F94,Cadastro!$Q$3:$R$162,2,FALSE),"/",S94,"/",H94) -> 64/Res/201506 | V94: Res/201506 | W94: 1007/201506 | X94: 1007/0351/201506 | Y94: 64/201506 | Z94: 64/0351/201506 | AA94: 0351/201506 | AB94: 0 | AC94: 0 | AD94: 0 | AE94: 0 | AF94: 0 | AG94: 0 | AH94: 0 | AI94: 0 | AJ94: 0 | AK94: 0 | AQ94: =Cadastro!K92 -> 0775 | AR94: =Cadastro!H92 -> RF
B95: 01007 | C95: 0351 | D95: 201607 | F95: 01007 | G95: 0351 | H95: 201507 | J95: Res | K95: 1007/Res/201607 | L95: =IF(J95=0,0,+CONCATENATE(VLOOKUP(B95,Cadastro!$Q$3:$R$162,2,FALSE),"/",J95,"/",D95)) -> 64/Res/201607 | M95: Res/201607 | N95: 1007/201607 | O95: 1007/0351/201607 | P95: 64/201607 | Q95: 64/0351/201607 | R95: 0351/201607 | S95: Res | T95: 1007/Res/201507 | U95: =+CONCATENATE(VLOOKUP(F95,Cadastro!$Q$3:$R$162,2,FALSE),"/",S95,"/",H95) -> 64/Res/201507 | V95: Res/201507 | W95: 1007/201507 | X95: 1007/0351/201507 | Y95: 64/201507 | Z95: 64/0351/201507 | AA95: 0351/201507 | AB95: 0 | AC95: 0 | AD95: 0 | AE95: 0 | AF95: 0 | AG95: 0 | AH95: 0 | AI95: 0 | AJ95: 0 | AK95: 0 | AQ95: =Cadastro!K93 -> 0776 | AR95: =Cadastro!H93 -> RF
B96: 01007 | C96: 0351 | D96: 201608 | F96: 01007 | G96: 0351 | H96: 201508 | J96: Res | K96: 1007/Res/201608 | L96: =IF(J96=0,0,+CONCATENATE(VLOOKUP(B96,Cadastro!$Q$3:$R$162,2,FALSE),"/",J96,"/",D96)) -> 64/Res/201608 | M96: Res/201608 | N96: 1007/201608 | O96: 1007/0351/201608 | P96: 64/201608 | Q96: 64/0351/201608 | R96: 0351/201608 | S96: Res | T96: 1007/Res/201508 | U96: =+CONCATENATE(VLOOKUP(F96,Cadastro!$Q$3:$R$162,2,FALSE),"/",S96,"/",H96) -> 64/Res/201508 | V96: Res/201508 | W96: 1007/201508 | X96: 1007/0351/201508 | Y96: 64/201508 | Z96: 64/0351/201508 | AA96: 0351/201508 | AB96: 0 | AC96: 0 | AD96: 0 | AE96: 0 | AF96: 0 | AG96: 0 | AH96: 0 | AI96: 0 | AJ96: 0 | AK96: 0 | AQ96: =Cadastro!K94 -> 0819 | AR96: =Cadastro!H94 -> RF
B97: 01007 | C97: 0351 | D97: 201609 | F97: 01007 | G97: 0351 | H97: 201509 | J97: Res | K97: 1007/Res/201609 | L97: =IF(J97=0,0,+CONCATENATE(VLOOKUP(B97,Cadastro!$Q$3:$R$162,2,FALSE),"/",J97,"/",D97)) -> 64/Res/201609 | M97: Res/201609 | N97: 1007/201609 | O97: 1007/0351/201609 | P97: 64/201609 | Q97: 64/0351/201609 | R97: 0351/201609 | S97: Res | T97: 1007/Res/201509 | U97: =+CONCATENATE(VLOOKUP(F97,Cadastro!$Q$3:$R$162,2,FALSE),"/",S97,"/",H97) -> 64/Res/201509 | V97: Res/201509 | W97: 1007/201509 | X97: 1007/0351/201509 | Y97: 64/201509 | Z97: 64/0351/201509 | AA97: 0351/201509 | AB97: 0 | AC97: 0 | AD97: 0 | AE97: 0 | AF97: 0 | AG97: 0 | AH97: 0 | AI97: 0 | AJ97: 0 | AK97: 0 | AQ97: =Cadastro!K95 -> 0859 | AR97: =Cadastro!H95 -> RF
B98: 01007 | C98: 0351 | D98: 201610 | F98: 01007 | G98: 0351 | H98: 201510 | J98: Res | K98: 1007/Res/201610 | L98: =IF(J98=0,0,+CONCATENATE(VLOOKUP(B98,Cadastro!$Q$3:$R$162,2,FALSE),"/",J98,"/",D98)) -> 64/Res/201610 | M98: Res/201610 | N98: 1007/201610 | O98: 1007/0351/201610 | P98: 64/201610 | Q98: 64/0351/201610 | R98: 0351/201610 | S98: Res | T98: 1007/Res/201510 | U98: =+CONCATENATE(VLOOKUP(F98,Cadastro!$Q$3:$R$162,2,FALSE),"/",S98,"/",H98) -> 64/Res/201510 | V98: Res/201510 | W98: 1007/201510 | X98: 1007/0351/201510 | Y98: 64/201510 | Z98: 64/0351/201510 | AA98: 0351/201510 | AB98: 0 | AC98: 0 | AD98: 0 | AE98: 0 | AF98: 0 | AG98: 0 | AH98: 0 | AI98: 0 | AJ98: 0 | AK98: 0 | AQ98: =Cadastro!K96 -> 0860 | AR98: =Cadastro!H96 -> RF
B99: 01007 | C99: 0351 | D99: 201611 | F99: 01007 | G99: 0351 | H99: 201511 | J99: Res | K99: 1007/Res/201611 | L99: =IF(J99=0,0,+CONCATENATE(VLOOKUP(B99,Cadastro!$Q$3:$R$162,2,FALSE),"/",J99,"/",D99)) -> 64/Res/201611 | M99: Res/201611 | N99: 1007/201611 | O99: 1007/0351/201611 | P99: 64/201611 | Q99: 64/0351/201611 | R99: 0351/201611 | S99: Res | T99: 1007/Res/201511 | U99: =+CONCATENATE(VLOOKUP(F99,Cadastro!$Q$3:$R$162,2,FALSE),"/",S99,"/",H99) -> 64/Res/201511 | V99: Res/201511 | W99: 1007/201511 | X99: 1007/0351/201511 | Y99: 64/201511 | Z99: 64/0351/201511 | AA99: 0351/201511 | AB99: 0 | AC99: 0 | AD99: 0 | AE99: 0 | AF99: 0 | AG99: 0 | AH99: 0 | AI99: 0 | AJ99: 0 | AK99: 0 | AQ99: =Cadastro!K97 -> 0870 | AR99: =Cadastro!H97 -> RF
B100: 01007 | C100: 0351 | D100: 201612 | F100: 01007 | G100: 0351 | H100: 201512 | J100: Res | K100: 1007/Res/201612 | L100: =IF(J100=0,0,+CONCATENATE(VLOOKUP(B100,Cadastro!$Q$3:$R$162,2,FALSE),"/",J100,"/",D100)) -> 64/Res/201612 | M100: Res/201612 | N100: 1007/201612 | O100: 1007/0351/201612 | P100: 64/201612 | Q100: 64/0351/201612 | R100: 0351/201612 | S100: Res | T100: 1007/Res/201512 | U100: =+CONCATENATE(VLOOKUP(F100,Cadastro!$Q$3:$R$162,2,FALSE),"/",S100,"/",H100) -> 64/Res/201512 | V100: Res/201512 | W100: 1007/201512 | X100: 1007/0351/201512 | Y100: 64/201512 | Z100: 64/0351/201512 | AA100: 0351/201512 | AB100: 0 | AC100: 0 | AD100: 0 | AE100: 0 | AF100: 0 | AG100: 0 | AH100: 0 | AI100: 0 | AJ100: 0 | AK100: 0 | AQ100: =Cadastro!K98 -> 1101 | AR100: =Cadastro!H98 -> Rur
B101: 01007 | C101: 0433 | D101: 201601 | F101: 01007 | G101: 0433 | H101: 201501 | J101: Mar | K101: 1007/Mar/201601 | L101: =IF(J101=0,0,+CONCATENATE(VLOOKUP(B101,Cadastro!$Q$3:$R$162,2,FALSE),"/",J101,"/",D101)) -> 64/Mar/201601 | M101: Mar/201601 | N101: 1007/201601 | O101: 1007/0433/201601 | P101: 64/201601 | Q101: 64/0433/201601 | R101: 0433/201601 | S101: Mar | T101: 1007/Mar/201501 | U101: =+CONCATENATE(VLOOKUP(F101,Cadastro!$Q$3:$R$162,2,FALSE),"/",S101,"/",H101) -> 64/Mar/201501 | V101: Mar/201501 | W101: 1007/201501 | X101: 1007/0433/201501 | Y101: 64/201501 | Z101: 64/0433/201501 | AA101: 0433/201501 | AB101: 0 | AC101: 0 | AD101: 0 | AE101: 0 | AF101: 0 | AG101: 0 | AH101: 0 | AI101: 0 | AJ101: 0 | AK101: 0 | AQ101: =Cadastro!K99 -> 1102 | AR101: =Cadastro!H99 -> Rur
B102: 01007 | C102: 0433 | D102: 201602 | F102: 01007 | G102: 0433 | H102: 201502 | J102: Mar | K102: 1007/Mar/201602 | L102: =IF(J102=0,0,+CONCATENATE(VLOOKUP(B102,Cadastro!$Q$3:$R$162,2,FALSE),"/",J102,"/",D102)) -> 64/Mar/201602 | M102: Mar/201602 | N102: 1007/201602 | O102: 1007/0433/201602 | P102: 64/201602 | Q102: 64/0433/201602 | R102: 0433/201602 | S102: Mar | T102: 1007/Mar/201502 | U102: =+CONCATENATE(VLOOKUP(F102,Cadastro!$Q$3:$R$162,2,FALSE),"/",S102,"/",H102) -> 64/Mar/201502 | V102: Mar/201502 | W102: 1007/201502 | X102: 1007/0433/201502 | Y102: 64/201502 | Z102: 64/0433/201502 | AA102: 0433/201502 | AB102: 0 | AC102: 0 | AD102: 0 | AE102: 0 | AF102: 0 | AG102: 0 | AH102: -0.56 | AI102: 0 | AJ102: 0 | AK102: 0 | AQ102: =Cadastro!K100 -> 1103 | AR102: =Cadastro!H100 -> Rur
B103: 01007 | C103: 0433 | D103: 201603 | F103: 01007 | G103: 0433 | H103: 201503 | J103: Mar | K103: 1007/Mar/201603 | L103: =IF(J103=0,0,+CONCATENATE(VLOOKUP(B103,Cadastro!$Q$3:$R$162,2,FALSE),"/",J103,"/",D103)) -> 64/Mar/201603 | M103: Mar/201603 | N103: 1007/201603 | O103: 1007/0433/201603 | P103: 64/201603 | Q103: 64/0433/201603 | R103: 0433/201603 | S103: Mar | T103: 1007/Mar/201503 | U103: =+CONCATENATE(VLOOKUP(F103,Cadastro!$Q$3:$R$162,2,FALSE),"/",S103,"/",H103) -> 64/Mar/201503 | V103: Mar/201503 | W103: 1007/201503 | X103: 1007/0433/201503 | Y103: 64/201503 | Z103: 64/0433/201503 | AA103: 0433/201503 | AB103: 0 | AC103: 0 | AD103: 0 | AE103: 0 | AF103: 0 | AG103: 0 | AH103: 0 | AI103: 0 | AJ103: 0 | AK103: 0 | AQ103: =Cadastro!K101 -> 1104 | AR103: =Cadastro!H101 -> Rur
B104: 01007 | C104: 0433 | D104: 201604 | F104: 01007 | G104: 0433 | H104: 201504 | J104: Mar | K104: 1007/Mar/201604 | L104: =IF(J104=0,0,+CONCATENATE(VLOOKUP(B104,Cadastro!$Q$3:$R$162,2,FALSE),"/",J104,"/",D104)) -> 64/Mar/201604 | M104: Mar/201604 | N104: 1007/201604 | O104: 1007/0433/201604 | P104: 64/201604 | Q104: 64/0433/201604 | R104: 0433/201604 | S104: Mar | T104: 1007/Mar/201504 | U104: =+CONCATENATE(VLOOKUP(F104,Cadastro!$Q$3:$R$162,2,FALSE),"/",S104,"/",H104) -> 64/Mar/201504 | V104: Mar/201504 | W104: 1007/201504 | X104: 1007/0433/201504 | Y104: 64/201504 | Z104: 64/0433/201504 | AA104: 0433/201504 | AB104: 0 | AC104: 0 | AD104: 0 | AE104: 0 | AF104: 0 | AG104: 0 | AH104: 0 | AI104: 0 | AJ104: 0 | AK104: 0 | AQ104: =Cadastro!K102 -> 1105 | AR104: =Cadastro!H102 -> Rur
B105: 01007 | C105: 0433 | D105: 201605 | F105: 01007 | G105: 0433 | H105: 201505 | J105: Mar | K105: 1007/Mar/201605 | L105: =IF(J105=0,0,+CONCATENATE(VLOOKUP(B105,Cadastro!$Q$3:$R$162,2,FALSE),"/",J105,"/",D105)) -> 64/Mar/201605 | M105: Mar/201605 | N105: 1007/201605 | O105: 1007/0433/201605 | P105: 64/201605 | Q105: 64/0433/201605 | R105: 0433/201605 | S105: Mar | T105: 1007/Mar/201505 | U105: =+CONCATENATE(VLOOKUP(F105,Cadastro!$Q$3:$R$162,2,FALSE),"/",S105,"/",H105) -> 64/Mar/201505 | V105: Mar/201505 | W105: 1007/201505 | X105: 1007/0433/201505 | Y105: 64/201505 | Z105: 64/0433/201505 | AA105: 0433/201505 | AB105: 0 | AC105: 0 | AD105: 0 | AE105: 0 | AF105: 0 | AG105: 0 | AH105: 0 | AI105: 0 | AJ105: 0 | AK105: 0 | AQ105: =Cadastro!K103 -> 1106 | AR105: =Cadastro!H103 -> Rur
B106: 01007 | C106: 0433 | D106: 201606 | F106: 01007 | G106: 0433 | H106: 201506 | J106: Mar | K106: 1007/Mar/201606 | L106: =IF(J106=0,0,+CONCATENATE(VLOOKUP(B106,Cadastro!$Q$3:$R$162,2,FALSE),"/",J106,"/",D106)) -> 64/Mar/201606 | M106: Mar/201606 | N106: 1007/201606 | O106: 1007/0433/201606 | P106: 64/201606 | Q106: 64/0433/201606 | R106: 0433/201606 | S106: Mar | T106: 1007/Mar/201506 | U106: =+CONCATENATE(VLOOKUP(F106,Cadastro!$Q$3:$R$162,2,FALSE),"/",S106,"/",H106) -> 64/Mar/201506 | V106: Mar/201506 | W106: 1007/201506 | X106: 1007/0433/201506 | Y106: 64/201506 | Z106: 64/0433/201506 | AA106: 0433/201506 | AB106: 0 | AC106: 0 | AD106: 0 | AE106: 0 | AF106: 0 | AG106: 0 | AH106: 0 | AI106: 0 | AJ106: 0 | AK106: 0 | AQ106: =Cadastro!K104 -> 1107 | AR106: =Cadastro!H104 -> Rur
B107: 01007 | C107: 0433 | D107: 201607 | F107: 01007 | G107: 0433 | H107: 201507 | J107: Mar | K107: 1007/Mar/201607 | L107: =IF(J107=0,0,+CONCATENATE(VLOOKUP(B107,Cadastro!$Q$3:$R$162,2,FALSE),"/",J107,"/",D107)) -> 64/Mar/201607 | M107: Mar/201607 | N107: 1007/201607 | O107: 1007/0433/201607 | P107: 64/201607 | Q107: 64/0433/201607 | R107: 0433/201607 | S107: Mar | T107: 1007/Mar/201507 | U107: =+CONCATENATE(VLOOKUP(F107,Cadastro!$Q$3:$R$162,2,FALSE),"/",S107,"/",H107) -> 64/Mar/201507 | V107: Mar/201507 | W107: 1007/201507 | X107: 1007/0433/201507 | Y107: 64/201507 | Z107: 64/0433/201507 | AA107: 0433/201507 | AB107: 0 | AC107: 0 | AD107: 0 | AE107: 0 | AF107: 0 | AG107: 0 | AH107: 0 | AI107: 0 | AJ107: 0 | AK107: 0 | AQ107: =Cadastro!K105 -> 1108 | AR107: =Cadastro!H105 -> Rur
B108: 01007 | C108: 0433 | D108: 201608 | F108: 01007 | G108: 0433 | H108: 201508 | J108: Mar | K108: 1007/Mar/201608 | L108: =IF(J108=0,0,+CONCATENATE(VLOOKUP(B108,Cadastro!$Q$3:$R$162,2,FALSE),"/",J108,"/",D108)) -> 64/Mar/201608 | M108: Mar/201608 | N108: 1007/201608 | O108: 1007/0433/201608 | P108: 64/201608 | Q108: 64/0433/201608 | R108: 0433/201608 | S108: Mar | T108: 1007/Mar/201508 | U108: =+CONCATENATE(VLOOKUP(F108,Cadastro!$Q$3:$R$162,2,FALSE),"/",S108,"/",H108) -> 64/Mar/201508 | V108: Mar/201508 | W108: 1007/201508 | X108: 1007/0433/201508 | Y108: 64/201508 | Z108: 64/0433/201508 | AA108: 0433/201508 | AB108: 0 | AC108: 0 | AD108: 0 | AE108: 0 | AF108: 0 | AG108: 0 | AH108: 0 | AI108: 0 | AJ108: 0 | AK108: 0 | AQ108: =Cadastro!K106 -> 1109 | AR108: =Cadastro!H106 -> Rur
B109: 01007 | C109: 0433 | D109: 201609 | F109: 01007 | G109: 0433 | H109: 201509 | J109: Mar | K109: 1007/Mar/201609 | L109: =IF(J109=0,0,+CONCATENATE(VLOOKUP(B109,Cadastro!$Q$3:$R$162,2,FALSE),"/",J109,"/",D109)) -> 64/Mar/201609 | M109: Mar/201609 | N109: 1007/201609 | O109: 1007/0433/201609 | P109: 64/201609 | Q109: 64/0433/201609 | R109: 0433/201609 | S109: Mar | T109: 1007/Mar/201509 | U109: =+CONCATENATE(VLOOKUP(F109,Cadastro!$Q$3:$R$162,2,FALSE),"/",S109,"/",H109) -> 64/Mar/201509 | V109: Mar/201509 | W109: 1007/201509 | X109: 1007/0433/201509 | Y109: 64/201509 | Z109: 64/0433/201509 | AA109: 0433/201509 | AB109: 0 | AC109: 0 | AD109: 0 | AE109: 0 | AF109: 0 | AG109: 0 | AH109: 0 | AI109: 0 | AJ109: 0 | AK109: 0 | AQ109: =Cadastro!K107 -> 1130 | AR109: =Cadastro!H107 -> Rur
B110: 01007 | C110: 0433 | D110: 201610 | F110: 01007 | G110: 0433 | H110: 201510 | J110: Mar | K110: 1007/Mar/201610 | L110: =IF(J110=0,0,+CONCATENATE(VLOOKUP(B110,Cadastro!$Q$3:$R$162,2,FALSE),"/",J110,"/",D110)) -> 64/Mar/201610 | M110: Mar/201610 | N110: 1007/201610 | O110: 1007/0433/201610 | P110: 64/201610 | Q110: 64/0433/201610 | R110: 0433/201610 | S110: Mar | T110: 1007/Mar/201510 | U110: =+CONCATENATE(VLOOKUP(F110,Cadastro!$Q$3:$R$162,2,FALSE),"/",S110,"/",H110) -> 64/Mar/201510 | V110: Mar/201510 | W110: 1007/201510 | X110: 1007/0433/201510 | Y110: 64/201510 | Z110: 64/0433/201510 | AA110: 0433/201510 | AB110: 0 | AC110: 0 | AD110: 0 | AE110: 0 | AF110: 0 | AG110: 0 | AH110: 0 | AI110: 0 | AJ110: 0 | AK110: 0 | AQ110: =Cadastro!K108 -> 1162 | AR110: =Cadastro!H108 -> Rur
B111: 01007 | C111: 0433 | D111: 201611 | F111: 01007 | G111: 0433 | H111: 201511 | J111: Mar | K111: 1007/Mar/201611 | L111: =IF(J111=0,0,+CONCATENATE(VLOOKUP(B111,Cadastro!$Q$3:$R$162,2,FALSE),"/",J111,"/",D111)) -> 64/Mar/201611 | M111: Mar/201611 | N111: 1007/201611 | O111: 1007/0433/201611 | P111: 64/201611 | Q111: 64/0433/201611 | R111: 0433/201611 | S111: Mar | T111: 1007/Mar/201511 | U111: =+CONCATENATE(VLOOKUP(F111,Cadastro!$Q$3:$R$162,2,FALSE),"/",S111,"/",H111) -> 64/Mar/201511 | V111: Mar/201511 | W111: 1007/201511 | X111: 1007/0433/201511 | Y111: 64/201511 | Z111: 64/0433/201511 | AA111: 0433/201511 | AB111: 0 | AC111: 0 | AD111: 0 | AE111: 0 | AF111: 0 | AG111: 0 | AH111: 0 | AI111: 0 | AJ111: 0 | AK111: 0 | AQ111: =Cadastro!K109 -> 1163 | AR111: =Cadastro!H109 -> Rur
B112: 01007 | C112: 0433 | D112: 201612 | F112: 01007 | G112: 0433 | H112: 201512 | J112: Mar | K112: 1007/Mar/201612 | L112: =IF(J112=0,0,+CONCATENATE(VLOOKUP(B112,Cadastro!$Q$3:$R$162,2,FALSE),"/",J112,"/",D112)) -> 64/Mar/201612 | M112: Mar/201612 | N112: 1007/201612 | O112: 1007/0433/201612 | P112: 64/201612 | Q112: 64/0433/201612 | R112: 0433/201612 | S112: Mar | T112: 1007/Mar/201512 | U112: =+CONCATENATE(VLOOKUP(F112,Cadastro!$Q$3:$R$162,2,FALSE),"/",S112,"/",H112) -> 64/Mar/201512 | V112: Mar/201512 | W112: 1007/201512 | X112: 1007/0433/201512 | Y112: 64/201512 | Z112: 64/0433/201512 | AA112: 0433/201512 | AB112: 0 | AC112: 0 | AD112: 0 | AE112: 0 | AF112: 0 | AG112: 0 | AH112: 0 | AI112: 0 | AJ112: 0 | AK112: 0 | AQ112: =Cadastro!K110 -> 1164 | AR112: =Cadastro!H110 -> Rur
B113: 01007 | C113: 0435 | D113: 201601 | F113: 01007 | G113: 0435 | H113: 201501 | J113: Aero | K113: 1007/Aero/201601 | L113: =IF(J113=0,0,+CONCATENATE(VLOOKUP(B113,Cadastro!$Q$3:$R$162,2,FALSE),"/",J113,"/",D113)) -> 64/Aero/201601 | M113: Aero/201601 | N113: 1007/201601 | O113: 1007/0435/201601 | P113: 64/201601 | Q113: 64/0435/201601 | R113: 0435/201601 | S113: Aero | T113: 1007/Aero/201501 | U113: =+CONCATENATE(VLOOKUP(F113,Cadastro!$Q$3:$R$162,2,FALSE),"/",S113,"/",H113) -> 64/Aero/201501 | V113: Aero/201501 | W113: 1007/201501 | X113: 1007/0435/201501 | Y113: 64/201501 | Z113: 64/0435/201501 | AA113: 0435/201501 | AB113: 0 | AC113: 0 | AD113: 0 | AE113: 0 | AF113: 0 | AG113: 0 | AH113: 0 | AI113: 0 | AJ113: 0 | AK113: 0 | AQ113: =Cadastro!K111 -> 1198 | AR113: =Cadastro!H111 -> Rur
B114: 01007 | C114: 0435 | D114: 201602 | F114: 01007 | G114: 0435 | H114: 201502 | J114: Aero | K114: 1007/Aero/201602 | L114: =IF(J114=0,0,+CONCATENATE(VLOOKUP(B114,Cadastro!$Q$3:$R$162,2,FALSE),"/",J114,"/",D114)) -> 64/Aero/201602 | M114: Aero/201602 | N114: 1007/201602 | O114: 1007/0435/201602 | P114: 64/201602 | Q114: 64/0435/201602 | R114: 0435/201602 | S114: Aero | T114: 1007/Aero/201502 | U114: =+CONCATENATE(VLOOKUP(F114,Cadastro!$Q$3:$R$162,2,FALSE),"/",S114,"/",H114) -> 64/Aero/201502 | V114: Aero/201502 | W114: 1007/201502 | X114: 1007/0435/201502 | Y114: 64/201502 | Z114: 64/0435/201502 | AA114: 0435/201502 | AB114: 0 | AC114: 0 | AD114: 0 | AE114: 0 | AF114: 0 | AG114: 0 | AH114: 0 | AI114: 0 | AJ114: 0 | AK114: 0 | AQ114: =Cadastro!K112 -> 0523 | AR114: =Cadastro!H112 -> Transp
B115: 01007 | C115: 0435 | D115: 201603 | F115: 01007 | G115: 0435 | H115: 201503 | J115: Aero | K115: 1007/Aero/201603 | L115: =IF(J115=0,0,+CONCATENATE(VLOOKUP(B115,Cadastro!$Q$3:$R$162,2,FALSE),"/",J115,"/",D115)) -> 64/Aero/201603 | M115: Aero/201603 | N115: 1007/201603 | O115: 1007/0435/201603 | P115: 64/201603 | Q115: 64/0435/201603 | R115: 0435/201603 | S115: Aero | T115: 1007/Aero/201503 | U115: =+CONCATENATE(VLOOKUP(F115,Cadastro!$Q$3:$R$162,2,FALSE),"/",S115,"/",H115) -> 64/Aero/201503 | V115: Aero/201503 | W115: 1007/201503 | X115: 1007/0435/201503 | Y115: 64/201503 | Z115: 64/0435/201503 | AA115: 0435/201503 | AB115: 0 | AC115: 0 | AD115: 0 | AE115: 0 | AF115: 0 | AG115: 0 | AH115: 0 | AI115: 0 | AJ115: 0 | AK115: 0 | AQ115: =Cadastro!K113 -> 0621 | AR115: =Cadastro!H113 -> Transp
B116: 01007 | C116: 0435 | D116: 201604 | F116: 01007 | G116: 0435 | H116: 201504 | J116: Aero | K116: 1007/Aero/201604 | L116: =IF(J116=0,0,+CONCATENATE(VLOOKUP(B116,Cadastro!$Q$3:$R$162,2,FALSE),"/",J116,"/",D116)) -> 64/Aero/201604 | M116: Aero/201604 | N116: 1007/201604 | O116: 1007/0435/201604 | P116: 64/201604 | Q116: 64/0435/201604 | R116: 0435/201604 | S116: Aero | T116: 1007/Aero/201504 | U116: =+CONCATENATE(VLOOKUP(F116,Cadastro!$Q$3:$R$162,2,FALSE),"/",S116,"/",H116) -> 64/Aero/201504 | V116: Aero/201504 | W116: 1007/201504 | X116: 1007/0435/201504 | Y116: 64/201504 | Z116: 64/0435/201504 | AA116: 0435/201504 | AB116: 0 | AC116: 0 | AD116: 0 | AE116: 0 | AF116: 0 | AG116: 0 | AH116: 0 | AI116: 0 | AJ116: 0 | AK116: 0 | AQ116: =Cadastro!K114 -> 0622 | AR116: =Cadastro!H114 -> Transp
B117: 01007 | C117: 0435 | D117: 201605 | F117: 01007 | G117: 0435 | H117: 201505 | J117: Aero | K117: 1007/Aero/201605 | L117: =IF(J117=0,0,+CONCATENATE(VLOOKUP(B117,Cadastro!$Q$3:$R$162,2,FALSE),"/",J117,"/",D117)) -> 64/Aero/201605 | M117: Aero/201605 | N117: 1007/201605 | O117: 1007/0435/201605 | P117: 64/201605 | Q117: 64/0435/201605 | R117: 0435/201605 | S117: Aero | T117: 1007/Aero/201505 | U117: =+CONCATENATE(VLOOKUP(F117,Cadastro!$Q$3:$R$162,2,FALSE),"/",S117,"/",H117) -> 64/Aero/201505 | V117: Aero/201505 | W117: 1007/201505 | X117: 1007/0435/201505 | Y117: 64/201505 | Z117: 64/0435/201505 | AA117: 0435/201505 | AB117: 0 | AC117: 0 | AD117: 0 | AE117: 0 | AF117: 0 | AG117: 0 | AH117: 0 | AI117: 0 | AJ117: 0 | AK117: 0 | AQ117: =Cadastro!K115 -> 0623 | AR117: =Cadastro!H115 -> Transp
B118: 01007 | C118: 0435 | D118: 201606 | F118: 01007 | G118: 0435 | H118: 201506 | J118: Aero | K118: 1007/Aero/201606 | L118: =IF(J118=0,0,+CONCATENATE(VLOOKUP(B118,Cadastro!$Q$3:$R$162,2,FALSE),"/",J118,"/",D118)) -> 64/Aero/201606 | M118: Aero/201606 | N118: 1007/201606 | O118: 1007/0435/201606 | P118: 64/201606 | Q118: 64/0435/201606 | R118: 0435/201606 | S118: Aero | T118: 1007/Aero/201506 | U118: =+CONCATENATE(VLOOKUP(F118,Cadastro!$Q$3:$R$162,2,FALSE),"/",S118,"/",H118) -> 64/Aero/201506 | V118: Aero/201506 | W118: 1007/201506 | X118: 1007/0435/201506 | Y118: 64/201506 | Z118: 64/0435/201506 | AA118: 0435/201506 | AB118: 0 | AC118: 0 | AD118: 0 | AE118: 0 | AF118: 0 | AG118: 0 | AH118: 0 | AI118: 0 | AJ118: 0 | AK118: 0 | AQ118: =Cadastro!K116 -> 0627 | AR118: =Cadastro!H116 -> Transp
B119: 01007 | C119: 0435 | D119: 201607 | F119: 01007 | G119: 0435 | H119: 201507 | J119: Aero | K119: 1007/Aero/201607 | L119: =IF(J119=0,0,+CONCATENATE(VLOOKUP(B119,Cadastro!$Q$3:$R$162,2,FALSE),"/",J119,"/",D119)) -> 64/Aero/201607 | M119: Aero/201607 | N119: 1007/201607 | O119: 1007/0435/201607 | P119: 64/201607 | Q119: 64/0435/201607 | R119: 0435/201607 | S119: Aero | T119: 1007/Aero/201507 | U119: =+CONCATENATE(VLOOKUP(F119,Cadastro!$Q$3:$R$162,2,FALSE),"/",S119,"/",H119) -> 64/Aero/201507 | V119: Aero/201507 | W119: 1007/201507 | X119: 1007/0435/201507 | Y119: 64/201507 | Z119: 64/0435/201507 | AA119: 0435/201507 | AB119: 0 | AC119: 0 | AD119: 0 | AE119: 0 | AF119: 0 | AG119: 0 | AH119: 0 | AI119: 0 | AJ119: 0 | AK119: 0 | AQ119: =Cadastro!K117 -> 0628 | AR119: =Cadastro!H117 -> Transp
B120: 01007 | C120: 0435 | D120: 201608 | F120: 01007 | G120: 0435 | H120: 201508 | J120: Aero | K120: 1007/Aero/201608 | L120: =IF(J120=0,0,+CONCATENATE(VLOOKUP(B120,Cadastro!$Q$3:$R$162,2,FALSE),"/",J120,"/",D120)) -> 64/Aero/201608 | M120: Aero/201608 | N120: 1007/201608 | O120: 1007/0435/201608 | P120: 64/201608 | Q120: 64/0435/201608 | R120: 0435/201608 | S120: Aero | T120: 1007/Aero/201508 | U120: =+CONCATENATE(VLOOKUP(F120,Cadastro!$Q$3:$R$162,2,FALSE),"/",S120,"/",H120) -> 64/Aero/201508 | V120: Aero/201508 | W120: 1007/201508 | X120: 1007/0435/201508 | Y120: 64/201508 | Z120: 64/0435/201508 | AA120: 0435/201508 | AB120: 0 | AC120: 0 | AD120: 0 | AE120: 0 | AF120: 0 | AG120: 0 | AH120: 0 | AI120: 0 | AJ120: 0 | AK120: 0 | AQ120: =Cadastro!K118 -> 0632 | AR120: =Cadastro!H118 -> Transp
B121: 01007 | C121: 0435 | D121: 201609 | F121: 01007 | G121: 0435 | H121: 201509 | J121: Aero | K121: 1007/Aero/201609 | L121: =IF(J121=0,0,+CONCATENATE(VLOOKUP(B121,Cadastro!$Q$3:$R$162,2,FALSE),"/",J121,"/",D121)) -> 64/Aero/201609 | M121: Aero/201609 | N121: 1007/201609 | O121: 1007/0435/201609 | P121: 64/201609 | Q121: 64/0435/201609 | R121: 0435/201609 | S121: Aero | T121: 1007/Aero/201509 | U121: =+CONCATENATE(VLOOKUP(F121,Cadastro!$Q$3:$R$162,2,FALSE),"/",S121,"/",H121) -> 64/Aero/201509 | V121: Aero/201509 | W121: 1007/201509 | X121: 1007/0435/201509 | Y121: 64/201509 | Z121: 64/0435/201509 | AA121: 0435/201509 | AB121: 0 | AC121: 0 | AD121: 0 | AE121: 0 | AF121: 0 | AG121: 0 | AH121: 0 | AI121: 0 | AJ121: 0 | AK121: 0 | AQ121: =Cadastro!K119 -> 0638 | AR121: =Cadastro!H119 -> Transp
B122: 01007 | C122: 0435 | D122: 201610 | F122: 01007 | G122: 0435 | H122: 201510 | J122: Aero | K122: 1007/Aero/201610 | L122: =IF(J122=0,0,+CONCATENATE(VLOOKUP(B122,Cadastro!$Q$3:$R$162,2,FALSE),"/",J122,"/",D122)) -> 64/Aero/201610 | M122: Aero/201610 | N122: 1007/201610 | O122: 1007/0435/201610 | P122: 64/201610 | Q122: 64/0435/201610 | R122: 0435/201610 | S122: Aero | T122: 1007/Aero/201510 | U122: =+CONCATENATE(VLOOKUP(F122,Cadastro!$Q$3:$R$162,2,FALSE),"/",S122,"/",H122) -> 64/Aero/201510 | V122: Aero/201510 | W122: 1007/201510 | X122: 1007/0435/201510 | Y122: 64/201510 | Z122: 64/0435/201510 | AA122: 0435/201510 | AB122: 0 | AC122: 0 | AD122: 0 | AE122: 0 | AF122: 0 | AG122: 0 | AH122: 0 | AI122: 0 | AJ122: 0 | AK122: 0 | AQ122: =Cadastro!K120 -> 0644 | AR122: =Cadastro!H120 -> Transp
B123: 01007 | C123: 0435 | D123: 201611 | F123: 01007 | G123: 0435 | H123: 201511 | J123: Aero | K123: 1007/Aero/201611 | L123: =IF(J123=0,0,+CONCATENATE(VLOOKUP(B123,Cadastro!$Q$3:$R$162,2,FALSE),"/",J123,"/",D123)) -> 64/Aero/201611 | M123: Aero/201611 | N123: 1007/201611 | O123: 1007/0435/201611 | P123: 64/201611 | Q123: 64/0435/201611 | R123: 0435/201611 | S123: Aero | T123: 1007/Aero/201511 | U123: =+CONCATENATE(VLOOKUP(F123,Cadastro!$Q$3:$R$162,2,FALSE),"/",S123,"/",H123) -> 64/Aero/201511 | V123: Aero/201511 | W123: 1007/201511 | X123: 1007/0435/201511 | Y123: 64/201511 | Z123: 64/0435/201511 | AA123: 0435/201511 | AB123: 0 | AC123: 0 | AD123: 0 | AE123: 0 | AF123: 0 | AG123: 0 | AH123: 0 | AI123: 0 | AJ123: 0 | AK123: 0 | AQ123: =Cadastro!K121 -> 0652 | AR123: =Cadastro!H121 -> Transp
B124: 01007 | C124: 0435 | D124: 201612 | F124: 01007 | G124: 0435 | H124: 201512 | J124: Aero | K124: 1007/Aero/201612 | L124: =IF(J124=0,0,+CONCATENATE(VLOOKUP(B124,Cadastro!$Q$3:$R$162,2,FALSE),"/",J124,"/",D124)) -> 64/Aero/201612 | M124: Aero/201612 | N124: 1007/201612 | O124: 1007/0435/201612 | P124: 64/201612 | Q124: 64/0435/201612 | R124: 0435/201612 | S124: Aero | T124: 1007/Aero/201512 | U124: =+CONCATENATE(VLOOKUP(F124,Cadastro!$Q$3:$R$162,2,FALSE),"/",S124,"/",H124) -> 64/Aero/201512 | V124: Aero/201512 | W124: 1007/201512 | X124: 1007/0435/201512 | Y124: 64/201512 | Z124: 64/0435/201512 | AA124: 0435/201512 | AB124: 0 | AC124: 0 | AD124: 0 | AE124: 0 | AF124: 0 | AG124: 0 | AH124: 0 | AI124: 0 | AJ124: 0 | AK124: 0 | AQ124: =Cadastro!K122 -> 0654 | AR124: =Cadastro!H122 -> Transp
